{"text_format":"1","workbook":"xlsx","n_sheets":24,"sheets":["Vedlikehold selger","Listverk","Utvendig kledning","Dørvridere","Omramming","Terrasserekker","Terrassesøyler","Garasjeporter","Garasjedører","Vinduer_garasjeport","Garasjeportåpner","Skarpnes","Basic Wall","Produksjonsbeskrivelse","Sammenstilling","Romskjema","Hoveddører","Materialvalg","Referanser","Salgskontor","Kalkyle endriger","Rombeskrivelse","Hörmann-porter","Ark2"],"not_rendered":{"charts":0,"images":84,"macros":1,"external_links":1,"defined_names":282,"comments":0,"pivot_tables":0},"unopened":[],"bounds":{"document_bytes":16777216,"sheet_cells":100000,"rows_first":2000,"rows_last":500,"rows_between":2000,"halvings":0,"cell_chars":16384,"cell_head_chars":4096},"cells_cut":0,"cells_raw":0,"read":"whole","date_system":"1900"}

{"sheet":"Vedlikehold selger","index":0,"n_rows":56,"n_cols":10,"rows_kept":56,"cut":false,"hidden":true,"merged":[[1,1,5,4],[47,1,47,4],[3,9,27,11],[48,1,48,4]]}
[null,{"$f":"Produksjonsbeskrivelse!B4","v":"Konsmo Fabrikker AS"}]
[null,{"$f":"Produksjonsbeskrivelse!B5","v":"Hovedkontor\nBreilimoen 15                                           \n4525  KONSMO                                             \nTelefon: 38 28 13 00                                   \nE-post: firmapost@konsmohus.no"}]
[null,null,null,null,null,null,null,null,null,"Viktig!"]
[null,null,null,null,null,null,null,null,null,"Prisene som fremkommer er ment å være til hjelp for utfylling av leveringsbeskrivelse.\nAlle priser er beregnet med normalt svinn, dekningsbidrag, moms og montasje.\nPrisene er tilleggspriser til standard kalkyleprodukter.\nFradragspriser fremkommer som røde."]
[]
[]
[]
[null,"Selgere:",null,"Telefon:",null,"Mobil:",null,"E-post"]
[]
[1,"Jarl-Ove Salvesen",null,"38 27 15 62",null,"90 03 19 56",null,"jos@konsmohus.no"]
[2,"Thorbjørn Tobiassen",null,"38 27 15 61",null,"90 20 53 60",null,"tt@konsmohus.no"]
[3,"Harry Hestås",null,"38 27 15 64",null,"90 91 74 20",null,"harry.hestaas@konsmohus.no"]
[4,"Nils Andersen",null,"38 00 65 24",null,"41 50 85 81",null,"nils.andersen@konsmohus.no"]
[5,"Steffen Aarhus",null,"38 00 65 26",null,"47 02 16 68",null,"steffen.aarhus@konsmohus.no"]
[6,"Ståle Simonsen",null,null,null,"90 93 79 08",null,"staale.simonsen@konsmohus.no"]
[7,"Helge Haugenes",null,null,null,"91 10 50 22",null,"helge.haugenes@konsmohus.no"]
[8,"Ole Jan Heddeland",null,null,null,"46 95 14 47",null,"ojh@konsmohus.no"]
[9,"Lars Berglund",null,null,null,"93 44 44 11",null,"lb@konsmohus.no"]
[10,"Alexander Waksvik",null,null,null,"92 44 06 01",null,"aw@konsmohus"]
[11,"Petter Stavran",null,null,null,"95 80 67 35",null,"petter.stavran@konsmohus.no"]
[12,"Geir Stolpestad",null,"38 28 13 22",null,"41 85 58 16",null,"geir.stolpestad@konsmohus.no"]
[13,"Frank Hestås",null,"38 28 13 07",null,"91 17 05 60",null,"frank.hestaas@konsmohus.no"]
[14]
[15]
[16,"Øyvind Søderholm",null,null,null,"99 49 58 55",null,"os@konsmohus.no"]
[17,"Odd Ågedal",null,null,null,"91 35 66 07",null,"odd.aagedal@konsmohus.no"]
[18,"Terje Haraldstad",null,null,null,"91 55 19 68",null,"terje.haraldstad@konsmohus.no"]
[19,"Steffen Nilsen",null,null,null,"47 02 16 68",null,"steffen.nilsen@konsmohus.no"]
[20,"Walther Opheim",null,null,null,"47 61 50 78",null,"walther.opheim@konsmohus.no"]
[21,"Petter Stavran",null,null,null,"95 80 67 35",null,"petter.stavran@konsmohus.no"]
[22]
[23]
[24]
[25]
[26,"Ivar Schelderup",null,"67 83 90 25",null,"90 11 12 08",null,"ivar@abhus.no"]
[27,"Per Gjertsen",null,"67 83 90 25",null,"92 01 23 70",null,"per@abhus.no"]
[28]
[29,"Trond Waxvik",null,"32 82 66 40",null,"93 02 33 66",null,"tw@waxhus.no"]
[30,"Geir Øen",null,"32 82 66 40",null,"97 77 11 34",null,"post@waxhus.no"]
[31,"Vegard Øen",null,"32 82 66 40",null,"90 01 80 15",null,"post@waxhus.no"]
[32]
[33,"Trond Berentsen ",null,"46 76 78 00 ",null,"90 89 34 92",null,"trond@mesterbyggvestfold.no"]
[34]
[35]
[36]
[37," "]
[]
[null,"Påslag i % på nettoinnkjøpspriser (material)",null,null,null,0.25,{"$f":"IF(F48<25%,\"Dekningsbidraget er for lavt, juster til minimum 25%\", \" \")","v":" "}]
[null,"Påslag i % på netto montasjekostnader",null,null,null,0.1]
[]
[null,"Timelønn for tømrere inkl. alle kostnader",null,null,null,408.4,"ekskl. moms og eventuell dagtid."]
[]
[]
[]
[null,"Alle rettigheter til denne leveringsbeskrivelse tilhører Konsmo Fabrikker AS. "]
[null,"Leveringsbeskrivelsen må verken helt eller delvis overlates andre uten tillatelse fra Konsmo Fabrikker AS."]

{"sheet":"Listverk","index":1,"n_rows":19,"n_cols":8,"rows_kept":19,"cut":false,"hidden":true,"merged":[[17,1,17,2],[18,1,18,2],[3,6,3,8]]}
[]
[]
[]
[null,"  prof. KOMBILIST",null,null,null,null,"    prof.  TAKLIST"]
[]
[]
[]
[]
[]
[]
[]
[]
[]
[]
[]
[]
[]
[null,"Nr.         ",null,"Dimensjon",null,null,"Nr.","Dimensjoner"]
[null,"Kombilist TK 471",null,"15x70 mm",null,null,"Taklist TT349","15x70 mm"]

{"sheet":"Utvendig kledning","index":2,"n_rows":1,"n_cols":1,"rows_kept":1,"cut":false,"hidden":true,"merged":[]}
["Standard kledning:"]

{"sheet":"Dørvridere","index":3,"n_rows":1,"n_cols":1,"rows_kept":1,"cut":false,"hidden":true,"merged":[]}
["Standard dørvridere"]

{"sheet":"Omramming","index":4,"n_rows":1,"n_cols":1,"rows_kept":1,"cut":false,"hidden":true,"merged":[]}
["Standard omramming"]

{"sheet":"Terrasserekker","index":5,"n_rows":1,"n_cols":1,"rows_kept":1,"cut":false,"hidden":true,"merged":[]}
["Standard terrasserekker"]

{"sheet":"Terrassesøyler","index":6,"n_rows":0,"n_cols":0,"rows_kept":0,"cut":false,"hidden":true,"merged":[]}

{"sheet":"Garasjeporter","index":7,"n_rows":1,"n_cols":1,"rows_kept":1,"cut":false,"hidden":true,"merged":[]}
["LIGA Stålporter"]

{"sheet":"Garasjedører","index":8,"n_rows":1,"n_cols":1,"rows_kept":1,"cut":false,"hidden":true,"merged":[]}
["GARASJEDØRER"]

{"sheet":"Vinduer_garasjeport","index":9,"n_rows":1,"n_cols":1,"rows_kept":1,"cut":false,"hidden":true,"merged":[]}
["Vindusrekker i garasjeport"]

{"sheet":"Garasjeportåpner","index":10,"n_rows":1,"n_cols":1,"rows_kept":1,"cut":false,"hidden":true,"merged":[]}
["Garasjeportåpnere"]

{"sheet":"Skarpnes","index":11,"n_rows":29,"n_cols":11,"rows_kept":29,"cut":false,"hidden":true,"merged":[]}
["Skarpnes taksteinprofiler og farger"]
[]
[]
["DOBBELKRUM",null,null,null,"ENKELKRUM",null,"MELODIE","FUTURA",null,"DOMINO"]
[]
[]
[]
[]
["Antikk","Antikk Wet Look","Ru Antikk",null,"Antikk",null,"Naturrød","Futura Sort\nNoblesse, glassert","Futura Antrasitt Nuance Engobert","Antrasitt Nuance Engobert","Skifer Finesse, glassert"]
[]
[]
[]
[]
["Koksgrå","Edel Antrasitt","Ru Lys grå","Ru Skifergrå","Koksgrå",null,"Kobberrød Nuance Engobert","Futura Rød\nFinesse, glassert","Futura Kobberrød Nuance Engobert","Sort matt Nuance Engobert","Sort Finesse, glassert"]
[]
[]
[]
[]
[null,"Edel Sort","Ru Sort",null,null,"Edel Sort","Sort Finesse+, glassert","Futura Rødbrun Finesse, glassert","Futura Naturrød","Kobberrød Nuance Engobert","Naturrød"]
[]
[]
[]
[]
["Rød","Edel Rød","Ru Rød",null,"Rød","Edel Rød","Antrasitt Nuance Engobert"]
[]
[]
[]
[]
["Teglrød","Edel\nTeglrød",null,null,"Teglrød","Edel\nTeglrød"]

{"sheet":"Basic Wall","index":12,"n_rows":92,"n_cols":6,"rows_kept":92,"cut":false,"hidden":true,"merged":[[1,0,1,2],[1,3,1,5]]}
[]
[null,null,null,"Basic Wall\nKostemalt / Rullemalt veggplate"]
[]
[null,null,null,"Hvit","NCS S 0502 Y","Skygge 5 bord Kostemalt, 11x620x2390/2740 mm"]
[null,null,null,null,null,"Perle 5 bord Kostemalt, 11x620x2390/2740 mm"]
[null,null,null,null,null,"Fas 6 bord Kostemalt, 11x620x2390/2740 mm"]
[null,null,null,null,null,"Fas 8 bord Kostemalt, 11x620x2390/2740 mm"]
[null,null,null,null,null,"Antikk m/microfuge Kostemalt, 11x620x2390/2740 mm"]
[null,null,null,null,null,"Fas 3 bord Rullemalt, 11x620x2390/2740 mm"]
[null,null,null,null,null,"Antikk vegg Rullemalt, 11x620x2390/2740 mm"]
[]
[null,null,null,"Brilliant Hvit","NCS S 0500 N","Skygge 5 bord Kostemalt, 11x620x2390/2740 mm"]
[null,null,null,null,null,"Perle 5 bord Kostemalt, 11x620x2390/2740 mm"]
[null,null,null,null,null,"Fas 3 bord, 11x620x2390/2740 mm"]
[null,null,null,null,null,"Antikk m/microfuge Kostemalt, 11x620x2390/2740 mm"]
[null,null,null,null,null," "]
[null,null,null,null,null," "]
[null,null,null,null,null," "]
[null,null,null,null,null," "]
[null,null,null,"Frost","NCS S 1500 N","Skygge 5 bord Kostemalt, 11x620x2390/2740 mm"]
[null,null,null,null,null,"Perle 5 bord Kostemalt, 11x620x2390/2740 mm"]
[null,null,null,null,null,"Fas 8 bord Kostemalt, 11x620x2390/2740 mm"]
[null,null,null,null,null,"Antikk m/microfuge Kostemalt, 11x620x2390/2740 mm"]
[null,null,null,null,null," "]
[null,null,null,null,null," "]
[null,null,null,null,null," "]
[null,null,null,null,null," "]
[null,null,null,"Caffelatte","NCS S 1005 Y30R","Skygge 5 bord Kostemalt, 11x620x2390/2740 mm"]
[null,null,null,null,null,"Perle 5 bord Kostemalt, 11x620x2390/2740 mm"]
[null,null,null,null,null,"Fas 8 bord Kostemalt, 11x620x2390/2740 mm"]
[null,null,null,null,null,"Fas 3 bord Rullemalt, 11x620x2390/2740 mm"]
[null,null,null,null,null," "]
[null,null,null,null,null," "]
[null,null,null,null,null," "]
[null,null,null,null,null," "]
[null,null,null,"Mist","NCS S 3000 N","Skygge 5 bord Kostemalt, 11x620x2390 mm"]
[null,null,null,null,null," "]
[null,null,null,null,null," "]
[null,null,null,null,null," "]
[null,null,null,null,null," "]
[null,null,null,null,null," "]
[null,null,null,null,null," "]
[null,null,null,null,null," "]
[null,null,null,"Sand","NCS S 2502 Y","Skygge 5 bord Kostemalt, 11x620x2390 mm"]
[null,null,null,null,null," "]
[null,null,null,null,null," "]
[null,null,null,null,null," "]
[null,null,null,null,null," "]
[null,null,null,null,null," "]
[null,null,null,null,null," "]
[]
[null,null,null,"Earth","NCS S 4005 Y20R","Skygge 5 bord Kostemalt, 11x620x2390 mm"]
[null,null,null,null,null," "]
[null,null,null,null,null," "]
[null,null,null,null,null," "]
[null,null,null,null,null," "]
[null,null,null,null,null," "]
[null,null,null,null,null," "]
[null,null,null,null,null," "]
[null,null,null,"Pepper","NCS S 6502 Y ","Skygge 5 bord Kostemalt, 11x620x2390 mm"]
[null,null,null,null,null," "]
[null,null,null,null,null," "]
[null,null,null,null,null," "]
[null,null,null,null,null," "]
[null,null,null,null,null," "]
[null,null,null,null,null," "]
[]
[null,null,null,"Soft Menthol","NCS S 1706 G15Y","Skygge 5 bord Kostemalt, 11x620x2390 mm"]
[]
[]
[]
[]
[]
[]
[]
[null,null,null,"Soft Eucalyptus","NCS S 5608 B78G","Skygge 5 bord Kostemalt, 11x620x2390 mm"]
[]
[]
[]
[]
[]
[]
[null,null,null,null,null," "]
[null,null,null,"Terracotta","NCS S 3923 Y74R","Skygge 5 bord Kostemalt, 11x620x2390 mm"]
[]
[]
[]
[]
[]
[]
[]
[null,null,null,"Deep Ocean","NCS S 7010 B10G","Skygge 5 bord Kostemalt, 11x620x2390 mm"]

{"sheet":"Produksjonsbeskrivelse","index":13,"n_rows":677,"n_cols":19,"rows_kept":677,"cut":false,"hidden":false,"merged":[[89,0,90,13],[139,2,139,4],[139,7,139,11],[140,0,140,1],[140,2,140,11],[179,2,179,11],[179,0,179,1],[218,5,218,9],[219,5,219,9],[147,2,147,11],[148,0,148,1],[149,0,149,1],[148,2,148,11],[150,0,151,13],[138,2,138,11],[141,0,141,1],[131,6,131,7],[122,0,122,1],[139,0,139,1],[120,2,120,11],[122,6,122,7],[128,0,128,1],[133,6,133,7],[124,0,124,1],[217,5,217,9],[209,0,210,13],[214,0,215,13],[346,6,346,7],[343,0,343,1],[343,2,343,4],[345,2,345,4],[345,6,345,8],[343,9,343,12],[323,2,323,4],[299,2,299,9],[324,0,324,1],[344,2,344,4],[345,0,345,1],[325,6,325,7],[328,2,328,4],[348,0,348,1],[348,2,348,4],[347,2,347,4],[342,9,342,12],[339,2,339,11],[347,9,347,12],[306,0,306,1],[308,0,308,1],[331,0,331,1],[317,0,317,2],[329,0,329,1],[347,0,347,1],[312,0,312,7],[321,0,321,1],[259,0,259,1],[260,0,260,1],[261,0,261,1],[307,2,307,9],[274,7,274,9],[275,7,275,9],[276,7,276,9],[294,0,294,1],[318,0,318,2],[286,0,286,1],[259,5,259,8],[292,2,292,9],[293,2,293,9],[330,2,330,4],[285,0,285,1],[330,0,330,1],[285,2,285,9],[344,6,344,7],[344,9,344,12],[346,9,346,12],[347,6,347,7],[326,0,326,1],[326,2,326,4],[326,6,326,7],[327,0,327,1],[327,6,327,8],[333,2,333,4],[346,2,346,4],[343,6,343,7],[346,0,346,1],[333,0,333,1],[339,0,339,1],[344,0,344,1],[342,0,342,1],[342,2,342,4],[342,6,342,7],[341,6,341,7],[327,9,327,12],[372,0,373,13],[348,6,348,7],[348,9,348,12],[349,0,349,1],[349,2,349,4],[299,0,299,1],[298,2,298,9],[329,9,329,12],[330,9,330,12],[324,9,324,12],[325,0,325,1],[361,0,361,1],[362,0,362,1],[363,0,363,1],[364,0,364,1],[358,2,358,9],[357,2,357,9],[360,2,360,3],[363,2,363,9],[325,2,325,4],[329,6,329,7],[325,9,325,12],[321,2,321,11],[381,0,381,1],[379,2,379,3],[367,2,367,9],[379,0,379,1],[384,0,385,13],[378,2,378,9],[365,2,365,3],[375,0,375,1],[378,0,378,1],[367,0,367,1],[368,0,368,1],[383,0,383,1],[382,2,382,3],[382,0,382,1],[369,2,369,3],[370,2,370,3],[368,2,368,9],[375,2,375,9],[369,0,369,1],[370,0,370,1],[362,2,362,9],[360,0,360,1],[364,2,364,3],[359,0,359,1],[647,1,647,11],[648,1,648,11],[649,1,649,11],[464,1,464,11],[465,1,465,11],[466,1,466,11],[557,6,557,9],[559,1,559,11],[560,1,560,11],[561,1,561,11],[562,1,562,11],[590,6,590,9],[581,1,581,11],[582,1,582,11],[583,1,583,11],[584,1,584,11],[592,1,592,11],[593,1,593,11],[507,1,507,11],[479,1,479,11],[644,1,644,11],[511,1,511,11],[533,1,533,11],[518,6,518,9],[47,0,47,2],[78,0,78,1],[78,2,78,11],[74,0,75,13],[85,2,85,4],[86,0,86,1],[87,0,87,1],[87,2,87,4],[87,5,87,7],[86,2,86,4],[86,5,86,7],[87,8,87,13],[86,8,86,13],[85,0,85,1],[80,0,80,1],[79,2,79,11],[80,2,80,11],[351,0,351,1],[351,2,351,4],[352,0,352,1],[8,13,8,14],[45,0,45,6],[47,7,47,9],[69,0,69,2],[31,9,31,13],[77,2,77,11],[72,2,72,11],[45,7,45,9],[56,0,56,11],[47,4,47,6],[64,7,64,9],[13,1,13,13],[15,1,15,13],[17,3,17,13],[19,6,19,13],[23,3,23,13],[34,3,34,4],[34,0,34,2],[48,0,48,2],[69,3,69,5],[70,0,70,2],[66,6,66,13],[64,12,64,13],[66,1,66,4],[284,0,284,1],[292,0,292,1],[298,0,298,1],[287,0,287,1],[293,0,293,1],[283,0,283,1],[291,0,291,1],[304,0,304,1],[245,0,245,1],[263,0,264,13],[274,0,274,1],[291,2,291,9],[283,2,283,9],[391,0,391,1],[394,2,394,9],[388,2,388,9],[393,2,393,9],[387,0,387,1],[390,2,390,9],[396,0,397,13],[391,2,391,9],[395,0,395,1],[388,0,388,1],[390,0,390,1],[387,2,387,9],[486,0,486,2],[495,1,495,11],[496,1,496,11],[497,1,497,11],[498,1,498,11],[393,0,393,1],[394,0,394,1],[407,6,407,9],[402,0,402,2],[409,1,409,11],[414,1,414,11],[422,1,422,11],[426,1,426,11],[410,1,410,11],[424,1,424,11],[425,1,425,11],[440,1,440,11],[448,1,448,11],[449,1,449,11],[446,6,446,9],[645,1,645,11],[646,1,646,11],[634,1,634,11],[635,1,635,11],[636,1,636,11],[401,0,401,2],[365,0,365,1],[381,2,381,9],[499,1,499,11],[474,1,474,11],[475,1,475,11],[476,1,476,11],[477,1,477,11],[478,1,478,11],[435,1,435,11],[436,1,436,11],[439,1,439,11],[438,1,438,11],[437,1,437,11],[423,1,423,11],[366,0,366,1],[420,6,420,9],[412,1,412,11],[413,1,413,11],[673,0,674,13],[656,0,656,2],[657,0,657,2],[661,0,662,13],[665,0,666,13],[669,0,670,13],[450,1,450,11],[451,1,451,11],[452,1,452,11],[453,1,453,11],[459,6,459,9],[461,1,461,11],[462,1,462,11],[463,1,463,11],[508,1,508,11],[509,1,509,11],[510,1,510,11],[544,6,544,9],[546,1,546,11],[538,1,538,11],[629,6,629,9],[631,1,631,11],[632,1,632,11],[566,0,567,13],[123,6,123,7],[122,9,122,11],[123,9,123,11],[132,6,132,7],[132,8,132,11],[135,0,136,13],[42,3,42,4],[40,3,40,4],[29,6,29,7],[29,9,29,13],[29,1,29,4],[98,2,98,11],[41,3,41,4],[97,0,97,1],[97,2,97,11],[98,0,98,1],[99,0,99,1],[95,2,95,11],[104,6,104,11],[104,0,104,1],[109,0,109,1],[105,6,105,11],[108,3,108,5],[108,6,108,11],[153,0,153,2],[162,0,162,1],[159,2,159,11],[157,2,157,11],[166,2,166,11],[159,0,159,1],[166,0,166,1],[157,0,157,1],[105,3,105,5],[141,2,141,11],[142,0,142,1],[120,0,120,1],[113,0,113,1],[111,0,111,1],[128,2,128,11],[129,6,129,7],[123,0,123,1],[106,3,106,5],[106,6,106,11],[109,6,109,11],[110,3,110,5],[125,0,126,13],[106,0,106,1],[108,0,108,1],[4,1,9,4],[304,2,304,9],[305,2,305,9],[306,2,306,9],[19,3,19,4],[21,1,21,4],[27,1,27,4],[27,6,27,7],[31,1,31,4],[31,6,31,7],[25,1,25,13],[21,6,21,9],[38,3,38,4],[21,11,21,13],[27,9,27,13],[35,3,35,4],[36,3,36,4],[37,3,37,4],[34,7,42,13],[158,0,158,1],[154,0,154,2],[170,0,170,1],[175,0,175,1],[160,0,160,1],[156,0,156,1],[262,0,262,1],[270,0,270,1],[270,2,270,9],[269,0,269,1],[260,2,260,3],[259,2,259,3],[161,2,161,11],[160,2,160,11],[163,0,164,13],[161,0,161,1],[181,0,181,1],[169,2,169,11],[171,0,171,1],[268,2,268,3],[249,2,249,7],[249,9,249,13],[250,9,250,13],[241,0,241,1],[230,0,230,1],[190,2,190,11],[191,0,191,1],[191,2,191,11],[199,2,199,11],[277,2,277,4],[277,7,277,9],[260,10,260,13],[330,6,330,7],[328,9,328,12],[329,2,329,4],[328,0,328,1],[324,2,324,4],[323,6,323,7],[279,0,279,1],[269,2,269,9],[272,0,272,1],[327,2,327,4],[300,0,300,1],[305,0,305,1],[307,0,307,1],[324,6,324,7],[322,0,322,1],[322,2,322,11],[326,9,326,12],[328,6,328,7],[278,7,278,9],[313,0,313,7],[272,2,272,9],[350,0,350,1],[345,9,345,12],[359,2,359,3],[340,0,340,1],[334,0,334,1],[349,6,349,8],[349,9,349,12],[332,0,332,1],[331,9,331,12],[357,0,357,1],[358,0,358,1],[341,2,341,4],[331,2,331,4],[332,2,332,4],[341,9,341,11],[350,2,350,4],[172,0,172,1],[147,0,147,1],[221,10,221,11],[242,2,242,3],[183,0,183,1],[189,2,189,4],[189,7,189,11],[189,0,189,1],[168,0,168,1],[185,0,185,1],[180,0,180,1],[182,2,182,11],[183,2,183,11],[192,2,192,4],[192,7,192,11],[201,0,201,1],[202,0,202,1],[171,2,171,11],[167,0,167,1],[167,2,167,11],[193,2,193,4],[221,5,221,9],[237,0,237,2],[229,0,229,1],[193,7,193,11],[186,0,187,13],[182,0,182,1],[286,2,286,9],[212,0,212,1],[201,2,201,4],[201,7,201,11],[202,7,202,11],[323,9,323,11],[275,2,275,4],[261,2,261,3],[271,2,271,9],[261,10,261,13],[254,0,254,1],[198,0,198,1],[207,0,207,1],[194,0,194,1],[251,0,251,1],[217,10,217,11],[218,10,218,11],[195,0,196,13],[243,0,243,1],[241,2,241,3],[226,2,226,11],[202,2,202,4],[208,0,208,1],[204,0,205,13],[198,2,198,4],[198,7,198,11],[212,2,212,11],[226,0,226,1],[223,0,224,13],[233,0,234,13],[231,2,231,11],[222,0,222,13],[203,0,203,1],[228,0,228,1],[230,2,230,4],[230,7,230,11],[213,0,213,1],[232,0,232,13],[219,10,219,11],[220,10,220,11],[231,0,231,1],[200,0,200,1],[200,2,200,11],[220,5,220,9],[207,2,207,11],[227,0,227,1],[227,2,227,11],[228,2,228,11],[259,10,259,13],[243,5,243,9],[241,5,241,9],[242,5,242,9],[253,2,253,9],[242,0,242,1],[238,0,238,2],[243,2,243,3],[258,2,258,9],[244,0,244,1],[252,2,252,9],[251,2,251,9],[252,0,252,1],[250,0,250,1],[255,0,256,13],[253,0,253,1],[244,2,244,3],[273,2,273,9],[274,2,274,4],[261,5,261,8],[258,0,258,1],[244,5,244,9],[249,0,249,1],[246,0,247,13],[250,2,250,7],[229,2,229,4],[229,7,229,11],[260,5,260,8],[79,0,79,1],[119,0,119,1],[119,2,119,11],[110,0,110,1],[112,0,112,1],[112,2,112,11],[113,2,113,11],[92,2,92,11],[96,0,96,1],[103,2,103,11],[93,0,93,1],[93,2,93,11],[96,2,96,11],[105,0,105,1],[114,0,114,1],[81,0,81,1],[94,2,94,11],[95,0,95,1],[82,0,83,13],[100,0,101,13],[115,0,116,13],[107,6,107,11],[109,3,109,5],[114,2,114,11],[520,1,520,11],[521,1,521,11],[522,1,522,11],[616,6,616,9],[607,1,607,11],[608,1,608,11],[609,1,609,11],[531,6,531,9],[572,0,572,2],[577,6,577,9],[594,1,594,11],[595,1,595,11],[596,1,596,11],[597,1,597,11],[605,1,605,11],[606,1,606,11],[535,1,535,11],[536,1,536,11],[540,0,541,13],[523,1,523,11],[547,1,547,11],[525,1,525,11],[534,1,534,11],[104,3,104,5],[88,0,88,1],[571,0,571,2],[551,1,551,11],[563,1,563,11],[564,1,564,11],[618,1,618,11],[107,0,107,1],[107,3,107,5],[121,2,121,3],[121,4,121,11],[122,2,122,3],[123,2,123,3],[121,0,121,1],[118,2,118,11],[110,6,110,11],[111,3,111,5],[111,6,111,11],[180,2,180,11],[192,0,192,1],[184,0,184,1],[158,2,158,11],[512,1,512,11],[524,1,524,11],[625,0,626,13],[586,0,587,13],[599,0,600,13],[612,0,613,13],[603,6,603,9],[610,1,610,11],[621,1,621,11],[622,1,622,11],[623,1,623,11],[619,1,619,11],[553,0,554,13],[548,1,548,11],[549,1,549,11],[550,1,550,11],[537,1,537,11],[638,0,639,13],[651,0,652,13],[176,0,177,13],[416,0,417,13],[429,0,430,13],[442,0,443,13],[455,0,456,13],[468,0,469,13],[481,0,482,13],[501,0,502,13],[514,0,515,13],[527,0,528,13],[280,0,281,13],[288,0,289,13],[295,0,296,13],[301,0,302,13],[309,0,310,13],[335,0,336,13],[353,0,354,13],[642,6,642,9],[633,1,633,11],[620,1,620,11],[579,1,579,11],[580,1,580,11],[129,3,129,4],[129,0,129,2],[129,8,129,11],[130,0,130,2],[130,3,130,4],[131,0,131,2],[131,3,131,4],[132,0,132,2],[132,3,132,4],[131,8,131,11],[130,8,130,11],[130,6,130,7],[340,2,340,11],[331,6,331,8],[411,1,411,11],[472,6,472,9],[494,1,494,11],[505,6,505,9],[487,0,487,2],[133,8,133,11],[133,0,133,2],[133,3,133,4],[492,6,492,9],[433,6,433,9],[427,1,427,11],[134,0,134,1],[188,9,188,11],[181,2,181,11],[174,0,174,1],[173,0,173,1],[172,2,172,11],[173,2,173,11],[174,2,174,11],[143,0,144,13],[169,0,169,1],[168,2,168,11],[170,2,170,11],[184,2,184,11],[193,0,193,1],[276,2,276,4],[271,0,271,1],[273,0,273,1],[284,2,284,9]]}
[]
[]
[]
[null,{"$f":"LOOKUP(Salgskontor!A2,Salgskontor!A8:A14,Salgskontor!D8:D14)","v":"Konsmo Fabrikker AS"}]
[null,{"$f":"LOOKUP(Salgskontor!A2,Salgskontor!A8:A14,Salgskontor!C8:C14)","v":"Hovedkontor\nBreilimoen 15                                           \n4525  KONSMO                                             \nTelefon: 38 28 13 00                                   \nE-post: firmapost@konsmohus.no"},null,null,null,null,null,null,null,null,null,"Forhandler:"]
[]
[]
[]
[null,null,null,null,null,null,null,null,null,null,null,"Dato:"]
[]
[]
[null,null,null,"PRODUKSJONSBESKRIVELSE"]
[null,"Forbruker:"]
[]
[null,"Adresse:"]
[]
[null,"Postnr.:",null,"Poststed:"]
[]
[null,"Telefon:",null,"Mob. tlf.:",null,null,"E-post:"]
[]
[null,"Byggeadresse:",null,null,null,null,"Gnr.",null,null,null,null,"Bnr."]
[]
[null,"Postnr.:",null,"Poststed:"]
[]
[null,"Byggekommune:"]
[]
[null,"Kontaktperson (forbruker):",null,null,null,null,"Telefon:",null,null,"E-post:"]
[]
[null,"Selger:",null,null,null,null,"Mob. tlf.:",null,null,"E-post:"]
[null,null,null,null,null,null,{"$f":"IF(B30=0,\"\",INDEX('Vedlikehold selger'!F34:F43,MATCH(B30,'Vedlikehold selger'!B34:B43,0)))","v":""},null,null,{"$f":"IF(B30=0,\"\",INDEX(E_post_forhandlere,MATCH(B30,Forhandlere_Kontaktpersoner,0)))","v":""}]
[null,"Byggeleder:",null,null,null,null,"Mob. tlf.:",null,null,"E-post:"]
[null,null,null,null,null,null,{"$f":"IF(B32=0,\"\",INDEX('Vedlikehold selger'!F34:F43,MATCH(B32,'Vedlikehold selger'!B34:B43,0)))","v":""},null,null,{"$f":"IF(B32=0,\"\",INDEX(E_post_forhandlere,MATCH(B32,Forhandlere_Kontaktpersoner,0)))","v":""}]
[]
[null,null,null,null,null,null,null,"Merknader:"]
["TEK SØKNAD / TILLATELSE:"]
["Søkes husbanklån:"]
["Tilgjengelig boenhet:"]
["Adkomsthøyde for transport er:"]
["Ligger boligen værutsatt til:"]
["Byggets plassering over havet.",null,null,null,"m.o.h."]
["Brannkrav mot annen bebyggelse:"]
["Spesielle lydkrav:"]
["Tykkelse yttervegger:"]
[]
[]
["          Denne produksjonsbeskrivelse er en tilleggsavtale til kontrakt datert:"]
[]
["          Basert på tegning datert:         ",null,null,null,"med arkivnummer:"]
["          Sist korrigert:"]
[]
["          NB!  Dersom det er uoverensstemmelse med produksjonsbeskrivelse og tegningsgrunnlag er det produksjonsbsekrivelsen som gjelder!"]
[]
["          Prisendringer som følge av denne produksjonsbeskrivelse, overført fra siste side:"]
[null,"Basert på indeks:",null,"pr. dato:",null,null,null,{"$f":"IF(P677<0,\"Sum fradrag:\",\"Sum tillegg:\")","v":"Sum tillegg:"},null,{"$f":"IF(L54=\" \",\" \",\"kr\")","v":" "},null,{"$f":"IF(P677=0,\" \",P677)","v":" "},"inkl. mva."]
[]
[]
["Prisendringer som fremkommer i denne produksjonsbeskrivelsen aksepteres, samt at omtalte forhold medfører inntil ",null,null,null,null,null,null,null,null,null,null,null,null,null,14]
["                     arbeidsdager forlenget leveringstid."]
["                     Jeg/vi er også innforstått med at ytterligere/senere endringer kan medføre økte kostnader og forlenget leveringstid."]
[]
[]
[]
[]
["Sted:",null,"Dato:",null,null,null,"Sted:",null,null,null,null,"Dato:"]
[]
[]
[null,"     Underskrift byggherre:",null,null,null,null,"Underskrift selger:"]
[]
[]
[{"$f":"$B$4","v":"Konsmo Fabrikker AS"},null,null,null,null,null,null,null,null,null,null,null,null,null,null,"Tillegg/fradrag"]
["PRODUKSJONSBESKRIVELSE"]
[]
["Grunnarbeid:"]
["Merknad:"]
[]
[]
[]
["Mur og betongarbeider:"]
["Støpt plate:"]
["Murvegger:"]
["Pipe:"]
["Merknad:"]
[]
[]
[]
["Tilgjengelig boenhet:"]
["Løsning adkomst hovedinngang:","Løsning:",null,null,null,"Løsning kledning:"]
["Løsning adkomst ved stue:","Løsning:",null,null,null,"Løsning kledning:"]
["Merknad:"]
[]
[]
[]
["Rørleggerarbeid:"]
["Bunnledninger:"]
[null,"Type toalett:"]
["Vannbåret varme anlegg:"]
["Leveranseomfang:"]
["Til flg. rom m/trebjelkelag:"]
["Ved leveranse vannvarme KF AS:"]
["Merknad:"]
[]
[]
[]
["Elektrikerarbeid:"]
["Varmekabler til flg. rom:",null,"Nr:","Rom",null,null,"Effekt beregnet for:"]
[]
[]
[]
[]
[]
[]
[]
["Ønsket plassering sikringskap:","Ønsket plassering sikringskap:"]
["Tilleggspunkt teknisk:","Ønsket plassering sikringskap:"]
["Merknad:",null,{"$f":"IF(C114=0,\" \",\"Tilleggspunkt faktureres direkte fra elektriker med mindre det inngår i hovedleveransen.\")","v":" "}]
[]
[]
[]
["Ventilasjonsanlegg:"]
["Farge på utvendig ventildeksel: "]
["Sentralstøvsuger: ",null,null,null,null,null,"Høyde punkt på vegg:"]
["Ved levering av KF AS: ",null,"Type støvsuger:  "]
[null,null,"Antall koblingspunkt: ",null,null,null,"Plassering på vegg:"]
[null,null,"Antall sugebrett: ",null,null,null,"Plassering sugebrett:"]
["Merknad:",null,null,null,null,null,"        "]
[]
[]
[]
["Blikkenslagerarbeid:"]
["Leveranseform takrenner og nedløp: ",null,null,null,null,null,"Type renner m/tilbehør: "]
["Farge takrenne og rennekrok: ",null,"Sølv Metallic - RAL 9006",null,null,null,"Farge nedløp + deler: "]
["Farge takfotbeslag: ",null,null,null,null,null,"Farge overligger krok: "]
["Pipebeslag: ",null,null,null,null,null,"Farge pipebeslag: "]
["Kilrenner: ",null,null,null,null,null,"Farge kilrenner: "]
["Merknad:"]
[]
[]
[]
["Oppvarmingskilder:"]
["Vedovn: ",null,null,null,null,null,"Type: "]
["Pipe: "]
["Varmepumpe: "]
["Merknad:",null,null,null,null,null,"        "]
[]
[]
[]
["Tømmermannsarbeid:"]
["Tømmermannsarbeid leveres av: "]
["Leveransens omfang: "]
["Merknad:"]
[]
[]
[null,null,null,null,null,null,null,null,null,null,null,null,null,"Summer tillegg/fradrag overføres til neste side:",null,{"$f":"SUM(P73:P152)","v":0}]
[{"$f":"$B$4","v":"Konsmo Fabrikker AS"},null,null,null,null,null,null,null,null,null,null,null,null,"Summer tillegg/fradrag overført fra forrige side:",null,{"$f":"P153","v":0}]
["PRODUKSJONSBESKRIVELSE"]
[]
["Undertak og Taktekke:"]
["Undertak: "]
["Type taktekke: "]
["Farge taktekke: "]
["Gavlstein: "]
["Farge snøfanger og stigetrinn: "]
["Merknad:"]
[]
[]
["Utvendig kledning:",null,null,null,null,null,"        ","        ",null,"        "]
["Type: "]
["Type: "]
["Impregnering: "]
["Overflatebehandling: "]
["Farge kledning: "]
["Farge vindus- og døromramming: "]
["Farge hjørnekasser: "]
["Farge vindskier: "]
["Farge vannbord/dekkbord tak: "]
["Merknad:"]
[]
[]
["Staffasje:",null,null,null,null,null,"        "]
["Overgang etasjeskille: "]
["Mønekryss: "]
["Vindus/døromramming: "]
["Aluminiumsvannbrett (farge): "]
["Bunnstokk: "]
["Kinavipp: "]
["Merknad:"]
[]
[]
["Hoveddør:",null,null,null,null,null,"        "]
["Produsent: ",null,null,null,null,null,"Rom: ",null,null,null,null,null,null,null,null,""]
[null,"Type: "]
["Sidefelt: "]
["Farger - Dørblad: ",null,null,null,null,null,"Karm:"]
["Hengsling: ",null,null,null,null,null,"Dørvrider:"]
["Merknad:",null,null,null,null,null,null,null,null,"        ",null,null,null,null,null," "]
[]
[]
["Hoveddør 2:",null,null,null,null,null,"        ",null,null,"        "]
["Produsent: ",null,null,null,null,null,"Rom: ",null,null,null,null,null,null,null,null,""]
[null,"Type: "]
["Sidefelt: "]
["Farger - Dørblad: ",null,null,null,null,null,"Karm:"]
["Hengsling: ",null,null,null,null,null,"Dørvrider:"]
["Merknad:",null,null,null,null,null,null,null,null,"        "]
[]
[null,null,null,null,null,null,null,null,null,"        "]
["Boddør:",null,null,null,null,null,"        ",null,null,"        "]
["Type: "]
["Merknad: "]
[]
[]
["Kjellerdør:",null,null,null,null,null,"        ",null,null,"        "]
["Type: "]
["Merknad:"]
[]
[]
["Balkong , heve/skyve og bi-inngangsdører:"]
["Etasje","Rom","Nr./m²","Brystning","Slagretning","Låsetype",null,null,null,null,"Soldemping"]
[]
[]
[]
[]
["Merknad:  Dører fra vindusprodusent leveres i samme farger og utførelse som beskrevet for vinduer."]
[]
[]
["Vinduer:"]
["Type åpningsvinduer: "]
["Sprosser: "]
["Behandling: "]
["Farger -  Utvendig: ",null,null,null,null,null,"Innvendig:"]
["Farger - Sprosser: ",null,null,null,null,null,"Vridere:"]
["Soledempende glass levers til: "]
["Merknad: Dører fra vindusprodusent leveres i samme farger og utførelse som beskrevet for vinduer.",null,null,null,null,null,null,"        ",null,"        "]
[]
[]
[null,null,null,null,null,null,null,null,null,null,null,null,null,"Summer tillegg/fradrag overføres til neste side:",null,{"$f":"SUM(P154:P235)","v":0}]
[]
[{"$f":"$B$4","v":"Konsmo Fabrikker AS"},null,null,null,null,null,null,null,null,null,null,null,null,"Summer tillegg/fradrag overført fra forrige side:",null,{"$f":"P236","v":0}]
["PRODUKSJONSBESKRIVELSE"]
[]
["Velux-vinduer:"]
["Angi hvilke rom: ",null,null,null,"Størrelse:"]
[]
[]
[]
["Merknad:",null,null,null,null,null,"        ","        ",null,"        "]
[]
[]
["Garasjeport og dør:",null,null,null,null,null,"        ",null,null,"        "]
["Type  -  Profil: "]
["Overflate  -  Farge: "]
["Glassåpning port: "]
["Garasjedør type: "]
["Automatisk portåpner: "]
["Merknad:"]
[]
[]
["Terrasser i tre:"]
["Utførelse/type: "]
["Terrassedekke: ",null,null,null,"Type:",null,null,null,null,"Farge: "]
["Terrasserekke: ",null,null,null,"Type:",null,null,null,null,"Farge: "]
["Terrassesøyler: ",null,null,null,"Type:",null,null,null,null,"Farge: "]
["Merknad:",null,null,null,null,null,"        ",null,null,"        "]
[]
[]
["Generelt:",null,null,null,null,null,null,null,null,null,null,null,null,null,null,""]
["Trapper og plattinger i forbindelse med dører ut på terreng inngår ikke i leveransen."]
[]
["Innvendige dører:"]
["Dørtype: ",null,null,null,null,null,null,null,null,null,null,null,null,null,null,""]
["Overflate dørblad: "]
["Overflate karm: "]
["Dempelist: "]
["Dørvrider: "]
["Glassdører leveres mellom: ",null,null,null,null,null,"Type: "]
[null,null,null,null,null,null,"Type: "]
[null,null,null,null,null,null,"Type: "]
[null,null,null,null,null,null,"Type: "]
[null,null,null,null,null,null,"Glass: "]
["Merknad:",null,null,null,null,null,"        "]
[]
[]
["Spesialdører:"]
["Badstudør: "]
["Klimadør: "]
["Branndør / Gasstett dør: "]
["Lyddør: "]
["Merknad:",null,null,null,null,null,"        "]
[]
[]
["Diverse luker:"]
["Inspeksjonsluker i knevegger: "]
["Inspeksjonsluker i himling: "]
["Takluke med nedfellbar stige: "]
["Merknad:",null,null,null,null,null,"        "]
[]
[]
["Foringer:"]
["Vindus- og ytterdørsforinger: "]
["Foringer innerdører: "]
["Merknad:",null,null,null,null,null,"        "]
[]
[]
["Listverk:"]
["Taklister: "]
["Fotlister: "]
["Karmlister: "]
["Behandling listverk: "]
["Merknad:",null,null,null,null,null,"        "]
[]
[]
["Generelt:"]
["Vindu og takbelistning monteres før boligen leveres klar til maler."]
[{"$f":"IF(C308=\"Ubehandlet (standard)\",\"\",\"Etterbehandling av spikerhull og flekkmaling på byggeplass inngår ikke i leveransen.\")","v":"Etterbehandling av spikerhull og flekkmaling på byggeplass inngår ikke i leveransen."}]
[]
[null,null,null,null,null,null,null,null,null,null,null,null,null,"Summer tillegg/fradrag overføres til neste side:",null,{"$f":"SUM(P238:P311)","v":0}]
[]
[{"$f":"$B$4","v":"Konsmo Fabrikker AS"},null,null,null,null,null,null,null,null,null,null,null,null,"Summer tillegg/fradrag overført fra forrige side:",null,{"$f":"P316","v":0}]
["PRODUKSJONSBESKRIVELSE"]
[null,null,null,null,null,null,null,null,null,null,null,null,null,null,null,""]
["Innvendig trapp:"]
["Tarraldsen Modell: "]
["Behandling: "]
[null,null,"Type:",null,null,null,"Materiale:",null,null,"Behandling:"]
["Trappetype / Vange: ",null,null,null,null,null,null,null,null,null,null,null,null,null,null,""]
["Stusstrinn / barnesikring: "]
["Trinn: "]
["Blokktrinn nederste trinn: ",null,null,null,null,null,"Sandlakk i trinn: "]
["Stolpe: ",null,null,null,null,null,null,null,null,null,null,null,null,null,null,""]
["Spiler: "]
["Håndrekke: "]
["Spesialitet vedr. vanger: ",null,null,null,null,null,"Farge beislakkering: "]
["Spesialitet vedr. vanger: "]
["Spesialitet vedr. vanger: "]
["Merknad:",null,null,null,null,null,"        "]
[]
[]
[]
["Innvendig trapp:"]
["Tarraldsen Modell: "]
["Behandling: "]
[null,null,"Type:",null,null,null,"Materiale:",null,null,"Behandling:"]
["Trappetype / Vange: ",null,null,null,null,null,null,null,null,null,null,null,null,null,null,""]
["Stusstrinn / barnesikring: "]
["Trinn: "]
["Blokktrinn nederste trinn: ",null,null,null,null,null,"Sandlakk i trinn: "]
["Stolpe: ",null,null,null,null,null,null,null,null,null,null,null,null,null,null,""]
["Spiler: "]
["Håndrekke: "]
["Spesialitet vedr. vanger: ",null,null,null,null,null,"Farge beislakkering: "]
["Spesialitet vedr. vanger: "]
["Spesialitet vedr. vanger: "]
["Merknad:",null,null,null,null,null,"        "]
[]
[]
[]
["Kjøkkeninnredning:"]
["Hovedleilighet: "]
["Leverandør: "]
["Iflg. tegning datert: "]
["Medregnet sum: ",null,null,null,"veiledene utsalgspris inkl. mva."]
[null,null,null,null,null,null,"        "]
["Bi/hybel-leilighet: "]
["Leverandør: "]
["Iflg. tegning datert: "]
["Medregnet sum: ",null,null,null,"veiledene utsalgspris inkl. mva."]
[null,null,null,null,null,null,"        "]
["Bi/hybel-leilighet: "]
["Leverandør: "]
["Iflg. tegning datert: "]
["Medregnet sum: ",null,null,null,"veiledene utsalgspris inkl. mva."]
["Merknad:",null,null,null,null,null,"        "]
[]
[]
["Priskorrigering av kjøkken:"]
["Avregnes på flg. måte: "]
[]
["Garderobeinnredning:"]
["Hovedleilighet: "]
["Iflg. tegning datert: "]
[null,null,null,null,null,null,"        "]
["Hybelleilighet: "]
["Iflg. tegning datert: "]
["Merknad:",null,null,null,null,null,"        "]
["        "]
[]
["Baderomsinnredning:"]
["Type: "]
["Til: "]
[]
["Type: "]
["Til: ",null,null,null,null,null,null,null,null,null,11488.798213021939]
[]
["Type: "]
["Til: "]
["Merknad:",null,null,null,null,null,"        "]
["        "]
[]
[]
[null,null,null,null,null,null,null,null,null,null,null,null,null,"Summer tillegg/fradrag overføres til neste side:",null,{"$f":"SUM(P318:P398)","v":0}]
[]
[{"$f":"$B$4","v":"Konsmo Fabrikker AS"},null,null,null,null,null,null,null,null,null,null,null,null,"Summer tillegg/fradrag overført fra forrige side:",null,{"$f":"P400","v":0}]
["PRODUKSJONSBESKRIVELSE"]
[]
["Romskjema:"]
[1,null,null,null,null,null,null,null,null,null,null,null,null,null,null,null,null,null,"LINKER TIL WEB-SIDER:"]
["Etasje: ",null,null,null,null,null,null,null,null,null,null,null,null,null,null,null,null,null,"Standard veggplate, Huntonit grunnet"]
["Rom nr.: ",null,null,null,null,null,null,null,null,null,null,null,null,null,null,null,null,null,"Kostemalt Panelplate, Huntonit Basic Wall"]
["Rom: ",null,null,null,null,null,null,null,null,null,null,null,null,"NOBB nr.",null,"Tillegg/fradrag",null,null,"Rullemalt Panelplate, Huntonit Basic Wall"]
["Gulv: ",null,null,null,null,null,null,null,null,null,null,null,null,null,null,null,null,null,"Panelplate med struktur, Huntonit Texture Wall"]
["Gulv-varme: ",null,null,null,null,null,null,null,null,null,null,null,null,null,null,null,null,null,"Panelbord, Huntonit"]
["Gulv for varme: ",null,null,null,null,null,null,null,null,null,null,null,null,null,null,null,null,null,"Huntonit - Designvegg"]
["Gulv overflate: ",null,null,null,null,null,null,null,null,null,null,null,null,null,null,null,null,null,"Huntonit - Focus MNF Panelplate"]
["Vegg: ",null,null,null,null,null,null,null,null,null,null,null,null,null,null,null,null,null,"Huntonit - Focus MDF Panelbord"]
["Himl./Skråtak: ",null,null,null,null,null,null,null,null,null,null,null,null,null,null,null,null,null,"Fibo-Trespo - Veggplater"]
["Merknad:",null,null,null,null,null,null,null,null,null,null,null,null,null,null,null,null,null,"Takplater - Huntonit Basic (standard)"]
[null,null,null,null,null,null,null,null,null,null,null,null,null,null,null,null,null,null,"Takplater - Huntonit Texture"]
[]
[2]
["Etasje: "]
["Rom nr.: "]
["Rom: ",null,null,null,null,null,null,null,null,null,null,null,null,"NOBB nr.",null,"Tillegg/fradrag"]
["Gulv: "]
["Gulv-varme: "]
["Gulv for varme: "]
["Gulv overflate: "]
["Vegg: "]
["Himl./Skråtak: "]
["Merknad:"]
[]
[]
[3]
["Etasje: "]
["Rom nr.: "]
["Rom: ",null,null,null,null,null,null,null,null,null,null,null,null,"NOBB nr.",null,"Tillegg/fradrag"]
["Gulv: "]
["Gulv-varme: "]
["Gulv for varme: "]
["Gulv overflate: "]
["Vegg: "]
["Himl./Skråtak: "]
["Merknad:"]
[]
[]
[4]
["Etasje: "]
["Rom nr.: "]
["Rom: ",null,null,null,null,null,null,null,null,null,null,null,null,"NOBB nr.",null,"Tillegg/fradrag"]
["Gulv: "]
["Gulv-varme: "]
["Gulv for varme: "]
["Gulv overflate: "]
["Vegg: "]
["Himl./Skråtak: "]
["Merknad:"]
[]
[]
[5,null,null,null,null,null,null,null,null,null,null,null,null,null,null,null,null,null,"LINKER TIL WEB-SIDER:"]
["Etasje: ",null,null,null,null,null,null,null,null,null,null,null,null,null,null,null,null,null,"Standard veggplate, Huntonit grunnet"]
["Rom nr.: ",null,null,null,null,null,null,null,null,null,null,null,null,null,null,null,null,null,"Kostemalt Panelplate, Huntonit Basic Wall"]
["Rom: ",null,null,null,null,null,null,null,null,null,null,null,null,"NOBB nr.",null,"Tillegg/fradrag",null,null,"Rullemalt Panelplate, Huntonit Basic Wall"]
["Gulv: ",null,null,null,null,null,null,null,null,null,null,null,null,null,null,null,null,null,"Panelplate med struktur, Huntonit Texture Wall"]
["Gulv-varme: ",null,null,null,null,null,null,null,null,null,null,null,null,null,null,null,null,null,"Panelbord, Huntonit"]
["Gulv for varme: ",null,null,null,null,null,null,null,null,null,null,null,null,null,null,null,null,null,"Huntonit - Designvegg"]
["Gulv overflate: ",null,null,null,null,null,null,null,null,null,null,null,null,null,null,null,null,null,"Huntonit - Focus MNF Panelplate"]
["Vegg: ",null,null,null,null,null,null,null,null,null,null,null,null,null,null,null,null,null,"Huntonit - Focus MDF Panelbord"]
["Himl./Skråtak: ",null,null,null,null,null,null,null,null,null,null,null,null,null,null,null,null,null,"Fibo-Trespo - Veggplater"]
["Merknad:",null,null,null,null,null,null,null,null,null,null,null,null,null,null,null,null,null,"Takplater - Huntonit Basic (standard)"]
[null,null,null,null,null,null,null,null,null,null,null,null,null,null,null,null,null,null,"Takplater - Huntonit Texture"]
[]
[6]
["Etasje: "]
["Rom nr.: "]
["Rom: ",null,null,null,null,null,null,null,null,null,null,null,null,"NOBB nr.",null,"Tillegg/fradrag"]
["Gulv: "]
["Gulv-varme: "]
["Gulv for varme: "]
["Gulv overflate: "]
["Vegg: "]
["Himl./Skråtak: "]
["Merknad:"]
[]
[]
[]
[null,null,null,null,null,null,null,null,null,null,null,null,null,"Summer tillegg/fradrag overføres til neste side:",null,{"$f":"SUM(P402:P483)","v":0}]
[]
[{"$f":"$B$4","v":"Konsmo Fabrikker AS"},null,null,null,null,null,null,null,null,null,null,null,null,"Summer tillegg/fradrag overført fra forrige side:",null,{"$f":"P485","v":0}]
["PRODUKSJONSBESKRIVELSE"]
[]
["Romskjema:"]
[7]
["Etasje: "]
["Rom nr.: "]
["Rom: ",null,null,null,null,null,null,null,null,null,null,null,null,"NOBB nr.",null,"Tillegg/fradrag"]
["Gulv: "]
["Gulv-varme: "]
["Gulv for varme: "]
["Gulv overflate: "]
["Vegg: "]
["Himl./Skråtak: "]
["Merknad:"]
[]
[]
[8,null,null,null,null,null,null,null,null,null,null,null,null,null,null,null,null,null,"LINKER TIL WEB-SIDER:"]
["Etasje: ",null,null,null,null,null,null,null,null,null,null,null,null,null,null,null,null,null,"Standard veggplate, Huntonit grunnet"]
["Rom nr.: ",null,null,null,null,null,null,null,null,null,null,null,null,null,null,null,null,null,"Kostemalt Panelplate, Huntonit Basic Wall"]
["Rom: ",null,null,null,null,null,null,null,null,null,null,null,null,"NOBB nr.",null,"Tillegg/fradrag",null,null,"Rullemalt Panelplate, Huntonit Basic Wall"]
["Gulv: ",null,null,null,null,null,null,null,null,null,null,null,null,null,null,null,null,null,"Panelplate med struktur, Huntonit Texture Wall"]
["Gulv-varme: ",null,null,null,null,null,null,null,null,null,null,null,null,null,null,null,null,null,"Panelbord, Huntonit"]
["Gulv for varme: ",null,null,null,null,null,null,null,null,null,null,null,null,null,null,null,null,null,"Huntonit - Designvegg"]
["Gulv overflate: ",null,null,null,null,null,null,null,null,null,null,null,null,null,null,null,null,null,"Huntonit - Focus MNF Panelplate"]
["Vegg: ",null,null,null,null,null,null,null,null,null,null,null,null,null,null,null,null,null,"Huntonit - Focus MDF Panelbord"]
["Himl./Skråtak: ",null,null,null,null,null,null,null,null,null,null,null,null,null,null,null,null,null,"Fibo-Trespo - Veggplater"]
["Merknad:",null,null,null,null,null,null,null,null,null,null,null,null,null,null,null,null,null,"Takplater - Huntonit Basic (standard)"]
[null,null,null,null,null,null,null,null,null,null,null,null,null,null,null,null,null,null,"Takplater - Huntonit Texture"]
[]
[9]
["Etasje: "]
["Rom nr.: "]
["Rom: ",null,null,null,null,null,null,null,null,null,null,null,null,"NOBB nr.",null,"Tillegg/fradrag"]
["Gulv: "]
["Gulv-varme: "]
["Gulv for varme: "]
["Gulv overflate: "]
["Vegg: "]
["Himl./Skråtak: "]
["Merknad:"]
[]
[]
[10]
["Etasje: "]
["Rom nr.: "]
["Rom: ",null,null,null,null,null,null,null,null,null,null,null,null,"NOBB nr.",null,"Tillegg/fradrag"]
["Gulv: "]
["Gulv-varme: "]
["Gulv for varme: "]
["Gulv overflate: "]
["Vegg: "]
["Himl./Skråtak: "]
["Merknad:"]
[]
[]
[11]
["Etasje: "]
["Rom nr.: "]
["Rom: ",null,null,null,null,null,null,null,null,null,null,null,null,"NOBB nr.",null,"Tillegg/fradrag"]
["Gulv: "]
["Gulv-varme: "]
["Gulv for varme: "]
["Gulv overflate: "]
["Vegg: "]
["Himl./Skråtak: "]
["Merknad:"]
[]
[]
[12,null,null,null,null,null,null,null,null,null,null,null,null,null,null,null,null,null,"LINKER TIL WEB-SIDER:"]
["Etasje: ",null,null,null,null,null,null,null,null,null,null,null,null,null,null,null,null,null,"Standard veggplate, Huntonit grunnet"]
["Rom nr.: ",null,null,null,null,null,null,null,null,null,null,null,null,null,null,null,null,null,"Kostemalt Panelplate, Huntonit Basic Wall"]
["Rom: ",null,null,null,null,null,null,null,null,null,null,null,null,"NOBB nr.",null,"Tillegg/fradrag",null,null,"Rullemalt Panelplate, Huntonit Basic Wall"]
["Gulv: ",null,null,null,null,null,null,null,null,null,null,null,null,null,null,null,null,null,"Panelplate med struktur, Huntonit Texture Wall"]
["Gulv-varme: ",null,null,null,null,null,null,null,null,null,null,null,null,null,null,null,null,null,"Panelbord, Huntonit"]
["Gulv for varme: ",null,null,null,null,null,null,null,null,null,null,null,null,null,null,null,null,null,"Huntonit - Designvegg"]
["Gulv overflate: ",null,null,null,null,null,null,null,null,null,null,null,null,null,null,null,null,null,"Huntonit - Focus MNF Panelplate"]
["Vegg: ",null,null,null,null,null,null,null,null,null,null,null,null,null,null,null,null,null,"Huntonit - Focus MDF Panelbord"]
["Himl./Skråtak: ",null,null,null,null,null,null,null,null,null,null,null,null,null,null,null,null,null,"Fibo-Trespo - Veggplater"]
["Merknad:",null,null,null,null,null,null,null,null,null,null,null,null,null,null,null,null,null,"Takplater - Huntonit Basic (standard)"]
[null,null,null,null,null,null,null,null,null,null,null,null,null,null,null,null,null,null,"Takplater - Huntonit Texture"]
[]
[]
[null,null,null,null,null,null,null,null,null,null,null,null,null,"Summer tillegg/fradrag overføres til neste side:",null,{"$f":"SUM(P487:P568)","v":0}]
[]
[{"$f":"$B$4","v":"Konsmo Fabrikker AS"},null,null,null,null,null,null,null,null,null,null,null,null,"Summer tillegg/fradrag overført fra forrige side:",null,{"$f":"P570","v":0}]
["PRODUKSJONSBESKRIVELSE"]
[]
["Romskjema:"]
[13]
["Etasje: "]
["Rom nr.: "]
["Rom: ",null,null,null,null,null,null,null,null,null,null,null,null,"NOBB nr.",null,"Tillegg/fradrag"]
["Gulv: "]
["Gulv-varme: "]
["Gulv for varme: "]
["Gulv overflate: "]
["Vegg: "]
["Himl./Skråtak: "]
["Merknad:"]
[]
[]
[14]
["Etasje: "]
["Rom nr.: "]
["Rom: ",null,null,null,null,null,null,null,null,null,null,null,null,"NOBB nr.",null,"Tillegg/fradrag"]
["Gulv: "]
["Gulv-varme: "]
["Gulv for varme: "]
["Gulv overflate: "]
["Vegg: "]
["Himl./Skråtak: "]
["Merknad:"]
[]
[]
[15,null,null,null,null,null,null,null,null,null,null,null,null,null,null,null,null,null,"LINKER TIL WEB-SIDER:"]
["Etasje: ",null,null,null,null,null,null,null,null,null,null,null,null,null,null,null,null,null,"Standard veggplate, Huntonit grunnet"]
["Rom nr.: ",null,null,null,null,null,null,null,null,null,null,null,null,null,null,null,null,null,"Kostemalt Panelplate, Huntonit Basic Wall"]
["Rom: ",null,null,null,null,null,null,null,null,null,null,null,null,"NOBB nr.",null,"Tillegg/fradrag",null,null,"Rullemalt Panelplate, Huntonit Basic Wall"]
["Gulv: ",null,null,null,null,null,null,null,null,null,null,null,null,null,null,null,null,null,"Panelplate med struktur, Huntonit Texture Wall"]
["Gulv-varme: ",null,null,null,null,null,null,null,null,null,null,null,null,null,null,null,null,null,"Panelbord, Huntonit"]
["Gulv for varme: ",null,null,null,null,null,null,null,null,null,null,null,null,null,null,null,null,null,"Huntonit - Designvegg"]
["Gulv overflate: ",null,null,null,null,null,null,null,null,null,null,null,null,null,null,null,null,null,"Huntonit - Focus MNF Panelplate"]
["Vegg: ",null,null,null,null,null,null,null,null,null,null,null,null,null,null,null,null,null,"Huntonit - Focus MDF Panelbord"]
["Himl./Skråtak: ",null,null,null,null,null,null,null,null,null,null,null,null,null,null,null,null,null,"Fibo-Trespo - Veggplater"]
["Merknad:",null,null,null,null,null,null,null,null,null,null,null,null,null,null,null,null,null,"Takplater - Huntonit Basic (standard)"]
[null,null,null,null,null,null,null,null,null,null,null,null,null,null,null,null,null,null,"Takplater - Huntonit Texture"]
[]
[16]
["Etasje: "]
["Rom nr.: "]
["Rom: ",null,null,null,null,null,null,null,null,null,null,null,null,"NOBB nr.",null,"Tillegg/fradrag"]
["Gulv: "]
["Gulv-varme: "]
["Gulv for varme: "]
["Gulv overflate: "]
["Vegg: "]
["Himl./Skråtak: "]
["Merknad:"]
[]
[]
[17]
["Etasje: "]
["Rom nr.: "]
["Rom: ",null,null,null,null,null,null,null,null,null,null,null,null,"NOBB nr.",null,"Tillegg/fradrag"]
["Gulv: "]
["Gulv-varme: "]
["Gulv for varme: "]
["Gulv overflate: "]
["Vegg: "]
["Himl./Skråtak: "]
["Merknad:"]
[]
[]
[18]
["Etasje: "]
["Rom nr.: "]
["Rom: ",null,null,null,null,null,null,null,null,null,null,null,null,"NOBB nr.",null,"Tillegg/fradrag"]
["Gulv: "]
["Gulv-varme: "]
["Gulv for varme: "]
["Gulv overflate: "]
["Vegg: "]
["Himl./Skråtak: "]
["Merknad:"]
[]
[]
[]
[null,null,null,null,null,null,null,null,null,null,null,null,null,"Summer tillegg/fradrag overføres til neste side:",null,{"$f":"SUM(P572:P653)","v":0}]
[]
[{"$f":"$B$4","v":"Konsmo Fabrikker AS"},null,null,null,null,null,null,null,null,null,null,null,null,"Summer tillegg/fradrag overført fra forrige side:",null,{"$f":"P655","v":0}]
["PRODUKSJONSBESKRIVELSE"]
[]
["Øvrige  endringer:"]
["1.)",null,null,null,null,null,null,null,null,null,null,null,null,null,null,"Tillegg/fradrag"]
[]
[]
[]
["2.)"]
[]
[]
[]
["3.)"]
[]
[]
[]
["4.)"]
[]
[]
[]
[null,null,null,null,null,null,null,null,null,null,null,null,null,"Summer tillegg/fradrag overføres til side 1:",null,{"$f":"SUM(P657:P675)","v":0}]

{"sheet":"Sammenstilling","index":14,"n_rows":110,"n_cols":5,"rows_kept":110,"cut":false,"hidden":false,"merged":[[110,0,110,4],[109,0,109,4],[108,0,108,4],[107,0,107,4],[106,0,106,4],[105,0,105,4],[50,0,50,4],[41,3,44,4],[102,1,102,2],[103,1,103,2],[104,1,104,2],[101,0,101,4],[42,1,42,2],[41,1,41,2],[94,0,94,4],[98,0,98,4],[90,3,91,4],[80,1,80,2],[82,1,82,2],[64,0,64,4],[78,1,78,2],[71,1,71,2],[92,3,93,4],[99,3,100,4],[39,1,39,2],[40,1,40,2],[49,1,49,2],[57,1,57,2],[58,1,58,2],[51,1,51,2],[52,1,52,2],[51,0,54,0],[46,1,46,2],[47,1,47,2],[46,0,49,0],[93,1,93,2],[90,1,90,2],[91,1,91,2],[92,1,92,2],[87,1,87,2],[88,1,88,2],[85,3,88,4],[95,3,97,4],[45,0,45,4],[48,1,48,2],[19,1,19,2],[20,1,20,2],[43,1,43,2],[83,1,83,2],[85,1,85,2],[84,0,84,4],[89,0,89,4],[70,1,70,2],[60,1,60,2],[61,1,61,2],[62,1,62,2],[63,1,63,2],[74,1,74,2],[75,1,75,2],[76,1,76,2],[86,1,86,2],[77,0,77,4],[81,0,81,4],[74,3,76,4],[78,3,80,4],[82,3,83,4],[79,1,79,2],[31,1,31,2],[27,1,27,2],[18,1,18,2],[72,1,72,2],[73,1,73,2],[12,1,12,2],[53,1,53,2],[54,1,54,2],[56,1,56,2],[65,1,65,2],[66,1,66,2],[67,1,67,2],[16,1,16,2],[17,1,17,2],[25,1,25,2],[55,0,55,4],[59,0,59,4],[12,3,20,4],[21,0,21,4],[22,3,27,4],[28,0,28,4],[33,0,33,4],[26,1,26,2],[34,1,34,2],[35,1,35,2],[36,1,36,2],[0,0,0,2],[2,0,2,4],[3,0,3,4],[1,0,1,4],[5,1,5,2],[9,1,9,2],[10,1,10,2],[14,1,14,2],[15,1,15,2],[6,1,6,2],[7,1,7,2],[8,1,8,2],[37,1,37,2],[29,1,29,2],[30,1,30,2],[102,3,104,4],[38,0,38,4],[4,1,4,2],[29,3,32,4],[34,3,37,4],[39,3,39,4],[40,3,40,4],[46,3,49,4],[51,3,54,4],[56,3,58,4],[60,3,63,4],[65,3,73,4],[4,3,4,4],[5,3,10,4],[11,0,11,4],[44,1,44,2],[24,1,24,2],[32,1,32,2],[23,1,23,2],[13,1,13,2],[22,1,22,2]]}
[{"$f":"\"Sammenstilling for  bolig til \"&Produksjonsbeskrivelse!B14&\".\"","v":"Sammenstilling for  bolig til ."},null,null,{"$f":"IF(Produksjonsbeskrivelse!N9=\"\",\"\",Produksjonsbeskrivelse!L9)","v":""},{"$f":"IF(Produksjonsbeskrivelse!N9=\"\",\"\",Produksjonsbeskrivelse!N9)","v":""}]
[]
["Merknad:"]
[{"$f":"IF(Produksjonsbeskrivelse!H36=\"\",\"\",Produksjonsbeskrivelse!H36)","v":""}]
["Tak:","Produkt:",null,"Merknad:"]
["Undertak:",{"$f":"IF(Produksjonsbeskrivelse!C158=\"\",\"\",Produksjonsbeskrivelse!C158)","v":""},null,{"$f":"IF(Produksjonsbeskrivelse!A164=\"\",\"\",Produksjonsbeskrivelse!A164)","v":""}]
["Taktekke:",{"$f":"IF(Produksjonsbeskrivelse!C159=\"\",\"\",Produksjonsbeskrivelse!C159&\", \"&Produksjonsbeskrivelse!C160&\". \"&IF(Produksjonsbeskrivelse!C162=0,\"\",\" Snøfanger&Stigetrinn: \"&Produksjonsbeskrivelse!C162))","v":""}]
["Gavlstein:",{"$f":"IF(Produksjonsbeskrivelse!C161=\"\",\"\",Produksjonsbeskrivelse!C161)","v":""}]
["Farge takrenner med tilbehør:",{"$f":"IF(Produksjonsbeskrivelse!C129=\"\",\"\",Produksjonsbeskrivelse!I130&\". \"&Produksjonsbeskrivelse!D131&\" renner+krok. \"&Produksjonsbeskrivelse!I131&\" nedløp. \")","v":""}]
[null,{"$f":"IF(Produksjonsbeskrivelse!D132=\"\",\"\",Produksjonsbeskrivelse!D132&\" takfotbeslag. \")&(IF(Produksjonsbeskrivelse!I132=\"\",\"\",Produksjonsbeskrivelse!I132&\" overligger.\"))","v":""}]
[null,{"$f":"IF(Produksjonsbeskrivelse!D133=\"\",\"\",\"Pipebeslag: \"&Produksjonsbeskrivelse!D133&\". \")&(IF(Produksjonsbeskrivelse!D134=\"\",\"\",\"  Kilrenner: \"&Produksjonsbeskrivelse!D134&\". Farge: \"&Produksjonsbeskrivelse!I134&\". \"))","v":""}]
["Yttervegger:"]
["Dimensjon:",{"$f":"IF(Produksjonsbeskrivelse!D43=0,\"\",Produksjonsbeskrivelse!D43)","v":""},null,{"$f":"IF(Produksjonsbeskrivelse!A177=\"\",\"\",Produksjonsbeskrivelse!A177)","v":""}]
["Utvendig kledning:",{"$f":"IF(Produksjonsbeskrivelse!C167=\"\",\"\",Produksjonsbeskrivelse!C167&\", \"&LOWER(Produksjonsbeskrivelse!C169))","v":""}]
[{"$f":"IF(Produksjonsbeskrivelse!C168=\"\",\"\",Sammenstilling!A14)","v":""},{"$f":"IF(Produksjonsbeskrivelse!C168=\"\",\"\",Produksjonsbeskrivelse!C168&\", \"&LOWER(Produksjonsbeskrivelse!C169))","v":""}]
["Behandling kledning:",{"$f":"IF(Produksjonsbeskrivelse!C169=\"Royalimpregnert\",\"Royalimpregnert\",IF(Produksjonsbeskrivelse!C170=0,\" \",Produksjonsbeskrivelse!C170))","v":" "}]
["Farge kledning:",{"$f":"IF(Produksjonsbeskrivelse!C171=\"\",\"\",Produksjonsbeskrivelse!C171)","v":""}]
["Farge omramming:",{"$f":"IF(Produksjonsbeskrivelse!C172=\"\",\"\",Produksjonsbeskrivelse!C172)","v":""}]
["Farge hjørnekasser:",{"$f":"IF(Produksjonsbeskrivelse!C173=\"\",\"\",Produksjonsbeskrivelse!C173)","v":""}]
["Farge vindskier:",{"$f":"IF(Produksjonsbeskrivelse!C174=\"\",\"\",Produksjonsbeskrivelse!C174)","v":""}]
["Farge vann/dekkbord tak:",{"$f":"IF(Produksjonsbeskrivelse!C175=\"\",\"\",Produksjonsbeskrivelse!C175)","v":""}]
["Staffasje:"]
[{"$f":"Produksjonsbeskrivelse!A180","v":"Overgang etasjeskille: "},{"$f":"IF(Produksjonsbeskrivelse!C180=\"\",\"\",Produksjonsbeskrivelse!C180)","v":""},null,{"$f":"IF(Produksjonsbeskrivelse!A187=\"\",\"\",Produksjonsbeskrivelse!A187)","v":""}]
[{"$f":"Produksjonsbeskrivelse!A181","v":"Mønekryss: "},{"$f":"IF(Produksjonsbeskrivelse!C181=\"\",\"\",Produksjonsbeskrivelse!C181)","v":""}]
[{"$f":"Produksjonsbeskrivelse!A182","v":"Vindus/døromramming: "},{"$f":"IF(Produksjonsbeskrivelse!C182=\"\",\"\",Produksjonsbeskrivelse!C182)","v":""}]
[{"$f":"Produksjonsbeskrivelse!A183","v":"Aluminiumsvannbrett (farge): "},{"$f":"IF(Produksjonsbeskrivelse!C183=\"\",\"\",Produksjonsbeskrivelse!C183)","v":""}]
[{"$f":"Produksjonsbeskrivelse!A184","v":"Bunnstokk: "},{"$f":"IF(Produksjonsbeskrivelse!C184=\"\",\"\",Produksjonsbeskrivelse!C184)","v":""}]
[{"$f":"Produksjonsbeskrivelse!A185","v":"Kinavipp: "},{"$f":"IF(Produksjonsbeskrivelse!C185=\"\",\"\",Produksjonsbeskrivelse!C185)","v":""}]
["Ytterdører:"]
["Hoveddør 1:",{"$f":"IF(Produksjonsbeskrivelse!C190=\"\",\"\",Produksjonsbeskrivelse!C190&\", \"&Produksjonsbeskrivelse!C191&\" til \"&Produksjonsbeskrivelse!H190)&IF(Produksjonsbeskrivelse!C194=0,\"\",\".  Hengsling: \"&Produksjonsbeskrivelse!H190)","v":""},null,{"$f":"IF(Produksjonsbeskrivelse!$A$196=0,\" \",Produksjonsbeskrivelse!$A$196)","v":" "}]
["Farger:",{"$f":"IF(Produksjonsbeskrivelse!C193=\"\",\"\",IF(Produksjonsbeskrivelse!C193=Produksjonsbeskrivelse!H193,\"Dørblad og karm: \"&Produksjonsbeskrivelse!C193,\"Dørblad: \"&Produksjonsbeskrivelse!C193&\".  Karm: \"&Produksjonsbeskrivelse!H193))","v":""}]
["Dørvrider:",{"$f":"IF(Produksjonsbeskrivelse!H194=\"\",\"\",Produksjonsbeskrivelse!H194)","v":""}]
["Sidefelt:",{"$f":"IF(Produksjonsbeskrivelse!C192=\"\",\"\",Produksjonsbeskrivelse!C190&\", \"&Produksjonsbeskrivelse!C192)","v":""}]
[null,{"$f":"IF(Produksjonsbeskrivelse!B219=0,\"\",CONCATENATE(\"Etasje: \"&Produksjonsbeskrivelse!A219,\"/  Rom: \",Produksjonsbeskrivelse!B219,\"/  Type: \",Produksjonsbeskrivelse!C219,\"/  Glass: \",Produksjonsbeskrivelse!D219))","v":""},{"$f":"IF(Produksjonsbeskrivelse!B219=0,\"\",CONCATENATE(\"Låsetype: \"&Produksjonsbeskrivelse!E219))","v":""}]
["Hoveddør 2:",{"$f":"IF(Produksjonsbeskrivelse!C199=\"\",\"\",Produksjonsbeskrivelse!C199&\", \"&Produksjonsbeskrivelse!C200&\" til \"&Produksjonsbeskrivelse!H199)&IF(Produksjonsbeskrivelse!C203=0,\"\",\".  Hengsling: \"&Produksjonsbeskrivelse!H203)","v":""},null,{"$f":"IF(Produksjonsbeskrivelse!$A$205=0,\" \",Produksjonsbeskrivelse!$A$205)","v":" "}]
["Farger:",{"$f":"IF(Produksjonsbeskrivelse!C202=\"\",\"\",IF(Produksjonsbeskrivelse!C202=Produksjonsbeskrivelse!H202,\"Dørblad og karm: \"&Produksjonsbeskrivelse!C202,\"Dørblad: \"&Produksjonsbeskrivelse!C202&\".  Karm: \"&Produksjonsbeskrivelse!H202))","v":""}]
["Dørvrider:",{"$f":"IF(Produksjonsbeskrivelse!H203=\"\",\"\",Produksjonsbeskrivelse!H203)","v":""}]
["Sidefelt:",{"$f":"IF(Produksjonsbeskrivelse!C201=\"\",\"\",Produksjonsbeskrivelse!C199&\", \"&Produksjonsbeskrivelse!C201)","v":""}]
[]
["Boddør:",{"$f":"IF(Produksjonsbeskrivelse!C208=\"\",\"\",Produksjonsbeskrivelse!C208)","v":""},null,{"$f":"IF(Produksjonsbeskrivelse!A210=\"\",\"\",Produksjonsbeskrivelse!A210)","v":""}]
["Kjellerdør:",{"$f":"IF(Produksjonsbeskrivelse!C213=\"\",\"\",Produksjonsbeskrivelse!C213)","v":""},null,{"$f":"IF(Produksjonsbeskrivelse!A215=\"\",\"\",Produksjonsbeskrivelse!A215)","v":""}]
["Balkong og HS-dører:",{"$f":"IF(Produksjonsbeskrivelse!B219=\"\",\"\",(Produksjonsbeskrivelse!B219&\" (\"&Produksjonsbeskrivelse!C219&\"), brystn.: \"&Produksjonsbeskrivelse!D219&\", retn.: \"&LOWER(Produksjonsbeskrivelse!E219)&\", lås: \"&LOWER(Produksjonsbeskrivelse!F219&IF(Produksjonsbeskrivelse!K219=0,\" \",\", soldemp: \"&LOWER(Produksjonsbeskrivelse!K219)))))","v":""},null,{"$f":"IF(Produksjonsbeskrivelse!A224=\"\",\"\",Produksjonsbeskrivelse!A224)","v":""}]
[null,{"$f":"IF(Produksjonsbeskrivelse!B220=\"\",\"\",(Produksjonsbeskrivelse!B220&\" (\"&Produksjonsbeskrivelse!C220&\"), brystn.: \"&Produksjonsbeskrivelse!D220&\", retn.: \"&LOWER(Produksjonsbeskrivelse!E220)&\", lås: \"&LOWER(Produksjonsbeskrivelse!F220&IF(Produksjonsbeskrivelse!K220=0,\" \",\", soldemp: \"&LOWER(Produksjonsbeskrivelse!K220)))))","v":""}]
[null,{"$f":"IF(Produksjonsbeskrivelse!B221=\"\",\"\",(Produksjonsbeskrivelse!B221&\" (\"&Produksjonsbeskrivelse!C221&\"), brystn.: \"&Produksjonsbeskrivelse!D221&\", retn.: \"&LOWER(Produksjonsbeskrivelse!E221)&\", lås: \"&LOWER(Produksjonsbeskrivelse!F221&IF(Produksjonsbeskrivelse!K221=0,\" \",\", soldemp: \"&LOWER(Produksjonsbeskrivelse!K221)))))","v":""}]
[null,{"$f":"IF(Produksjonsbeskrivelse!B222=\"\",\"\",(Produksjonsbeskrivelse!B222&\" (\"&Produksjonsbeskrivelse!C222&\"), brystn.: \"&Produksjonsbeskrivelse!D222&\", retn.: \"&LOWER(Produksjonsbeskrivelse!E222)&\", lås: \"&LOWER(Produksjonsbeskrivelse!F222&IF(Produksjonsbeskrivelse!K222=0,\" \",\", soldemp: \"&LOWER(Produksjonsbeskrivelse!K222)))))","v":""}]
["Vinduer:"]
["Type åpningvindu:",{"$f":"IF(Produksjonsbeskrivelse!C227=\"\",\"\",Produksjonsbeskrivelse!C227&\", \"&LOWER(Produksjonsbeskrivelse!C229)&\".  \"&(Produksjonsbeskrivelse!H231)&\" vrider.\")","v":""},null,{"$f":"IF(Produksjonsbeskrivelse!A234=\"\",\"\",Produksjonsbeskrivelse!A234)","v":""}]
[null,{"$f":"IF(Produksjonsbeskrivelse!C228=\"\",\"\",IF(Produksjonsbeskrivelse!C228=\"Leveres ikke\",\"Sprosser: \"&Produksjonsbeskrivelse!C228,Produksjonsbeskrivelse!C228&\", \"&Produksjonsbeskrivelse!C231))","v":""}]
[null,{"$f":"IF(Produksjonsbeskrivelse!C230=\"\",\"\",\"Farger: Utvendig: \"&Produksjonsbeskrivelse!C230&\".  Innvendig: \"&Produksjonsbeskrivelse!H230)","v":""}]
[null,{"$f":"IF(Produksjonsbeskrivelse!C232=\"\",\"\",\"Soldemping i: \"&Produksjonsbeskrivelse!C232)","v":""}]
["Velux takvinduer:"]
[null,{"$f":"IF(Produksjonsbeskrivelse!C242=\"\",\"\",Produksjonsbeskrivelse!C242&\", størrelse/type: \"&Produksjonsbeskrivelse!F242)","v":""},null,{"$f":"IF(Produksjonsbeskrivelse!A247=\"\",\"\",Produksjonsbeskrivelse!A247)","v":""}]
[null,{"$f":"IF(Produksjonsbeskrivelse!C243=\"\",\"\",Produksjonsbeskrivelse!C243&\", størrelse/type: \"&Produksjonsbeskrivelse!F243)","v":""}]
[null,{"$f":"IF(Produksjonsbeskrivelse!C244=\"\",\"\",Produksjonsbeskrivelse!C244&\", størrelse/type: \"&Produksjonsbeskrivelse!F244)","v":""}]
[null,{"$f":"IF(Produksjonsbeskrivelse!C245=\"\",\"\",Produksjonsbeskrivelse!C245&\", størrelse/type: \"&Produksjonsbeskrivelse!F245)","v":""}]
["Garasje:"]
["Garasjeport:",{"$f":"IF(Produksjonsbeskrivelse!C250=\"\",\"\",Produksjonsbeskrivelse!C250&\", \"&Produksjonsbeskrivelse!J250&\" \"&Produksjonsbeskrivelse!C251&\", \"&Produksjonsbeskrivelse!J251)","v":""},null,{"$f":"IF(Produksjonsbeskrivelse!$A$256=0,\" \",Produksjonsbeskrivelse!$A$256)","v":" "}]
["Garasjedør:",{"$f":"IF(Produksjonsbeskrivelse!C253=\"\",\"\",Produksjonsbeskrivelse!C253)","v":""}]
["Automatisk portåpner:",{"$f":"IF(Produksjonsbeskrivelse!C254=0,\"\",Produksjonsbeskrivelse!C254)","v":""}]
["Terrasse/balkong:"]
["Utførelse/type:",{"$f":"IF(Produksjonsbeskrivelse!C259=\"\",\"\",Produksjonsbeskrivelse!C259)","v":""},null,{"$f":"IF(Produksjonsbeskrivelse!A264=\"\",\"\",Produksjonsbeskrivelse!A264)","v":""}]
["Dekke:",{"$f":"IF(Produksjonsbeskrivelse!C260=\"\",\"\",Produksjonsbeskrivelse!C260&\", \"&Produksjonsbeskrivelse!F260&\", \"&Produksjonsbeskrivelse!K260)","v":""}]
["Rekker:",{"$f":"IF(Produksjonsbeskrivelse!C261=\"\",\"\",Produksjonsbeskrivelse!C261&\", \"&Produksjonsbeskrivelse!F261&\", \"&Produksjonsbeskrivelse!K261)","v":""}]
["Søyler:",{"$f":"IF(Produksjonsbeskrivelse!C262=\"\",\"\",Produksjonsbeskrivelse!C262&\", \"&Produksjonsbeskrivelse!F262&\", \"&Produksjonsbeskrivelse!K262)","v":""}]
["Innvendige dører:","Obs! Alle våtromsdører leveres med lufting"]
["Dørtype:",{"$f":"IF(Produksjonsbeskrivelse!C270=0,\"\",Produksjonsbeskrivelse!C270)","v":""},null,{"$f":"IF(Produksjonsbeskrivelse!$A$281=0,\" \",Produksjonsbeskrivelse!$A$281)","v":" "}]
["Overflate dørblad:",{"$f":"IF(Produksjonsbeskrivelse!C271=0,\"\",Produksjonsbeskrivelse!C271)","v":""}]
["Overflate dørkarm:",{"$f":"IF(Produksjonsbeskrivelse!C272=0,\"\",Produksjonsbeskrivelse!C272)","v":""}]
["Dempelist:",{"$f":"IF(Produksjonsbeskrivelse!C273=\"\",\"\",Produksjonsbeskrivelse!C273)","v":""}]
["Dørvrider:",{"$f":"IF(Produksjonsbeskrivelse!C274=\"\",\"\",Produksjonsbeskrivelse!C274)","v":""}]
["Glassdører:",{"$f":"IF(Produksjonsbeskrivelse!C275=\"\",\"\",\"Mellom: \"&Produksjonsbeskrivelse!C275&\", glass utførelse: \"&Produksjonsbeskrivelse!H275&\", \"&Produksjonsbeskrivelse!H$279)","v":""}]
[null,{"$f":"IF(Produksjonsbeskrivelse!C276=\"\",\"\",\"Mellom: \"&Produksjonsbeskrivelse!C276&\", glass utførelse: \"&Produksjonsbeskrivelse!H276&\", \"&Produksjonsbeskrivelse!H$279)","v":""}]
[null,{"$f":"IF(Produksjonsbeskrivelse!C277=\"\",\"\",\"Mellom: \"&Produksjonsbeskrivelse!C277&\", glass utførelse: \"&Produksjonsbeskrivelse!H277&\", \"&Produksjonsbeskrivelse!H$279)","v":""}]
[null,{"$f":"IF(Produksjonsbeskrivelse!C278=\"\",\"\",\"Mellom: \"&Produksjonsbeskrivelse!C278&\", glass utførelse: \"&Produksjonsbeskrivelse!H278&\", \"&Produksjonsbeskrivelse!H$279)","v":""}]
[{"$f":"Produksjonsbeskrivelse!A284","v":"Badstudør: "},{"$f":"IF(Produksjonsbeskrivelse!C284=0,\"\",Produksjonsbeskrivelse!C284)","v":""},null,{"$f":"IF(Produksjonsbeskrivelse!$A$289=0,\" \",Produksjonsbeskrivelse!$A$289)","v":" "}]
[{"$f":"Produksjonsbeskrivelse!A285","v":"Klimadør: "},{"$f":"IF(Produksjonsbeskrivelse!C285=0,\"\",Produksjonsbeskrivelse!C285)","v":""}]
[{"$f":"Produksjonsbeskrivelse!A287","v":"Lyddør: "},{"$f":"IF(Produksjonsbeskrivelse!C287=0,\"\",Produksjonsbeskrivelse!C287)","v":""}]
["Diverse luker:"]
["Inspeksjonsluker i knevegger:",{"$f":"IF(Produksjonsbeskrivelse!C292=0,\"\",Produksjonsbeskrivelse!C292)","v":""},null,{"$f":"IF(Produksjonsbeskrivelse!$A$296=0,\" \",Produksjonsbeskrivelse!$A$296)","v":" "}]
["Inspeksjonsluker i himling:",{"$f":"IF(Produksjonsbeskrivelse!C293=0,\"\",Produksjonsbeskrivelse!C293)","v":""}]
["Takluke med nedfellbar stige:",{"$f":"IF(Produksjonsbeskrivelse!C294=0,\"\",Produksjonsbeskrivelse!C294)","v":""}]
["Foringer:"]
["Vindu/ytterdørsforinger:",{"$f":"IF(Produksjonsbeskrivelse!C299=0,\"\",Produksjonsbeskrivelse!C299)","v":""},null,{"$f":"IF(Produksjonsbeskrivelse!$A$302=0,\" \",Produksjonsbeskrivelse!$A$302)","v":" "}]
["Dørforinger innerdører:",{"$f":"IF(Produksjonsbeskrivelse!C300=0,\"\",Produksjonsbeskrivelse!C300)","v":""}]
["Listverk:"]
["Taklister:",{"$f":"IF(Produksjonsbeskrivelse!C305=0,\"\",Produksjonsbeskrivelse!C305)","v":""},null,{"$f":"IF(Produksjonsbeskrivelse!$A$310=0,\" \",Produksjonsbeskrivelse!$A$310)","v":" "}]
["Fotlister:",{"$f":"IF(Produksjonsbeskrivelse!C306=0,\"\",Produksjonsbeskrivelse!C306)","v":""}]
["Karmlister:",{"$f":"IF(Produksjonsbeskrivelse!C307=0,\"\",Produksjonsbeskrivelse!C307)","v":""}]
["Behandling:",{"$f":"IF(Produksjonsbeskrivelse!C308=0,\"\",Produksjonsbeskrivelse!C308)","v":""}]
["Trapper:"]
["Trapp1:",{"$f":"IF(Produksjonsbeskrivelse!C322=\"\",\"\",Produksjonsbeskrivelse!C322&\", i \"&LOWER(Produksjonsbeskrivelse!C326))","v":""},null,{"$f":"IF(Produksjonsbeskrivelse!$A$336=0,\" \",Produksjonsbeskrivelse!$A$336)","v":" "}]
["Behandling:",{"$f":"IF(Produksjonsbeskrivelse!C323=0,\"\",Produksjonsbeskrivelse!C323)","v":""}]
["Trapp 2:",{"$f":"IF(Produksjonsbeskrivelse!C340=\"\",\"\",Produksjonsbeskrivelse!C340&\", i \"&LOWER(Produksjonsbeskrivelse!C344))","v":""},null,{"$f":"IF(Produksjonsbeskrivelse!$A$354=0,\" \",Produksjonsbeskrivelse!$A$354)","v":" "}]
["Behandling:",{"$f":"IF(Produksjonsbeskrivelse!C341=0,\"\",Produksjonsbeskrivelse!C341)","v":""}]
["Kjøkkeninnredning:"]
["Hovedleilighet:",{"$f":"IF(Produksjonsbeskrivelse!C358=\"\",\"\",Produksjonsbeskrivelse!C358&\", (\"&Produksjonsbeskrivelse!C359&\")\"&IF(Produksjonsbeskrivelse!C360=0,\"\",\", iflg. tegning datert:\"))","v":""},{"$f":"IF(Produksjonsbeskrivelse!C360=\"\",\"\",Produksjonsbeskrivelse!C360)","v":""},{"$f":"IF(Produksjonsbeskrivelse!A373=\"\",\"\",Produksjonsbeskrivelse!A373)","v":""}]
["Hybel/bi-leilighet:",{"$f":"IF(Produksjonsbeskrivelse!C363=\"\",\"\",Produksjonsbeskrivelse!C363&\", (\"&Produksjonsbeskrivelse!C364&\")\"&IF(Produksjonsbeskrivelse!C365=0,\"\",\", iflg. tegning datert:\"))","v":""},{"$f":"IF(Produksjonsbeskrivelse!C365=0,\"\",Produksjonsbeskrivelse!C365)","v":""}]
["Hybel/bi-leilighet:",{"$f":"IF(Produksjonsbeskrivelse!C368=\"\",\"\",Produksjonsbeskrivelse!C368&\", (\"&Produksjonsbeskrivelse!C369&\")\"&IF(Produksjonsbeskrivelse!C370=0,\"\",\", iflg. tegning datert:\"))","v":""},{"$f":"IF(Produksjonsbeskrivelse!C370=0,\"\",Produksjonsbeskrivelse!C370)","v":""}]
["Garderobeinnredning:"]
["Hovedleilighet:",{"$f":"IF(Produksjonsbeskrivelse!C379=\"\",\"\",Produksjonsbeskrivelse!C379&IF(Produksjonsbeskrivelse!C380=0,\"\",\", iflg. tegning datert:\"))","v":""},{"$f":"IF(Produksjonsbeskrivelse!C380=0,\"\",Produksjonsbeskrivelse!C380)","v":""},{"$f":"IF(Produksjonsbeskrivelse!$A$385=0,\" \",Produksjonsbeskrivelse!$A$385)","v":"        "}]
["Hybel/bi-leilighet:",{"$f":"IF(Produksjonsbeskrivelse!C382=\"\",\"\",Produksjonsbeskrivelse!C382&IF(Produksjonsbeskrivelse!C383=0,\"\",\", iflg. tegning datert:\"))","v":""},{"$f":"IF(Produksjonsbeskrivelse!C383=0,\"\",Produksjonsbeskrivelse!C383)","v":""}]
["Baderomsinnredning:"]
[{"$f":"IF(Produksjonsbeskrivelse!C389=0,\"\",Produksjonsbeskrivelse!C389)","v":""},{"$f":"IF(Produksjonsbeskrivelse!C388=\"\",\"\",Produksjonsbeskrivelse!C388)","v":""},null,{"$f":"IF(Produksjonsbeskrivelse!$A$397=0,\" \",Produksjonsbeskrivelse!$A$397)","v":"        "}]
[{"$f":"IF(Produksjonsbeskrivelse!C392=0,\"\",Produksjonsbeskrivelse!C392)","v":""},{"$f":"IF(Produksjonsbeskrivelse!C391=\"\",\"\",Produksjonsbeskrivelse!C391)","v":""}]
[{"$f":"IF(Produksjonsbeskrivelse!C395=0,\"\",Produksjonsbeskrivelse!C395)","v":""},{"$f":"IF(Produksjonsbeskrivelse!C394=\"\",\"\",Produksjonsbeskrivelse!C394)","v":""}]
["Øvrige endringer:"]
[{"$f":"IF(Produksjonsbeskrivelse!A662=\"\",\"\",Produksjonsbeskrivelse!A661&\"  \"&Produksjonsbeskrivelse!A662)","v":""}]
[{"$f":"IF(Produksjonsbeskrivelse!A666=\"\",\"\",Produksjonsbeskrivelse!A665&\"  \"&Produksjonsbeskrivelse!A666)","v":""}]
[{"$f":"IF(Produksjonsbeskrivelse!A670=\"\",\"\",Produksjonsbeskrivelse!A669&\"  \"&Produksjonsbeskrivelse!A670)","v":""}]
[{"$f":"IF(Produksjonsbeskrivelse!A674=\"\",\"\",Produksjonsbeskrivelse!A673&\"  \"&Produksjonsbeskrivelse!A674)","v":""}]

{"sheet":"Romskjema","index":15,"n_rows":20,"n_cols":11,"rows_kept":20,"cut":false,"hidden":false,"merged":[[19,8,19,9],[15,8,15,9],[16,8,16,9],[17,8,17,9],[18,8,18,9],[19,6,19,7],[2,8,2,9],[3,8,3,9],[4,8,4,9],[5,8,5,9],[6,8,6,9],[7,8,7,9],[8,8,8,9],[9,8,9,9],[10,8,10,9],[11,8,11,9],[12,8,12,9],[13,8,13,9],[14,8,14,9],[14,6,14,7],[15,6,15,7],[16,6,16,7],[17,6,17,7],[18,6,18,7],[9,6,9,7],[10,6,10,7],[11,6,11,7],[12,6,12,7],[13,6,13,7],[8,6,8,7],[2,6,2,7],[3,6,3,7],[4,6,4,7],[5,6,5,7],[0,9,0,10],[0,0,0,6],[1,8,1,9],[6,6,6,7],[7,6,7,7],[1,6,1,7]]}
[{"$f":"\"Romskjema for bolig til \"&Produksjonsbeskrivelse!B14&\".\"","v":"Romskjema for bolig til ."},null,null,null,null,null,null,{"$f":"IF(Produksjonsbeskrivelse!N9=0,\" \",\"Dato: \")","v":" "},{"$f":"IF(Produksjonsbeskrivelse!N9=0,\" \",Produksjonsbeskrivelse!N9)","v":" "},{"$f":"IF(Produksjonsbeskrivelse!B30=0,\" \",\"Selger: \"&Produksjonsbeskrivelse!B30&\", Mob.: \"&Produksjonsbeskrivelse!G30&\", E-post: \"&Produksjonsbeskrivelse!J30)","v":" "}]
["Etasje","Nr.","Rom","Gulv ","Gulv-varme","Gulv for varme","Vegg",null,"Himling / Skråtak",null,"Merknad"]
[{"$f":"IF(Produksjonsbeskrivelse!$B$407=0,\" \",Produksjonsbeskrivelse!$B$407)","v":" "},{"$f":"IF(Produksjonsbeskrivelse!$B$408=0,\" \",Produksjonsbeskrivelse!$B$408)","v":" "},{"$f":"IF(Produksjonsbeskrivelse!$B$409=0,\" \",Produksjonsbeskrivelse!$B$409)","v":" "},{"$f":"IF(Produksjonsbeskrivelse!$B$410=0,\" \",Produksjonsbeskrivelse!$B$410&\"\n\"&Produksjonsbeskrivelse!$B$413)","v":" "},{"$f":"IF(Produksjonsbeskrivelse!$B$411=0,\" \",Produksjonsbeskrivelse!$B$411)","v":" "},{"$f":"IF(Produksjonsbeskrivelse!$B$412=0,\" \",Produksjonsbeskrivelse!$B$412)","v":" "},{"$f":"IF(Produksjonsbeskrivelse!$B$414=0,\" \",Produksjonsbeskrivelse!$B$414)","v":" "},null,{"$f":"IF(Produksjonsbeskrivelse!$B$415=0,\" \",Produksjonsbeskrivelse!$B$415)","v":" "},null,{"$f":"IF(Produksjonsbeskrivelse!$A$417=0,\" \",Produksjonsbeskrivelse!$A$417)","v":" "}]
[{"$f":"IF(Produksjonsbeskrivelse!$B$420=0,\" \",Produksjonsbeskrivelse!$B$420)","v":" "},{"$f":"IF(Produksjonsbeskrivelse!$B$421=0,\" \",Produksjonsbeskrivelse!$B$421)","v":" "},{"$f":"IF(Produksjonsbeskrivelse!$B$422=0,\" \",Produksjonsbeskrivelse!$B$422)","v":" "},{"$f":"IF(Produksjonsbeskrivelse!$B$423=0,\" \",Produksjonsbeskrivelse!$B$423&\"\n\"&Produksjonsbeskrivelse!$B$426)","v":" "},{"$f":"IF(Produksjonsbeskrivelse!$B$424=0,\" \",Produksjonsbeskrivelse!$B$424)","v":" "},{"$f":"IF(Produksjonsbeskrivelse!$B$425=0,\" \",Produksjonsbeskrivelse!$B$425)","v":" "},{"$f":"IF(Produksjonsbeskrivelse!$B$427=0,\" \",Produksjonsbeskrivelse!$B$427)","v":" "},{"$f":"IF(Produksjonsbeskrivelse!$B$425=0,\" \",Produksjonsbeskrivelse!$B$425)","v":" "},{"$f":"IF(Produksjonsbeskrivelse!$B$428=0,\" \",Produksjonsbeskrivelse!$B$428)","v":" "},{"$f":"IF(Produksjonsbeskrivelse!$B$425=0,\" \",Produksjonsbeskrivelse!$B$425)","v":" "},{"$f":"IF(Produksjonsbeskrivelse!$A$430=0,\" \",Produksjonsbeskrivelse!$A$430)","v":" "}]
[{"$f":"IF(Produksjonsbeskrivelse!$B$433=0,\" \",Produksjonsbeskrivelse!$B$433)","v":" "},{"$f":"IF(Produksjonsbeskrivelse!$B$434=0,\" \",Produksjonsbeskrivelse!$B$434)","v":" "},{"$f":"IF(Produksjonsbeskrivelse!$B$435=0,\" \",Produksjonsbeskrivelse!$B$435)","v":" "},{"$f":"IF(Produksjonsbeskrivelse!$B$436=0,\" \",Produksjonsbeskrivelse!$B$436&\"\n\"&Produksjonsbeskrivelse!$B$439)","v":" "},{"$f":"IF(Produksjonsbeskrivelse!$B$437=0,\" \",Produksjonsbeskrivelse!$B$437)","v":" "},{"$f":"IF(Produksjonsbeskrivelse!$B$438=0,\" \",Produksjonsbeskrivelse!$B$438)","v":" "},{"$f":"IF(Produksjonsbeskrivelse!$B$440=0,\" \",Produksjonsbeskrivelse!$B$440)","v":" "},{"$f":"IF(Produksjonsbeskrivelse!$B$438=0,\" \",Produksjonsbeskrivelse!$B$438)","v":" "},{"$f":"IF(Produksjonsbeskrivelse!$B$441=0,\" \",Produksjonsbeskrivelse!$B$441)","v":" "},{"$f":"IF(Produksjonsbeskrivelse!$B$438=0,\" \",Produksjonsbeskrivelse!$B$438)","v":" "},{"$f":"IF(Produksjonsbeskrivelse!$A$443=0,\" \",Produksjonsbeskrivelse!$A$443)","v":" "}]
[{"$f":"IF(Produksjonsbeskrivelse!$B$446=0,\" \",Produksjonsbeskrivelse!$B$446)","v":" "},{"$f":"IF(Produksjonsbeskrivelse!$B$447=0,\" \",Produksjonsbeskrivelse!$B$447)","v":" "},{"$f":"IF(Produksjonsbeskrivelse!$B$448=0,\" \",Produksjonsbeskrivelse!$B$448)","v":" "},{"$f":"IF(Produksjonsbeskrivelse!$B$449=0,\" \",Produksjonsbeskrivelse!$B$449&\"\n\"&Produksjonsbeskrivelse!$B$452)","v":" "},{"$f":"IF(Produksjonsbeskrivelse!$B$450=0,\" \",Produksjonsbeskrivelse!$B$450)","v":" "},{"$f":"IF(Produksjonsbeskrivelse!$B$451=0,\" \",Produksjonsbeskrivelse!$B$451)","v":" "},{"$f":"IF(Produksjonsbeskrivelse!$B$453=0,\" \",Produksjonsbeskrivelse!$B$453)","v":" "},{"$f":"IF(Produksjonsbeskrivelse!$B$451=0,\" \",Produksjonsbeskrivelse!$B$451)","v":" "},{"$f":"IF(Produksjonsbeskrivelse!$B$454=0,\" \",Produksjonsbeskrivelse!$B$454)","v":" "},{"$f":"IF(Produksjonsbeskrivelse!$B$451=0,\" \",Produksjonsbeskrivelse!$B$451)","v":" "},{"$f":"IF(Produksjonsbeskrivelse!$A$456=0,\" \",Produksjonsbeskrivelse!$A$456)","v":" "}]
[{"$f":"IF(Produksjonsbeskrivelse!$B$459=0,\" \",Produksjonsbeskrivelse!$B$459)","v":" "},{"$f":"IF(Produksjonsbeskrivelse!$B$460=0,\" \",Produksjonsbeskrivelse!$B$460)","v":" "},{"$f":"IF(Produksjonsbeskrivelse!$B$461=0,\" \",Produksjonsbeskrivelse!$B$461)","v":" "},{"$f":"IF(Produksjonsbeskrivelse!$B$462=0,\" \",Produksjonsbeskrivelse!$B$462&\"\n\"&Produksjonsbeskrivelse!$B$465)","v":" "},{"$f":"IF(Produksjonsbeskrivelse!$B$463=0,\" \",Produksjonsbeskrivelse!$B$463)","v":" "},{"$f":"IF(Produksjonsbeskrivelse!$B$464=0,\" \",Produksjonsbeskrivelse!$B$464)","v":" "},{"$f":"IF(Produksjonsbeskrivelse!$B$466=0,\" \",Produksjonsbeskrivelse!$B$466)","v":" "},{"$f":"IF(Produksjonsbeskrivelse!$B$464=0,\" \",Produksjonsbeskrivelse!$B$464)","v":" "},{"$f":"IF(Produksjonsbeskrivelse!$B$467=0,\" \",Produksjonsbeskrivelse!$B$467)","v":" "},{"$f":"IF(Produksjonsbeskrivelse!$B$464=0,\" \",Produksjonsbeskrivelse!$B$464)","v":" "},{"$f":"IF(Produksjonsbeskrivelse!$A$469=0,\" \",Produksjonsbeskrivelse!$A$469)","v":" "}]
[{"$f":"IF(Produksjonsbeskrivelse!$B$472=0,\" \",Produksjonsbeskrivelse!$B$472)","v":" "},{"$f":"IF(Produksjonsbeskrivelse!$B$473=0,\" \",Produksjonsbeskrivelse!$B$473)","v":" "},{"$f":"IF(Produksjonsbeskrivelse!$B$474=0,\" \",Produksjonsbeskrivelse!$B$474)","v":" "},{"$f":"IF(Produksjonsbeskrivelse!$B$475=0,\" \",Produksjonsbeskrivelse!$B$475&\"\n\"&Produksjonsbeskrivelse!$B$478)","v":" "},{"$f":"IF(Produksjonsbeskrivelse!$B$476=0,\" \",Produksjonsbeskrivelse!$B$476)","v":" "},{"$f":"IF(Produksjonsbeskrivelse!$B$477=0,\" \",Produksjonsbeskrivelse!$B$477)","v":" "},{"$f":"IF(Produksjonsbeskrivelse!$B$479=0,\" \",Produksjonsbeskrivelse!$B$479)","v":" "},{"$f":"IF(Produksjonsbeskrivelse!$B$477=0,\" \",Produksjonsbeskrivelse!$B$477)","v":" "},{"$f":"IF(Produksjonsbeskrivelse!$B$480=0,\" \",Produksjonsbeskrivelse!$B$480)","v":" "},{"$f":"IF(Produksjonsbeskrivelse!$B$477=0,\" \",Produksjonsbeskrivelse!$B$477)","v":" "},{"$f":"IF(Produksjonsbeskrivelse!$A$482=0,\" \",Produksjonsbeskrivelse!$A$482)","v":" "}]
[{"$f":"IF(Produksjonsbeskrivelse!$B$492=0,\" \",Produksjonsbeskrivelse!$B$492)","v":" "},{"$f":"IF(Produksjonsbeskrivelse!$B$493=0,\" \",Produksjonsbeskrivelse!$B$493)","v":" "},{"$f":"IF(Produksjonsbeskrivelse!$B$494=0,\" \",Produksjonsbeskrivelse!$B$494)","v":" "},{"$f":"IF(Produksjonsbeskrivelse!$B$495=0,\" \",Produksjonsbeskrivelse!$B$495&\"\n\"&Produksjonsbeskrivelse!$B$498)","v":" "},{"$f":"IF(Produksjonsbeskrivelse!$B$496=0,\" \",Produksjonsbeskrivelse!$B$496)","v":" "},{"$f":"IF(Produksjonsbeskrivelse!$B$497=0,\" \",Produksjonsbeskrivelse!$B$497)","v":" "},{"$f":"IF(Produksjonsbeskrivelse!$B$499=0,\" \",Produksjonsbeskrivelse!$B$499)","v":" "},{"$f":"IF(Produksjonsbeskrivelse!$B$497=0,\" \",Produksjonsbeskrivelse!$B$498)","v":" "},{"$f":"IF(Produksjonsbeskrivelse!$B$500=0,\" \",Produksjonsbeskrivelse!$B$500)","v":" "},{"$f":"IF(Produksjonsbeskrivelse!$B$497=0,\" \",Produksjonsbeskrivelse!$B$498)","v":" "},{"$f":"IF(Produksjonsbeskrivelse!$A$502=0,\" \",Produksjonsbeskrivelse!$A$502)","v":" "}]
[{"$f":"IF(Produksjonsbeskrivelse!$B$505=0,\" \",Produksjonsbeskrivelse!$B$505)","v":" "},{"$f":"IF(Produksjonsbeskrivelse!$B$506=0,\" \",Produksjonsbeskrivelse!$B$506)","v":" "},{"$f":"IF(Produksjonsbeskrivelse!$B$507=0,\" \",Produksjonsbeskrivelse!$B$507)","v":" "},{"$f":"IF(Produksjonsbeskrivelse!$B$508=0,\" \",Produksjonsbeskrivelse!$B$508&\"\n\"&Produksjonsbeskrivelse!$B$511)","v":" "},{"$f":"IF(Produksjonsbeskrivelse!$B$509=0,\" \",Produksjonsbeskrivelse!$B$509)","v":" "},{"$f":"IF(Produksjonsbeskrivelse!$B$510=0,\" \",Produksjonsbeskrivelse!$B$510)","v":" "},{"$f":"IF(Produksjonsbeskrivelse!$B$512=0,\" \",Produksjonsbeskrivelse!$B$512)","v":" "},{"$f":"IF(Produksjonsbeskrivelse!$B$510=0,\" \",Produksjonsbeskrivelse!$B$510)","v":" "},{"$f":"IF(Produksjonsbeskrivelse!$B$513=0,\" \",Produksjonsbeskrivelse!$B$513)","v":" "},{"$f":"IF(Produksjonsbeskrivelse!$B$510=0,\" \",Produksjonsbeskrivelse!$B$510)","v":" "},{"$f":"IF(Produksjonsbeskrivelse!$A$515=0,\" \",Produksjonsbeskrivelse!$A$515)","v":" "}]
[{"$f":"IF(Produksjonsbeskrivelse!$B$518=0,\" \",Produksjonsbeskrivelse!$B$518)","v":" "},{"$f":"IF(Produksjonsbeskrivelse!$B$519=0,\" \",Produksjonsbeskrivelse!$B$519)","v":" "},{"$f":"IF(Produksjonsbeskrivelse!$B$520=0,\" \",Produksjonsbeskrivelse!$B$520)","v":" "},{"$f":"IF(Produksjonsbeskrivelse!$B$521=0,\" \",Produksjonsbeskrivelse!$B$521&\"\n\"&Produksjonsbeskrivelse!$B$524)","v":" "},{"$f":"IF(Produksjonsbeskrivelse!$B$522=0,\" \",Produksjonsbeskrivelse!$B$522)","v":" "},{"$f":"IF(Produksjonsbeskrivelse!$B$523=0,\" \",Produksjonsbeskrivelse!$B$523)","v":" "},{"$f":"IF(Produksjonsbeskrivelse!$B$525=0,\" \",Produksjonsbeskrivelse!$B$525)","v":" "},{"$f":"IF(Produksjonsbeskrivelse!$B$523=0,\" \",Produksjonsbeskrivelse!$B$523)","v":" "},{"$f":"IF(Produksjonsbeskrivelse!$B$526=0,\" \",Produksjonsbeskrivelse!$B$526)","v":" "},{"$f":"IF(Produksjonsbeskrivelse!$B$523=0,\" \",Produksjonsbeskrivelse!$B$523)","v":" "},{"$f":"IF(Produksjonsbeskrivelse!$A$528=0,\" \",Produksjonsbeskrivelse!$A$528)","v":" "}]
[{"$f":"IF(Produksjonsbeskrivelse!$B$531=0,\" \",Produksjonsbeskrivelse!$B$531)","v":" "},{"$f":"IF(Produksjonsbeskrivelse!$B$532=0,\" \",Produksjonsbeskrivelse!$B$532)","v":" "},{"$f":"IF(Produksjonsbeskrivelse!$B$533=0,\" \",Produksjonsbeskrivelse!$B$533)","v":" "},{"$f":"IF(Produksjonsbeskrivelse!$B$534=0,\" \",Produksjonsbeskrivelse!$B$534&\"\n\"&Produksjonsbeskrivelse!$B$537)","v":" "},{"$f":"IF(Produksjonsbeskrivelse!$B$535=0,\" \",Produksjonsbeskrivelse!$B$535)","v":" "},{"$f":"IF(Produksjonsbeskrivelse!$B$536=0,\" \",Produksjonsbeskrivelse!$B$536)","v":" "},{"$f":"IF(Produksjonsbeskrivelse!$B$538=0,\" \",Produksjonsbeskrivelse!$B$538)","v":" "},{"$f":"IF(Produksjonsbeskrivelse!$B$536=0,\" \",Produksjonsbeskrivelse!$B$536)","v":" "},{"$f":"IF(Produksjonsbeskrivelse!$B$539=0,\" \",Produksjonsbeskrivelse!$B$539)","v":" "},{"$f":"IF(Produksjonsbeskrivelse!$B$536=0,\" \",Produksjonsbeskrivelse!$B$536)","v":" "},{"$f":"IF(Produksjonsbeskrivelse!$A$541=0,\" \",Produksjonsbeskrivelse!$A$541)","v":" "}]
[{"$f":"IF(Produksjonsbeskrivelse!$B$544=0,\" \",Produksjonsbeskrivelse!$B$544)","v":" "},{"$f":"IF(Produksjonsbeskrivelse!$B$545=0,\" \",Produksjonsbeskrivelse!$B$545)","v":" "},{"$f":"IF(Produksjonsbeskrivelse!$B$546=0,\" \",Produksjonsbeskrivelse!$B$546)","v":" "},{"$f":"IF(Produksjonsbeskrivelse!$B$547=0,\" \",Produksjonsbeskrivelse!$B$547&\"\n\"&Produksjonsbeskrivelse!$B$550)","v":" "},{"$f":"IF(Produksjonsbeskrivelse!$B$548=0,\" \",Produksjonsbeskrivelse!$B$548)","v":" "},{"$f":"IF(Produksjonsbeskrivelse!$B$549=0,\" \",Produksjonsbeskrivelse!$B$549)","v":" "},{"$f":"IF(Produksjonsbeskrivelse!$B$551=0,\" \",Produksjonsbeskrivelse!$B$551)","v":" "},{"$f":"IF(Produksjonsbeskrivelse!$B$549=0,\" \",Produksjonsbeskrivelse!$B$549)","v":" "},{"$f":"IF(Produksjonsbeskrivelse!$B$552=0,\" \",Produksjonsbeskrivelse!$B$552)","v":" "},{"$f":"IF(Produksjonsbeskrivelse!$B$549=0,\" \",Produksjonsbeskrivelse!$B$549)","v":" "},{"$f":"IF(Produksjonsbeskrivelse!$A$554=0,\" \",Produksjonsbeskrivelse!$A$554)","v":" "}]
[{"$f":"IF(Produksjonsbeskrivelse!$B$557=0,\" \",Produksjonsbeskrivelse!$B$557)","v":" "},{"$f":"IF(Produksjonsbeskrivelse!$B$558=0,\" \",Produksjonsbeskrivelse!$B$558)","v":" "},{"$f":"IF(Produksjonsbeskrivelse!$B$559=0,\" \",Produksjonsbeskrivelse!$B$559)","v":" "},{"$f":"IF(Produksjonsbeskrivelse!$B$560=0,\" \",Produksjonsbeskrivelse!$B$560&\"\n\"&Produksjonsbeskrivelse!$B$563)","v":" "},{"$f":"IF(Produksjonsbeskrivelse!$B$561=0,\" \",Produksjonsbeskrivelse!$B$561)","v":" "},{"$f":"IF(Produksjonsbeskrivelse!$B$562=0,\" \",Produksjonsbeskrivelse!$B$562)","v":" "},{"$f":"IF(Produksjonsbeskrivelse!$B$564=0,\" \",Produksjonsbeskrivelse!$B$564)","v":" "},{"$f":"IF(Produksjonsbeskrivelse!$B$562=0,\" \",Produksjonsbeskrivelse!$B$562)","v":" "},{"$f":"IF(Produksjonsbeskrivelse!$B$565=0,\" \",Produksjonsbeskrivelse!$B$565)","v":" "},{"$f":"IF(Produksjonsbeskrivelse!$B$562=0,\" \",Produksjonsbeskrivelse!$B$562)","v":" "},{"$f":"IF(Produksjonsbeskrivelse!$A$567=0,\" \",Produksjonsbeskrivelse!$A$567)","v":" "}]
[{"$f":"IF(Produksjonsbeskrivelse!$B$577=0,\" \",Produksjonsbeskrivelse!$B$577)","v":" "},{"$f":"IF(Produksjonsbeskrivelse!$B$578=0,\" \",Produksjonsbeskrivelse!$B$578)","v":" "},{"$f":"IF(Produksjonsbeskrivelse!$B$579=0,\" \",Produksjonsbeskrivelse!$B$579)","v":" "},{"$f":"IF(Produksjonsbeskrivelse!$B$580=0,\" \",Produksjonsbeskrivelse!$B$580&\"\n\"&Produksjonsbeskrivelse!$B$583)","v":" "},{"$f":"IF(Produksjonsbeskrivelse!$B$581=0,\" \",Produksjonsbeskrivelse!$B$581)","v":" "},{"$f":"IF(Produksjonsbeskrivelse!$B$582=0,\" \",Produksjonsbeskrivelse!$B$582)","v":" "},{"$f":"IF(Produksjonsbeskrivelse!$B$584=0,\" \",Produksjonsbeskrivelse!$B$584)","v":" "},{"$f":"IF(Produksjonsbeskrivelse!$B$582=0,\" \",Produksjonsbeskrivelse!$B$582)","v":" "},{"$f":"IF(Produksjonsbeskrivelse!$B$585=0,\" \",Produksjonsbeskrivelse!$B$585)","v":" "},{"$f":"IF(Produksjonsbeskrivelse!$B$582=0,\" \",Produksjonsbeskrivelse!$B$582)","v":" "},{"$f":"IF(Produksjonsbeskrivelse!$A$587=0,\" \",Produksjonsbeskrivelse!$A$587)","v":" "}]
[{"$f":"IF(Produksjonsbeskrivelse!$B$590=0,\" \",Produksjonsbeskrivelse!$B$590)","v":" "},{"$f":"IF(Produksjonsbeskrivelse!$B$591=0,\" \",Produksjonsbeskrivelse!$B$591)","v":" "},{"$f":"IF(Produksjonsbeskrivelse!$B$592=0,\" \",Produksjonsbeskrivelse!$B$592)","v":" "},{"$f":"IF(Produksjonsbeskrivelse!$B$593=0,\" \",Produksjonsbeskrivelse!$B$593&\"\n\"&Produksjonsbeskrivelse!$B$596)","v":" "},{"$f":"IF(Produksjonsbeskrivelse!$B$594=0,\" \",Produksjonsbeskrivelse!$B$594)","v":" "},{"$f":"IF(Produksjonsbeskrivelse!$B$595=0,\" \",Produksjonsbeskrivelse!$B$595)","v":" "},{"$f":"IF(Produksjonsbeskrivelse!$B$597=0,\" \",Produksjonsbeskrivelse!$B$597)","v":" "},{"$f":"IF(Produksjonsbeskrivelse!$B$595=0,\" \",Produksjonsbeskrivelse!$B$595)","v":" "},{"$f":"IF(Produksjonsbeskrivelse!$B$598=0,\" \",Produksjonsbeskrivelse!$B$598)","v":" "},{"$f":"IF(Produksjonsbeskrivelse!$B$595=0,\" \",Produksjonsbeskrivelse!$B$595)","v":" "},{"$f":"IF(Produksjonsbeskrivelse!$A$600=0,\" \",Produksjonsbeskrivelse!$A$600)","v":" "}]
[{"$f":"IF(Produksjonsbeskrivelse!$B$603=0,\" \",Produksjonsbeskrivelse!$B$603)","v":" "},{"$f":"IF(Produksjonsbeskrivelse!$B$604=0,\" \",Produksjonsbeskrivelse!$B$604)","v":" "},{"$f":"IF(Produksjonsbeskrivelse!$B$605=0,\" \",Produksjonsbeskrivelse!$B$605)","v":" "},{"$f":"IF(Produksjonsbeskrivelse!$B$606=0,\" \",Produksjonsbeskrivelse!$B$606&\"\n\"&Produksjonsbeskrivelse!$B$609)","v":" "},{"$f":"IF(Produksjonsbeskrivelse!$B$607=0,\" \",Produksjonsbeskrivelse!$B$607)","v":" "},{"$f":"IF(Produksjonsbeskrivelse!$B$608=0,\" \",Produksjonsbeskrivelse!$B$608)","v":" "},{"$f":"IF(Produksjonsbeskrivelse!$B$610=0,\" \",Produksjonsbeskrivelse!$B$610)","v":" "},{"$f":"IF(Produksjonsbeskrivelse!$B$608=0,\" \",Produksjonsbeskrivelse!$B$608)","v":" "},{"$f":"IF(Produksjonsbeskrivelse!$B$611=0,\" \",Produksjonsbeskrivelse!$B$611)","v":" "},{"$f":"IF(Produksjonsbeskrivelse!$B$608=0,\" \",Produksjonsbeskrivelse!$B$608)","v":" "},{"$f":"IF(Produksjonsbeskrivelse!$A$613=0,\" \",Produksjonsbeskrivelse!$A$613)","v":" "}]
[{"$f":"IF(Produksjonsbeskrivelse!$B$616=0,\" \",Produksjonsbeskrivelse!$B$616)","v":" "},{"$f":"IF(Produksjonsbeskrivelse!$B$617=0,\" \",Produksjonsbeskrivelse!$B$617)","v":" "},{"$f":"IF(Produksjonsbeskrivelse!$B$618=0,\" \",Produksjonsbeskrivelse!$B$618)","v":" "},{"$f":"IF(Produksjonsbeskrivelse!$B$619=0,\" \",Produksjonsbeskrivelse!$B$619&\"\n\"&Produksjonsbeskrivelse!$B$622)","v":" "},{"$f":"IF(Produksjonsbeskrivelse!$B$620=0,\" \",Produksjonsbeskrivelse!$B$620)","v":" "},{"$f":"IF(Produksjonsbeskrivelse!$B$621=0,\" \",Produksjonsbeskrivelse!$B$621)","v":" "},{"$f":"IF(Produksjonsbeskrivelse!$B$623=0,\" \",Produksjonsbeskrivelse!$B$623)","v":" "},{"$f":"IF(Produksjonsbeskrivelse!$B$621=0,\" \",Produksjonsbeskrivelse!$B$621)","v":" "},{"$f":"IF(Produksjonsbeskrivelse!$B$624=0,\" \",Produksjonsbeskrivelse!$B$624)","v":" "},{"$f":"IF(Produksjonsbeskrivelse!$B$621=0,\" \",Produksjonsbeskrivelse!$B$621)","v":" "},{"$f":"IF(Produksjonsbeskrivelse!$A$626=0,\" \",Produksjonsbeskrivelse!$A$626)","v":" "}]
[{"$f":"IF(Produksjonsbeskrivelse!$B$629=0,\" \",Produksjonsbeskrivelse!$B$629)","v":" "},{"$f":"IF(Produksjonsbeskrivelse!$B$630=0,\" \",Produksjonsbeskrivelse!$B$630)","v":" "},{"$f":"IF(Produksjonsbeskrivelse!$B$631=0,\" \",Produksjonsbeskrivelse!$B$631)","v":" "},{"$f":"IF(Produksjonsbeskrivelse!$B$632=0,\" \",Produksjonsbeskrivelse!$B$632&\"\n\"&Produksjonsbeskrivelse!$B$635)","v":" "},{"$f":"IF(Produksjonsbeskrivelse!$B$633=0,\" \",Produksjonsbeskrivelse!$B$633)","v":" "},{"$f":"IF(Produksjonsbeskrivelse!$B$634=0,\" \",Produksjonsbeskrivelse!$B$634)","v":" "},{"$f":"IF(Produksjonsbeskrivelse!$B$636=0,\" \",Produksjonsbeskrivelse!$B$636)","v":" "},{"$f":"IF(Produksjonsbeskrivelse!$B$634=0,\" \",Produksjonsbeskrivelse!$B$634)","v":" "},{"$f":"IF(Produksjonsbeskrivelse!$B$637=0,\" \",Produksjonsbeskrivelse!$B$637)","v":" "},{"$f":"IF(Produksjonsbeskrivelse!$B$634=0,\" \",Produksjonsbeskrivelse!$B$634)","v":" "},{"$f":"IF(Produksjonsbeskrivelse!$A$639=0,\" \",Produksjonsbeskrivelse!$A$639)","v":" "}]
[{"$f":"IF(Produksjonsbeskrivelse!$B$642=0,\" \",Produksjonsbeskrivelse!$B$642)","v":" "},{"$f":"IF(Produksjonsbeskrivelse!$B$643=0,\" \",Produksjonsbeskrivelse!$B$643)","v":" "},{"$f":"IF(Produksjonsbeskrivelse!$B$644=0,\" \",Produksjonsbeskrivelse!$B$644)","v":" "},{"$f":"IF(Produksjonsbeskrivelse!$B$645=0,\" \",Produksjonsbeskrivelse!$B$645&\"\n\"&Produksjonsbeskrivelse!$B$648)","v":" "},{"$f":"IF(Produksjonsbeskrivelse!$B$646=0,\" \",Produksjonsbeskrivelse!$B$646)","v":" "},{"$f":"IF(Produksjonsbeskrivelse!$B$647=0,\" \",Produksjonsbeskrivelse!$B$647)","v":" "},{"$f":"IF(Produksjonsbeskrivelse!$B$649=0,\" \",Produksjonsbeskrivelse!$B$649)","v":" "},null,{"$f":"IF(Produksjonsbeskrivelse!$B$650=0,\" \",Produksjonsbeskrivelse!$B$650)","v":" "},null,{"$f":"IF(Produksjonsbeskrivelse!$A$652=0,\" \",Produksjonsbeskrivelse!$A$652)","v":" "}]

{"sheet":"Hoveddører","index":16,"n_rows":358,"n_cols":7,"rows_kept":358,"cut":false,"hidden":true,"merged":[]}
["PRODUSENT HOVEDDØR:",null,"Gilje-dører",null,null,"SWEDOOR HOVEDDØRER"]
[]
["GILJE",null,"VANLIGVIS LAGERFØRTE DØRER","Lagerførte farger:",null,"SWEDOOR CLASSIC","FARGER SWEDOOR:"]
["SWEDOOR",null,"HADES med klart glass","Hvit NCS S 0502-Y",null,"Albinoni, klart glass","Basfarge Hvit NCS S 0502-Y"]
[null,null,"ANDRÉ med katedral glass","Hvit NCS S 0500-N",null,"Beethoven","Standard Hvit NCS S 0500-N"]
[{"$f":"IF(Produksjonsbeskrivelse!C$190=Hoveddører!A$3,Hoveddører!C3,IF(Produksjonsbeskrivelse!C$199=Hoveddører!A$3,Hoveddører!C3,IF(Produksjonsbeskrivelse!C$190=Hoveddører!A$4,Hoveddører!F3,IF(Produksjonsbeskrivelse!C$199=Hoveddører!A$4,Hoveddører!F3,\"\"))))","v":""},null,"LISTA med klart glass","Sort NCS S 9000-N",null,"Bizet, cotswold glass","Standard Sort NCS S 9000-N"]
[{"$f":"IF(Produksjonsbeskrivelse!C$190=Hoveddører!A$3,Hoveddører!C4,IF(Produksjonsbeskrivelse!C$199=Hoveddører!A$3,Hoveddører!C4,IF(Produksjonsbeskrivelse!C$190=Hoveddører!A$4,Hoveddører!F4,IF(Produksjonsbeskrivelse!C$199=Hoveddører!A$4,Hoveddører!F4,\"\"))))","v":""},null,"KRISTIAN med katedral glass",null,null,"Brahms, klart glass","Standard Mørk grå NCS S7500-N"]
[{"$f":"IF(Produksjonsbeskrivelse!C$190=Hoveddører!A$3,Hoveddører!C5,IF(Produksjonsbeskrivelse!C$199=Hoveddører!A$3,Hoveddører!C5,IF(Produksjonsbeskrivelse!C$190=Hoveddører!A$4,Hoveddører!F5,IF(Produksjonsbeskrivelse!C$199=Hoveddører!A$4,Hoveddører!F5,\"\"))))","v":""},null,"STANDARD tett","FARGER GILJE:",null,"Chopin, klart glass","Standard Grå NCS S 3502-Y"]
[{"$f":"IF(Produksjonsbeskrivelse!C$190=Hoveddører!A$3,Hoveddører!C6,IF(Produksjonsbeskrivelse!C$199=Hoveddører!A$3,Hoveddører!C6,IF(Produksjonsbeskrivelse!C$190=Hoveddører!A$4,Hoveddører!F6,IF(Produksjonsbeskrivelse!C$199=Hoveddører!A$4,Hoveddører!F6,\"\"))))","v":""},null,"HALDEN med katedral glass","Hvit NCS S 0502-Y",null,"Clementi, cotswold glass","Standard Blå NCS S 5020-R90B"]
[{"$f":"IF(Produksjonsbeskrivelse!C$190=Hoveddører!A$3,Hoveddører!C7,IF(Produksjonsbeskrivelse!C$199=Hoveddører!A$3,Hoveddører!C7,IF(Produksjonsbeskrivelse!C$190=Hoveddører!A$4,Hoveddører!F7,IF(Produksjonsbeskrivelse!C$199=Hoveddører!A$4,Hoveddører!F7,\"\"))))","v":""},null,"LUND tett","Hvit NCS S 0500-N",null,"Corelli, sandblåst/klart glass","Standard Rød NCS S 2570-Y90R"]
[{"$f":"IF(Produksjonsbeskrivelse!C$190=Hoveddører!A$3,Hoveddører!C8,IF(Produksjonsbeskrivelse!C$199=Hoveddører!A$3,Hoveddører!C8,IF(Produksjonsbeskrivelse!C$190=Hoveddører!A$4,Hoveddører!F8,IF(Produksjonsbeskrivelse!C$199=Hoveddører!A$4,Hoveddører!F8,\"\"))))","v":""},null,"LUND med katedral glass.","Sort NCS S 9000-N",null,"Debussy, sandblåst/klart glass","Standard Rød NCS S 4050-Y80R"]
[{"$f":"IF(Produksjonsbeskrivelse!C$190=Hoveddører!A$3,Hoveddører!C9,IF(Produksjonsbeskrivelse!C$199=Hoveddører!A$3,Hoveddører!C9,IF(Produksjonsbeskrivelse!C$190=Hoveddører!A$4,Hoveddører!F9,IF(Produksjonsbeskrivelse!C$199=Hoveddører!A$4,Hoveddører!F9,\"\"))))","v":""},null,"","Mørk grå NCS S 6500-N",null,"Debussy, pardør, sandblåst/klart glass","Standard Grønn NCS S 6020-G10Y"]
[{"$f":"IF(Produksjonsbeskrivelse!C$190=Hoveddører!A$3,Hoveddører!C10,IF(Produksjonsbeskrivelse!C$199=Hoveddører!A$3,Hoveddører!C10,IF(Produksjonsbeskrivelse!C$190=Hoveddører!A$4,Hoveddører!F10,IF(Produksjonsbeskrivelse!C$199=Hoveddører!A$4,Hoveddører!F10,\"\"))))","v":""},null,"BASIC-DØRER:","Grå NCS S 2500-N",null,"Delius, sandblåst/klart glass","Eik"]
[{"$f":"IF(Produksjonsbeskrivelse!C$190=Hoveddører!A$3,Hoveddører!C11,IF(Produksjonsbeskrivelse!C$199=Hoveddører!A$3,Hoveddører!C11,IF(Produksjonsbeskrivelse!C$190=Hoveddører!A$4,Hoveddører!F11,IF(Produksjonsbeskrivelse!C$199=Hoveddører!A$4,Hoveddører!F11,\"\"))))","v":""},null,"AFRODITE med klar glass, Basic U-verdi 0,95","Blå NCS S 5020-R90B",null,"Delius, pardør, sandblåst/klart glass"]
[{"$f":"IF(Produksjonsbeskrivelse!C$190=Hoveddører!A$3,Hoveddører!C12,IF(Produksjonsbeskrivelse!C$199=Hoveddører!A$3,Hoveddører!C12,IF(Produksjonsbeskrivelse!C$190=Hoveddører!A$4,Hoveddører!F12,IF(Produksjonsbeskrivelse!C$199=Hoveddører!A$4,Hoveddører!F12,\"\"))))","v":""},null,"AKERSHUS utenpåliggende dekor med katedral glass, Basic U-verdi 0,96","Rød/Bonderød NCS S 5040-Y80R",null,"Grieg"]
[{"$f":"IF(Produksjonsbeskrivelse!C$190=Hoveddører!A$3,Hoveddører!C13,IF(Produksjonsbeskrivelse!C$199=Hoveddører!A$3,Hoveddører!C13,IF(Produksjonsbeskrivelse!C$190=Hoveddører!A$4,Hoveddører!F13,IF(Produksjonsbeskrivelse!C$199=Hoveddører!A$4,Hoveddører!F13,\"\"))))","v":""},null,"AKERSHUS utenpåliggende dekor tett, Basic U-verdi 0,85","Grønn/Mørk grågrønn NCS S 7010-G30Y",null,"Hȁndel, cotswold glass"]
[{"$f":"IF(Produksjonsbeskrivelse!C$190=Hoveddører!A$3,Hoveddører!C14,IF(Produksjonsbeskrivelse!C$199=Hoveddører!A$3,Hoveddører!C14,IF(Produksjonsbeskrivelse!C$190=Hoveddører!A$4,Hoveddører!F14,IF(Produksjonsbeskrivelse!C$199=Hoveddører!A$4,Hoveddører!F14,\"\"))))","v":""},null,"AKERSHUS PROFIL med katedral glass, Basic U-verdi 0,96","",null,"Ives, klart glass"]
[{"$f":"IF(Produksjonsbeskrivelse!C$190=Hoveddører!A$3,Hoveddører!C15,IF(Produksjonsbeskrivelse!C$199=Hoveddører!A$3,Hoveddører!C15,IF(Produksjonsbeskrivelse!C$190=Hoveddører!A$4,Hoveddører!F15,IF(Produksjonsbeskrivelse!C$199=Hoveddører!A$4,Hoveddører!F15,\"\"))))","v":""},null,"ANDRÉ Innfrest dekor utv., enkel innfrest dekor innv., katedral gl., Basic U-verdi 0,96 ","",null,"Ives, pardør, klart glass","SIDEFELT SWEDOOR:"]
[{"$f":"IF(Produksjonsbeskrivelse!C$190=Hoveddører!A$3,Hoveddører!C16,IF(Produksjonsbeskrivelse!C$199=Hoveddører!A$3,Hoveddører!C16,IF(Produksjonsbeskrivelse!C$190=Hoveddører!A$4,Hoveddører!F16,IF(Produksjonsbeskrivelse!C$199=Hoveddører!A$4,Hoveddører!F16,\"\"))))","v":""},null,"ATLAS med klart glass, Basic Uverdi 0,83","",null,"Monteverdi, klart glass","Swedoor type  SL0 m/Klart glass"]
[{"$f":"IF(Produksjonsbeskrivelse!C$190=Hoveddører!A$3,Hoveddører!C17,IF(Produksjonsbeskrivelse!C$199=Hoveddører!A$3,Hoveddører!C17,IF(Produksjonsbeskrivelse!C$190=Hoveddører!A$4,Hoveddører!F17,IF(Produksjonsbeskrivelse!C$199=Hoveddører!A$4,Hoveddører!F17,\"\"))))","v":""},null,"CONTINENTAL med klart glass, Basic U-verdi 0,94","",null,"Mozart, klart glass","Swedoor type  SL0 m/Cotswoldglass"]
[{"$f":"IF(Produksjonsbeskrivelse!C$190=Hoveddører!A$3,Hoveddører!C18,IF(Produksjonsbeskrivelse!C$199=Hoveddører!A$3,Hoveddører!C18,IF(Produksjonsbeskrivelse!C$190=Hoveddører!A$4,Hoveddører!F18,IF(Produksjonsbeskrivelse!C$199=Hoveddører!A$4,Hoveddører!F18,\"\"))))","v":""},null,"DIRDAL utenpåliggende dekor med katedral glass, Basic U-verdi 0,95","SIDEFELT GILJE:",null,"Puccini","Swedoor type  SL0 m/Maskin-antikk glass"]
[{"$f":"IF(Produksjonsbeskrivelse!C$190=Hoveddører!A$3,Hoveddører!C19,IF(Produksjonsbeskrivelse!C$199=Hoveddører!A$3,Hoveddører!C19,IF(Produksjonsbeskrivelse!C$190=Hoveddører!A$4,Hoveddører!F19,IF(Produksjonsbeskrivelse!C$199=Hoveddører!A$4,Hoveddører!F19,\"\"))))","v":""},null,"DIRDAL utenpåliggende dekor tett, Basic U-verdi 0,85","SIDEFELT STANDARD med klart glass",null,"Puccini, pardør","Swedoor type  SL0 m/Frostet glass"]
[{"$f":"IF(Produksjonsbeskrivelse!C$190=Hoveddører!A$3,Hoveddører!C20,IF(Produksjonsbeskrivelse!C$199=Hoveddører!A$3,Hoveddører!C20,IF(Produksjonsbeskrivelse!C$190=Hoveddører!A$4,Hoveddører!F20,IF(Produksjonsbeskrivelse!C$199=Hoveddører!A$4,Hoveddører!F20,\"\"))))","v":""},null,"DIRDAL PROFIL med katedral glass, Basic U-verdi 0,95","SIDEFELT STANDARD med Katedral glass",null,"Ravel","Swedoor type  SL1 m/Klart glass"]
[{"$f":"IF(Produksjonsbeskrivelse!C$190=Hoveddører!A$3,Hoveddører!C21,IF(Produksjonsbeskrivelse!C$199=Hoveddører!A$3,Hoveddører!C21,IF(Produksjonsbeskrivelse!C$190=Hoveddører!A$4,Hoveddører!F21,IF(Produksjonsbeskrivelse!C$199=Hoveddører!A$4,Hoveddører!F21,\"\"))))","v":""},null,"DIRDAL PROFIL tett, Basic U-verdi 0,86","SIDEFELT STANDARD med Cotswold glass",null,"Ravel, pardør","Swedoor type  SL1 m/Cotswoldglass"]
[{"$f":"IF(Produksjonsbeskrivelse!C$190=Hoveddører!A$3,Hoveddører!C22,IF(Produksjonsbeskrivelse!C$199=Hoveddører!A$3,Hoveddører!C22,IF(Produksjonsbeskrivelse!C$190=Hoveddører!A$4,Hoveddører!F22,IF(Produksjonsbeskrivelse!C$199=Hoveddører!A$4,Hoveddører!F22,\"\"))))","v":""},null,"DIONYSOS tett, Basic U-verdi 0,85","SIDEFELT M-90 med klart glass",null,"Rossini, cotswold glass","Swedoor type  SL1 m/Maskin-antikk glass"]
[{"$f":"IF(Produksjonsbeskrivelse!C$190=Hoveddører!A$3,Hoveddører!C23,IF(Produksjonsbeskrivelse!C$199=Hoveddører!A$3,Hoveddører!C23,IF(Produksjonsbeskrivelse!C$190=Hoveddører!A$4,Hoveddører!F23,IF(Produksjonsbeskrivelse!C$199=Hoveddører!A$4,Hoveddører!F23,\"\"))))","v":""},null,"DOLE utenpåliggende dekor, sotfarget antikkgl. med blyspross, Basic U-verdi 0,96","SIDEFELT M-90 med Katedral glass",null,"Satie, klart glass","Swedoor type  SL1 m/Frostet glass"]
[{"$f":"IF(Produksjonsbeskrivelse!C$190=Hoveddører!A$3,Hoveddører!C24,IF(Produksjonsbeskrivelse!C$199=Hoveddører!A$3,Hoveddører!C24,IF(Produksjonsbeskrivelse!C$190=Hoveddører!A$4,Hoveddører!F24,IF(Produksjonsbeskrivelse!C$199=Hoveddører!A$4,Hoveddører!F24,\"\"))))","v":""},null,"DORIS med kalrt glass, Basic U-verdi 1,17","SIDEFELT M-90 med Cotswold glass",null,"Satie, pardør, klart glass","Swedoor type  SL2 m/Klart glass"]
[{"$f":"IF(Produksjonsbeskrivelse!C$190=Hoveddører!A$3,Hoveddører!C25,IF(Produksjonsbeskrivelse!C$199=Hoveddører!A$3,Hoveddører!C25,IF(Produksjonsbeskrivelse!C$190=Hoveddører!A$4,Hoveddører!F25,IF(Produksjonsbeskrivelse!C$199=Hoveddører!A$4,Hoveddører!F25,\"\"))))","v":""},null,"EUGENIS innfrest dekor utv./innv. med katedral glass, Basic U-verdi 0,96","SIDEFELT M-01 med klart glass",null,"Scarlatti, klart glass","Swedoor type  SL2 m/Cotswoldglass"]
[{"$f":"IF(Produksjonsbeskrivelse!C$190=Hoveddører!A$3,Hoveddører!C26,IF(Produksjonsbeskrivelse!C$199=Hoveddører!A$3,Hoveddører!C26,IF(Produksjonsbeskrivelse!C$190=Hoveddører!A$4,Hoveddører!F26,IF(Produksjonsbeskrivelse!C$199=Hoveddører!A$4,Hoveddører!F26,\"\"))))","v":""},null,"FÆRDER med Katedral glass, Basic U-verdi 0,88","SIDEFELT M-01 med Katedral glass",null,"Schubert, klart glass","Swedoor type  SL2 m/Maskin-antikk glass"]
[{"$f":"IF(Produksjonsbeskrivelse!C$190=Hoveddører!A$3,Hoveddører!C27,IF(Produksjonsbeskrivelse!C$199=Hoveddører!A$3,Hoveddører!C27,IF(Produksjonsbeskrivelse!C$190=Hoveddører!A$4,Hoveddører!F27,IF(Produksjonsbeskrivelse!C$199=Hoveddører!A$4,Hoveddører!F27,\"\"))))","v":""},null,"FÆRDER tett, Basic U-verdi 0,83","SIDEFELT M-01 med Cotswold glass",null,"Schumann, klart glass","Swedoor type  SL2 m/Frostet glass"]
[{"$f":"IF(Produksjonsbeskrivelse!C$190=Hoveddører!A$3,Hoveddører!C28,IF(Produksjonsbeskrivelse!C$199=Hoveddører!A$3,Hoveddører!C28,IF(Produksjonsbeskrivelse!C$190=Hoveddører!A$4,Hoveddører!F28,IF(Produksjonsbeskrivelse!C$199=Hoveddører!A$4,Hoveddører!F28,\"\"))))","v":""},null,"GAIA med klart sikkerhetsglass to sider, Basic U-verdi 1,2","SIDEFELT M-1303 med sotfarget antikkglas og blysprosser",null,"Schumann, pardør, klart glass","Swedoor type  SL3 m/Klart glass"]
[{"$f":"IF(Produksjonsbeskrivelse!C$190=Hoveddører!A$3,Hoveddører!C29,IF(Produksjonsbeskrivelse!C$199=Hoveddører!A$3,Hoveddører!C29,IF(Produksjonsbeskrivelse!C$190=Hoveddører!A$4,Hoveddører!F29,IF(Produksjonsbeskrivelse!C$199=Hoveddører!A$4,Hoveddører!F29,\"\"))))","v":""},null,"HADES med klart glass, Basic U-verdi 0,91","SIDELFELT M-1301 med klart glass",null,"Smetana, klart glass","Swedoor type  SL3 m/Cotswoldglass"]
[{"$f":"IF(Produksjonsbeskrivelse!C$190=Hoveddører!A$3,Hoveddører!C30,IF(Produksjonsbeskrivelse!C$199=Hoveddører!A$3,Hoveddører!C30,IF(Produksjonsbeskrivelse!C$190=Hoveddører!A$4,Hoveddører!F30,IF(Produksjonsbeskrivelse!C$199=Hoveddører!A$4,Hoveddører!F30,\"\"))))","v":""},null,"HALDEN innfrest dekor utv. og innv., med katedral glass, Basic U-verdi 0,91","SIDELFELT M-1302 med klart glass",null,"Smetana, pardør, klart glass","Swedoor type  SL3 m/Maskin-antikk glass"]
[{"$f":"IF(Produksjonsbeskrivelse!C$190=Hoveddører!A$3,Hoveddører!C31,IF(Produksjonsbeskrivelse!C$199=Hoveddører!A$3,Hoveddører!C31,IF(Produksjonsbeskrivelse!C$190=Hoveddører!A$4,Hoveddører!F31,IF(Produksjonsbeskrivelse!C$199=Hoveddører!A$4,Hoveddører!F31,\"\"))))","v":""},null,"HEFAITOS med klart glass, Basic U-verdi 0,88 ","SIDELFELT THEMIS med klart glass",null,"Sousa","Swedoor type  SL3 m/Frostet glass"]
[{"$f":"IF(Produksjonsbeskrivelse!C$190=Hoveddører!A$3,Hoveddører!C32,IF(Produksjonsbeskrivelse!C$199=Hoveddører!A$3,Hoveddører!C32,IF(Produksjonsbeskrivelse!C$190=Hoveddører!A$4,Hoveddører!F32,IF(Produksjonsbeskrivelse!C$199=Hoveddører!A$4,Hoveddører!F32,\"\"))))","v":""},null,"HELENA med artic glass, Basic U-verdi 0,93","",null,"Sousa, pardør"]
[{"$f":"IF(Produksjonsbeskrivelse!C$190=Hoveddører!A$3,Hoveddører!C33,IF(Produksjonsbeskrivelse!C$199=Hoveddører!A$3,Hoveddører!C33,IF(Produksjonsbeskrivelse!C$190=Hoveddører!A$4,Hoveddører!F33,IF(Produksjonsbeskrivelse!C$199=Hoveddører!A$4,Hoveddører!F33,\"\"))))","v":""},null,"HELIOS med klart glass, Basic U-verdi 0,88","",null,"Wagner"]
[{"$f":"IF(Produksjonsbeskrivelse!C$190=Hoveddører!A$3,Hoveddører!C34,IF(Produksjonsbeskrivelse!C$199=Hoveddører!A$3,Hoveddører!C34,IF(Produksjonsbeskrivelse!C$190=Hoveddører!A$4,Hoveddører!F34,IF(Produksjonsbeskrivelse!C$199=Hoveddører!A$4,Hoveddører!F34,\"\"))))","v":""},null,"HELLE fire hengsler - klart glass, Basic U-verdi 0,86","",null,""]
[{"$f":"IF(Produksjonsbeskrivelse!C$190=Hoveddører!A$3,Hoveddører!C35,IF(Produksjonsbeskrivelse!C$199=Hoveddører!A$3,Hoveddører!C35,IF(Produksjonsbeskrivelse!C$190=Hoveddører!A$4,Hoveddører!F35,IF(Produksjonsbeskrivelse!C$199=Hoveddører!A$4,Hoveddører!F35,\"\"))))","v":""},null,"HERAKLES med klart glass, Basic U-verdi 0,96","",null,"SWEDOOR FUNCTION"]
[{"$f":"IF(Produksjonsbeskrivelse!C$190=Hoveddører!A$3,Hoveddører!C36,IF(Produksjonsbeskrivelse!C$199=Hoveddører!A$3,Hoveddører!C36,IF(Produksjonsbeskrivelse!C$190=Hoveddører!A$4,Hoveddører!F36,IF(Produksjonsbeskrivelse!C$199=Hoveddører!A$4,Hoveddører!F36,\"\"))))","v":""},null,"HERMES med klart glass, Basic U-verdi 1,2","",null,"Aden, klart glass"]
[{"$f":"IF(Produksjonsbeskrivelse!C$190=Hoveddører!A$3,Hoveddører!C37,IF(Produksjonsbeskrivelse!C$199=Hoveddører!A$3,Hoveddører!C37,IF(Produksjonsbeskrivelse!C$190=Hoveddører!A$4,Hoveddører!F37,IF(Produksjonsbeskrivelse!C$199=Hoveddører!A$4,Hoveddører!F37,\"\"))))","v":""},null,"HESTIA med sotfarget antikkglass og blysprosser, Basic U-verdi 1,23","",null,"Aden, pardør"]
[{"$f":"IF(Produksjonsbeskrivelse!C$190=Hoveddører!A$3,Hoveddører!C38,IF(Produksjonsbeskrivelse!C$199=Hoveddører!A$3,Hoveddører!C38,IF(Produksjonsbeskrivelse!C$190=Hoveddører!A$4,Hoveddører!F38,IF(Produksjonsbeskrivelse!C$199=Hoveddører!A$4,Hoveddører!F38,\"\"))))","v":""},null,"HOVDEN tett, Basic U-verdi 0,85",null,null,"Amazon, klart glass"]
[{"$f":"IF(Produksjonsbeskrivelse!C$190=Hoveddører!A$3,Hoveddører!C39,IF(Produksjonsbeskrivelse!C$199=Hoveddører!A$3,Hoveddører!C39,IF(Produksjonsbeskrivelse!C$190=Hoveddører!A$4,Hoveddører!F39,IF(Produksjonsbeskrivelse!C$199=Hoveddører!A$4,Hoveddører!F39,\"\"))))","v":""},null,"KASSANDRA med klart nyantikk glass og blysprosser, Basic U-verdi 0,94",null,null,"Aral, klart glass"]
[{"$f":"IF(Produksjonsbeskrivelse!C$190=Hoveddører!A$3,Hoveddører!C40,IF(Produksjonsbeskrivelse!C$199=Hoveddører!A$3,Hoveddører!C40,IF(Produksjonsbeskrivelse!C$190=Hoveddører!A$4,Hoveddører!F40,IF(Produksjonsbeskrivelse!C$199=Hoveddører!A$4,Hoveddører!F40,\"\"))))","v":""},null,"KRISTIAN med katedral glass, Basic U-verdi 0,96",null,null,"Baltic, klart glass"]
[{"$f":"IF(Produksjonsbeskrivelse!C$190=Hoveddører!A$3,Hoveddører!C41,IF(Produksjonsbeskrivelse!C$199=Hoveddører!A$3,Hoveddører!C41,IF(Produksjonsbeskrivelse!C$190=Hoveddører!A$4,Hoveddører!F41,IF(Produksjonsbeskrivelse!C$199=Hoveddører!A$4,Hoveddører!F41,\"\"))))","v":""},null,"LINDA med flerfarget fusingglass, Basic U-verdi 0,91",null,null,"Barentz"]
[{"$f":"IF(Produksjonsbeskrivelse!C$190=Hoveddører!A$3,Hoveddører!C42,IF(Produksjonsbeskrivelse!C$199=Hoveddører!A$3,Hoveddører!C42,IF(Produksjonsbeskrivelse!C$190=Hoveddører!A$4,Hoveddører!F42,IF(Produksjonsbeskrivelse!C$199=Hoveddører!A$4,Hoveddører!F42,\"\"))))","v":""},null,"LISTA med klart glass, Basic U-verdi 0,93",null,null,"Bengal, klart glass"]
[{"$f":"IF(Produksjonsbeskrivelse!C$190=Hoveddører!A$3,Hoveddører!C43,IF(Produksjonsbeskrivelse!C$199=Hoveddører!A$3,Hoveddører!C43,IF(Produksjonsbeskrivelse!C$190=Hoveddører!A$4,Hoveddører!F43,IF(Produksjonsbeskrivelse!C$199=Hoveddører!A$4,Hoveddører!F43,\"\"))))","v":""},null,"LUND med katedral glass, Basic U-verdi 1,0",null,null,"Bering"]
[{"$f":"IF(Produksjonsbeskrivelse!C$190=Hoveddører!A$3,Hoveddører!C44,IF(Produksjonsbeskrivelse!C$199=Hoveddører!A$3,Hoveddører!C44,IF(Produksjonsbeskrivelse!C$190=Hoveddører!A$4,Hoveddører!F44,IF(Produksjonsbeskrivelse!C$199=Hoveddører!A$4,Hoveddører!F44,\"\"))))","v":""},null,"LUND tett, Basic U-verdi 0,83",null,null,"Bering, pardør"]
[{"$f":"IF(Produksjonsbeskrivelse!C$190=Hoveddører!A$3,Hoveddører!C45,IF(Produksjonsbeskrivelse!C$199=Hoveddører!A$3,Hoveddører!C45,IF(Produksjonsbeskrivelse!C$190=Hoveddører!A$4,Hoveddører!F45,IF(Produksjonsbeskrivelse!C$199=Hoveddører!A$4,Hoveddører!F45,\"\"))))","v":""},null,"MARTHA med flerfarget antikkglass og blysprosser, Basic U-verdi 0,96",null,null,"Carribbean, klart glass med malte glasslister"]
[{"$f":"IF(Produksjonsbeskrivelse!C$190=Hoveddører!A$3,Hoveddører!C46,IF(Produksjonsbeskrivelse!C$199=Hoveddører!A$3,Hoveddører!C46,IF(Produksjonsbeskrivelse!C$190=Hoveddører!A$4,Hoveddører!F46,IF(Produksjonsbeskrivelse!C$199=Hoveddører!A$4,Hoveddører!F46,\"\"))))","v":""},null,"MAUD innfrest dekor ut-/innv., sotfarget antikkgl.og blysprosser, Basic U-verdi 1,0  ",null,null,"Carribbean, pardør, klart glass med malte glasslister"]
[{"$f":"IF(Produksjonsbeskrivelse!C$190=Hoveddører!A$3,Hoveddører!C47,IF(Produksjonsbeskrivelse!C$199=Hoveddører!A$3,Hoveddører!C47,IF(Produksjonsbeskrivelse!C$190=Hoveddører!A$4,Hoveddører!F47,IF(Produksjonsbeskrivelse!C$199=Hoveddører!A$4,Hoveddører!F47,\"\"))))","v":""},null,"OLE utenpåliggende dekor, sotfarget antikkgl. og blysprosser, Basic U-verdi 0,96",null,null,"Carribbean, klart glass med eik glasslister"]
[{"$f":"IF(Produksjonsbeskrivelse!C$190=Hoveddører!A$3,Hoveddører!C48,IF(Produksjonsbeskrivelse!C$199=Hoveddører!A$3,Hoveddører!C48,IF(Produksjonsbeskrivelse!C$190=Hoveddører!A$4,Hoveddører!F48,IF(Produksjonsbeskrivelse!C$199=Hoveddører!A$4,Hoveddører!F48,\"\"))))","v":""},null,"ORION med sotet nyantikk glass, Basic U-verdi 0,89",null,null,"Carribbean, pardør, klart glass med eik glasslister"]
[{"$f":"IF(Produksjonsbeskrivelse!C$190=Hoveddører!A$3,Hoveddører!C49,IF(Produksjonsbeskrivelse!C$199=Hoveddører!A$3,Hoveddører!C49,IF(Produksjonsbeskrivelse!C$190=Hoveddører!A$4,Hoveddører!F49,IF(Produksjonsbeskrivelse!C$199=Hoveddører!A$4,Hoveddører!F49,\"\"))))","v":""},null,"PHOEBE med klart glass, Basic U-verdi 0,97",null,null,"Caspian, klart glass",""]
[{"$f":"IF(Produksjonsbeskrivelse!C$190=Hoveddører!A$3,Hoveddører!C50,IF(Produksjonsbeskrivelse!C$199=Hoveddører!A$3,Hoveddører!C50,IF(Produksjonsbeskrivelse!C$190=Hoveddører!A$4,Hoveddører!F50,IF(Produksjonsbeskrivelse!C$199=Hoveddører!A$4,Hoveddører!F50,\"\"))))","v":""},null,"RICHARD med klart glass, Basic U-verdi 1,0",null,null,"Caspian, klart glass med sprosser",""]
[{"$f":"IF(Produksjonsbeskrivelse!C$190=Hoveddører!A$3,Hoveddører!C51,IF(Produksjonsbeskrivelse!C$199=Hoveddører!A$3,Hoveddører!C51,IF(Produksjonsbeskrivelse!C$190=Hoveddører!A$4,Hoveddører!F51,IF(Produksjonsbeskrivelse!C$199=Hoveddører!A$4,Hoveddører!F51,\"\"))))","v":""},null,"RØROS med katedral glass, Basic U-verdi 0,88",null,null,"Como, klart glass","DØRVRIDER:"]
[{"$f":"IF(Produksjonsbeskrivelse!C$190=Hoveddører!A$3,Hoveddører!C52,IF(Produksjonsbeskrivelse!C$199=Hoveddører!A$3,Hoveddører!C52,IF(Produksjonsbeskrivelse!C$190=Hoveddører!A$4,Hoveddører!F52,IF(Produksjonsbeskrivelse!C$199=Hoveddører!A$4,Hoveddører!F52,\"\"))))","v":""},null,"RØROS tett, Basic U-verdi 0,85",null,null,"Como, klart glass med sprosser","Hoppe 1140-42, aluminium (standard)"]
[{"$f":"IF(Produksjonsbeskrivelse!C$190=Hoveddører!A$3,Hoveddører!C53,IF(Produksjonsbeskrivelse!C$199=Hoveddører!A$3,Hoveddører!C53,IF(Produksjonsbeskrivelse!C$190=Hoveddører!A$4,Hoveddører!F53,IF(Produksjonsbeskrivelse!C$199=Hoveddører!A$4,Hoveddører!F53,\"\"))))","v":""},null,"SAILOR med klart glass, Basic U-verdi 0,93",null,null,"Congo, klart glass","Leveres ikke"]
[{"$f":"IF(Produksjonsbeskrivelse!C$190=Hoveddører!A$3,Hoveddører!C54,IF(Produksjonsbeskrivelse!C$199=Hoveddører!A$3,Hoveddører!C54,IF(Produksjonsbeskrivelse!C$190=Hoveddører!A$4,Hoveddører!F54,IF(Produksjonsbeskrivelse!C$199=Hoveddører!A$4,Hoveddører!F54,\"\"))))","v":""},null,"SIRDAL utenpåliggende dekor med katedral glass, Basic U-verdi 0,95",null,null,"Coral, klart glass med glasslist i aluminium"]
[{"$f":"IF(Produksjonsbeskrivelse!C$190=Hoveddører!A$3,Hoveddører!C55,IF(Produksjonsbeskrivelse!C$199=Hoveddører!A$3,Hoveddører!C55,IF(Produksjonsbeskrivelse!C$190=Hoveddører!A$4,Hoveddører!F55,IF(Produksjonsbeskrivelse!C$199=Hoveddører!A$4,Hoveddører!F55,\"\"))))","v":""},null,"SIRDAL utenpåliggende dekor tett, Basic U-verdi 0,83",null,null,"Donau, klart glass med glasslist i aluminium"]
[{"$f":"IF(Produksjonsbeskrivelse!C$190=Hoveddører!A$3,Hoveddører!C56,IF(Produksjonsbeskrivelse!C$199=Hoveddører!A$3,Hoveddører!C56,IF(Produksjonsbeskrivelse!C$190=Hoveddører!A$4,Hoveddører!F56,IF(Produksjonsbeskrivelse!C$199=Hoveddører!A$4,Hoveddører!F56,\"\"))))","v":""},null,"SIRDAL PROFIL med katedral glass, Basic U-verdi 0,95",null,null,"Donau, pardør, klart glass med glasslist i aluminium"]
[{"$f":"IF(Produksjonsbeskrivelse!C$190=Hoveddører!A$3,Hoveddører!C57,IF(Produksjonsbeskrivelse!C$199=Hoveddører!A$3,Hoveddører!C57,IF(Produksjonsbeskrivelse!C$190=Hoveddører!A$4,Hoveddører!F57,IF(Produksjonsbeskrivelse!C$199=Hoveddører!A$4,Hoveddører!F57,\"\"))))","v":""},null,"SIRDAL PROFIL tett, Basic U-verdi 0,83",null,null,"Elbe, klart glass"]
[{"$f":"IF(Produksjonsbeskrivelse!C$190=Hoveddører!A$3,Hoveddører!C58,IF(Produksjonsbeskrivelse!C$199=Hoveddører!A$3,Hoveddører!C58,IF(Produksjonsbeskrivelse!C$190=Hoveddører!A$4,Hoveddører!F58,IF(Produksjonsbeskrivelse!C$199=Hoveddører!A$4,Hoveddører!F58,\"\"))))","v":""},null,"SOLVEIG med katedral glass, Basic U-verdi 0,83",null,null,"Erie, klart glass"]
[{"$f":"IF(Produksjonsbeskrivelse!C$190=Hoveddører!A$3,Hoveddører!C59,IF(Produksjonsbeskrivelse!C$199=Hoveddører!A$3,Hoveddører!C59,IF(Produksjonsbeskrivelse!C$190=Hoveddører!A$4,Hoveddører!F59,IF(Produksjonsbeskrivelse!C$199=Hoveddører!A$4,Hoveddører!F59,\"\"))))","v":""},null,"SOLVEIG tett, Basic U-verdi 0,83",null,null,"Erie, pardør, klart glass"]
[{"$f":"IF(Produksjonsbeskrivelse!C$190=Hoveddører!A$3,Hoveddører!C60,IF(Produksjonsbeskrivelse!C$199=Hoveddører!A$3,Hoveddører!C60,IF(Produksjonsbeskrivelse!C$190=Hoveddører!A$4,Hoveddører!F60,IF(Produksjonsbeskrivelse!C$199=Hoveddører!A$4,Hoveddører!F60,\"\"))))","v":""},null,"STANDARD tett, Basic U-verdi 0,83",null,null,"Ganges"]
[{"$f":"IF(Produksjonsbeskrivelse!C$190=Hoveddører!A$3,Hoveddører!C61,IF(Produksjonsbeskrivelse!C$199=Hoveddører!A$3,Hoveddører!C61,IF(Produksjonsbeskrivelse!C$190=Hoveddører!A$4,Hoveddører!F61,IF(Produksjonsbeskrivelse!C$199=Hoveddører!A$4,Hoveddører!F61,\"\"))))","v":""},null,"THEMIS 3 med klart glass, Basic U-verdi 1,11",null,null,"Hudson, klart glass Ø=344 mm med 40 mm ring"]
[{"$f":"IF(Produksjonsbeskrivelse!C$190=Hoveddører!A$3,Hoveddører!C62,IF(Produksjonsbeskrivelse!C$199=Hoveddører!A$3,Hoveddører!C62,IF(Produksjonsbeskrivelse!C$190=Hoveddører!A$4,Hoveddører!F62,IF(Produksjonsbeskrivelse!C$199=Hoveddører!A$4,Hoveddører!F62,\"\"))))","v":""},null,"URANUS med sotfarget antikkglass med blysprosser, Basic U-verdi 1,1",null,null,"Indus, klart glass Ø=312 mm med malt glasslister"]
[{"$f":"IF(Produksjonsbeskrivelse!C$190=Hoveddører!A$3,Hoveddører!C63,IF(Produksjonsbeskrivelse!C$199=Hoveddører!A$3,Hoveddører!C63,IF(Produksjonsbeskrivelse!C$190=Hoveddører!A$4,Hoveddører!F63,IF(Produksjonsbeskrivelse!C$199=Hoveddører!A$4,Hoveddører!F63,\"\"))))","v":""},null,"ZEUS med klart glass, Basic U-verdi 0,93",null,null,"Indus, pardør, klart glass Ø=312 mm med malt glasslister"]
[{"$f":"IF(Produksjonsbeskrivelse!C$190=Hoveddører!A$3,Hoveddører!C64,IF(Produksjonsbeskrivelse!C$199=Hoveddører!A$3,Hoveddører!C64,IF(Produksjonsbeskrivelse!C$190=Hoveddører!A$4,Hoveddører!F64,IF(Produksjonsbeskrivelse!C$199=Hoveddører!A$4,Hoveddører!F64,\"\"))))","v":""},null,"B30 BRANN tett - sertifisert dør, Basic U-verdi 1,0",null,null,"Indus, klart glass Ø=312 mm med eik glasslister"]
[{"$f":"IF(Produksjonsbeskrivelse!C$190=Hoveddører!A$3,Hoveddører!C65,IF(Produksjonsbeskrivelse!C$199=Hoveddører!A$3,Hoveddører!C65,IF(Produksjonsbeskrivelse!C$190=Hoveddører!A$4,Hoveddører!F65,IF(Produksjonsbeskrivelse!C$199=Hoveddører!A$4,Hoveddører!F65,\"\"))))","v":""},null,"B30 / 38 dB BRANN/LYD tett - sertifisert dør, Basic U-verdi 1,0",null,null,"Indus, pardør, klart glass Ø=312 mm med eik glasslister"]
[{"$f":"IF(Produksjonsbeskrivelse!C$190=Hoveddører!A$3,Hoveddører!C66,IF(Produksjonsbeskrivelse!C$199=Hoveddører!A$3,Hoveddører!C66,IF(Produksjonsbeskrivelse!C$190=Hoveddører!A$4,Hoveddører!F66,IF(Produksjonsbeskrivelse!C$199=Hoveddører!A$4,Hoveddører!F66,\"\"))))","v":""},null,"",null,null,"Michigan, klar glass"]
[{"$f":"IF(Produksjonsbeskrivelse!C$190=Hoveddører!A$3,Hoveddører!C67,IF(Produksjonsbeskrivelse!C$199=Hoveddører!A$3,Hoveddører!C67,IF(Produksjonsbeskrivelse!C$190=Hoveddører!A$4,Hoveddører!F67,IF(Produksjonsbeskrivelse!C$199=Hoveddører!A$4,Hoveddører!F67,\"\"))))","v":""},null,"eXtra-dører:",null,null,"Michigan, pardør, klart glass"]
[{"$f":"IF(Produksjonsbeskrivelse!C$190=Hoveddører!A$3,Hoveddører!C68,IF(Produksjonsbeskrivelse!C$199=Hoveddører!A$3,Hoveddører!C68,IF(Produksjonsbeskrivelse!C$190=Hoveddører!A$4,Hoveddører!F68,IF(Produksjonsbeskrivelse!C$199=Hoveddører!A$4,Hoveddører!F68,\"\"))))","v":""},null,"AFRODITE med klar glass, eXtra U-verdi 0,66",null,null,"Niger, klart glass med sprosser begge sider"]
[{"$f":"IF(Produksjonsbeskrivelse!C$190=Hoveddører!A$3,Hoveddører!C69,IF(Produksjonsbeskrivelse!C$199=Hoveddører!A$3,Hoveddører!C69,IF(Produksjonsbeskrivelse!C$190=Hoveddører!A$4,Hoveddører!F69,IF(Produksjonsbeskrivelse!C$199=Hoveddører!A$4,Hoveddører!F69,\"\"))))","v":""},null,"AKERSHUS utenpåliggende dekor med katedral glass, eXtra U-verdi 0,69",null,null,"Nile, klart glass med malt glasslister"]
[{"$f":"IF(Produksjonsbeskrivelse!C$190=Hoveddører!A$3,Hoveddører!C70,IF(Produksjonsbeskrivelse!C$199=Hoveddører!A$3,Hoveddører!C70,IF(Produksjonsbeskrivelse!C$190=Hoveddører!A$4,Hoveddører!F70,IF(Produksjonsbeskrivelse!C$199=Hoveddører!A$4,Hoveddører!F70,\"\"))))","v":""},null,"AKERSHUS utenpåliggende dekor tett, eXtra U-verdi 0,58",null,null,"Nile, pardør, klart glass med malt glasslister"]
[{"$f":"IF(Produksjonsbeskrivelse!C$190=Hoveddører!A$3,Hoveddører!C71,IF(Produksjonsbeskrivelse!C$199=Hoveddører!A$3,Hoveddører!C71,IF(Produksjonsbeskrivelse!C$190=Hoveddører!A$4,Hoveddører!F71,IF(Produksjonsbeskrivelse!C$199=Hoveddører!A$4,Hoveddører!F71,\"\"))))","v":""},null,"AKERSHUS PROFIL med katedral glass, eXtra U-verdi 0,68",null,null,"Nile, klart glass med eik glasslister"]
[{"$f":"IF(Produksjonsbeskrivelse!C$190=Hoveddører!A$3,Hoveddører!C72,IF(Produksjonsbeskrivelse!C$199=Hoveddører!A$3,Hoveddører!C72,IF(Produksjonsbeskrivelse!C$190=Hoveddører!A$4,Hoveddører!F72,IF(Produksjonsbeskrivelse!C$199=Hoveddører!A$4,Hoveddører!F72,\"\"))))","v":""},null,"ANDRÉ Innfrest dekor utv., enkel innfrest dekor innv., katedral gl., eXtra U-verdi 0,66",null,null,"Nile, pardør, klart glass med eik glasslister"]
[{"$f":"IF(Produksjonsbeskrivelse!C$190=Hoveddører!A$3,Hoveddører!C73,IF(Produksjonsbeskrivelse!C$199=Hoveddører!A$3,Hoveddører!C73,IF(Produksjonsbeskrivelse!C$190=Hoveddører!A$4,Hoveddører!F73,IF(Produksjonsbeskrivelse!C$199=Hoveddører!A$4,Hoveddører!F73,\"\"))))","v":""},null,"ATLAS med klart glass, eXtra Uverdi 0,59",null,null,"Pacific, klart glass"]
[{"$f":"IF(Produksjonsbeskrivelse!C$190=Hoveddører!A$3,Hoveddører!C74,IF(Produksjonsbeskrivelse!C$199=Hoveddører!A$3,Hoveddører!C74,IF(Produksjonsbeskrivelse!C$190=Hoveddører!A$4,Hoveddører!F74,IF(Produksjonsbeskrivelse!C$199=Hoveddører!A$4,Hoveddører!F74,\"\"))))","v":""},null,"CONTINENTAL med klart glass, eXtra U-verdi 0,65",null,null,"Suez, klart glass"]
[{"$f":"IF(Produksjonsbeskrivelse!C$190=Hoveddører!A$3,Hoveddører!C75,IF(Produksjonsbeskrivelse!C$199=Hoveddører!A$3,Hoveddører!C75,IF(Produksjonsbeskrivelse!C$190=Hoveddører!A$4,Hoveddører!F75,IF(Produksjonsbeskrivelse!C$199=Hoveddører!A$4,Hoveddører!F75,\"\"))))","v":""},null,"DIRDAL utenpåliggende dekor med katedral glass, eXtra U-verdi 0,67",null,null,"Tahoe, klart glass med malt glasslister"]
[{"$f":"IF(Produksjonsbeskrivelse!C$190=Hoveddører!A$3,Hoveddører!C76,IF(Produksjonsbeskrivelse!C$199=Hoveddører!A$3,Hoveddører!C76,IF(Produksjonsbeskrivelse!C$190=Hoveddører!A$4,Hoveddører!F76,IF(Produksjonsbeskrivelse!C$199=Hoveddører!A$4,Hoveddører!F76,\"\"))))","v":""},null,"DIRDAL utenpåliggende dekor tett, eXtra U-verdi 0,58",null,null,"Tahoe, pardør, klart glass med malt glasslister"]
[{"$f":"IF(Produksjonsbeskrivelse!C$190=Hoveddører!A$3,Hoveddører!C77,IF(Produksjonsbeskrivelse!C$199=Hoveddører!A$3,Hoveddører!C77,IF(Produksjonsbeskrivelse!C$190=Hoveddører!A$4,Hoveddører!F77,IF(Produksjonsbeskrivelse!C$199=Hoveddører!A$4,Hoveddører!F77,\"\"))))","v":""},null,"DIRDAL PROFIL med katedral glass, eXtra U-verdi 0,68",null,null,"Tahoe, klart glass med eik glasslister"]
[{"$f":"IF(Produksjonsbeskrivelse!C$190=Hoveddører!A$3,Hoveddører!C78,IF(Produksjonsbeskrivelse!C$199=Hoveddører!A$3,Hoveddører!C78,IF(Produksjonsbeskrivelse!C$190=Hoveddører!A$4,Hoveddører!F78,IF(Produksjonsbeskrivelse!C$199=Hoveddører!A$4,Hoveddører!F78,\"\"))))","v":""},null,"DIRDAL PROFIL tett, eXtra U-verdi 0,58",null,null,"Tahoe, pardør, klart glass med eik glasslister"]
[{"$f":"IF(Produksjonsbeskrivelse!C$190=Hoveddører!A$3,Hoveddører!C79,IF(Produksjonsbeskrivelse!C$199=Hoveddører!A$3,Hoveddører!C79,IF(Produksjonsbeskrivelse!C$190=Hoveddører!A$4,Hoveddører!F79,IF(Produksjonsbeskrivelse!C$199=Hoveddører!A$4,Hoveddører!F79,\"\"))))","v":""},null,"DIONYSOS tett, eXtra U-verdi 0,58",null,null,"Volga, klart glass"]
[{"$f":"IF(Produksjonsbeskrivelse!C$190=Hoveddører!A$3,Hoveddører!C80,IF(Produksjonsbeskrivelse!C$199=Hoveddører!A$3,Hoveddører!C80,IF(Produksjonsbeskrivelse!C$190=Hoveddører!A$4,Hoveddører!F80,IF(Produksjonsbeskrivelse!C$199=Hoveddører!A$4,Hoveddører!F80,\"\"))))","v":""},null,"DOLE utenpåliggende dekor, sotfarget antikkgl. med blyspross, eXtra U-verdi 0,68",null,null,"Vȁnern, klart glass"]
[{"$f":"IF(Produksjonsbeskrivelse!C$190=Hoveddører!A$3,Hoveddører!C81,IF(Produksjonsbeskrivelse!C$199=Hoveddører!A$3,Hoveddører!C81,IF(Produksjonsbeskrivelse!C$190=Hoveddører!A$4,Hoveddører!F81,IF(Produksjonsbeskrivelse!C$199=Hoveddører!A$4,Hoveddører!F81,\"\"))))","v":""},null,"DORIS med kalrt glass, eXtra U-verdi 0,82",null,null,"Vȁnern, klart glass med sprosser"]
[{"$f":"IF(Produksjonsbeskrivelse!C$190=Hoveddører!A$3,Hoveddører!C82,IF(Produksjonsbeskrivelse!C$199=Hoveddører!A$3,Hoveddører!C82,IF(Produksjonsbeskrivelse!C$190=Hoveddører!A$4,Hoveddører!F82,IF(Produksjonsbeskrivelse!C$199=Hoveddører!A$4,Hoveddører!F82,\"\"))))","v":""},null,"EUGENIS innfrest dekor utv./innv. med katedral glass, eXtra U-verdi 0,66",null,null,""]
[{"$f":"IF(Produksjonsbeskrivelse!C$190=Hoveddører!A$3,Hoveddører!C83,IF(Produksjonsbeskrivelse!C$199=Hoveddører!A$3,Hoveddører!C83,IF(Produksjonsbeskrivelse!C$190=Hoveddører!A$4,Hoveddører!F83,IF(Produksjonsbeskrivelse!C$199=Hoveddører!A$4,Hoveddører!F83,\"\"))))","v":""},null,"FÆRDER med Katedral glass, eXtra U-verdi 0,63",null,null,"SWEDOOR CHARACTER"]
[{"$f":"IF(Produksjonsbeskrivelse!C$190=Hoveddører!A$3,Hoveddører!C84,IF(Produksjonsbeskrivelse!C$199=Hoveddører!A$3,Hoveddører!C84,IF(Produksjonsbeskrivelse!C$190=Hoveddører!A$4,Hoveddører!F84,IF(Produksjonsbeskrivelse!C$199=Hoveddører!A$4,Hoveddører!F84,\"\"))))","v":""},null,"FÆRDER tett, eXtra U-verdi 0,58",null,null,"Beat, klart glass"]
[{"$f":"IF(Produksjonsbeskrivelse!C$190=Hoveddører!A$3,Hoveddører!C85,IF(Produksjonsbeskrivelse!C$199=Hoveddører!A$3,Hoveddører!C85,IF(Produksjonsbeskrivelse!C$190=Hoveddører!A$4,Hoveddører!F85,IF(Produksjonsbeskrivelse!C$199=Hoveddører!A$4,Hoveddører!F85,\"\"))))","v":""},null,"GAIA med klart sikkerhetsglass to sider, eXtra U-verdi 0,79",null,null,"Beat, pardør, klart glass"]
[{"$f":"IF(Produksjonsbeskrivelse!C$190=Hoveddører!A$3,Hoveddører!C86,IF(Produksjonsbeskrivelse!C$199=Hoveddører!A$3,Hoveddører!C86,IF(Produksjonsbeskrivelse!C$190=Hoveddører!A$4,Hoveddører!F86,IF(Produksjonsbeskrivelse!C$199=Hoveddører!A$4,Hoveddører!F86,\"\"))))","v":""},null,"HADES med klart glass, eXtra U-verdi 0,69",null,null,"Canvas"]
[{"$f":"IF(Produksjonsbeskrivelse!C$190=Hoveddører!A$3,Hoveddører!C87,IF(Produksjonsbeskrivelse!C$199=Hoveddører!A$3,Hoveddører!C87,IF(Produksjonsbeskrivelse!C$190=Hoveddører!A$4,Hoveddører!F87,IF(Produksjonsbeskrivelse!C$199=Hoveddører!A$4,Hoveddører!F87,\"\"))))","v":""},null,"HALDEN innfrest dekor utv. og innv., med katedral glass, eXtra U-verdi 0,65",null,null,"Canvas, pardør"]
[{"$f":"IF(Produksjonsbeskrivelse!C$190=Hoveddører!A$3,Hoveddører!C88,IF(Produksjonsbeskrivelse!C$199=Hoveddører!A$3,Hoveddører!C88,IF(Produksjonsbeskrivelse!C$190=Hoveddører!A$4,Hoveddører!F88,IF(Produksjonsbeskrivelse!C$199=Hoveddører!A$4,Hoveddører!F88,\"\"))))","v":""},null,"HEFAITOS med klart glass, eXtra U-verdi 0,60",null,null,"Cifro, klart glass"]
[{"$f":"IF(Produksjonsbeskrivelse!C$190=Hoveddører!A$3,Hoveddører!C89,IF(Produksjonsbeskrivelse!C$199=Hoveddører!A$3,Hoveddører!C89,IF(Produksjonsbeskrivelse!C$190=Hoveddører!A$4,Hoveddører!F89,IF(Produksjonsbeskrivelse!C$199=Hoveddører!A$4,Hoveddører!F89,\"\"))))","v":""},null,"HELENA med artic glass, eXtra U-verdi 0,67",null,null,"Cifro, pardør, klart glass"]
[{"$f":"IF(Produksjonsbeskrivelse!C$190=Hoveddører!A$3,Hoveddører!C90,IF(Produksjonsbeskrivelse!C$199=Hoveddører!A$3,Hoveddører!C90,IF(Produksjonsbeskrivelse!C$190=Hoveddører!A$4,Hoveddører!F90,IF(Produksjonsbeskrivelse!C$199=Hoveddører!A$4,Hoveddører!F90,\"\"))))","v":""},null,"HELIOS med klart glass, eXtra U-verdi 0,63",null,null,"Cosmos, klart glass"]
[{"$f":"IF(Produksjonsbeskrivelse!C$190=Hoveddører!A$3,Hoveddører!C91,IF(Produksjonsbeskrivelse!C$199=Hoveddører!A$3,Hoveddører!C91,IF(Produksjonsbeskrivelse!C$190=Hoveddører!A$4,Hoveddører!F91,IF(Produksjonsbeskrivelse!C$199=Hoveddører!A$4,Hoveddører!F91,\"\"))))","v":""},null,"HELLE fire hengsler - klart glass, eXtra U-verdi 0,61",null,null,"Cosmos, pardør, klart glass"]
[{"$f":"IF(Produksjonsbeskrivelse!C$190=Hoveddører!A$3,Hoveddører!C92,IF(Produksjonsbeskrivelse!C$199=Hoveddører!A$3,Hoveddører!C92,IF(Produksjonsbeskrivelse!C$190=Hoveddører!A$4,Hoveddører!F92,IF(Produksjonsbeskrivelse!C$199=Hoveddører!A$4,Hoveddører!F92,\"\"))))","v":""},null,"HERAKLES med klart glass, eXtra U-verdi 0,67",null,null,"Digits, klart glass, med 3 tegn (0-999 og A-H)"]
[{"$f":"IF(Produksjonsbeskrivelse!C$190=Hoveddører!A$3,Hoveddører!C93,IF(Produksjonsbeskrivelse!C$199=Hoveddører!A$3,Hoveddører!C93,IF(Produksjonsbeskrivelse!C$190=Hoveddører!A$4,Hoveddører!F93,IF(Produksjonsbeskrivelse!C$199=Hoveddører!A$4,Hoveddører!F93,\"\"))))","v":""},null,"HERMES med klart glass, eXtra U-verdi 0,79",null,null,"Digits, pardør, klart glass, med 3 tegn (0-999 og A-H)"]
[{"$f":"IF(Produksjonsbeskrivelse!C$190=Hoveddører!A$3,Hoveddører!C94,IF(Produksjonsbeskrivelse!C$199=Hoveddører!A$3,Hoveddører!C94,IF(Produksjonsbeskrivelse!C$190=Hoveddører!A$4,Hoveddører!F94,IF(Produksjonsbeskrivelse!C$199=Hoveddører!A$4,Hoveddører!F94,\"\"))))","v":""},null,"HESTIA med sotfarget antikkglass og blysprosser, eXtra U-verdi 0,77",null,null,"Numerus, med 3 tegn (0-999 og A-H)"]
[{"$f":"IF(Produksjonsbeskrivelse!C$190=Hoveddører!A$3,Hoveddører!C95,IF(Produksjonsbeskrivelse!C$199=Hoveddører!A$3,Hoveddører!C95,IF(Produksjonsbeskrivelse!C$190=Hoveddører!A$4,Hoveddører!F95,IF(Produksjonsbeskrivelse!C$199=Hoveddører!A$4,Hoveddører!F95,\"\"))))","v":""},null,"HOVDEN tett, eXtra U-verdi 0,58",null,null,"Numerus, pardør, med 3 tegn (0-999 og A-H)"]
[{"$f":"IF(Produksjonsbeskrivelse!C$190=Hoveddører!A$3,Hoveddører!C96,IF(Produksjonsbeskrivelse!C$199=Hoveddører!A$3,Hoveddører!C96,IF(Produksjonsbeskrivelse!C$190=Hoveddører!A$4,Hoveddører!F96,IF(Produksjonsbeskrivelse!C$199=Hoveddører!A$4,Hoveddører!F96,\"\"))))","v":""},null,"KASSANDRA med klart nyantikk glass og blysprosser, eXtra U-verdi 0,67",null,null,"Domino, klart glass"]
[{"$f":"IF(Produksjonsbeskrivelse!C$190=Hoveddører!A$3,Hoveddører!C97,IF(Produksjonsbeskrivelse!C$199=Hoveddører!A$3,Hoveddører!C97,IF(Produksjonsbeskrivelse!C$190=Hoveddører!A$4,Hoveddører!F97,IF(Produksjonsbeskrivelse!C$199=Hoveddører!A$4,Hoveddører!F97,\"\"))))","v":""},null,"KRISTIAN med katedral glass, eXtra U-verdi 0,68",null,null,"Domino, pardør, klart glass"]
[{"$f":"IF(Produksjonsbeskrivelse!C$190=Hoveddører!A$3,Hoveddører!C98,IF(Produksjonsbeskrivelse!C$199=Hoveddører!A$3,Hoveddører!C98,IF(Produksjonsbeskrivelse!C$190=Hoveddører!A$4,Hoveddører!F98,IF(Produksjonsbeskrivelse!C$199=Hoveddører!A$4,Hoveddører!F98,\"\"))))","v":""},null,"LINDA med flerfarget fusingglass, eXtra U-verdi 0,60",null,null,"Dots, klart glass"]
[{"$f":"IF(Produksjonsbeskrivelse!C$190=Hoveddører!A$3,Hoveddører!C99,IF(Produksjonsbeskrivelse!C$199=Hoveddører!A$3,Hoveddører!C99,IF(Produksjonsbeskrivelse!C$190=Hoveddører!A$4,Hoveddører!F99,IF(Produksjonsbeskrivelse!C$199=Hoveddører!A$4,Hoveddører!F99,\"\"))))","v":""},null,"LISTA med klart glass, eXtra U-verdi 0,64",null,null,"Dots, pardør, klart glass"]
[{"$f":"IF(Produksjonsbeskrivelse!C$190=Hoveddører!A$3,Hoveddører!C100,IF(Produksjonsbeskrivelse!C$199=Hoveddører!A$3,Hoveddører!C100,IF(Produksjonsbeskrivelse!C$190=Hoveddører!A$4,Hoveddører!F100,IF(Produksjonsbeskrivelse!C$199=Hoveddører!A$4,Hoveddører!F100,\"\"))))","v":""},null,"LUND med katedral glass, eXtra U-verdi 0,68",null,null,"Drop, klart glass"]
[{"$f":"IF(Produksjonsbeskrivelse!C$190=Hoveddører!A$3,Hoveddører!C101,IF(Produksjonsbeskrivelse!C$199=Hoveddører!A$3,Hoveddører!C101,IF(Produksjonsbeskrivelse!C$190=Hoveddører!A$4,Hoveddører!F101,IF(Produksjonsbeskrivelse!C$199=Hoveddører!A$4,Hoveddører!F101,\"\"))))","v":""},null,"LUND tett, eXtra U-verdi 0,58",null,null,"Drop, pardør, klart glass"]
[{"$f":"IF(Produksjonsbeskrivelse!C$190=Hoveddører!A$3,Hoveddører!C102,IF(Produksjonsbeskrivelse!C$199=Hoveddører!A$3,Hoveddører!C102,IF(Produksjonsbeskrivelse!C$190=Hoveddører!A$4,Hoveddører!F102,IF(Produksjonsbeskrivelse!C$199=Hoveddører!A$4,Hoveddører!F102,\"\"))))","v":""},null,"MARTHA med flerfarget antikkglass og blysprosser, eXtra U-verdi 0,68",null,null,"Lilly, klart glass"]
[{"$f":"IF(Produksjonsbeskrivelse!C$190=Hoveddører!A$3,Hoveddører!C103,IF(Produksjonsbeskrivelse!C$199=Hoveddører!A$3,Hoveddører!C103,IF(Produksjonsbeskrivelse!C$190=Hoveddører!A$4,Hoveddører!F103,IF(Produksjonsbeskrivelse!C$199=Hoveddører!A$4,Hoveddører!F103,\"\"))))","v":""},null,"MAUD innfrest dekor ut-/innv., sotfarget antikkgl. og blysprosser, eXtra U-verdi 0,68",null,null,"Lilly, pardør, klart glass"]
[{"$f":"IF(Produksjonsbeskrivelse!C$190=Hoveddører!A$3,Hoveddører!C104,IF(Produksjonsbeskrivelse!C$199=Hoveddører!A$3,Hoveddører!C104,IF(Produksjonsbeskrivelse!C$190=Hoveddører!A$4,Hoveddører!F104,IF(Produksjonsbeskrivelse!C$199=Hoveddører!A$4,Hoveddører!F104,\"\"))))","v":""},null,"OLE utenpåliggende dekor, sotfarget antikkgl. og blysprosser, eXtra U-verdi 0,68",null,null,"Leon, klart glass"]
[{"$f":"IF(Produksjonsbeskrivelse!C$190=Hoveddører!A$3,Hoveddører!C105,IF(Produksjonsbeskrivelse!C$199=Hoveddører!A$3,Hoveddører!C105,IF(Produksjonsbeskrivelse!C$190=Hoveddører!A$4,Hoveddører!F105,IF(Produksjonsbeskrivelse!C$199=Hoveddører!A$4,Hoveddører!F105,\"\"))))","v":""},null,"ORION med sotet nyantikk glass, eXtra U-verdi 0,63",null,null,"Leon, pardør, klart glass"]
[{"$f":"IF(Produksjonsbeskrivelse!C$190=Hoveddører!A$3,Hoveddører!C106,IF(Produksjonsbeskrivelse!C$199=Hoveddører!A$3,Hoveddører!C106,IF(Produksjonsbeskrivelse!C$190=Hoveddører!A$4,Hoveddører!F106,IF(Produksjonsbeskrivelse!C$199=Hoveddører!A$4,Hoveddører!F106,\"\"))))","v":""},null,"PHOEBE med klart glass, eXtra U-verdi 0,70",null,null,"Luna, klart glass"]
[{"$f":"IF(Produksjonsbeskrivelse!C$190=Hoveddører!A$3,Hoveddører!C107,IF(Produksjonsbeskrivelse!C$199=Hoveddører!A$3,Hoveddører!C107,IF(Produksjonsbeskrivelse!C$190=Hoveddører!A$4,Hoveddører!F107,IF(Produksjonsbeskrivelse!C$199=Hoveddører!A$4,Hoveddører!F107,\"\"))))","v":""},null,"RICHARD med klart glass, eXtra U-verdi 0,69",null,null,"Luna, pardør, klart glass"]
[{"$f":"IF(Produksjonsbeskrivelse!C$190=Hoveddører!A$3,Hoveddører!C108,IF(Produksjonsbeskrivelse!C$199=Hoveddører!A$3,Hoveddører!C108,IF(Produksjonsbeskrivelse!C$190=Hoveddører!A$4,Hoveddører!F108,IF(Produksjonsbeskrivelse!C$199=Hoveddører!A$4,Hoveddører!F108,\"\"))))","v":""},null,"RØROS med katedral glass, eXtra U-verdi 0,63",null,null,"Ocean, klart glass"]
[{"$f":"IF(Produksjonsbeskrivelse!C$190=Hoveddører!A$3,Hoveddører!C109,IF(Produksjonsbeskrivelse!C$199=Hoveddører!A$3,Hoveddører!C109,IF(Produksjonsbeskrivelse!C$190=Hoveddører!A$4,Hoveddører!F109,IF(Produksjonsbeskrivelse!C$199=Hoveddører!A$4,Hoveddører!F109,\"\"))))","v":""},null,"RØROS tett, eXtra U-verdi 0,58",null,null,"Ocean, pardør, klart glass"]
[{"$f":"IF(Produksjonsbeskrivelse!C$190=Hoveddører!A$3,Hoveddører!C110,IF(Produksjonsbeskrivelse!C$199=Hoveddører!A$3,Hoveddører!C110,IF(Produksjonsbeskrivelse!C$190=Hoveddører!A$4,Hoveddører!F110,IF(Produksjonsbeskrivelse!C$199=Hoveddører!A$4,Hoveddører!F110,\"\"))))","v":""},null,"SAILOR med klart glass, eXtra U-verdi 0,64",null,null,"Ocean, tett"]
[{"$f":"IF(Produksjonsbeskrivelse!C$190=Hoveddører!A$3,Hoveddører!C111,IF(Produksjonsbeskrivelse!C$199=Hoveddører!A$3,Hoveddører!C111,IF(Produksjonsbeskrivelse!C$190=Hoveddører!A$4,Hoveddører!F111,IF(Produksjonsbeskrivelse!C$199=Hoveddører!A$4,Hoveddører!F111,\"\"))))","v":""},null,"SIRDAL utenpåliggende dekor med katedral glass, eXtra U-verdi 0,68",null,null,"Orchid klart glass"]
[{"$f":"IF(Produksjonsbeskrivelse!C$190=Hoveddører!A$3,Hoveddører!C112,IF(Produksjonsbeskrivelse!C$199=Hoveddører!A$3,Hoveddører!C112,IF(Produksjonsbeskrivelse!C$190=Hoveddører!A$4,Hoveddører!F112,IF(Produksjonsbeskrivelse!C$199=Hoveddører!A$4,Hoveddører!F112,\"\"))))","v":""},null,"SIRDAL utenpåliggende dekor tett, eXtra U-verdi 0,58",null,null,"Orchid, pardør, klart glass"]
[{"$f":"IF(Produksjonsbeskrivelse!C$190=Hoveddører!A$3,Hoveddører!C113,IF(Produksjonsbeskrivelse!C$199=Hoveddører!A$3,Hoveddører!C113,IF(Produksjonsbeskrivelse!C$190=Hoveddører!A$4,Hoveddører!F113,IF(Produksjonsbeskrivelse!C$199=Hoveddører!A$4,Hoveddører!F113,\"\"))))","v":""},null,"SIRDAL PROFIL med katedral glass, eXtra U-verdi 0,68",null,null,"Orbit, klart glass"]
[{"$f":"IF(Produksjonsbeskrivelse!C$190=Hoveddører!A$3,Hoveddører!C114,IF(Produksjonsbeskrivelse!C$199=Hoveddører!A$3,Hoveddører!C114,IF(Produksjonsbeskrivelse!C$190=Hoveddører!A$4,Hoveddører!F114,IF(Produksjonsbeskrivelse!C$199=Hoveddører!A$4,Hoveddører!F114,\"\"))))","v":""},null,"SIRDAL PROFIL tett, eXtra U-verdi 0,58",null,null,"Orbit, pardør, klart glass"]
[{"$f":"IF(Produksjonsbeskrivelse!C$190=Hoveddører!A$3,Hoveddører!C115,IF(Produksjonsbeskrivelse!C$199=Hoveddører!A$3,Hoveddører!C115,IF(Produksjonsbeskrivelse!C$190=Hoveddører!A$4,Hoveddører!F115,IF(Produksjonsbeskrivelse!C$199=Hoveddører!A$4,Hoveddører!F115,\"\"))))","v":""},null,"SOLVEIG med katedral glass, eXtra U-verdi 0,71",null,null,"Orion, tett"]
[{"$f":"IF(Produksjonsbeskrivelse!C$190=Hoveddører!A$3,Hoveddører!C116,IF(Produksjonsbeskrivelse!C$199=Hoveddører!A$3,Hoveddører!C116,IF(Produksjonsbeskrivelse!C$190=Hoveddører!A$4,Hoveddører!F116,IF(Produksjonsbeskrivelse!C$199=Hoveddører!A$4,Hoveddører!F116,\"\"))))","v":""},null,"SOLVEIG tett, eXtra U-verdi 0,58",null,null,"Orion, pardør, tett"]
[{"$f":"IF(Produksjonsbeskrivelse!C$190=Hoveddører!A$3,Hoveddører!C117,IF(Produksjonsbeskrivelse!C$199=Hoveddører!A$3,Hoveddører!C117,IF(Produksjonsbeskrivelse!C$190=Hoveddører!A$4,Hoveddører!F117,IF(Produksjonsbeskrivelse!C$199=Hoveddører!A$4,Hoveddører!F117,\"\"))))","v":""},null,"STANDARD tett, eXtra U-verdi 0,58",null,null,"Pulse, klart glass"]
[{"$f":"IF(Produksjonsbeskrivelse!C$190=Hoveddører!A$3,Hoveddører!C118,IF(Produksjonsbeskrivelse!C$199=Hoveddører!A$3,Hoveddører!C118,IF(Produksjonsbeskrivelse!C$190=Hoveddører!A$4,Hoveddører!F118,IF(Produksjonsbeskrivelse!C$199=Hoveddører!A$4,Hoveddører!F118,\"\"))))","v":""},null,"THEMIS 3 med klart glass, eXtra U-verdi 0,82",null,null,"Pulse, pardør, klart glass"]
[{"$f":"IF(Produksjonsbeskrivelse!C$190=Hoveddører!A$3,Hoveddører!C119,IF(Produksjonsbeskrivelse!C$199=Hoveddører!A$3,Hoveddører!C119,IF(Produksjonsbeskrivelse!C$190=Hoveddører!A$4,Hoveddører!F119,IF(Produksjonsbeskrivelse!C$199=Hoveddører!A$4,Hoveddører!F119,\"\"))))","v":""},null,"URANUS med sotfarget antikkglass med blysprosser, eXtra",null,null,"Pictor"]
[{"$f":"IF(Produksjonsbeskrivelse!C$190=Hoveddører!A$3,Hoveddører!C120,IF(Produksjonsbeskrivelse!C$199=Hoveddører!A$3,Hoveddører!C120,IF(Produksjonsbeskrivelse!C$190=Hoveddører!A$4,Hoveddører!F120,IF(Produksjonsbeskrivelse!C$199=Hoveddører!A$4,Hoveddører!F120,\"\"))))","v":""},null,"ZEUS med klart glass, eXtra U-verdi 0,66",null,null,"Pictor, pardør"]
[{"$f":"IF(Produksjonsbeskrivelse!C$190=Hoveddører!A$3,Hoveddører!C121,IF(Produksjonsbeskrivelse!C$199=Hoveddører!A$3,Hoveddører!C121,IF(Produksjonsbeskrivelse!C$190=Hoveddører!A$4,Hoveddører!F121,IF(Produksjonsbeskrivelse!C$199=Hoveddører!A$4,Hoveddører!F121,\"\"))))","v":""},null,"B30 BRANN tett - sertifisert dør, eXtra U-verdi 0,75",null,null,"Pixel, klart glass"]
[{"$f":"IF(Produksjonsbeskrivelse!C$190=Hoveddører!A$3,Hoveddører!C122,IF(Produksjonsbeskrivelse!C$199=Hoveddører!A$3,Hoveddører!C122,IF(Produksjonsbeskrivelse!C$190=Hoveddører!A$4,Hoveddører!F122,IF(Produksjonsbeskrivelse!C$199=Hoveddører!A$4,Hoveddører!F122,\"\"))))","v":""},null,"B30 / 38 dB BRANN/LYD tett - sertifisert dør, eXtra U-verdi 0,75",null,null,"Prisma, klart glass"]
[{"$f":"IF(Produksjonsbeskrivelse!C$190=Hoveddører!A$3,Hoveddører!C123,IF(Produksjonsbeskrivelse!C$199=Hoveddører!A$3,Hoveddører!C123,IF(Produksjonsbeskrivelse!C$190=Hoveddører!A$4,Hoveddører!F123,IF(Produksjonsbeskrivelse!C$199=Hoveddører!A$4,Hoveddører!F123,\"\"))))","v":""},null,"",null,null,"Prisma, pardør, klart glass"]
[{"$f":"IF(Produksjonsbeskrivelse!C$190=Hoveddører!A$3,Hoveddører!C124,IF(Produksjonsbeskrivelse!C$199=Hoveddører!A$3,Hoveddører!C124,IF(Produksjonsbeskrivelse!C$190=Hoveddører!A$4,Hoveddører!F124,IF(Produksjonsbeskrivelse!C$199=Hoveddører!A$4,Hoveddører!F124,\"\"))))","v":""},null,"",null,null,"Square, klart glass"]
[{"$f":"IF(Produksjonsbeskrivelse!C$190=Hoveddører!A$3,Hoveddører!C125,IF(Produksjonsbeskrivelse!C$199=Hoveddører!A$3,Hoveddører!C125,IF(Produksjonsbeskrivelse!C$190=Hoveddører!A$4,Hoveddører!F125,IF(Produksjonsbeskrivelse!C$199=Hoveddører!A$4,Hoveddører!F125,\"\"))))","v":""},null,"",null,null,"Square, pardør, klart glass"]
[{"$f":"IF(Produksjonsbeskrivelse!C$190=Hoveddører!A$3,Hoveddører!C126,IF(Produksjonsbeskrivelse!C$199=Hoveddører!A$3,Hoveddører!C126,IF(Produksjonsbeskrivelse!C$190=Hoveddører!A$4,Hoveddører!F126,IF(Produksjonsbeskrivelse!C$199=Hoveddører!A$4,Hoveddører!F126,\"\"))))","v":""},null,"",null,null,"Step, klart glass"]
[{"$f":"IF(Produksjonsbeskrivelse!C$190=Hoveddører!A$3,Hoveddører!C127,IF(Produksjonsbeskrivelse!C$199=Hoveddører!A$3,Hoveddører!C127,IF(Produksjonsbeskrivelse!C$190=Hoveddører!A$4,Hoveddører!F127,IF(Produksjonsbeskrivelse!C$199=Hoveddører!A$4,Hoveddører!F127,\"\"))))","v":""},null,"",null,null,"Step, pardør, klart glass"]
[{"$f":"IF(Produksjonsbeskrivelse!C$190=Hoveddører!A$3,Hoveddører!C128,IF(Produksjonsbeskrivelse!C$199=Hoveddører!A$3,Hoveddører!C128,IF(Produksjonsbeskrivelse!C$190=Hoveddører!A$4,Hoveddører!F128,IF(Produksjonsbeskrivelse!C$199=Hoveddører!A$4,Hoveddører!F128,\"\"))))","v":""},null,"",null,null,"Tone, klart glass"]
[{"$f":"IF(Produksjonsbeskrivelse!C$190=Hoveddører!A$3,Hoveddører!C129,IF(Produksjonsbeskrivelse!C$199=Hoveddører!A$3,Hoveddører!C129,IF(Produksjonsbeskrivelse!C$190=Hoveddører!A$4,Hoveddører!F129,IF(Produksjonsbeskrivelse!C$199=Hoveddører!A$4,Hoveddører!F129,\"\"))))","v":""},null,"",null,null,"Tone, pardør, klart glass"]
[{"$f":"IF(Produksjonsbeskrivelse!C$190=Hoveddører!A$3,Hoveddører!C130,IF(Produksjonsbeskrivelse!C$199=Hoveddører!A$3,Hoveddører!C130,IF(Produksjonsbeskrivelse!C$190=Hoveddører!A$4,Hoveddører!F130,IF(Produksjonsbeskrivelse!C$199=Hoveddører!A$4,Hoveddører!F130,\"\"))))","v":""},null,"",null,null,"Tone, tett"]
[{"$f":"IF(Produksjonsbeskrivelse!C$190=Hoveddører!A$3,Hoveddører!C131,IF(Produksjonsbeskrivelse!C$199=Hoveddører!A$3,Hoveddører!C131,IF(Produksjonsbeskrivelse!C$190=Hoveddører!A$4,Hoveddører!F131,IF(Produksjonsbeskrivelse!C$199=Hoveddører!A$4,Hoveddører!F131,\"\"))))","v":""},null,"",null,null,"Tone, pardør, tett"]
[{"$f":"IF(Produksjonsbeskrivelse!C$190=Hoveddører!A$3,Hoveddører!C132,IF(Produksjonsbeskrivelse!C$199=Hoveddører!A$3,Hoveddører!C132,IF(Produksjonsbeskrivelse!C$190=Hoveddører!A$4,Hoveddører!F132,IF(Produksjonsbeskrivelse!C$199=Hoveddører!A$4,Hoveddører!F132,\"\"))))","v":""},null,"",null,null,"Tajo, klart glass"]
[{"$f":"IF(Produksjonsbeskrivelse!C$190=Hoveddører!A$3,Hoveddører!C133,IF(Produksjonsbeskrivelse!C$199=Hoveddører!A$3,Hoveddører!C133,IF(Produksjonsbeskrivelse!C$190=Hoveddører!A$4,Hoveddører!F133,IF(Produksjonsbeskrivelse!C$199=Hoveddører!A$4,Hoveddører!F133,\"\"))))","v":""},null,"",null,null,"Tajo, pardør, klart glass"]
[{"$f":"IF(Produksjonsbeskrivelse!C$190=Hoveddører!A$3,Hoveddører!C134,IF(Produksjonsbeskrivelse!C$199=Hoveddører!A$3,Hoveddører!C134,IF(Produksjonsbeskrivelse!C$190=Hoveddører!A$4,Hoveddører!F134,IF(Produksjonsbeskrivelse!C$199=Hoveddører!A$4,Hoveddører!F134,\"\"))))","v":""},null,"",null,null,""]
[{"$f":"IF(Produksjonsbeskrivelse!C$190=Hoveddører!A$3,Hoveddører!C135,IF(Produksjonsbeskrivelse!C$199=Hoveddører!A$3,Hoveddører!C135,IF(Produksjonsbeskrivelse!C$190=Hoveddører!A$4,Hoveddører!F135,IF(Produksjonsbeskrivelse!C$199=Hoveddører!A$4,Hoveddører!F135,\"\"))))","v":""},null,"",null,null,""]
[{"$f":"IF(Produksjonsbeskrivelse!C$190=Hoveddører!A$3,Hoveddører!C136,IF(Produksjonsbeskrivelse!C$199=Hoveddører!A$3,Hoveddører!C136,IF(Produksjonsbeskrivelse!C$190=Hoveddører!A$4,Hoveddører!F136,IF(Produksjonsbeskrivelse!C$199=Hoveddører!A$4,Hoveddører!F136,\"\"))))","v":""}]
[]
[]
[]
[]
[{"$f":"IF(Produksjonsbeskrivelse!C$190=Hoveddører!A$3,Hoveddører!D8,IF(Produksjonsbeskrivelse!C$190=Hoveddører!A$4,Hoveddører!G3,\"\"))","v":""}]
[{"$f":"IF(Produksjonsbeskrivelse!C$190=Hoveddører!A$3,Hoveddører!D9,IF(Produksjonsbeskrivelse!C$190=Hoveddører!A$4,Hoveddører!G4,\"\"))","v":""}]
[{"$f":"IF(Produksjonsbeskrivelse!C$190=Hoveddører!A$3,Hoveddører!D10,IF(Produksjonsbeskrivelse!C$190=Hoveddører!A$4,Hoveddører!G5,\"\"))","v":""}]
[{"$f":"IF(Produksjonsbeskrivelse!C$190=Hoveddører!A$3,Hoveddører!D11,IF(Produksjonsbeskrivelse!C$190=Hoveddører!A$4,Hoveddører!G6,\"\"))","v":""}]
[{"$f":"IF(Produksjonsbeskrivelse!C$190=Hoveddører!A$3,Hoveddører!D12,IF(Produksjonsbeskrivelse!C$190=Hoveddører!A$4,Hoveddører!G7,\"\"))","v":""}]
[{"$f":"IF(Produksjonsbeskrivelse!C$190=Hoveddører!A$3,Hoveddører!D13,IF(Produksjonsbeskrivelse!C$190=Hoveddører!A$4,Hoveddører!G8,\"\"))","v":""}]
[{"$f":"IF(Produksjonsbeskrivelse!C$190=Hoveddører!A$3,Hoveddører!D14,IF(Produksjonsbeskrivelse!C$190=Hoveddører!A$4,Hoveddører!G9,\"\"))","v":""}]
[{"$f":"IF(Produksjonsbeskrivelse!C$190=Hoveddører!A$3,Hoveddører!D15,IF(Produksjonsbeskrivelse!C$190=Hoveddører!A$4,Hoveddører!G10,\"\"))","v":""}]
[{"$f":"IF(Produksjonsbeskrivelse!C$190=Hoveddører!A$3,Hoveddører!D16,IF(Produksjonsbeskrivelse!C$190=Hoveddører!A$4,Hoveddører!G11,\"\"))","v":""}]
[{"$f":"IF(Produksjonsbeskrivelse!C$190=Hoveddører!A$3,Hoveddører!D17,IF(Produksjonsbeskrivelse!C$190=Hoveddører!A$4,Hoveddører!G12,\"\"))","v":""}]
[{"$f":"IF(Produksjonsbeskrivelse!C$190=Hoveddører!A$3,Hoveddører!D18,IF(Produksjonsbeskrivelse!C$190=Hoveddører!A$4,Hoveddører!G13,\"\"))","v":""}]
[{"$f":"IF(Produksjonsbeskrivelse!C$190=Hoveddører!A$3,Hoveddører!D19,IF(Produksjonsbeskrivelse!C$190=Hoveddører!A$4,Hoveddører!G14,\"\"))","v":""}]
[]
[]
[]
[]
[]
[]
[{"$f":"IF(Produksjonsbeskrivelse!C$190=Hoveddører!A$3,Hoveddører!D21,IF(Produksjonsbeskrivelse!C$190=Hoveddører!A$4,Hoveddører!G18,\"\"))","v":""}]
[{"$f":"IF(Produksjonsbeskrivelse!C$190=Hoveddører!A$3,Hoveddører!D22,IF(Produksjonsbeskrivelse!C$190=Hoveddører!A$4,Hoveddører!G19,\"\"))","v":""}]
[{"$f":"IF(Produksjonsbeskrivelse!C$190=Hoveddører!A$3,Hoveddører!D23,IF(Produksjonsbeskrivelse!C$190=Hoveddører!A$4,Hoveddører!G20,\"\"))","v":""}]
[{"$f":"IF(Produksjonsbeskrivelse!C$190=Hoveddører!A$3,Hoveddører!D24,IF(Produksjonsbeskrivelse!C$190=Hoveddører!A$4,Hoveddører!G21,\"\"))","v":""}]
[{"$f":"IF(Produksjonsbeskrivelse!C$190=Hoveddører!A$3,Hoveddører!D25,IF(Produksjonsbeskrivelse!C$190=Hoveddører!A$4,Hoveddører!G22,\"\"))","v":""}]
[{"$f":"IF(Produksjonsbeskrivelse!C$190=Hoveddører!A$3,Hoveddører!D26,IF(Produksjonsbeskrivelse!C$190=Hoveddører!A$4,Hoveddører!G23,\"\"))","v":""}]
[{"$f":"IF(Produksjonsbeskrivelse!C$190=Hoveddører!A$3,Hoveddører!D27,IF(Produksjonsbeskrivelse!C$190=Hoveddører!A$4,Hoveddører!G24,\"\"))","v":""}]
[{"$f":"IF(Produksjonsbeskrivelse!C$190=Hoveddører!A$3,Hoveddører!D28,IF(Produksjonsbeskrivelse!C$190=Hoveddører!A$4,Hoveddører!G25,\"\"))","v":""}]
[{"$f":"IF(Produksjonsbeskrivelse!C$190=Hoveddører!A$3,Hoveddører!D29,IF(Produksjonsbeskrivelse!C$190=Hoveddører!A$4,Hoveddører!G26,\"\"))","v":""}]
[{"$f":"IF(Produksjonsbeskrivelse!C$190=Hoveddører!A$3,Hoveddører!D30,IF(Produksjonsbeskrivelse!C$190=Hoveddører!A$4,Hoveddører!G27,\"\"))","v":""}]
[{"$f":"IF(Produksjonsbeskrivelse!C$190=Hoveddører!A$3,Hoveddører!D31,IF(Produksjonsbeskrivelse!C$190=Hoveddører!A$4,Hoveddører!G28,\"\"))","v":""}]
[{"$f":"IF(Produksjonsbeskrivelse!C$190=Hoveddører!A$3,Hoveddører!D32,IF(Produksjonsbeskrivelse!C$190=Hoveddører!A$4,Hoveddører!G29,\"\"))","v":""}]
[{"$f":"IF(Produksjonsbeskrivelse!C$190=Hoveddører!A$3,Hoveddører!D33,IF(Produksjonsbeskrivelse!C$190=Hoveddører!A$4,Hoveddører!G30,\"\"))","v":""}]
[{"$f":"IF(Produksjonsbeskrivelse!C$190=Hoveddører!A$3,Hoveddører!D34,IF(Produksjonsbeskrivelse!C$190=Hoveddører!A$4,Hoveddører!G31,\"\"))","v":""}]
[{"$f":"IF(Produksjonsbeskrivelse!C$190=Hoveddører!A$3,Hoveddører!D35,IF(Produksjonsbeskrivelse!C$190=Hoveddører!A$4,Hoveddører!G32,\"\"))","v":""}]
[{"$f":"IF(Produksjonsbeskrivelse!C$190=Hoveddører!A$3,Hoveddører!D36,IF(Produksjonsbeskrivelse!C$190=Hoveddører!A$4,Hoveddører!G33,\"\"))","v":""}]
[{"$f":"IF(Produksjonsbeskrivelse!C$190=Hoveddører!A$3,Hoveddører!D37,IF(Produksjonsbeskrivelse!C$190=Hoveddører!A$4,Hoveddører!G34,\"\"))","v":""}]
[{"$f":"IF(Produksjonsbeskrivelse!C$190=Hoveddører!A$3,Hoveddører!D38,IF(Produksjonsbeskrivelse!C$190=Hoveddører!A$4,Hoveddører!G35,\"\"))","v":""}]
[]
[]
[]
["HOVEDDØR 2"]
[]
[]
[]
[{"$f":"IF(Produksjonsbeskrivelse!C$199=Hoveddører!A$3,Hoveddører!C3,IF(Produksjonsbeskrivelse!C$199=Hoveddører!A$4,Hoveddører!F3,\"\"))","v":""}]
[{"$f":"IF(Produksjonsbeskrivelse!C$199=Hoveddører!A$3,Hoveddører!C4,IF(Produksjonsbeskrivelse!C$199=Hoveddører!A$4,Hoveddører!F4,\"\"))","v":""}]
[{"$f":"IF(Produksjonsbeskrivelse!C$199=Hoveddører!A$3,Hoveddører!C5,IF(Produksjonsbeskrivelse!C$199=Hoveddører!A$4,Hoveddører!F5,\"\"))","v":""}]
[{"$f":"IF(Produksjonsbeskrivelse!C$199=Hoveddører!A$3,Hoveddører!C6,IF(Produksjonsbeskrivelse!C$199=Hoveddører!A$4,Hoveddører!F6,\"\"))","v":""}]
[{"$f":"IF(Produksjonsbeskrivelse!C$199=Hoveddører!A$3,Hoveddører!C7,IF(Produksjonsbeskrivelse!C$199=Hoveddører!A$4,Hoveddører!F7,\"\"))","v":""}]
[{"$f":"IF(Produksjonsbeskrivelse!C$199=Hoveddører!A$3,Hoveddører!C8,IF(Produksjonsbeskrivelse!C$199=Hoveddører!A$4,Hoveddører!F8,\"\"))","v":""}]
[{"$f":"IF(Produksjonsbeskrivelse!C$199=Hoveddører!A$3,Hoveddører!C9,IF(Produksjonsbeskrivelse!C$199=Hoveddører!A$4,Hoveddører!F9,\"\"))","v":""}]
[{"$f":"IF(Produksjonsbeskrivelse!C$199=Hoveddører!A$3,Hoveddører!C10,IF(Produksjonsbeskrivelse!C$199=Hoveddører!A$4,Hoveddører!F10,\"\"))","v":""}]
[{"$f":"IF(Produksjonsbeskrivelse!C$199=Hoveddører!A$3,Hoveddører!C11,IF(Produksjonsbeskrivelse!C$199=Hoveddører!A$4,Hoveddører!F11,\"\"))","v":""}]
[{"$f":"IF(Produksjonsbeskrivelse!C$199=Hoveddører!A$3,Hoveddører!C12,IF(Produksjonsbeskrivelse!C$199=Hoveddører!A$4,Hoveddører!F12,\"\"))","v":""}]
[{"$f":"IF(Produksjonsbeskrivelse!C$199=Hoveddører!A$3,Hoveddører!C13,IF(Produksjonsbeskrivelse!C$199=Hoveddører!A$4,Hoveddører!F13,\"\"))","v":""}]
[{"$f":"IF(Produksjonsbeskrivelse!C$199=Hoveddører!A$3,Hoveddører!C14,IF(Produksjonsbeskrivelse!C$199=Hoveddører!A$4,Hoveddører!F14,\"\"))","v":""}]
[{"$f":"IF(Produksjonsbeskrivelse!C$199=Hoveddører!A$3,Hoveddører!C15,IF(Produksjonsbeskrivelse!C$199=Hoveddører!A$4,Hoveddører!F15,\"\"))","v":""}]
[{"$f":"IF(Produksjonsbeskrivelse!C$199=Hoveddører!A$3,Hoveddører!C16,IF(Produksjonsbeskrivelse!C$199=Hoveddører!A$4,Hoveddører!F16,\"\"))","v":""}]
[{"$f":"IF(Produksjonsbeskrivelse!C$199=Hoveddører!A$3,Hoveddører!C17,IF(Produksjonsbeskrivelse!C$199=Hoveddører!A$4,Hoveddører!F17,\"\"))","v":""}]
[{"$f":"IF(Produksjonsbeskrivelse!C$199=Hoveddører!A$3,Hoveddører!C18,IF(Produksjonsbeskrivelse!C$199=Hoveddører!A$4,Hoveddører!F18,\"\"))","v":""}]
[{"$f":"IF(Produksjonsbeskrivelse!C$199=Hoveddører!A$3,Hoveddører!C19,IF(Produksjonsbeskrivelse!C$199=Hoveddører!A$4,Hoveddører!F19,\"\"))","v":""}]
[{"$f":"IF(Produksjonsbeskrivelse!C$199=Hoveddører!A$3,Hoveddører!C20,IF(Produksjonsbeskrivelse!C$199=Hoveddører!A$4,Hoveddører!F20,\"\"))","v":""}]
[{"$f":"IF(Produksjonsbeskrivelse!C$199=Hoveddører!A$3,Hoveddører!C21,IF(Produksjonsbeskrivelse!C$199=Hoveddører!A$4,Hoveddører!F21,\"\"))","v":""}]
[{"$f":"IF(Produksjonsbeskrivelse!C$199=Hoveddører!A$3,Hoveddører!C22,IF(Produksjonsbeskrivelse!C$199=Hoveddører!A$4,Hoveddører!F22,\"\"))","v":""}]
[{"$f":"IF(Produksjonsbeskrivelse!C$199=Hoveddører!A$3,Hoveddører!C23,IF(Produksjonsbeskrivelse!C$199=Hoveddører!A$4,Hoveddører!F23,\"\"))","v":""}]
[{"$f":"IF(Produksjonsbeskrivelse!C$199=Hoveddører!A$3,Hoveddører!C24,IF(Produksjonsbeskrivelse!C$199=Hoveddører!A$4,Hoveddører!F24,\"\"))","v":""}]
[{"$f":"IF(Produksjonsbeskrivelse!C$199=Hoveddører!A$3,Hoveddører!C25,IF(Produksjonsbeskrivelse!C$199=Hoveddører!A$4,Hoveddører!F25,\"\"))","v":""}]
[{"$f":"IF(Produksjonsbeskrivelse!C$199=Hoveddører!A$3,Hoveddører!C26,IF(Produksjonsbeskrivelse!C$199=Hoveddører!A$4,Hoveddører!F26,\"\"))","v":""}]
[{"$f":"IF(Produksjonsbeskrivelse!C$199=Hoveddører!A$3,Hoveddører!C27,IF(Produksjonsbeskrivelse!C$199=Hoveddører!A$4,Hoveddører!F27,\"\"))","v":""}]
[{"$f":"IF(Produksjonsbeskrivelse!C$199=Hoveddører!A$3,Hoveddører!C28,IF(Produksjonsbeskrivelse!C$199=Hoveddører!A$4,Hoveddører!F28,\"\"))","v":""}]
[{"$f":"IF(Produksjonsbeskrivelse!C$199=Hoveddører!A$3,Hoveddører!C29,IF(Produksjonsbeskrivelse!C$199=Hoveddører!A$4,Hoveddører!F29,\"\"))","v":""}]
[{"$f":"IF(Produksjonsbeskrivelse!C$199=Hoveddører!A$3,Hoveddører!C30,IF(Produksjonsbeskrivelse!C$199=Hoveddører!A$4,Hoveddører!F30,\"\"))","v":""}]
[{"$f":"IF(Produksjonsbeskrivelse!C$199=Hoveddører!A$3,Hoveddører!C31,IF(Produksjonsbeskrivelse!C$199=Hoveddører!A$4,Hoveddører!F31,\"\"))","v":""}]
[{"$f":"IF(Produksjonsbeskrivelse!C$199=Hoveddører!A$3,Hoveddører!C32,IF(Produksjonsbeskrivelse!C$199=Hoveddører!A$4,Hoveddører!F32,\"\"))","v":""}]
[{"$f":"IF(Produksjonsbeskrivelse!C$199=Hoveddører!A$3,Hoveddører!C33,IF(Produksjonsbeskrivelse!C$199=Hoveddører!A$4,Hoveddører!F33,\"\"))","v":""}]
[{"$f":"IF(Produksjonsbeskrivelse!C$199=Hoveddører!A$3,Hoveddører!C34,IF(Produksjonsbeskrivelse!C$199=Hoveddører!A$4,Hoveddører!F34,\"\"))","v":""}]
[{"$f":"IF(Produksjonsbeskrivelse!C$199=Hoveddører!A$3,Hoveddører!C35,IF(Produksjonsbeskrivelse!C$199=Hoveddører!A$4,Hoveddører!F35,\"\"))","v":""}]
[{"$f":"IF(Produksjonsbeskrivelse!C$199=Hoveddører!A$3,Hoveddører!C36,IF(Produksjonsbeskrivelse!C$199=Hoveddører!A$4,Hoveddører!F36,\"\"))","v":""}]
[{"$f":"IF(Produksjonsbeskrivelse!C$199=Hoveddører!A$3,Hoveddører!C37,IF(Produksjonsbeskrivelse!C$199=Hoveddører!A$4,Hoveddører!F37,\"\"))","v":""}]
[{"$f":"IF(Produksjonsbeskrivelse!C$199=Hoveddører!A$3,Hoveddører!C38,IF(Produksjonsbeskrivelse!C$199=Hoveddører!A$4,Hoveddører!F38,\"\"))","v":""}]
[{"$f":"IF(Produksjonsbeskrivelse!C$199=Hoveddører!A$3,Hoveddører!C39,IF(Produksjonsbeskrivelse!C$199=Hoveddører!A$4,Hoveddører!F39,\"\"))","v":""}]
[{"$f":"IF(Produksjonsbeskrivelse!C$199=Hoveddører!A$3,Hoveddører!C40,IF(Produksjonsbeskrivelse!C$199=Hoveddører!A$4,Hoveddører!F40,\"\"))","v":""}]
[{"$f":"IF(Produksjonsbeskrivelse!C$199=Hoveddører!A$3,Hoveddører!C41,IF(Produksjonsbeskrivelse!C$199=Hoveddører!A$4,Hoveddører!F41,\"\"))","v":""}]
[{"$f":"IF(Produksjonsbeskrivelse!C$199=Hoveddører!A$3,Hoveddører!C42,IF(Produksjonsbeskrivelse!C$199=Hoveddører!A$4,Hoveddører!F42,\"\"))","v":""}]
[{"$f":"IF(Produksjonsbeskrivelse!C$199=Hoveddører!A$3,Hoveddører!C43,IF(Produksjonsbeskrivelse!C$199=Hoveddører!A$4,Hoveddører!F43,\"\"))","v":""}]
[{"$f":"IF(Produksjonsbeskrivelse!C$199=Hoveddører!A$3,Hoveddører!C44,IF(Produksjonsbeskrivelse!C$199=Hoveddører!A$4,Hoveddører!F44,\"\"))","v":""}]
[{"$f":"IF(Produksjonsbeskrivelse!C$199=Hoveddører!A$3,Hoveddører!C45,IF(Produksjonsbeskrivelse!C$199=Hoveddører!A$4,Hoveddører!F45,\"\"))","v":""}]
[{"$f":"IF(Produksjonsbeskrivelse!C$199=Hoveddører!A$3,Hoveddører!C46,IF(Produksjonsbeskrivelse!C$199=Hoveddører!A$4,Hoveddører!F46,\"\"))","v":""}]
[{"$f":"IF(Produksjonsbeskrivelse!C$199=Hoveddører!A$3,Hoveddører!C47,IF(Produksjonsbeskrivelse!C$199=Hoveddører!A$4,Hoveddører!F47,\"\"))","v":""}]
[{"$f":"IF(Produksjonsbeskrivelse!C$199=Hoveddører!A$3,Hoveddører!C48,IF(Produksjonsbeskrivelse!C$199=Hoveddører!A$4,Hoveddører!F48,\"\"))","v":""}]
[{"$f":"IF(Produksjonsbeskrivelse!C$199=Hoveddører!A$3,Hoveddører!C49,IF(Produksjonsbeskrivelse!C$199=Hoveddører!A$4,Hoveddører!F49,\"\"))","v":""}]
[{"$f":"IF(Produksjonsbeskrivelse!C$199=Hoveddører!A$3,Hoveddører!C50,IF(Produksjonsbeskrivelse!C$199=Hoveddører!A$4,Hoveddører!F50,\"\"))","v":""}]
[{"$f":"IF(Produksjonsbeskrivelse!C$199=Hoveddører!A$3,Hoveddører!C51,IF(Produksjonsbeskrivelse!C$199=Hoveddører!A$4,Hoveddører!F51,\"\"))","v":""}]
[{"$f":"IF(Produksjonsbeskrivelse!C$199=Hoveddører!A$3,Hoveddører!C52,IF(Produksjonsbeskrivelse!C$199=Hoveddører!A$4,Hoveddører!F52,\"\"))","v":""}]
[{"$f":"IF(Produksjonsbeskrivelse!C$199=Hoveddører!A$3,Hoveddører!C53,IF(Produksjonsbeskrivelse!C$199=Hoveddører!A$4,Hoveddører!F53,\"\"))","v":""}]
[{"$f":"IF(Produksjonsbeskrivelse!C$199=Hoveddører!A$3,Hoveddører!C54,IF(Produksjonsbeskrivelse!C$199=Hoveddører!A$4,Hoveddører!F54,\"\"))","v":""}]
[{"$f":"IF(Produksjonsbeskrivelse!C$199=Hoveddører!A$3,Hoveddører!C55,IF(Produksjonsbeskrivelse!C$199=Hoveddører!A$4,Hoveddører!F55,\"\"))","v":""}]
[{"$f":"IF(Produksjonsbeskrivelse!C$199=Hoveddører!A$3,Hoveddører!C56,IF(Produksjonsbeskrivelse!C$199=Hoveddører!A$4,Hoveddører!F56,\"\"))","v":""}]
[{"$f":"IF(Produksjonsbeskrivelse!C$199=Hoveddører!A$3,Hoveddører!C57,IF(Produksjonsbeskrivelse!C$199=Hoveddører!A$4,Hoveddører!F57,\"\"))","v":""}]
[{"$f":"IF(Produksjonsbeskrivelse!C$199=Hoveddører!A$3,Hoveddører!C58,IF(Produksjonsbeskrivelse!C$199=Hoveddører!A$4,Hoveddører!F58,\"\"))","v":""}]
[{"$f":"IF(Produksjonsbeskrivelse!C$199=Hoveddører!A$3,Hoveddører!C59,IF(Produksjonsbeskrivelse!C$199=Hoveddører!A$4,Hoveddører!F59,\"\"))","v":""}]
[{"$f":"IF(Produksjonsbeskrivelse!C$199=Hoveddører!A$3,Hoveddører!C60,IF(Produksjonsbeskrivelse!C$199=Hoveddører!A$4,Hoveddører!F60,\"\"))","v":""}]
[{"$f":"IF(Produksjonsbeskrivelse!C$199=Hoveddører!A$3,Hoveddører!C61,IF(Produksjonsbeskrivelse!C$199=Hoveddører!A$4,Hoveddører!F61,\"\"))","v":""}]
[{"$f":"IF(Produksjonsbeskrivelse!C$199=Hoveddører!A$3,Hoveddører!C62,IF(Produksjonsbeskrivelse!C$199=Hoveddører!A$4,Hoveddører!F62,\"\"))","v":""}]
[{"$f":"IF(Produksjonsbeskrivelse!C$199=Hoveddører!A$3,Hoveddører!C63,IF(Produksjonsbeskrivelse!C$199=Hoveddører!A$4,Hoveddører!F63,\"\"))","v":""}]
[{"$f":"IF(Produksjonsbeskrivelse!C$199=Hoveddører!A$3,Hoveddører!C64,IF(Produksjonsbeskrivelse!C$199=Hoveddører!A$4,Hoveddører!F64,\"\"))","v":""}]
[{"$f":"IF(Produksjonsbeskrivelse!C$199=Hoveddører!A$3,Hoveddører!C65,IF(Produksjonsbeskrivelse!C$199=Hoveddører!A$4,Hoveddører!F65,\"\"))","v":""}]
[{"$f":"IF(Produksjonsbeskrivelse!C$199=Hoveddører!A$3,Hoveddører!C66,IF(Produksjonsbeskrivelse!C$199=Hoveddører!A$4,Hoveddører!F66,\"\"))","v":""}]
[{"$f":"IF(Produksjonsbeskrivelse!C$199=Hoveddører!A$3,Hoveddører!C67,IF(Produksjonsbeskrivelse!C$199=Hoveddører!A$4,Hoveddører!F67,\"\"))","v":""}]
[{"$f":"IF(Produksjonsbeskrivelse!C$199=Hoveddører!A$3,Hoveddører!C68,IF(Produksjonsbeskrivelse!C$199=Hoveddører!A$4,Hoveddører!F68,\"\"))","v":""}]
[{"$f":"IF(Produksjonsbeskrivelse!C$199=Hoveddører!A$3,Hoveddører!C69,IF(Produksjonsbeskrivelse!C$199=Hoveddører!A$4,Hoveddører!F69,\"\"))","v":""}]
[{"$f":"IF(Produksjonsbeskrivelse!C$199=Hoveddører!A$3,Hoveddører!C70,IF(Produksjonsbeskrivelse!C$199=Hoveddører!A$4,Hoveddører!F70,\"\"))","v":""}]
[{"$f":"IF(Produksjonsbeskrivelse!C$199=Hoveddører!A$3,Hoveddører!C71,IF(Produksjonsbeskrivelse!C$199=Hoveddører!A$4,Hoveddører!F71,\"\"))","v":""}]
[{"$f":"IF(Produksjonsbeskrivelse!C$199=Hoveddører!A$3,Hoveddører!C72,IF(Produksjonsbeskrivelse!C$199=Hoveddører!A$4,Hoveddører!F72,\"\"))","v":""}]
[{"$f":"IF(Produksjonsbeskrivelse!C$199=Hoveddører!A$3,Hoveddører!C73,IF(Produksjonsbeskrivelse!C$199=Hoveddører!A$4,Hoveddører!F73,\"\"))","v":""}]
[{"$f":"IF(Produksjonsbeskrivelse!C$199=Hoveddører!A$3,Hoveddører!C74,IF(Produksjonsbeskrivelse!C$199=Hoveddører!A$4,Hoveddører!F74,\"\"))","v":""}]
[{"$f":"IF(Produksjonsbeskrivelse!C$199=Hoveddører!A$3,Hoveddører!C75,IF(Produksjonsbeskrivelse!C$199=Hoveddører!A$4,Hoveddører!F75,\"\"))","v":""}]
[{"$f":"IF(Produksjonsbeskrivelse!C$199=Hoveddører!A$3,Hoveddører!C76,IF(Produksjonsbeskrivelse!C$199=Hoveddører!A$4,Hoveddører!F76,\"\"))","v":""}]
[{"$f":"IF(Produksjonsbeskrivelse!C$199=Hoveddører!A$3,Hoveddører!C77,IF(Produksjonsbeskrivelse!C$199=Hoveddører!A$4,Hoveddører!F77,\"\"))","v":""}]
[{"$f":"IF(Produksjonsbeskrivelse!C$199=Hoveddører!A$3,Hoveddører!C78,IF(Produksjonsbeskrivelse!C$199=Hoveddører!A$4,Hoveddører!F78,\"\"))","v":""}]
[{"$f":"IF(Produksjonsbeskrivelse!C$199=Hoveddører!A$3,Hoveddører!C79,IF(Produksjonsbeskrivelse!C$199=Hoveddører!A$4,Hoveddører!F79,\"\"))","v":""}]
[{"$f":"IF(Produksjonsbeskrivelse!C$199=Hoveddører!A$3,Hoveddører!C80,IF(Produksjonsbeskrivelse!C$199=Hoveddører!A$4,Hoveddører!F80,\"\"))","v":""}]
[{"$f":"IF(Produksjonsbeskrivelse!C$199=Hoveddører!A$3,Hoveddører!C81,IF(Produksjonsbeskrivelse!C$199=Hoveddører!A$4,Hoveddører!F81,\"\"))","v":""}]
[{"$f":"IF(Produksjonsbeskrivelse!C$199=Hoveddører!A$3,Hoveddører!C82,IF(Produksjonsbeskrivelse!C$199=Hoveddører!A$4,Hoveddører!F82,\"\"))","v":""}]
[{"$f":"IF(Produksjonsbeskrivelse!C$199=Hoveddører!A$3,Hoveddører!C83,IF(Produksjonsbeskrivelse!C$199=Hoveddører!A$4,Hoveddører!F83,\"\"))","v":""}]
[{"$f":"IF(Produksjonsbeskrivelse!C$199=Hoveddører!A$3,Hoveddører!C84,IF(Produksjonsbeskrivelse!C$199=Hoveddører!A$4,Hoveddører!F84,\"\"))","v":""}]
[{"$f":"IF(Produksjonsbeskrivelse!C$199=Hoveddører!A$3,Hoveddører!C85,IF(Produksjonsbeskrivelse!C$199=Hoveddører!A$4,Hoveddører!F85,\"\"))","v":""}]
[{"$f":"IF(Produksjonsbeskrivelse!C$199=Hoveddører!A$3,Hoveddører!C86,IF(Produksjonsbeskrivelse!C$199=Hoveddører!A$4,Hoveddører!F86,\"\"))","v":""}]
[{"$f":"IF(Produksjonsbeskrivelse!C$199=Hoveddører!A$3,Hoveddører!C87,IF(Produksjonsbeskrivelse!C$199=Hoveddører!A$4,Hoveddører!F87,\"\"))","v":""}]
[{"$f":"IF(Produksjonsbeskrivelse!C$199=Hoveddører!A$3,Hoveddører!C88,IF(Produksjonsbeskrivelse!C$199=Hoveddører!A$4,Hoveddører!F88,\"\"))","v":""}]
[{"$f":"IF(Produksjonsbeskrivelse!C$199=Hoveddører!A$3,Hoveddører!C89,IF(Produksjonsbeskrivelse!C$199=Hoveddører!A$4,Hoveddører!F89,\"\"))","v":""}]
[{"$f":"IF(Produksjonsbeskrivelse!C$199=Hoveddører!A$3,Hoveddører!C90,IF(Produksjonsbeskrivelse!C$199=Hoveddører!A$4,Hoveddører!F90,\"\"))","v":""}]
[{"$f":"IF(Produksjonsbeskrivelse!C$199=Hoveddører!A$3,Hoveddører!C91,IF(Produksjonsbeskrivelse!C$199=Hoveddører!A$4,Hoveddører!F91,\"\"))","v":""}]
[{"$f":"IF(Produksjonsbeskrivelse!C$199=Hoveddører!A$3,Hoveddører!C92,IF(Produksjonsbeskrivelse!C$199=Hoveddører!A$4,Hoveddører!F92,\"\"))","v":""}]
[{"$f":"IF(Produksjonsbeskrivelse!C$199=Hoveddører!A$3,Hoveddører!C93,IF(Produksjonsbeskrivelse!C$199=Hoveddører!A$4,Hoveddører!F93,\"\"))","v":""}]
[{"$f":"IF(Produksjonsbeskrivelse!C$199=Hoveddører!A$3,Hoveddører!C94,IF(Produksjonsbeskrivelse!C$199=Hoveddører!A$4,Hoveddører!F94,\"\"))","v":""}]
[{"$f":"IF(Produksjonsbeskrivelse!C$199=Hoveddører!A$3,Hoveddører!C95,IF(Produksjonsbeskrivelse!C$199=Hoveddører!A$4,Hoveddører!F95,\"\"))","v":""}]
[{"$f":"IF(Produksjonsbeskrivelse!C$199=Hoveddører!A$3,Hoveddører!C96,IF(Produksjonsbeskrivelse!C$199=Hoveddører!A$4,Hoveddører!F96,\"\"))","v":""}]
[{"$f":"IF(Produksjonsbeskrivelse!C$199=Hoveddører!A$3,Hoveddører!C97,IF(Produksjonsbeskrivelse!C$199=Hoveddører!A$4,Hoveddører!F97,\"\"))","v":""}]
[{"$f":"IF(Produksjonsbeskrivelse!C$199=Hoveddører!A$3,Hoveddører!C98,IF(Produksjonsbeskrivelse!C$199=Hoveddører!A$4,Hoveddører!F98,\"\"))","v":""}]
[{"$f":"IF(Produksjonsbeskrivelse!C$199=Hoveddører!A$3,Hoveddører!C99,IF(Produksjonsbeskrivelse!C$199=Hoveddører!A$4,Hoveddører!F99,\"\"))","v":""}]
[{"$f":"IF(Produksjonsbeskrivelse!C$199=Hoveddører!A$3,Hoveddører!C100,IF(Produksjonsbeskrivelse!C$199=Hoveddører!A$4,Hoveddører!F100,\"\"))","v":""}]
[{"$f":"IF(Produksjonsbeskrivelse!C$199=Hoveddører!A$3,Hoveddører!C101,IF(Produksjonsbeskrivelse!C$199=Hoveddører!A$4,Hoveddører!F101,\"\"))","v":""}]
[{"$f":"IF(Produksjonsbeskrivelse!C$199=Hoveddører!A$3,Hoveddører!C102,IF(Produksjonsbeskrivelse!C$199=Hoveddører!A$4,Hoveddører!F102,\"\"))","v":""}]
[{"$f":"IF(Produksjonsbeskrivelse!C$199=Hoveddører!A$3,Hoveddører!C103,IF(Produksjonsbeskrivelse!C$199=Hoveddører!A$4,Hoveddører!F103,\"\"))","v":""}]
[{"$f":"IF(Produksjonsbeskrivelse!C$199=Hoveddører!A$3,Hoveddører!C104,IF(Produksjonsbeskrivelse!C$199=Hoveddører!A$4,Hoveddører!F104,\"\"))","v":""}]
[{"$f":"IF(Produksjonsbeskrivelse!C$199=Hoveddører!A$3,Hoveddører!C105,IF(Produksjonsbeskrivelse!C$199=Hoveddører!A$4,Hoveddører!F105,\"\"))","v":""}]
[{"$f":"IF(Produksjonsbeskrivelse!C$199=Hoveddører!A$3,Hoveddører!C106,IF(Produksjonsbeskrivelse!C$199=Hoveddører!A$4,Hoveddører!F106,\"\"))","v":""}]
[{"$f":"IF(Produksjonsbeskrivelse!C$199=Hoveddører!A$3,Hoveddører!C107,IF(Produksjonsbeskrivelse!C$199=Hoveddører!A$4,Hoveddører!F107,\"\"))","v":""}]
[{"$f":"IF(Produksjonsbeskrivelse!C$199=Hoveddører!A$3,Hoveddører!C108,IF(Produksjonsbeskrivelse!C$199=Hoveddører!A$4,Hoveddører!F108,\"\"))","v":""}]
[{"$f":"IF(Produksjonsbeskrivelse!C$199=Hoveddører!A$3,Hoveddører!C109,IF(Produksjonsbeskrivelse!C$199=Hoveddører!A$4,Hoveddører!F109,\"\"))","v":""}]
[{"$f":"IF(Produksjonsbeskrivelse!C$199=Hoveddører!A$3,Hoveddører!C110,IF(Produksjonsbeskrivelse!C$199=Hoveddører!A$4,Hoveddører!F110,\"\"))","v":""}]
[{"$f":"IF(Produksjonsbeskrivelse!C$199=Hoveddører!A$3,Hoveddører!C111,IF(Produksjonsbeskrivelse!C$199=Hoveddører!A$4,Hoveddører!F111,\"\"))","v":""}]
[{"$f":"IF(Produksjonsbeskrivelse!C$199=Hoveddører!A$3,Hoveddører!C112,IF(Produksjonsbeskrivelse!C$199=Hoveddører!A$4,Hoveddører!F112,\"\"))","v":""}]
[{"$f":"IF(Produksjonsbeskrivelse!C$199=Hoveddører!A$3,Hoveddører!C113,IF(Produksjonsbeskrivelse!C$199=Hoveddører!A$4,Hoveddører!F113,\"\"))","v":""}]
[{"$f":"IF(Produksjonsbeskrivelse!C$199=Hoveddører!A$3,Hoveddører!C114,IF(Produksjonsbeskrivelse!C$199=Hoveddører!A$4,Hoveddører!F114,\"\"))","v":""}]
[{"$f":"IF(Produksjonsbeskrivelse!C$199=Hoveddører!A$3,Hoveddører!C115,IF(Produksjonsbeskrivelse!C$199=Hoveddører!A$4,Hoveddører!F115,\"\"))","v":""}]
[{"$f":"IF(Produksjonsbeskrivelse!C$199=Hoveddører!A$3,Hoveddører!C116,IF(Produksjonsbeskrivelse!C$199=Hoveddører!A$4,Hoveddører!F116,\"\"))","v":""}]
[{"$f":"IF(Produksjonsbeskrivelse!C$199=Hoveddører!A$3,Hoveddører!C117,IF(Produksjonsbeskrivelse!C$199=Hoveddører!A$4,Hoveddører!F117,\"\"))","v":""}]
[{"$f":"IF(Produksjonsbeskrivelse!C$199=Hoveddører!A$3,Hoveddører!C118,IF(Produksjonsbeskrivelse!C$199=Hoveddører!A$4,Hoveddører!F118,\"\"))","v":""}]
[{"$f":"IF(Produksjonsbeskrivelse!C$199=Hoveddører!A$3,Hoveddører!C119,IF(Produksjonsbeskrivelse!C$199=Hoveddører!A$4,Hoveddører!F119,\"\"))","v":""}]
[{"$f":"IF(Produksjonsbeskrivelse!C$199=Hoveddører!A$3,Hoveddører!C120,IF(Produksjonsbeskrivelse!C$199=Hoveddører!A$4,Hoveddører!F120,\"\"))","v":""}]
[{"$f":"IF(Produksjonsbeskrivelse!C$199=Hoveddører!A$3,Hoveddører!C121,IF(Produksjonsbeskrivelse!C$199=Hoveddører!A$4,Hoveddører!F121,\"\"))","v":""}]
[{"$f":"IF(Produksjonsbeskrivelse!C$199=Hoveddører!A$3,Hoveddører!C122,IF(Produksjonsbeskrivelse!C$199=Hoveddører!A$4,Hoveddører!F122,\"\"))","v":""}]
[{"$f":"IF(Produksjonsbeskrivelse!C$199=Hoveddører!A$3,Hoveddører!C123,IF(Produksjonsbeskrivelse!C$199=Hoveddører!A$4,Hoveddører!F123,\"\"))","v":""}]
[{"$f":"IF(Produksjonsbeskrivelse!C$199=Hoveddører!A$3,Hoveddører!C124,IF(Produksjonsbeskrivelse!C$199=Hoveddører!A$4,Hoveddører!F124,\"\"))","v":""}]
[{"$f":"IF(Produksjonsbeskrivelse!C$199=Hoveddører!A$3,Hoveddører!C125,IF(Produksjonsbeskrivelse!C$199=Hoveddører!A$4,Hoveddører!F125,\"\"))","v":""}]
[{"$f":"IF(Produksjonsbeskrivelse!C$199=Hoveddører!A$3,Hoveddører!C126,IF(Produksjonsbeskrivelse!C$199=Hoveddører!A$4,Hoveddører!F126,\"\"))","v":""}]
[{"$f":"IF(Produksjonsbeskrivelse!C$199=Hoveddører!A$3,Hoveddører!C127,IF(Produksjonsbeskrivelse!C$199=Hoveddører!A$4,Hoveddører!F127,\"\"))","v":""}]
[{"$f":"IF(Produksjonsbeskrivelse!C$199=Hoveddører!A$3,Hoveddører!C128,IF(Produksjonsbeskrivelse!C$199=Hoveddører!A$4,Hoveddører!F128,\"\"))","v":""}]
[{"$f":"IF(Produksjonsbeskrivelse!C$199=Hoveddører!A$3,Hoveddører!C129,IF(Produksjonsbeskrivelse!C$199=Hoveddører!A$4,Hoveddører!F129,\"\"))","v":""}]
[{"$f":"IF(Produksjonsbeskrivelse!C$199=Hoveddører!A$3,Hoveddører!C130,IF(Produksjonsbeskrivelse!C$199=Hoveddører!A$4,Hoveddører!F130,\"\"))","v":""}]
[{"$f":"IF(Produksjonsbeskrivelse!C$199=Hoveddører!A$3,Hoveddører!C131,IF(Produksjonsbeskrivelse!C$199=Hoveddører!A$4,Hoveddører!F131,\"\"))","v":""}]
[{"$f":"IF(Produksjonsbeskrivelse!C$199=Hoveddører!A$3,Hoveddører!C132,IF(Produksjonsbeskrivelse!C$199=Hoveddører!A$4,Hoveddører!F132,\"\"))","v":""}]
[{"$f":"IF(Produksjonsbeskrivelse!C$199=Hoveddører!A$3,Hoveddører!C133,IF(Produksjonsbeskrivelse!C$199=Hoveddører!A$4,Hoveddører!F133,\"\"))","v":""}]
[{"$f":"IF(Produksjonsbeskrivelse!C$199=Hoveddører!A$3,Hoveddører!C134,IF(Produksjonsbeskrivelse!C$199=Hoveddører!A$4,Hoveddører!F134,\"\"))","v":""}]
[{"$f":"IF(Produksjonsbeskrivelse!C$199=Hoveddører!A$3,Hoveddører!C135,IF(Produksjonsbeskrivelse!C$199=Hoveddører!A$4,Hoveddører!F135,\"\"))","v":""}]
[{"$f":"IF(Produksjonsbeskrivelse!C$199=Hoveddører!A$3,Hoveddører!C136,IF(Produksjonsbeskrivelse!C$199=Hoveddører!A$4,Hoveddører!F136,\"\"))","v":""}]
[{"$f":"IF(Produksjonsbeskrivelse!C$199=Hoveddører!A$3,Hoveddører!C137,IF(Produksjonsbeskrivelse!C$199=Hoveddører!A$4,Hoveddører!F137,\"\"))","v":""}]
[{"$f":"IF(Produksjonsbeskrivelse!C$199=Hoveddører!A$3,Hoveddører!C138,IF(Produksjonsbeskrivelse!C$199=Hoveddører!A$4,Hoveddører!F138,\"\"))","v":""}]
[]
[]
[]
[]
[{"$f":"IF(Produksjonsbeskrivelse!C$199=Hoveddører!A$3,Hoveddører!D8,IF(Produksjonsbeskrivelse!C$199=Hoveddører!A$4,Hoveddører!G3,\"\"))","v":""}]
[{"$f":"IF(Produksjonsbeskrivelse!C$199=Hoveddører!A$3,Hoveddører!D9,IF(Produksjonsbeskrivelse!C$199=Hoveddører!A$4,Hoveddører!G4,\"\"))","v":""}]
[{"$f":"IF(Produksjonsbeskrivelse!C$199=Hoveddører!A$3,Hoveddører!D10,IF(Produksjonsbeskrivelse!C$199=Hoveddører!A$4,Hoveddører!G5,\"\"))","v":""}]
[{"$f":"IF(Produksjonsbeskrivelse!C$199=Hoveddører!A$3,Hoveddører!D11,IF(Produksjonsbeskrivelse!C$199=Hoveddører!A$4,Hoveddører!G6,\"\"))","v":""}]
[{"$f":"IF(Produksjonsbeskrivelse!C$199=Hoveddører!A$3,Hoveddører!D12,IF(Produksjonsbeskrivelse!C$199=Hoveddører!A$4,Hoveddører!G7,\"\"))","v":""}]
[{"$f":"IF(Produksjonsbeskrivelse!C$199=Hoveddører!A$3,Hoveddører!D13,IF(Produksjonsbeskrivelse!C$199=Hoveddører!A$4,Hoveddører!G8,\"\"))","v":""}]
[{"$f":"IF(Produksjonsbeskrivelse!C$199=Hoveddører!A$3,Hoveddører!D14,IF(Produksjonsbeskrivelse!C$199=Hoveddører!A$4,Hoveddører!G9,\"\"))","v":""}]
[{"$f":"IF(Produksjonsbeskrivelse!C$199=Hoveddører!A$3,Hoveddører!D15,IF(Produksjonsbeskrivelse!C$199=Hoveddører!A$4,Hoveddører!G10,\"\"))","v":""}]
[{"$f":"IF(Produksjonsbeskrivelse!C$199=Hoveddører!A$3,Hoveddører!D16,IF(Produksjonsbeskrivelse!C$199=Hoveddører!A$4,Hoveddører!G11,\"\"))","v":""}]
[{"$f":"IF(Produksjonsbeskrivelse!C$199=Hoveddører!A$3,Hoveddører!D17,IF(Produksjonsbeskrivelse!C$199=Hoveddører!A$4,Hoveddører!G12,\"\"))","v":""}]
[{"$f":"IF(Produksjonsbeskrivelse!C$199=Hoveddører!A$3,Hoveddører!D18,IF(Produksjonsbeskrivelse!C$199=Hoveddører!A$4,Hoveddører!G13,\"\"))","v":""}]
[]
[]
[]
[]
[{"$f":"IF(Produksjonsbeskrivelse!C$199=Hoveddører!A$3,Hoveddører!D26,IF(Produksjonsbeskrivelse!C$199=Hoveddører!A$4,Hoveddører!G18,\"\"))","v":""}]
[{"$f":"IF(Produksjonsbeskrivelse!C$199=Hoveddører!A$3,Hoveddører!D27,IF(Produksjonsbeskrivelse!C$199=Hoveddører!A$4,Hoveddører!G19,\"\"))","v":""}]
[{"$f":"IF(Produksjonsbeskrivelse!C$199=Hoveddører!A$3,Hoveddører!D28,IF(Produksjonsbeskrivelse!C$199=Hoveddører!A$4,Hoveddører!G20,\"\"))","v":""}]
[{"$f":"IF(Produksjonsbeskrivelse!C$199=Hoveddører!A$3,Hoveddører!D29,IF(Produksjonsbeskrivelse!C$199=Hoveddører!A$4,Hoveddører!G21,\"\"))","v":""}]
[{"$f":"IF(Produksjonsbeskrivelse!C$199=Hoveddører!A$3,Hoveddører!D30,IF(Produksjonsbeskrivelse!C$199=Hoveddører!A$4,Hoveddører!G22,\"\"))","v":""}]
[{"$f":"IF(Produksjonsbeskrivelse!C$199=Hoveddører!A$3,Hoveddører!D31,IF(Produksjonsbeskrivelse!C$199=Hoveddører!A$4,Hoveddører!G23,\"\"))","v":""}]
[{"$f":"IF(Produksjonsbeskrivelse!C$199=Hoveddører!A$3,Hoveddører!D32,IF(Produksjonsbeskrivelse!C$199=Hoveddører!A$4,Hoveddører!G24,\"\"))","v":""}]
[{"$f":"IF(Produksjonsbeskrivelse!C$199=Hoveddører!A$3,Hoveddører!D33,IF(Produksjonsbeskrivelse!C$199=Hoveddører!A$4,Hoveddører!G25,\"\"))","v":""}]
[{"$f":"IF(Produksjonsbeskrivelse!C$199=Hoveddører!A$3,Hoveddører!D34,IF(Produksjonsbeskrivelse!C$199=Hoveddører!A$4,Hoveddører!G26,\"\"))","v":""}]
[{"$f":"IF(Produksjonsbeskrivelse!C$199=Hoveddører!A$3,Hoveddører!D35,IF(Produksjonsbeskrivelse!C$199=Hoveddører!A$4,Hoveddører!G27,\"\"))","v":""}]
[{"$f":"IF(Produksjonsbeskrivelse!C$199=Hoveddører!A$3,Hoveddører!D36,IF(Produksjonsbeskrivelse!C$199=Hoveddører!A$4,Hoveddører!G28,\"\"))","v":""}]
[{"$f":"IF(Produksjonsbeskrivelse!C$199=Hoveddører!A$3,Hoveddører!D37,IF(Produksjonsbeskrivelse!C$199=Hoveddører!A$4,Hoveddører!G29,\"\"))","v":""}]
[{"$f":"IF(Produksjonsbeskrivelse!C$199=Hoveddører!A$3,Hoveddører!D38,IF(Produksjonsbeskrivelse!C$199=Hoveddører!A$4,Hoveddører!G30,\"\"))","v":""}]
[{"$f":"IF(Produksjonsbeskrivelse!C$199=Hoveddører!A$3,Hoveddører!D39,IF(Produksjonsbeskrivelse!C$199=Hoveddører!A$4,Hoveddører!G31,\"\"))","v":""}]
[{"$f":"IF(Produksjonsbeskrivelse!C$199=Hoveddører!A$3,Hoveddører!D40,IF(Produksjonsbeskrivelse!C$199=Hoveddører!A$4,Hoveddører!G32,\"\"))","v":""}]
[{"$f":"IF(Produksjonsbeskrivelse!C$199=Hoveddører!A$3,Hoveddører!D41,IF(Produksjonsbeskrivelse!C$199=Hoveddører!A$4,Hoveddører!G33,\"\"))","v":""}]
[{"$f":"IF(Produksjonsbeskrivelse!C$199=Hoveddører!A$3,Hoveddører!D42,IF(Produksjonsbeskrivelse!C$199=Hoveddører!A$4,Hoveddører!G34,\"\"))","v":""}]

{"sheet":"Materialvalg","index":17,"n_rows":1432,"n_cols":20,"rows_kept":1432,"cut":false,"hidden":true,"merged":[[1104,5,1104,7]]}
[null,null,null,null,null,null,null,null,null,"Prisstigning fra","okt. 11",154.6]
[null,null,null,null,null,null,null,null,null,"Prisstigning til",{"$f":"Produksjonsbeskrivelse!D55","v":"00:00:00"},{"$f":"Produksjonsbeskrivelse!B55","v":0},"Tømrerkostnad:",{"$f":"'Vedlikehold selger'!F51+'Vedlikehold selger'!F51*'Vedlikehold selger'!F49","v":449.24}]
[null,null,null,null,null,null,null,null,null,"Prisstigning i perioden",null,{"$f":"(L2-L1)/L1","v":-1}]
[null,null,null,null,null,null,null,"DB-Konsmo",null,"DB",null,null,"Prisstigning","Moms","Sum"]
[null,null,"NOBB nr.",null,"Netto matr.","Mont.",null,0,"Netto matr.",{"$f":"'Vedlikehold selger'!F48","v":0.25},"Montasje","Sum",{"$f":"L3","v":-1},0.25]
[null,"GULV"]
[1]
[2,"Støpt plate"]
[3,"Golvsponplate (standard)",null,null,null,null,null,{"$f":"E9*$H$5","v":0},{"$f":"SUM(E9+H9)","v":0},{"$f":"I9*$J$5","v":0},{"$f":"F9*$N$2","v":0},{"$f":"SUM(I9:K9)","v":0},{"$f":"L9*$M$5","v":0},{"$f":"SUM(L9+M9)*$N$5","v":0},{"$f":"SUM(L9:N9)","v":0}]
[4,"Nedsenket for varmekabel"]
[5,"For lavtbyggende varmekabel"]
[]
[null,"Parkett",null,null,null,null,null,{"$f":"E13*$H$5","v":0},{"$f":"SUM(E13+H13)","v":0},{"$f":"I13*$J$5","v":0},{"$f":"F13*$N$2","v":0},{"$f":"SUM(I13:K13)","v":0},{"$f":"L13*$M$5","v":0},{"$f":"SUM(L13+M13)*$N$5","v":0},{"$f":"SUM(L13:N13)","v":0}]
[6,"14 mm Isoglass m/glidesjikt",null,null,226.755,0.3,null,{"$f":"E14*$H$5","v":0},{"$f":"SUM(E14+H14)","v":226.755},{"$f":"I14*$J$5","v":56.688749999999999},{"$f":"F14*$N$2","v":134.77199999999999},418.21575000000001,{"$f":"L14*$M$5","v":-418.21575000000001},{"$f":"SUM(L14+M14)*$N$5","v":0},{"$f":"SUM(L14:N14)","v":0}]
[7,"14 mm Ullpapp",null,null,316.19499999999999,0.3,null,{"$f":"E15*$H$5","v":0},{"$f":"SUM(E15+H15)","v":316.19499999999999},{"$f":"I15*$J$5","v":79.048749999999998},{"$f":"F15*$N$2","v":134.77199999999999},530.01575000000003,{"$f":"L15*$M$5","v":-530.01575000000003},{"$f":"SUM(L15+M15)*$N$5","v":0},{"$f":"SUM(L15:N15)","v":0}]
[8,"14 mm Malerpapp (tildekking)",null,null,376.255,0.3,null,{"$f":"E16*$H$5","v":0},{"$f":"SUM(E16+H16)","v":376.255},{"$f":"I16*$J$5","v":94.063749999999999},{"$f":"F16*$N$2","v":134.77199999999999},605.09075000000007,{"$f":"L16*$M$5","v":-605.09075000000007},{"$f":"SUM(L16+M16)*$N$5","v":0},{"$f":"SUM(L16:N16)","v":0}]
[9,"14 mm Plastfolie",null,null,309.17500000000001,0.3,null,{"$f":"E17*$H$5","v":0},{"$f":"SUM(E17+H17)","v":309.17500000000001},{"$f":"I17*$J$5","v":77.293750000000003},{"$f":"F17*$N$2","v":134.77199999999999},521.24074999999993,{"$f":"L17*$M$5","v":-521.24074999999993},{"$f":"SUM(L17+M17)*$N$5","v":0},{"$f":"SUM(L17:N17)","v":0}]
[]
[null,"Laminat",null,null,null,null,null,0,0,{"$f":"I19*$J$5","v":0},0,0,{"$f":"L19*$M$5","v":0},0,0]
[10,"Fibo-Trespo 8 mm Kronostep Vario",null,null,109.18300000000001,0.3,null,0,109.18300000000001,27.295750000000002,134.77199999999999,271.25075000000004,-271.25075000000004,0,0]
[11,"Fibo-Trespo 8 mm Kronostep Supernatural",null,null,118.4182,0.3,null,0,118.4182,29.60455,134.77199999999999,282.79475000000002,-282.79475000000002,0,0]
[12,"Fibo-Trespo 8 mm Ship's deck",null,null,168.0574,0.3,null,0,168.0574,42.01435,134.77199999999999,344.84375,-344.84375,0,0]
[13,"Fibo-Trespo 12 mm Floordream Silent",null,null,144.96939999999998,0.3,null,0,144.96939999999998,36.242349999999995,134.77199999999999,315.98374999999999,-315.98374999999999,0,0]
[14,"Fibo-Trespo 8 mm Fausfloor skifermønster",null,null,181.93100000000001,0.3,null,0,181.93100000000001,45.482750000000003,134.77199999999999,362.18574999999998,-362.18574999999998,0,0]
[]
[15,"Furugolv",null,null,null,null,null,0,0,{"$f":"I26*$J$5","v":0},0,0,{"$f":"L26*$M$5","v":0},0,0]
[16,"Furugolv 20x112 mm Natur, ubehandlet",null,null,177.64699999999999,0,null,0,177.64699999999999,44.411749999999998,0,222.05874999999997,-222.05874999999997,0,0]
[17,"Furugolv 20x112 mm Natur, hvitoljet",null,null,209.14699999999999,0,null,0,209.14699999999999,52.286749999999998,0,261.43374999999997,-261.43374999999997,0,0]
[18,"Furugolv 20x136 mm fargemalt",null,null,261.64699999999999,0,null,0,261.64699999999999,65.411749999999998,0,327.05874999999997,-327.05874999999997,0,0]
[null,null,null,null,null,null,null,0,0,0,0,0,0,0,0]
[null,"Spesial golv",null,null,null,null,null,0,0,0,0,0,0,0,0]
[19,"28x120 mm spaltegolv",null,null,null,null,null,{"$f":"E32*$H$5","v":0},{"$f":"SUM(E32+H32)","v":0},0,{"$f":"F32*$N$2","v":0},0,0,{"$f":"SUM(L32+M32)*$N$5","v":0},{"$f":"SUM(L32:N32)","v":0}]
[20,"36 mm Silencio Termo",null,null,null,null,null,{"$f":"E33*$H$5","v":0},0,0,{"$f":"F33*$N$2","v":0},0,0,{"$f":"SUM(L33+M33)*$N$5","v":0},0]
[null,null,null,null,null,null,null,{"$f":"E34*$H$5","v":0},0,0,{"$f":"F34*$N$2","v":0},0,0,{"$f":"SUM(L34+M34)*$N$5","v":0},0]
[null,"Gulv tekst romskjema"]
[]
[null,"PARKETT / LAMINAT"]
[null,"14 mm Parkett Boen Eik 3-stav Andante clic, Live Satin lakk, EIGV3PTD (standard)",43656200]
[null,"14 mm Parkett Boen Eik 3-stav Andante clic, Hvit pigmentert Live Matt lakk, EIGV32TD",43656177]
[null,"14 mm Parkett Boen Eik Plank 209 mm, Andante clic, Hvit pigmentert Live Pure, EBGV32FD",49254145]
[null,"14 mm Parkett: Södra Eik 3-stav clic, Mattlakk, 14x207x2200",23137144]
[null,"14 mm Parkett: Södra Eik 3-stav Mattlakk Hvit, 14x207x2200",46074764]
[null,"14 mm Parkett: Södra Eik 1-stav Mattlakk, 14x180x1800",46074745]
[null,"14 mm Parkett levert av KF AS. Type:"]
[null,"14 mm Parkett levert av forbruker."]
[null,"Laminatgulv levert av KF AS. Type:"]
[null,"Laminatgulv levert av forbruker."]
[]
[null,"ANNET"]
[null,"Fliser levert av forbruker."]
[null,"Vinylbelegg levert av forbruker."]
[null,"Teppe levert av forbruker."]
[null,"Fliser levert av KF AS. Type:  Prosjektflis"]
[null,"Fliser levert av KF AS. Type:"]
[null,"Vinylbelegg levert av KF AS. Type:"]
[null,"Teppe levert av KF AS. Type:"]
[]
[null,"FURUGULV"]
[null,"Furugulv 20x112 mm Natur, ubehandlet"]
[null,"Furugulv 20x112 mm Natur, hvitoljet"]
[null,"Furugulv 20x136 mm fargemalt"]
[]
[null,"VEGG"]
[]
[null,"HUNTONIT OG GIPS FOR TAPETSERING/MALING",null,null,false,0,null,null,null,null,null,null,null,null,false]
[null,"11 mm Huntonit trefiberplate m/fals, Grunnet Hvit (standard), h=2390",41817784,null,0,null,null,0,{"$f":"SUM(E66+H66)","v":0},{"$f":"I66*$J$5","v":0},{"$f":"F66*$N$2","v":0},{"$f":"SUM(I66:K66)","v":0},{"$f":"L66*$M$5","v":0},{"$f":"SUM(L66+M66)*$N$5","v":0},{"$f":"IF($O$65=FALSE,SUM(L66:N66),SUM(L66:N66)/24*27)","v":0}]
[null,"13 mm Gipsplate (standard), h=2390",0,null,0,null,null,{"$f":"E67*$H$5","v":0},{"$f":"SUM(E67+H67)","v":0},{"$f":"I67*$J$5","v":0},{"$f":"F67*$N$2","v":0},{"$f":"SUM(I67:K67)","v":0},{"$f":"L67*$M$5","v":0},{"$f":"SUM(L67+M67)*$N$5","v":0},{"$f":"IF($O$65=FALSE,SUM(L67:N67),SUM(L67:N67)/24*27)","v":0}]
[null,"11 mm Huntonit trefiberplate m/fals, Grunnet Hvit, h=2740",41817841]
[null,"13 mm Gipsplate, h>2400",0]
[]
[null,"VED PROSJEKT"]
[null,"13 mm Gipsplate (standard),  -  sparklet og malt",0]
[null,null,null,null,null,null,null,null,null,null,null,null,null,null,{"$f":"IF($O$65=FALSE,SUM(L73:N73),SUM(L73:N73)/24*27)","v":0}]
[null,"HUNTONIT BASIC WALL - KOSTEMALT PANELPLATE",null,null,null,null,null,{"$f":"E74*$H$5","v":0},{"$f":"SUM(E74+H74)","v":0},{"$f":"I74*$J$5","v":0},{"$f":"F74*$N$2","v":0},{"$f":"SUM(I74:K74)","v":0},{"$f":"L74*$M$5","v":0},{"$f":"SUM(L74+M74)*$N$5","v":0},{"$f":"IF($O$65=FALSE,SUM(L74:N74),SUM(L74:N74)/24*27)","v":0}]
[null,"Huntonit Skygge 5 bord, Kostemalt Hvit NCS S 0502-Y Vannbasert acryl Glans 20, h=2390",42750445,null,59.431999999999988,0.1,null,{"$f":"E75*$H$5","v":0},59.431999999999988,{"$f":"I75*$J$5","v":14.857999999999997},{"$f":"F75*$N$2","v":44.924000000000007},119.214,{"$f":"L75*$M$5","v":-119.214},{"$f":"SUM(L75+M75)*$N$5","v":0},{"$f":"IF($O$65=FALSE,SUM(L75:N75),SUM(L75:N75)/24*27)","v":0}]
[null,"Huntonit Skygge 5 bord, Kostemalt Brilliant Hvit NCS S 0500-N Vannbasert acryl Glans 20, h=2390",49768354]
[null,"Huntonit Skygge 5 bord, Kostemalt Caffelatte NCS S 1005-Y30R Vannbasert acryl Glans 20, h=2390",42750536]
[null,"Huntonit Skygge 5 bord, Kostemalt Frost NCS S 1500-N Vannbasert acryl Glans 20, h=2390",42750555]
[null,"Huntonit Skygge 5 bord, Kostemalt Mist NCS S 3000-N Vannbasert acryl Glans 20, h=2390",49768422]
[null,"Huntonit Skygge 5 bord, Kostemalt Sand NCS S 2502-Y Vannbasert acryl Glans 20, h=2390",49768437]
[null,"Huntonit Skygge 5 bord, Kostemalt Earth NCS S 4005 Y20R Vannbasert acryl Glans 20, h=2390",49768494]
[null,"Huntonit Skygge 5 bord, Kostemalt Pepper NCS S 6502-Y (spesialresept) Vannbasert acryl Glans 20, h=2390",45735926]
[null,"Huntonit Skygge 5 bord, Kostemalt Soft Menthol NCS S 1706 G15Y Vannbasert acryl Glans 20, h=2390",49768456]
[null,"Huntonit Skygge 5 bord, Kostemalt Soft Eucalyptus NCS S 5608 B78G Vannbasert acryl Glans 20, h=2390",49768745]
[null,"Huntonit Skygge 5 bord, Kostemalt Terracotta NCS S 3923 Y47R Vannbasert acryl Glans 20, h=2390",49768513]
[null,"Huntonit Skygge 5 bord, Kostemalt Deep Ocean NCS S 7010 B10G Vannbasert acryl Glans 20, h=2390",49774673]
[null,"Huntonit Perle 5 bord, Kostemalt Hvit NCS S 0502-Y Vannbasert acryl Glans 20, h=2390",42749276]
[null,"Huntonit Perle 5 bord, Kostemalt Brilliant Hvit NCS S 0500-N Vannbasert acryl Glans 20, h=2390",49768392]
[null,"Huntonit Perle 5 bord, Kostemalt Caffelatte NCS S 1005-Y30R Vannbasert acryl Glans 20, h=2390",42750203]
[null,"Huntonit Perle 5 bord, Kostemalt Frost NCS S 1500-N Vannbasert acryl Glans 20, h=2390",42750222]
[null,"Huntonit Faspanel 8 bord, Kostemalt Hvit NCS S 0502-Y Vannbasert acryl Glans 20, h=2390",42746086,null,59.431999999999988,0.1,null,{"$f":"E91*$H$5","v":0},59.431999999999988,{"$f":"I91*$J$5","v":14.857999999999997},{"$f":"F91*$N$2","v":44.924000000000007},119.214,{"$f":"L91*$M$5","v":-119.214},{"$f":"SUM(L91+M91)*$N$5","v":0},{"$f":"IF($O$65=FALSE,SUM(L91:N91),SUM(L91:N91)/24*27)","v":0}]
[null,"Huntonit Faspanel 8 bord, Kostemalt Caffelatte NCS S 1005-Y30R Vannbasert acryl Glans 20, h=2390",42549057]
[null,"Huntonit Faspanel 8 bord, Kostemalt Frost NCS S 1500-N Vannbasert acryl Glans 20, h=2390",42746234]
[null,"Huntonit Faspanel 6 bord, Kostemalt Hvit NCS S 0502-Y Vannbasert acryl Glans 20, h=2390",42746283]
[null,"Huntonit Faspanel 3 bord, Kostemalt Brilliant Hvit NCS S 0500-N Vannbasert acryl Glans 20, h=2390",48633336]
[null,"Huntonit Antikk Microfuge, Kostemalt Hvit NCS S 0502-Y Vannbasert acryl Glans 20, h=2390",45223602]
[null,"Huntonit Antikk Microfuge, Kostemalt Brilliant Hvit NCS S 0500-N Vannbasert acryl Glans 20, h=2390",48632833]
[null,"Huntonit Antikk Microfuge, Kostemalt Frost NCS S 1500-N Vannbasert acryl Glans 20, h=2390",48633317]
[]
[null,"Huntonit Skygge 5 bord, Kostemalt Hvit NCS S 0502-Y Vannbasert acryl Glans 20, h=2740",42750574]
[null,"Huntonit Skygge 5 bord, Kostemalt Brilliant Hvit NCS S 0500-N Vannbasert acryl Glans 20, h=2740",49768373]
[null,"Huntonit Skygge 5 bord, Kostemalt Caffelatte NCS S 1005-Y30R Vannbasert acryl Glans 20, h=2740",42750593]
[null,"Huntonit Skygge 5 bord, Kostemalt Frost NCS S 1500-N Vannbasert acryl Glans 20, h=2740",42750604]
[null,"Huntonit Perle 5 bord, Kostemalt Hvit NCS S 0502-Y Vannbasert acryl Glans 20, h=2740",42750275]
[null,"Huntonit Perle 5 bord, Kostemalt Brilliant Hvit NCS S 0500-N Vannbasert acryl Glans 20, h=2740",49768403]
[null,"Huntonit Perle 5 bord, Kostemalt Caffelatte NCS S 1005-Y30R Vannbasert acryl Glans 20, h=2740",42750324]
[null,"Huntonit Perle 5 bord, Kostemalt Frost NCS S 1500-N Vannbasert acryl Glans 20, h=2740",42750343]
[null,"Huntonit Faspanel 8 bord, Kostemalt Hvit NCS S 0502-Y Vannbasert acryl Glans 20, h=2740",42746253]
[null,"Huntonit Faspanel 8 bord, Kostemalt Caffelatte NCS S 1005-Y30R Vannbasert acryl Glans 20, h=2740",42746264]
[null,"Huntonit Faspanel 8 bord, Kostemalt Frost NCS S 1500-N Vannbasert acryl Glans 20, h=2740",42746272]
[null,"Huntonit Faspanel 6 bord, Kostemalt Hvit NCS S 0502-Y Vannbasert acryl Glans 20, h=2740",42746302]
[null,"Huntonit Faspanel 3 bord, Kostemalt Brilliant Hvit NCS S 0500-N Vannbasert acryl Glans 20, h=2740",48633340]
[null,"Huntonit Antikk Microfuge, Kostemalt Hvit NCS S 0502-Y Vannbasert acryl Glans 20, h=2740",45223617]
[null,"Huntonit Antikk Microfuge, Kostemalt Brilliant Hvit NCS S 0500-N Vannbasert acryl Glans 20, h=2740",48632852]
[null,"Huntonit Antikk Microfuge, Kostemalt Frost NCS S 1500-N Vannbasert acryl Glans 20, h=2740",48633321]
[]
[11,"HUNTONIT BASIC WALL - RULLEMALT PANELPLATE"]
[null,"Huntonit Faspanel 3 bord, Rullemalt Hvit NCS S 0502-Y Vannbasert acryl Glans 20, h=2390",29737905]
[null,"Huntonit Faspanel 3 bord, Rullemalt Caffelatte NCS S 1005-Y30R Vannbasert acryl Glans 20, h=2390",29738036]
[null,"Huntonit Antikk, Rullemalt Hvit NCS S 0502-Y Vannbasert acryl Glans 20, h=2390",29737103]
[]
[null,"Huntonit Faspanel 3 bord, Rullemalt Hvit NCS S 0502-Y Vannbasert acryl Glans 20, h=2740",29737921]
[null,"Huntonit Faspanel 3 bord, Rullemalt Caffelatte NCS S 1005-Y30R Vannbasert acryl Glans 20, h=2740",29738044]
[null,"Huntonit Antikk, Rullemalt Hvit NCS S 0502-Y Vannbasert acryl Glans 20, h=2740",29737095]
[]
[17,"HUNTONIT TEXTURE WALL"]
[18,"Huntonit Wood wall Lasert, Frappe faspanel 5 bord, h=2390",45735945]
[null,"Huntonit Wood wall Lasert, Cappuccino faspanel 5 bord, h=2390",45735953]
[null,"Huntonit Wood wall Lasert, Mocca faspanel 5 bord, h=2390",45735964]
[null,"Huntonit Cottage wall, Hvitkalket låvepanel, h=2390",47100775]
[null,"Huntonit Cottage wall, Hvit sawcut låvepanel, h=2391",47133940]
[null,"Huntonit Vintage wall, Hvitkalket faspanel 8 bord, h=2390",45735972]
[null,"Huntonit Wood wall faspanel 5 bord, Hvit NCS S 0502-Y Vannbasert acryl Glans 20, h=2390",47133955]
[null,"Huntonit Wood wall faspanel 5 bord, Sand NCS S 2502-Y Vannbasert acryl Glans 20, h=2390",47133966]
[null,"Huntonit Wood wall faspanel 5 bord, Mist NCS S 3000-N Vannbasert acryl Glans 20, h=2390",47133974]
[]
[23,"PANELBORD"]
[null,"Huntonit Panelbord Skygge, Kostemalt Hvit NCS S 0502-Y Vann acryl Glans 20, 11x142x2420 mm (netto 11x125x2400)",49511401]
[25,"Huntonit Panelbord Skygge, Kostemalt Hvit NCS S 0502-Y Vann acryl Glans 20, 11x200x2420 mm (netto 11x180x2400)",45405076]
[26,"Huntonit Wood Panelbord Skygge, KM Hvit NCS S 0502-Y Vann acryl Glans 20, 11x200x2420 mm (netto 11x180x2400)",45405080]
[null,"Huntonit Wood Panelbord Skygge, KM Sand NCS S 2502 Y Vann acryl Glans 20, 11x200x2420 mm (netto 11x180x2400)",46741240]
[null,"Huntonit Wood Panelbord Skygge, KM Mist NCS S 3000 N Vann acryl Glans 20, 11x200x2420 mm (netto 11x180x2400)",46741266]
[27,"Huntonit Focus MDF Panelbord Skygge, Kostemalt Hvit NCS S 0502-Y, Acryl G20, 11x142x2420 mm (netto 11x125x2400)",48769435]
[28,"Huntonit Focus MDF Panelbord Skygge, Kostemalt Hvit NCS S 0502-Y, Acryl G20, 11x142x3020 mm (nto 11x125x3000)",48769446]
[null,"Huntonit Focus MDF Panelbord Fas Kostemalt Hvit NCS S 0502-Y Acryl G20, 11x142x2420 mm (netto 11x125x2400)",48769454]
[]
[29,"HUNTONIT FOCUS MDF - KOSTEMALT PANELPLATE"]
[null,"Huntonit Focus MDF Skygge, Kostemalt Hvit NCS S 0502-Y Vannbasert acryl Glans 20, h=2390",44120156]
[null,"Huntonit Focus MDF Skygge, Kostemalt Caffelatte NCS S 1005-Y30R Vannbasert acryl Glans 20, h=2390",44120160]
[null,"Huntonit Focus MDF Skygge, Kostemalt Frost NCS S 1500-N Vannbasert acryl Glans 20, h=2390",45377882]
[null,"Huntonit Focus MDF Perle, Kostemalt Hvit NCS S 0502-Y Vannbasert acryl Glans 20, h=2390",44120141]
[null,"Huntonit Focus MDF Perle, Kostemalt Caffelatte NCS S 1005-Y30R Vannbasert acryl Glans 20, h=2390",44120118]
[null,"Huntonit Focus MDF Perle, Kostemalt Frost NCS S 1500-N Vannbasert acryl Glans 20, h=2390",45377901]
[null,"Huntonit Focus MDF Faspanel 6 bord, Kostemalt Hvit NCS S 0502-Y Vannbasert acryl Glans 20, h=2390",30345680]
[null,"Huntonit Focus MDF Faspanel 6 bord, Kostemalt Frost NCS S 1500-N Vannbasert acryl Glans 20, h=2390",45377863]
[]
[null,"Huntonit Focus MDF Skygge, Kostemalt Hvit NCS S 0502-Y Vannbasert acryl Glans 20, h=2740",44120213]
[null,"Huntonit Focus MDF Skygge, Kostemalt Caffelatte NCS S 1005-Y30R Vannbasert acryl Glans 20, h=2740",44120224]
[null,"Huntonit Focus MDF Perle, Kostemalt Hvit NCS S 0502-Y Vannbasert acryl Glans 20, h=2740",44120186]
[null,"Huntonit Focus MDF Perle, Kostemalt Caffelatte NCS S 1005-Y30R Vannbasert acryl Glans 20, h=2740",44120175]
[null,"Huntonit Focus MDF Faspanel 6 bord, Kostemalt Hvit NCS S 0502-Y Vannbasert acryl Glans 20, h=2740",30345722]
[]
[34,"HUNTONIT FOCUS MDF - UMALTE PANELPLATER",null,null,null,null,null,{"$f":"E163*$H$5","v":0},{"$f":"SUM(E163+H163)","v":0},{"$f":"I163*$J$5","v":0},{"$f":"F163*$N$2","v":0},0,{"$f":"L163*$M$5","v":0},{"$f":"SUM(L163+M163)*$N$5","v":0},{"$f":"IF($O$65=FALSE,SUM(L163:N163),SUM(L163:N163)/24*27)","v":0}]
[35,"Huntonit Focus MDF Skygge 5 bord, ubehandlet, h=2390",29624988,null,15.432799999999986,0,null,{"$f":"E164*$H$5","v":0},15.432799999999986,{"$f":"I164*$J$5","v":3.8581999999999965},{"$f":"F164*$N$2","v":0},19.290999999999983,{"$f":"L164*$M$5","v":-19.290999999999983},{"$f":"SUM(L164+M164)*$N$5","v":0},{"$f":"IF($O$65=FALSE,SUM(L164:N164),SUM(L164:N164)/24*27)","v":0}]
[36,"Huntonit Focus MDF Perle 5 bord, ubehandlet, h=2390",29624970,null,15.432799999999986,0,null,{"$f":"E165*$H$5","v":0},15.432799999999986,{"$f":"I165*$J$5","v":3.8581999999999965},{"$f":"F165*$N$2","v":0},19.290999999999983,{"$f":"L165*$M$5","v":-19.290999999999983},{"$f":"SUM(L165+M165)*$N$5","v":0},{"$f":"IF($O$65=FALSE,SUM(L165:N165),SUM(L165:N165)/24*27)","v":0}]
[]
[37,"HUNTINIT BRANNIT ",null,null,null,null,null,{"$f":"E167*$H$5","v":0},0,{"$f":"I167*$J$5","v":0},{"$f":"F167*$N$2","v":0},0,{"$f":"L167*$M$5","v":0},{"$f":"SUM(L167+M167)*$N$5","v":0},{"$f":"IF($O$65=FALSE,SUM(L167:N167),SUM(L167:N167)/24*27)","v":0}]
[38,"Huntonit Brannit vegg, Rullemalt Hvit NCS S 0502-Y, h=2390",29737863,null,112.04959999999998,0.1,null,{"$f":"E168*$H$5","v":0},112.04959999999998,{"$f":"I168*$J$5","v":28.012399999999996},{"$f":"F168*$N$2","v":44.924000000000007},184.98599999999999,{"$f":"L168*$M$5","v":-184.98599999999999},{"$f":"SUM(L168+M168)*$N$5","v":0},{"$f":"IF($O$65=FALSE,SUM(L168:N168),SUM(L168:N168)/24*27)","v":0}]
[null,"Huntonit Brannit vegg, Rullemalt Hvit NCS S 0502-Y, h=2740",29737871]
[]
[39,"VÅTROMSVEGG"]
[40,"13 mm gips for lett tapet/maling",0]
[41,"15 mm OSB-striper+13 mm gips for fliser",0]
[42,"Rupanel + Litex ",0]
[43,"15 mm OSB-striper+11 mm Fibo Crescendo:",0]
[44,"15 mm OSB-striper+11 mm Fibo Fortissimo:",0]
[45,"15 mm OSB-striper+11 mm Fibo Adagio:",0]
[46,"15 mm OSB-striper+11 mm Fibo Legato:",0]
[]
[47,"UBEHANDLET FURUPANEL",null,null,null,null,null,{"$f":"E180*$H$5","v":0},0,{"$f":"I180*$J$5","v":0},{"$f":"F180*$N$2","v":0},0,{"$f":"L180*$M$5","v":0},{"$f":"SUM(L180+M180)*$N$5","v":0},{"$f":"IF($O$65=FALSE,SUM(L180:N180),SUM(L180:N180)/24*27)","v":0}]
[48,"12x120 mm skyggepanel, furu (10 mm fuge)",0,null,56.769056063999969,0.246,null,0,56.769056063999969,14.192264015999992,110.51304,181.47436007999997,-181.47436007999997,0,0]
[49,"14x120 mm skyggepanel, furu (10 mm fuge)",0,null,63.76556995199995,0.246,null,0,63.76556995199995,15.941392487999988,110.51304,190.22000243999994,-190.22000243999994,0,0]
[50,"14x145 mm skyggepanel, furu (10 mm fuge)",0,null,55.956688703999987,0.246,null,0,55.956688703999987,13.989172175999997,110.51304,180.45890087999999,-180.45890087999999,0,0]
[51,"12x120 mm rundfaspanel, furu (perlestaff)",0,null,56.769056063999969,0.246,null,0,56.769056063999969,14.192264015999992,110.51304,181.47436007999997,-181.47436007999997,0,0]
[52,"14x95 mm rundfaspanel, furu (perlestaff)",0,null,75.533291423999984,0.246,null,0,75.533291423999984,18.883322855999996,110.51304,204.92965427999997,-204.92965427999997,0,0]
[53,"14x120 mm rundfaspanel, furu (perlestaff)",0,null,63.76556995199995,0.246,null,0,63.76556995199995,15.941392487999988,110.51304,190.22000243999994,-190.22000243999994,0,0]
[54,"14x120 mm glattpanel, furu",0,null,63.76556995199995,0.246,null,0,63.76556995199995,15.941392487999988,110.51304,190.22000243999994,-190.22000243999994,0,0]
[55,"14x145 mm glattpanel, furu",0,null,55.956688703999987,0.246,null,0,55.956688703999987,13.989172175999997,110.51304,180.45890087999999,-180.45890087999999,0,0]
[]
[56,"UBEHANDLET GRANPANEL",null,null,null,null,null,{"$f":"E190*$H$5","v":0},0,{"$f":"I190*$J$5","v":0},{"$f":"F190*$N$2","v":0},0,{"$f":"L190*$M$5","v":0},{"$f":"SUM(L190+M190)*$N$5","v":0},{"$f":"IF($O$65=FALSE,SUM(L190:N190),SUM(L190:N190)/24*27)","v":0}]
[57,"12x120 mm skyggepanel, gran (10 mm fuge)",0,null,45.812251295999985,0.246,null,0,45.812251295999985,11.453062823999996,110.51304,167.77835411999999,-167.77835411999999,0,0]
[58,"14x145 mm skyggepanel, gran (10 mm fuge)",0,null,43.074863424000014,0.246,null,0,43.074863424000014,10.768715856000004,110.51304,164.35661928000002,-164.35661928000002,0,0]
[59,"14x95 mm rundfaspanel, gran (perlestaff)",0,null,64.670779295999992,0.25,null,0,64.670779295999992,16.167694823999998,112.31,193.14847412,-193.14847412,0,0]
[60,"14x120 mm glattpanel, gran",0,null,50.960629439999991,0.246,null,0,50.960629439999991,12.740157359999998,110.51304,174.21382679999999,-174.21382679999999,0,0]
[61,"14x145 mm glattpanel, gran",0,null,43.074863424000014,0.246,null,0,43.074863424000014,10.768715856000004,110.51304,164.35661928000002,-164.35661928000002,0,0]
[]
[null,null,null,null,null,null,null,{"$f":"E197*$H$5","v":0},{"$f":"SUM(E197+H197)","v":0},{"$f":"I197*$J$5","v":0},{"$f":"F197*$N$2","v":0},{"$f":"SUM(I197:K197)","v":0},{"$f":"L197*$M$5","v":0},{"$f":"SUM(L197+M197)*$N$5","v":0},{"$f":"IF($O$65=FALSE,SUM(L197:N197),SUM(L197:N197)/24*27)","v":0}]
[null,"HIMLING / SKRÅTAK"]
[]
[1,"HUNTONIT BASIC CEILING",null,null,false,0]
[2,"Huntonit Antikk (standard), Rullemalt Hvit glatt NCS S 0502-Y Vannbasert acryl Glans 20, 11x620x1220 mm",29721180,null,0,null,null,{"$f":"E201*$H$5","v":0},{"$f":"SUM(E201+H201)","v":0},{"$f":"I201*$J$5","v":0},{"$f":"F201*$N$2","v":0},{"$f":"SUM(I201:K201)","v":0},{"$f":"L201*$M$5","v":0},{"$f":"SUM(L201+M201)*$N$5","v":0},{"$f":"SUM(L201:N201)","v":0}]
[null,"Huntonit Antikk, Kostemalt Brilliant Hvit NCS S 0500-N Vannbasert acryl Glans 20, 11x620x1220 mm",48632814]
[null,"Huntonit Antikk, Kostemalt Brilliant Hvit NCS S 0500-N Vannbasert acryl Glans 20, 11x300x1220 mm",48632825]
[]
[null,"GIPSHIMLING"]
[3,"13 mm gipsplate 2-falset (standard)",null,null,0,null,null,{"$f":"E206*$H$5","v":0},{"$f":"SUM(E206+H206)","v":0},{"$f":"I206*$J$5","v":0},{"$f":"F206*$N$2","v":0},{"$f":"SUM(I206:K206)","v":0},{"$f":"L206*$M$5","v":0},{"$f":"SUM(L206+M206)*$N$5","v":0},{"$f":"SUM(L206:N206)","v":0}]
[null,"13 mm gipsplate 4-falset",null,null,null,null,null,{"$f":"E207*$H$5","v":0},{"$f":"SUM(E207+H207)","v":0},{"$f":"I207*$J$5","v":0},{"$f":"F207*$N$2","v":0},{"$f":"SUM(I207:K207)","v":0},{"$f":"L207*$M$5","v":0},{"$f":"SUM(L207+M207)*$N$5","v":0},{"$f":"SUM(L207:N207)","v":0}]
[]
[null,"VED PROSJEKT"]
[null,"13 mm Gipsplate (2-falset standard),  -  sparklet og malt"]
[]
[null,"HUNTONIT TEXTURE CEILING"]
[null,"Huntonit Plankett Rullemalt Hvit struktur, NCS S 0502-Y Vannbasert acryl Glans 20, 11x300x1820mm",43822293]
[null,"Huntonit Classique Rullemalt Hvit struktur, NCS S 0502-Y Vannbasert acryl Glans 20, 11x300x1820mm",29726833]
[null,"Huntonit Classique Rullemalt Hvit struktur, NCS S 0502-Y Vannbasert acryl Glans 20, 11x300x1220mm",29734407]
[null,"Huntonit Classique Rullemalt Hvit struktur, NCS S 0502-Y Vannbasert acryl Glans 20, 11x620x1220mm",29721297]
[null,"Huntonit Symfoni Rullemalt Hvit struktur, NCS S 0502-Y Vannbasert acryl Glans 20, 11x300x1820mm",29734449]
[null,"Huntonit Symfoni Rullemalt Hvit struktur, NCS S 0502-Y Vannbasert acryl Glans 20, 11x300x1220mm",29734431]
[null,"Huntonit Wood Ceiling lasert Frappe, 11x300x1820mm",46741285]
[]
[null,"BRANNIT CEILING",null,null,null,null,null,{"$f":"E221*$H$5","v":0},{"$f":"SUM(E221+H221)","v":0},{"$f":"I221*$J$5","v":0},{"$f":"F221*$N$2","v":0},{"$f":"SUM(I221:K221)","v":0},{"$f":"L221*$M$5","v":0},{"$f":"SUM(L221+M221)*$N$5","v":0},{"$f":"SUM(L221:N221)","v":0}]
[null,"Huntonitt Brannit tak, Rullemalt Hvit NCS S 0502-Y, 11x620x1220",29737111,null,61.95,0,null,0,61.95,15.487500000000001,0,77.4375,-77.4375,0,0]
[null,null,null,null,null,null,null,0,0,0,0,0,0,0,0]
[null,"MALT PANELBORD (HUNTONIT - MDF)"]
[null,"Södra Bever Takpanel Eksklusiv (MDF), Kostemalt Hvit NCS S 0502-Y Glans 15, 11x128x4200 mm",46251183]
[null,"Huntonit Panelbord Skygge, Kostemalt Hvit NCS S 0502-Y Vann acryl Glans 20, 11x142x2420 mm (netto 11x125x2400)",49511401]
[null,"Huntonit Panelbord Skygge, Kostemalt Hvit NCS S 0502-Y Vann acryl Glans 20, 11x200x2420 mm (netto 11x180x2400)",45405076]
[null,"Huntonit Wood Panelbord Skygge, KM Hvit NCS S 0502-Y Vann acryl Glans 20, 11x200x2420 mm (netto 11x180x2400)",45405080]
[null,"Huntonit Wood Panelbord Skygge, KM Sand NCS S 2502 Y Vann acryl Glans 20, 11x200x2420 mm (netto 11x180x2400)",46741240]
[null,"Huntonit Wood Panelbord Skygge, KM Mist NCS S 3000 N Vann acryl Glans 20, 11x200x2420 mm (netto 11x180x2400)",46741266]
[null,"Huntonit Focus MDF Panelbord Skygge, Kostemalt Hvit NCS S 0502-Y, Acryl G20, 11x142x2420 mm (netto 11x125x2400)",48769435]
[null,"Huntonit Focus MDF Panelbord Skygge, Kostemalt Hvit NCS S 0502-Y, Acryl G20, 11x142x3020 mm (nto 11x125x3000)",48769446]
[null,"Huntonit Focus MDF Panelbord Skygge, Sprøytemalt Hvit NCS S 0502-Y, Acryl G20, 11x142x3620 mm (nto 11x125x3600)",48917612]
[null,"Huntonit Focus MDF Panelbord Skygge, Sprøytemalt Hvit NCS S 0502-Y, Acryl G20, 11x142x4220 mm (nto 11x125x4200)",48917623]
[null,"Huntonit Focus MDF Panelbord Fas Kostemalt Hvit NCS S 0502-Y Acryl G20, 11x142x2420 mm (netto 11x125x2400)",48769454]
[]
[null,"UBEHANDLET PANEL - FURU",null,null,null,null,null,0,0,0,0,0,0,0,0]
[8,"12x120 mm skyggepanel, furu (10 mm fuge)",null,null,null,0.16500000000000001,null,0,0,0,74.124600000000001,74.124600000000001,-74.124600000000001,0,0]
[9,"14x145 mm skyggepanel, furu (10 mm fuge)",null,null,26.468811600000002,0.16500000000000001,null,0,26.468811600000002,6.6172029000000006,74.124600000000001,107.21061450000001,-107.21061450000001,0,0]
[10,"14x120 mm glattpanel, furu",null,null,31.891645799999985,0.16500000000000001,null,0,31.891645799999985,7.9729114499999962,74.124600000000001,113.98915724999998,-113.98915724999998,0,0]
[11,"14x145 mm glattpanel, furu",null,null,26.468811600000002,0.16500000000000001,null,0,26.468811600000002,6.6172029000000006,74.124600000000001,107.21061450000001,-107.21061450000001,0,0]
[null,null,null,null,null,null,null,0,0,0,0,0,0,0,0]
[null,"UBEHANDLET PANEL - GRAN",null,null,null,null,null,0,0,0,0,0,0,0,0]
[12,"12x120 mm skyggepanel, gran (10 mm fuge)",null,null,19.424063400000001,0.16500000000000001,null,0,19.424063400000001,4.8560158500000004,74.124600000000001,98.404679250000001,-98.404679250000001,0,0]
[13,"14x145 mm skyggepanel, gran (10 mm fuge)",null,null,17.523099600000016,0.16500000000000001,null,0,17.523099600000016,4.380774900000004,74.124600000000001,96.028474500000016,-96.028474500000016,0,0]
[14,"14x120 mm glattpanel, gran",null,null,22.999326000000003,0.16500000000000001,null,0,22.999326000000003,5.7498315000000009,74.124600000000001,102.87375750000001,-102.87375750000001,0,0]
[15,"14x145 mm glattpanel, gran",null,null,17.523099600000016,0.16500000000000001,null,0,17.523099600000016,4.380774900000004,74.124600000000001,96.028474500000016,-96.028474500000016,0,0]
[null,null,null,null,null,null,null,0,0,0,0,0,0,0,0]
[null,"Badstuepanel",null,null,null,null,null,0,0,0,0,0,0,0,0]
[19,null,null,null,null,null,null,{"$f":"E250*$H$5","v":0},{"$f":"SUM(E250+H250)","v":0},{"$f":"I250*$J$5","v":0},{"$f":"F250*$N$2","v":0},{"$f":"SUM(I250:K250)","v":0},{"$f":"L250*$M$5","v":0},{"$f":"SUM(L250+M250)*$N$5","v":0},{"$f":"SUM(L250:N250)","v":0}]
[20,null,null,null,null,null,null,{"$f":"E251*$H$5","v":0},{"$f":"SUM(E251+H251)","v":0},{"$f":"I251*$J$5","v":0},{"$f":"F251*$N$2","v":0},{"$f":"SUM(I251:K251)","v":0},{"$f":"L251*$M$5","v":0},{"$f":"SUM(L251+M251)*$N$5","v":0},{"$f":"SUM(L251:N251)","v":0}]
[null,"HOVEDDØRER"]
[null,null,null,null,"Bruttopris","Netto"]
[null,"SWEDOOR CLASSIC",null,null,"fabrikkliste","kalkpris"]
[11,"Swedoor Albinoni, klart glass",null,null,8229,-401067059.25,null,{"$f":"E255*$H$5","v":0},{"$f":"SUM(F255+H255)","v":-401067059.25},{"$f":"I255*$J$5","v":-100266764.8125},{"$f":"G255*$N$2","v":0},{"$f":"SUM(I255:K255)","v":-501333824.0625},{"$f":"L255*$M$5","v":501333824.0625},{"$f":"SUM(L255+M255)*$N$5","v":0},{"$f":"SUM(L255:N255)","v":0}]
[3,"Swedoor Beethoven",null,null,7495,-365293183.75,null,{"$f":"E256*$H$5","v":0},{"$f":"SUM(F256+H256)","v":-365293183.75},{"$f":"I256*$J$5","v":-91323295.9375},{"$f":"G256*$N$2","v":0},{"$f":"SUM(I256:K256)","v":-456616479.6875},{"$f":"L256*$M$5","v":456616479.6875},{"$f":"SUM(L256+M256)*$N$5","v":0},{"$f":"SUM(L256:N256)","v":0}]
[13,"Swedoor Bizet, cotswold glass",null,null,7643,-372506444.75,null,{"$f":"E257*$H$5","v":0},{"$f":"SUM(F257+H257)","v":-372506444.75},{"$f":"I257*$J$5","v":-93126611.1875},{"$f":"G257*$N$2","v":0},{"$f":"SUM(I257:K257)","v":-465633055.9375},{"$f":"L257*$M$5","v":465633055.9375},{"$f":"SUM(L257+M257)*$N$5","v":0},{"$f":"SUM(L257:N257)","v":0}]
[35,"Swedoor Brahms, klart glass",null,null,6409,-312363444.25,null,{"$f":"E258*$H$5","v":0},{"$f":"SUM(F258+H258)","v":-312363444.25},{"$f":"I258*$J$5","v":-78090861.0625},{"$f":"G258*$N$2","v":0},{"$f":"SUM(I258:K258)","v":-390454305.3125},{"$f":"L258*$M$5","v":390454305.3125},{"$f":"SUM(L258+M258)*$N$5","v":0},{"$f":"SUM(L258:N258)","v":0}]
[32,"Swedoor Chopin, klart glass",null,null,11866,-578328074.5,null,{"$f":"E259*$H$5","v":0},{"$f":"SUM(F259+H259)","v":-578328074.5},{"$f":"I259*$J$5","v":-144582018.625},{"$f":"G259*$N$2","v":0},{"$f":"SUM(I259:K259)","v":-722910093.125},{"$f":"L259*$M$5","v":722910093.125},{"$f":"SUM(L259+M259)*$N$5","v":0},{"$f":"SUM(L259:N259)","v":0}]
[30,"Swedoor Clementi, cotswold glass",null,null,9080,-442543310,null,{"$f":"E260*$H$5","v":0},{"$f":"SUM(F260+H260)","v":-442543310},{"$f":"I260*$J$5","v":-110635827.5},{"$f":"G260*$N$2","v":0},{"$f":"SUM(I260:K260)","v":-553179137.5},{"$f":"L260*$M$5","v":553179137.5},{"$f":"SUM(L260+M260)*$N$5","v":0},{"$f":"SUM(L260:N260)","v":0}]
[25,"Swedoor Corelli, sandblåst/klart glass",null,null,12791,-623410955.75,null,0,-623410955.75,-155852738.9375,0,-779263694.6875,779263694.6875,0,0]
[26,"Swedoor Debussy, sandblåst/klart glass",null,null,12009,-585297644.25,null,{"$f":"E262*$H$5","v":0},{"$f":"SUM(F262+H262)","v":-585297644.25},{"$f":"I262*$J$5","v":-146324411.0625},{"$f":"G262*$N$2","v":0},{"$f":"SUM(I262:K262)","v":-731622055.3125},{"$f":"L262*$M$5","v":731622055.3125},{"$f":"SUM(L262+M262)*$N$5","v":0},{"$f":"SUM(L262:N262)","v":0}]
[27,"Swedoor Debussy, pardør, sandblåst/klart glass",null,null,23050,-1123416662.5,null,{"$f":"E263*$H$5","v":0},{"$f":"SUM(F263+H263)","v":-1123416662.5},{"$f":"I263*$J$5","v":-280854165.625},{"$f":"G263*$N$2","v":0},{"$f":"SUM(I263:K263)","v":-1404270828.125},{"$f":"L263*$M$5","v":1404270828.125},{"$f":"SUM(L263+M263)*$N$5","v":0},{"$f":"SUM(L263:N263)","v":0}]
[23,"Swedoor Delius, sandblåst/klart glass",null,null,12118,-590610113.5,null,{"$f":"E264*$H$5","v":0},{"$f":"SUM(F264+H264)","v":-590610113.5},{"$f":"I264*$J$5","v":-147652528.375},{"$f":"G264*$N$2","v":0},{"$f":"SUM(I264:K264)","v":-738262641.875},{"$f":"L264*$M$5","v":738262641.875},{"$f":"SUM(L264+M264)*$N$5","v":0},{"$f":"SUM(L264:N264)","v":0}]
[24,"Swedoor Delius, pardør, sandblåst/klart glass",null,null,23050,-1123416662.5,null,{"$f":"E265*$H$5","v":0},{"$f":"SUM(F265+H265)","v":-1123416662.5},{"$f":"I265*$J$5","v":-280854165.625},{"$f":"G265*$N$2","v":0},{"$f":"SUM(I265:K265)","v":-1404270828.125},{"$f":"L265*$M$5","v":1404270828.125},{"$f":"SUM(L265+M265)*$N$5","v":0},{"$f":"SUM(L265:N265)","v":0}]
[10,"Swedoor Grieg",null,null,6741,-328544543.25,null,{"$f":"E266*$H$5","v":0},{"$f":"SUM(F266+H266)","v":-328544543.25},{"$f":"I266*$J$5","v":-82136135.8125},{"$f":"G266*$N$2","v":0},{"$f":"SUM(I266:K266)","v":-410680679.0625},{"$f":"L266*$M$5","v":410680679.0625},{"$f":"SUM(L266+M266)*$N$5","v":0},{"$f":"SUM(L266:N266)","v":0}]
[2,"Swedoor Hȁndel, cotswold glass",null,null,8227,-400969582.75,null,{"$f":"E267*$H$5","v":0},{"$f":"SUM(F267+H267)","v":-400969582.75},{"$f":"I267*$J$5","v":-100242395.6875},{"$f":"G267*$N$2","v":0},{"$f":"SUM(I267:K267)","v":-501211978.4375},{"$f":"L267*$M$5","v":501211978.4375},{"$f":"SUM(L267+M267)*$N$5","v":0},{"$f":"SUM(L267:N267)","v":0}]
[6,"Swedoor Ives, klart glass",null,null,9056,-441373592,null,{"$f":"E268*$H$5","v":0},{"$f":"SUM(F268+H268)","v":-441373592},{"$f":"I268*$J$5","v":-110343398},{"$f":"G268*$N$2","v":0},{"$f":"SUM(I268:K268)","v":-551716990},{"$f":"L268*$M$5","v":551716990},{"$f":"SUM(L268+M268)*$N$5","v":0},{"$f":"SUM(L268:N268)","v":0}]
[9,"Swedoor Ives, pardør, klart glass",null,null,17874,-871147480.5,null,{"$f":"E269*$H$5","v":0},{"$f":"SUM(F269+H269)","v":-871147480.5},{"$f":"I269*$J$5","v":-217786870.125},{"$f":"G269*$N$2","v":0},{"$f":"SUM(I269:K269)","v":-1088934350.625},{"$f":"L269*$M$5","v":1088934350.625},{"$f":"SUM(L269+M269)*$N$5","v":0},{"$f":"SUM(L269:N269)","v":0}]
[22,"Swedoor Monteverdi, klart glass",null,null,9053,-441227377.25,null,{"$f":"E270*$H$5","v":0},{"$f":"SUM(F270+H270)","v":-441227377.25},{"$f":"I270*$J$5","v":-110306844.3125},{"$f":"G270*$N$2","v":0},{"$f":"SUM(I270:K270)","v":-551534221.5625},{"$f":"L270*$M$5","v":551534221.5625},{"$f":"SUM(L270+M270)*$N$5","v":0},{"$f":"SUM(L270:N270)","v":0}]
[34,"Swedoor Mozart, klart glass",null,null,12363,-602550984.75,null,{"$f":"E271*$H$5","v":0},{"$f":"SUM(F271+H271)","v":-602550984.75},{"$f":"I271*$J$5","v":-150637746.1875},{"$f":"G271*$N$2","v":0},{"$f":"SUM(I271:K271)","v":-753188730.9375},{"$f":"L271*$M$5","v":753188730.9375},{"$f":"SUM(L271+M271)*$N$5","v":0},{"$f":"SUM(L271:N271)","v":0}]
[4,"Swedoor Puccini",null,null,8074,-393512630.5,null,{"$f":"E272*$H$5","v":0},{"$f":"SUM(F272+H272)","v":-393512630.5},{"$f":"I272*$J$5","v":-98378157.625},{"$f":"G272*$N$2","v":0},{"$f":"SUM(I272:K272)","v":-491890788.125},{"$f":"L272*$M$5","v":491890788.125},{"$f":"SUM(L272+M272)*$N$5","v":0},{"$f":"SUM(L272:N272)","v":0}]
[7,"Swedoor Puccini, pardør",null,null,14527,-708020557.75,null,{"$f":"E273*$H$5","v":0},{"$f":"SUM(F273+H273)","v":-708020557.75},{"$f":"I273*$J$5","v":-177005139.4375},{"$f":"G273*$N$2","v":0},{"$f":"SUM(I273:K273)","v":-885025697.1875},{"$f":"L273*$M$5","v":885025697.1875},{"$f":"SUM(L273+M273)*$N$5","v":0},{"$f":"SUM(L273:N273)","v":0}]
[21,"Swedoor Ravel",null,null,8042,-391953006.5,null,{"$f":"E274*$H$5","v":0},{"$f":"SUM(F274+H274)","v":-391953006.5},{"$f":"I274*$J$5","v":-97988251.625},{"$f":"G274*$N$2","v":0},{"$f":"SUM(I274:K274)","v":-489941258.125},{"$f":"L274*$M$5","v":489941258.125},{"$f":"SUM(L274+M274)*$N$5","v":0},{"$f":"SUM(L274:N274)","v":0}]
[null,"Swedoor Ravel, pardør",null,null,22722]
[28,"Swedoor Rossini, cotswold glass",null,null,9080,-442543310,null,{"$f":"E276*$H$5","v":0},{"$f":"SUM(F276+H276)","v":-442543310},{"$f":"I276*$J$5","v":-110635827.5},{"$f":"G276*$N$2","v":0},{"$f":"SUM(I276:K276)","v":-553179137.5},{"$f":"L276*$M$5","v":553179137.5},{"$f":"SUM(L276+M276)*$N$5","v":0},{"$f":"SUM(L276:N276)","v":0}]
[null,"Swedoor Satie, klart glass",null,null,10329,null,null,{"$f":"E277*$H$5","v":0}]
[null,"Swedoor Satie, pardør, klart glass",null,null,20658,null,null,{"$f":"E278*$H$5","v":0}]
[29,"Swedoor Scarlatti, klart glass",null,null,9089,-442981954.25,null,{"$f":"E279*$H$5","v":0},{"$f":"SUM(F279+H279)","v":-442981954.25},{"$f":"I279*$J$5","v":-110745488.5625},{"$f":"G279*$N$2","v":0},{"$f":"SUM(I279:K279)","v":-553727442.8125},{"$f":"L279*$M$5","v":553727442.8125},{"$f":"SUM(L279+M279)*$N$5","v":0},{"$f":"SUM(L279:N279)","v":0}]
[33,"Swedoor Schubert, klart glass",null,null,8030,-391368147.5,null,{"$f":"E280*$H$5","v":0},{"$f":"SUM(F280+H280)","v":-391368147.5},{"$f":"I280*$J$5","v":-97842036.875},{"$f":"G280*$N$2","v":0},{"$f":"SUM(I280:K280)","v":-489210184.375},{"$f":"L280*$M$5","v":489210184.375},{"$f":"SUM(L280+M280)*$N$5","v":0},{"$f":"SUM(L280:N280)","v":0}]
[null,"Swedoor Schumann, klart glass",null,null,8967]
[null,"Swedoor Schumann, pardør, klart glass",null,null,17934]
[5,"Swedoor Smetana, klart glass",null,null,9093,-443176907.25,null,{"$f":"E283*$H$5","v":0},{"$f":"SUM(F283+H283)","v":-443176907.25},{"$f":"I283*$J$5","v":-110794226.8125},{"$f":"G283*$N$2","v":0},{"$f":"SUM(I283:K283)","v":-553971134.0625},{"$f":"L283*$M$5","v":553971134.0625},{"$f":"SUM(L283+M283)*$N$5","v":0},{"$f":"SUM(L283:N283)","v":0}]
[8,"Swedoor Smetana, pardør, klart glass",null,null,17600,-857793200,null,{"$f":"E284*$H$5","v":0},{"$f":"SUM(F284+H284)","v":-857793200},{"$f":"I284*$J$5","v":-214448300},{"$f":"G284*$N$2","v":0},{"$f":"SUM(I284:K284)","v":-1072241500},{"$f":"L284*$M$5","v":1072241500},{"$f":"SUM(L284+M284)*$N$5","v":0},{"$f":"SUM(L284:N284)","v":0}]
[null,"Swedoor Sousa",null,null,8967]
[null,"Swedoor Sousa, pardør",null,null,17934]
[31,"Swedoor Wagner",null,null,9637,-469690515.25,null,{"$f":"E287*$H$5","v":0},{"$f":"SUM(F287+H287)","v":-469690515.25},{"$f":"I287*$J$5","v":-117422628.8125},{"$f":"G287*$N$2","v":0},{"$f":"SUM(I287:K287)","v":-587113144.0625},{"$f":"L287*$M$5","v":587113144.0625},{"$f":"SUM(L287+M287)*$N$5","v":0},{"$f":"SUM(L287:N287)","v":0}]
[]
[null,"SWEDOOR FUNCTION"]
[38,"Swedoor Aden, klart glass",null,null,8159,-397655381.75,null,{"$f":"E290*$H$5","v":0},{"$f":"SUM(F290+H290)","v":-397655381.75},{"$f":"I290*$J$5","v":-99413845.4375},{"$f":"G290*$N$2","v":0},{"$f":"SUM(I290:K290)","v":-497069227.1875},{"$f":"L290*$M$5","v":497069227.1875},{"$f":"SUM(L290+M290)*$N$5","v":0},{"$f":"SUM(L290:N290)","v":0}]
[39,"Swedoor Aden, pardør",null,null,17268,-841612101,null,0,-841612101,-210403025.25,0,-1052015126.25,1052015126.25,0,0]
[null,"Swedoor Amazon, klart glass"]
[null,"Swedoor Aral, klart glass"]
[43,"Swedoor Baltic, klart glass",null,null,6738,-328398328.5,null,{"$f":"E294*$H$5","v":0},{"$f":"SUM(F294+H294)","v":-328398328.5},{"$f":"I294*$J$5","v":-82099582.125},{"$f":"G294*$N$2","v":0},{"$f":"SUM(I294:K294)","v":-410497910.625},{"$f":"L294*$M$5","v":410497910.625},{"$f":"SUM(L294+M294)*$N$5","v":0},{"$f":"SUM(L294:N294)","v":0}]
[12,"Swedoor Barentz",null,null,5645,-275127421.25,null,{"$f":"E295*$H$5","v":0},{"$f":"SUM(F295+H295)","v":-275127421.25},{"$f":"I295*$J$5","v":-68781855.3125},{"$f":"G295*$N$2","v":0},{"$f":"SUM(I295:K295)","v":-343909276.5625},{"$f":"L295*$M$5","v":343909276.5625},{"$f":"SUM(L295+M295)*$N$5","v":0},{"$f":"SUM(L295:N295)","v":0}]
[37,"Swedoor Bengal, klart glass",null,null,7945,-387225396.25,null,{"$f":"E296*$H$5","v":0},{"$f":"SUM(F296+H296)","v":-387225396.25},{"$f":"I296*$J$5","v":-96806349.0625},{"$f":"G296*$N$2","v":0},{"$f":"SUM(I296:K296)","v":-484031745.3125},{"$f":"L296*$M$5","v":484031745.3125},{"$f":"SUM(L296+M296)*$N$5","v":0},{"$f":"SUM(L296:N296)","v":0}]
[15,"Swedoor Bering",null,null,5450,-265623462.5,null,{"$f":"E297*$H$5","v":0},{"$f":"SUM(F297+H297)","v":-265623462.5},{"$f":"I297*$J$5","v":-66405865.625},{"$f":"G297*$N$2","v":0},{"$f":"SUM(I297:K297)","v":-332029328.125},{"$f":"L297*$M$5","v":332029328.125},{"$f":"SUM(L297+M297)*$N$5","v":0},{"$f":"SUM(L297:N297)","v":0}]
[16,"Swedoor Bering, pardør",null,null,11450,-558052962.5,null,{"$f":"E298*$H$5","v":0},{"$f":"SUM(F298+H298)","v":-558052962.5},{"$f":"I298*$J$5","v":-139513240.625},{"$f":"G298*$N$2","v":0},{"$f":"SUM(I298:K298)","v":-697566203.125},{"$f":"L298*$M$5","v":697566203.125},{"$f":"SUM(L298+M298)*$N$5","v":0},{"$f":"SUM(L298:N298)","v":0}]
[null,"Swedoor Carribbean, klart glass med malte glasslister"]
[null,"Swedoor Carribbean, pardør, klart glass med malte glasslister"]
[null,"Swedoor Carribbean, klart glass med eik glasslister"]
[null,"Swedoor Carribbean, pardør, klart glass med eik glasslister"]
[55,"Swedoor Caspian, klart glass",null,null,10299,-442250880.5,null,{"$f":"E303*$H$5","v":0},{"$f":"SUM(F303+H303)","v":-442250880.5},{"$f":"I303*$J$5","v":-110562720.125},{"$f":"G303*$N$2","v":0},{"$f":"SUM(I303:K303)","v":-552813600.625},{"$f":"L303*$M$5","v":552813600.625},{"$f":"SUM(L303+M303)*$N$5","v":0},{"$f":"SUM(L303:N303)","v":0}]
[null,"Swedoor Caspian, klart glass med sprosser",null,null,{"$f":"10299+246","v":10545}]
[53,"Swedoor Como, klart glass",null,null,8975,-385373342.75,null,{"$f":"E305*$H$5","v":0},{"$f":"SUM(F305+H305)","v":-385373342.75},{"$f":"I305*$J$5","v":-96343335.6875},{"$f":"G305*$N$2","v":0},{"$f":"SUM(I305:K305)","v":-481716678.4375},{"$f":"L305*$M$5","v":481716678.4375},{"$f":"SUM(L305+M305)*$N$5","v":0},{"$f":"SUM(L305:N305)","v":0}]
[null,"Swedoor Como, klart glass med sprosser",null,null,{"$f":"8975+245","v":9220}]
[46,"Swedoor Congo, klart glass",null,null,8993,-438303082.25,null,{"$f":"E307*$H$5","v":0},{"$f":"SUM(F307+H307)","v":-438303082.25},{"$f":"I307*$J$5","v":-109575770.5625},{"$f":"G307*$N$2","v":0},{"$f":"SUM(I307:K307)","v":-547878852.8125},{"$f":"L307*$M$5","v":547878852.8125},{"$f":"SUM(L307+M307)*$N$5","v":0},{"$f":"SUM(L307:N307)","v":0}]
[14,"Swedoor Coral, klart glass med glasslist i aluminium",null,null,6738,-328398328.5,null,{"$f":"E308*$H$5","v":0},{"$f":"SUM(F308+H308)","v":-328398328.5},{"$f":"I308*$J$5","v":-82099582.125},{"$f":"G308*$N$2","v":0},{"$f":"SUM(I308:K308)","v":-410497910.625},{"$f":"L308*$M$5","v":410497910.625},{"$f":"SUM(L308+M308)*$N$5","v":0},{"$f":"SUM(L308:N308)","v":0}]
[18,"Swedoor Donau, klart glass med glasslist i aluminium",null,null,6987,-340534152.75,null,{"$f":"E309*$H$5","v":0},{"$f":"SUM(F309+H309)","v":-340534152.75},{"$f":"I309*$J$5","v":-85133538.1875},{"$f":"G309*$N$2","v":0},{"$f":"SUM(I309:K309)","v":-425667690.9375},{"$f":"L309*$M$5","v":425667690.9375},{"$f":"SUM(L309+M309)*$N$5","v":0},{"$f":"SUM(L309:N309)","v":0}]
[null,"Swedoor Donau, pardør, klart glass med glasslist i aluminium"]
[48,"Swedoor Elbe, klart glass",null,null,7118,-346918863.5,null,{"$f":"E311*$H$5","v":0},{"$f":"SUM(F311+H311)","v":-346918863.5},{"$f":"I311*$J$5","v":-86729715.875},{"$f":"G311*$N$2","v":0},{"$f":"SUM(I311:K311)","v":-433648579.375},{"$f":"L311*$M$5","v":433648579.375},{"$f":"SUM(L311+M311)*$N$5","v":0},{"$f":"SUM(L311:N311)","v":0}]
[50,"Swedoor Erie, klart glass",null,null,7118,-346918863.5,null,{"$f":"E312*$H$5","v":0},{"$f":"SUM(F312+H312)","v":-346918863.5},{"$f":"I312*$J$5","v":-86729715.875},{"$f":"G312*$N$2","v":0},{"$f":"SUM(I312:K312)","v":-433648579.375},{"$f":"L312*$M$5","v":433648579.375},{"$f":"SUM(L312+M312)*$N$5","v":0},{"$f":"SUM(L312:N312)","v":0}]
[51,"Swedoor Erie, pardør, klart glass",null,null,14940,-728149455,null,{"$f":"E313*$H$5","v":0},{"$f":"SUM(F313+H313)","v":-728149455},{"$f":"I313*$J$5","v":-182037363.75},{"$f":"G313*$N$2","v":0},{"$f":"SUM(I313:K313)","v":-910186818.75},{"$f":"L313*$M$5","v":910186818.75},{"$f":"SUM(L313+M313)*$N$5","v":0},{"$f":"SUM(L313:N313)","v":0}]
[44,"Swedoor Ganges",null,null,5620,-273908965,null,{"$f":"E314*$H$5","v":0},{"$f":"SUM(F314+H314)","v":-273908965},{"$f":"I314*$J$5","v":-68477241.25},{"$f":"G314*$N$2","v":0},{"$f":"SUM(I314:K314)","v":-342386206.25},{"$f":"L314*$M$5","v":342386206.25},{"$f":"SUM(L314+M314)*$N$5","v":0},{"$f":"SUM(L314:N314)","v":0}]
[17,"Swedoor Hudson, klart glass Ø=344 mm med 40 mm ring",null,null,6987,-340534152.75,null,{"$f":"E315*$H$5","v":0},{"$f":"SUM(F315+H315)","v":-340534152.75},{"$f":"I315*$J$5","v":-85133538.1875},{"$f":"G315*$N$2","v":0},{"$f":"SUM(I315:K315)","v":-425667690.9375},{"$f":"L315*$M$5","v":425667690.9375},{"$f":"SUM(L315+M315)*$N$5","v":0},{"$f":"SUM(L315:N315)","v":0}]
[null,"Swedoor Indus, klart glass Ø=312 mm med malt glasslister"]
[null,"Swedoor Indus, pardør, klart glass Ø=312 mm med malt glasslister",null,null,7151]
[null,"Swedoor Indus, klart glass Ø=312 mm med eik glasslister",null,null,8967]
[null,"Swedoor Indus, pardør, klart glass Ø=312 mm med eik glasslister"]
[19,"Swedoor Michigan, klar glass",null,null,7547,-367827572.75,null,{"$f":"E320*$H$5","v":0},{"$f":"SUM(F320+H320)","v":-367827572.75},{"$f":"I320*$J$5","v":-91956893.1875},{"$f":"G320*$N$2","v":0},{"$f":"SUM(I320:K320)","v":-459784465.9375},{"$f":"L320*$M$5","v":459784465.9375},{"$f":"SUM(L320+M320)*$N$5","v":0},{"$f":"SUM(L320:N320)","v":0}]
[20,"Swedoor Michigan, pardør, klart glass",null,null,18488,-901072766,null,{"$f":"E321*$H$5","v":0},{"$f":"SUM(F321+H321)","v":-901072766},{"$f":"I321*$J$5","v":-225268191.5},{"$f":"G321*$N$2","v":0},{"$f":"SUM(I321:K321)","v":-1126340957.5},{"$f":"L321*$M$5","v":1126340957.5},{"$f":"SUM(L321+M321)*$N$5","v":0},{"$f":"SUM(L321:N321)","v":0}]
[45,"Swedoor Niger, klart glass med sprosser begge sider",null,null,6711,-327082395.75,null,{"$f":"E322*$H$5","v":0},{"$f":"SUM(F322+H322)","v":-327082395.75},{"$f":"I322*$J$5","v":-81770598.9375},{"$f":"G322*$N$2","v":0},{"$f":"SUM(I322:K322)","v":-408852994.6875},{"$f":"L322*$M$5","v":408852994.6875},{"$f":"SUM(L322+M322)*$N$5","v":0},{"$f":"SUM(L322:N322)","v":0}]
[null,"Swedoor Nile, klart glass med malt glasslister",null,null,8967]
[null,"Swedoor Nile, pardør, klart glass med malt glasslister"]
[null,"Swedoor Nile, klart glass med eik glasslister",null,null,13053]
[null,"Swedoor Nile, pardør, klart glass med eik glasslister"]
[42,"Swedoor Pacific, klart glass",null,null,7052,-343702139,null,{"$f":"E327*$H$5","v":0},{"$f":"SUM(F327+H327)","v":-343702139},{"$f":"I327*$J$5","v":-85925534.75},{"$f":"G327*$N$2","v":0},{"$f":"SUM(I327:K327)","v":-429627673.75},{"$f":"L327*$M$5","v":429627673.75},{"$f":"SUM(L327+M327)*$N$5","v":0},{"$f":"SUM(L327:N327)","v":0}]
[36,"Swedoor Suez, klart glass",null,null,9552,-465547764,null,{"$f":"E328*$H$5","v":0},{"$f":"SUM(F328+H328)","v":-465547764},{"$f":"I328*$J$5","v":-116386941},{"$f":"G328*$N$2","v":0},{"$f":"SUM(I328:K328)","v":-581934705},{"$f":"L328*$M$5","v":581934705},{"$f":"SUM(L328+M328)*$N$5","v":0},{"$f":"SUM(L328:N328)","v":0}]
[null,"Swedoor Tahoe, klart glass med malt glasslister"]
[null,"Swedoor Tahoe, pardør, klart glass med malt glasslister"]
[null,"Swedoor Tahoe, klart glass med eik glasslister"]
[null,"Swedoor Tahoe, pardør, klart glass med eik glasslister"]
[47,"Swedoor Volga, klart glass",null,null,9451,-460625200.75,null,{"$f":"E333*$H$5","v":0},{"$f":"SUM(F333+H333)","v":-460625200.75},{"$f":"I333*$J$5","v":-115156300.1875},{"$f":"G333*$N$2","v":0},{"$f":"SUM(I333:K333)","v":-575781500.9375},{"$f":"L333*$M$5","v":575781500.9375},{"$f":"SUM(L333+M333)*$N$5","v":0},{"$f":"SUM(L333:N333)","v":0}]
[52,"Swedoor Vȁnern, klart glass",null,null,7759,-378160081.75,null,{"$f":"E334*$H$5","v":0},{"$f":"SUM(F334+H334)","v":-378160081.75},{"$f":"I334*$J$5","v":-94540020.4375},{"$f":"G334*$N$2","v":0},{"$f":"SUM(I334:K334)","v":-472700102.1875},{"$f":"L334*$M$5","v":472700102.1875},{"$f":"SUM(L334+M334)*$N$5","v":0},{"$f":"SUM(L334:N334)","v":0}]
[null,"Swedoor Vȁnern, klart glass med sprosser"]
[]
[null,"SWEDOOR CHARACTER"]
[null,"Swedoor Beat, klart glass"]
[null,"Swedoor Beat, pardør, klart glass"]
[null,"Swedoor Canvas"]
[null,"Swedoor Canvas, pardør"]
[null,"Swedoor Cifro, klart glass"]
[null,"Swedoor Cifro, pardør, klart glass"]
[null,"Swedoor Cosmos, klart glass"]
[null,"Swedoor Cosmos, pardør, klart glass"]
[null,"Swedoor Digits, klart glass, med 3 tegn (0-999 og A-H)"]
[null,"Swedoor Digits, pardør, klart glass, med 3 tegn (0-999 og A-H)"]
[null,"Swedoor Numerus, med 3 tegn (0-999 og A-H)"]
[null,"Swedoor Numerus, pardør, med 3 tegn (0-999 og A-H)"]
[null,"Swedoor Domino, klart glass"]
[null,"Swedoor Domino, pardør, klart glass"]
[null,"Swedoor Dots, klart glass"]
[null,"Swedoor Dots, pardør, klart glass"]
[null,"Swedoor Drop, klart glass"]
[null,"Swedoor Drop, pardør, klart glass"]
[null,"Swedoor Lilly, klart glass"]
[null,"Swedoor Lilly, pardør, klart glass"]
[null,"Swedoor Leon, klart glass"]
[null,"Swedoor Leon, pardør, klart glass"]
[null,"Swedoor Luna, klart glass"]
[null,"Swedoor Luna, pardør, klart glass"]
[null,"Swedoor Ocean, klart glass"]
[null,"Swedoor Ocean, pardør, klart glass"]
[null,"Swedoor Ocean, tett"]
[null,"Swedoor Orchid klart glass"]
[null,"Swedoor Orchid, pardør, klart glass"]
[null,"Swedoor Orbit, klart glass"]
[null,"Swedoor Orbit, pardør, klart glass"]
[null,"Swedoor Orion, tett"]
[null,"Swedoor Orion, pardør, tett"]
[null,"Swedoor Pulse, klart glass"]
[null,"Swedoor Pulse, pardør, klart glass"]
[null,"Swedoor Pictor"]
[null,"Swedoor Pictor, pardør"]
[null,"Swedoor Pixel, klart glass"]
[null,"Swedoor Prisma, klart glass"]
[null,"Swedoor Prisma, pardør, klart glass"]
[null,"Swedoor Square, klart glass"]
[null,"Swedoor Square, pardør, klart glass"]
[null,"Swedoor Step, klart glass"]
[null,"Swedoor Step, pardør, klart glass"]
[null,"Swedoor Tone, klart glass"]
[null,"Swedoor Tone, pardør, klart glass"]
[null,"Swedoor Tone, tett"]
[null,"Swedoor Tone, pardør, tett"]
[null,"Swedoor Tajo, klart glass"]
[null,"Swedoor Tajo, pardør, klart glass"]
[null,null,null,null,null,0,null,0,{"$f":"SUM(F388+H388)","v":0},0,{"$f":"G388*$N$2","v":0},{"$f":"SUM(I388:K388)","v":0},0,{"$f":"SUM(L388+M388)*$N$5","v":0},{"$f":"SUM(L388:N388)","v":0}]
[null,"Sidefelt",null,null,null,0,null,0,0,0,0,0,0,0,0]
[null,"Swedoor type  SL0"]
[null,"Swedoor type  SL1",null,null,4628,-225560621,null,0,-225560621,-56390155.25,0,-281950776.25,281950776.25,0,0]
[null,"Swedoor type  SL2",null,null,4859,-236819156.75,null,0,-236819156.75,-59204789.1875,0,-296023945.9375,296023945.9375,0,0]
[null,"Swedoor type  SL3",null,null,5397,-263040335.25,null,0,-263040335.25,-65760083.8125,0,-328800419.0625,328800419.0625,0,0]
[null,"Fargevalg",null,null,null,0,null,0,0,0,0,0,0,0,0]
[null,"Hvit (standard)",null,null,0,0,null,{"$f":"E395*$H$5","v":0},{"$f":"SUM(F395+H395)","v":0},{"$f":"I395*$J$5","v":0},{"$f":"G395*$N$2","v":0},{"$f":"SUM(I395:K395)","v":0},{"$f":"L395*$M$5","v":0},{"$f":"SUM(L395+M395)*$N$5","v":0},{"$f":"SUM(L395:N395)","v":0}]
[null,"Valgfri standard farge på dørblad",null,null,520,-25343890,null,0,-25343890,-6335972.5,0,-31679862.5,31679862.5,0,0]
[null,"Valgfri standard farge på dørblad (pardør)",null,null,832,-40550224,null,0,-40550224,-10137556,0,-50687780,50687780,0,0]
[null,"Valgfri NCS farge på dørblad",null,null,1521,-74130878.25,null,{"$f":"E398*$H$5","v":0},-74130878.25,-18532719.5625,0,-92663597.8125,92663597.8125,0,0]
[null,"Valgfri NCS farge på dørblad (pardør)",null,null,2534,-123502725.5,null,0,-123502725.5,-30875681.375,0,-154378406.875,154378406.875,0,0]
[null,"Hvit (standard)",null,null,0,0,null,0,{"$f":"SUM(F400+H400)","v":0},{"$f":"I400*$J$5","v":0},{"$f":"G400*$N$2","v":0},{"$f":"SUM(I400:K400)","v":0},{"$f":"L400*$M$5","v":0},{"$f":"SUM(L400+M400)*$N$5","v":0},{"$f":"SUM(L400:N400)","v":0}]
[null,"Valgfri standard farge på karm",null,null,0,0,null,0,{"$f":"SUM(F401+H401)","v":0},{"$f":"I401*$J$5","v":0},{"$f":"G401*$N$2","v":0},{"$f":"SUM(I401:K401)","v":0},{"$f":"L401*$M$5","v":0},{"$f":"SUM(L401+M401)*$N$5","v":0},{"$f":"SUM(L401:N401)","v":0}]
[null,"Valgfri standard farge på karm (pardør)",null,null,0,0,null,0,0,0,0,0,0,0,0]
[null,"Valgfri NCS farge på karm",null,null,0,0,null,0,0,0,0,0,0,0,0]
[null,"Valgfri NCS farge på karm (pardør)",null,null,0,0,null,0,0,0,0,0,0,0,0]
[null,"Hvit (standard)",null,null,0,0,null,0,0,0,0,0,0,0,0]
[null,"Valgfri standard farge på sidefelt",null,null,260,-12671945,null,0,-12671945,-3167986.25,0,-15839931.25,15839931.25,0,0]
[null,"Valgfri NCS farge på sidefelt",null,null,908,-44254331,null,0,-44254331,-11063582.75,0,-55317913.75,55317913.75,0,0]
[null,"Dørvrider"]
[null,"Hoppe 1140-42, aluminium (standard)",null,null,95,{"$f":"E409","v":95},null,{"$f":"E409*$H$5","v":0},{"$f":"SUM(F409+H409)","v":95},{"$f":"I409*$J$5","v":23.75},{"$f":"G409*$N$2","v":0},{"$f":"SUM(I409:K409)","v":118.75},{"$f":"L409*$M$5","v":-118.75},{"$f":"SUM(L409+M409)*$N$5","v":0},{"$f":"SUM(L409:N409)","v":0}]
[null,"Leveres ikke",null,null,253.24,{"$f":"E410","v":253.24},null,{"$f":"E410*$H$5","v":0},{"$f":"SUM(F410+H410)","v":253.24},{"$f":"I410*$J$5","v":63.31},{"$f":"G410*$N$2","v":0},{"$f":"SUM(I410:K410)","v":316.55},{"$f":"L410*$M$5","v":-316.55},{"$f":"SUM(L410+M410)*$N$5","v":0},{"$f":"SUM(L410:N410)","v":0}]
[null,"Spesial"]
[null,"Innadslående dør",null,null,1882,-91725386.5,null,{"$f":"E412*$H$5","v":0},{"$f":"SUM(F412+H412)","v":-91725386.5},{"$f":"I412*$J$5","v":-22931346.625},{"$f":"G412*$N$2","v":0},{"$f":"SUM(I412:K412)","v":-114656733.125},{"$f":"L412*$M$5","v":114656733.125},{"$f":"SUM(L412+M412)*$N$5","v":0},{"$f":"SUM(L412:N412)","v":0}]
[null,"Tillegg sidefelt v/innadslående dør",null,null,942,-45911431.5,null,{"$f":"E413*$H$5","v":0},{"$f":"SUM(F413+H413)","v":-45911431.5},{"$f":"I413*$J$5","v":-11477857.875},{"$f":"G413*$N$2","v":0},{"$f":"SUM(I413:K413)","v":-57389289.375},{"$f":"L413*$M$5","v":57389289.375},{"$f":"SUM(L413+M413)*$N$5","v":0},{"$f":"SUM(L413:N413)","v":0}]
[null,"150 mm sparkeplate ensidig",null,null,648,-31582386,null,{"$f":"E414*$H$5","v":0},{"$f":"SUM(F414+H414)","v":-31582386},{"$f":"I414*$J$5","v":-7895596.5},{"$f":"G414*$N$2","v":0},{"$f":"SUM(I414:K414)","v":-39477982.5},{"$f":"L414*$M$5","v":39477982.5},{"$f":"SUM(L414+M414)*$N$5","v":0},{"$f":"SUM(L414:N414)","v":0}]
[null,"150 mm sparkeplate tosidig",null,null,{"$f":"648*2","v":1296},-63164772,null,{"$f":"E415*$H$5","v":0},{"$f":"SUM(F415+H415)","v":-63164772},{"$f":"I415*$J$5","v":-15791193},{"$f":"G415*$N$2","v":0},{"$f":"SUM(I415:K415)","v":-78955965},{"$f":"L415*$M$5","v":78955965},{"$f":"SUM(L415+M415)*$N$5","v":0},{"$f":"SUM(L415:N415)","v":0}]
[null,"Likelåsende sylinder",null,null,399,-19446561.75,null,{"$f":"E416*$H$5","v":0},{"$f":"SUM(F416+H416)","v":-19446561.75},{"$f":"I416*$J$5","v":-4861640.4375},{"$f":"G416*$N$2","v":0},{"$f":"SUM(I416:K416)","v":-24308202.1875},{"$f":"L416*$M$5","v":24308202.1875},{"$f":"SUM(L416+M416)*$N$5","v":0},{"$f":"SUM(L416:N416)","v":0}]
[]
[]
[]
[]
[]
[]
[]
[]
[]
[]
[]
[]
[]
[]
[]
[]
[]
[]
[]
[]
[]
[]
[]
[]
[]
[]
[]
[]
[]
[]
[]
[]
[]
[]
[]
[]
[]
[]
[]
[]
[]
[]
[]
[]
[]
[]
[]
[]
[]
[]
[]
[]
[]
[]
[]
[]
[]
[]
[]
[]
[]
[]
[]
[]
[]
[]
[]
[]
[]
[]
[]
[]
[]
[]
[]
[]
[]
[]
[]
[]
[]
[]
[]
[]
[]
[]
[]
[]
[]
[]
[]
[]
[]
[]
[]
[]
[]
[]
[]
[]
[]
[]
[]
[]
[]
[]
[]
[]
[]
[]
[]
[]
[]
[]
[]
[]
[]
[]
[]
[]
[]
[]
[]
[]
[]
[]
[]
[]
[]
[]
[]
[]
[]
[]
[]
[]
[]
[]
[]
[]
[]
[]
[]
[]
[]
[]
[]
[]
[]
[]
[]
[]
[]
[]
[]
[]
[]
[]
[]
[]
[]
[]
[]
[]
[]
[]
[]
[]
[]
[]
[]
[]
[]
[]
[]
[]
[]
[]
[]
[]
[]
[]
[]
[]
[]
[]
[]
[]
[]
[]
[]
[]
[]
[]
[]
[]
[]
[]
[]
[]
[]
[]
[]
[]
[]
[]
[]
[]
[]
[]
[]
[]
[]
[]
[]
[]
[]
[]
[]
[]
[]
[]
[]
[]
[]
[]
[]
[]
[]
[]
[]
[]
[]
[]
[]
[]
[]
[]
[]
[]
[]
[]
[]
[]
[]
[]
[]
[]
[]
[]
[]
[]
[]
[]
[]
[]
[]
[]
[]
[]
[]
[]
[]
[]
[]
[]
[]
[]
[]
[]
[]
[]
[]
[]
[]
[]
[]
[]
[]
[]
[]
[]
[]
[]
[]
[]
[]
[]
[]
[]
[]
[]
[]
[]
[]
[]
[]
[]
[]
[]
[]
[]
[]
[]
[]
[]
[]
[]
[]
[]
[]
[]
[]
[]
[]
[]
[]
[]
[]
[]
[]
[]
[]
[]
[]
[]
[]
[]
[]
[]
[]
[]
[]
[]
[]
[]
[]
[]
[]
[]
[]
[]
[]
[]
[]
[]
[]
[]
[]
[]
[]
[]
[]
[]
[]
[]
[]
[]
[]
[]
[]
[]
[]
[]
[]
[]
[]
[]
[]
[]
[]
[]
[]
[]
[]
[]
[]
[]
[]
[]
[]
[]
[]
[]
[]
[]
[]
[]
[]
[]
[]
[]
[]
[]
[]
[]
[]
[]
[]
[]
[]
[]
[]
[]
[]
[]
[]
[]
[]
[]
[]
[]
[]
[]
[]
[]
[]
[]
[]
[]
[]
[]
[]
[]
[]
[]
[]
[]
[]
[]
[]
[]
[]
[]
[]
[]
[]
[]
[]
[]
[]
[]
[]
[]
[]
[]
[]
[]
[]
[]
[]
[]
[]
[]
[]
[]
[]
[]
[]
[]
[]
[]
[]
[]
[]
[]
[]
[]
[]
[]
[]
[]
[]
[]
[]
[]
[]
[]
[]
[]
[]
[]
[]
[]
[]
[]
[]
[]
[]
[]
[]
[]
[]
[]
[]
[]
[]
[]
[]
[]
[]
[]
[]
[]
[]
[]
[]
[]
[]
[]
[]
[]
[]
[]
[]
[]
[]
[]
[]
[]
[]
[]
[]
[]
[]
[]
[]
[]
[]
[]
[]
[]
[]
[]
[]
[]
[]
[]
[]
[]
[]
[]
[]
[]
[]
[]
[]
[]
[]
[]
[]
[]
[]
[]
[]
[]
[]
[]
[]
[]
[]
[]
[]
[]
[]
[]
[]
[]
[]
[]
[]
[]
[]
[]
[]
[]
[]
[]
[]
[]
[]
[]
[]
[]
[]
[]
[]
[]
[]
[]
[]
[]
[]
[]
[]
[]
[]
[]
[]
[]
[]
[]
[]
[]
[]
[]
[]
[]
[]
[]
[]
[]
[]
[]
[]
[]
[]
[]
[]
[]
[]
[]
[]
[]
[]
[]
[]
[]
[]
[]
[]
[]
[]
[]
[]
[]
[]
[]
[]
[]
[]
[]
[]
[]
[]
[]
[]
[]
[]
[]
[]
[]
[]
[]
[]
[]
[]
[]
[]
[]
[]
[]
[]
[]
[]
[]
[]
[]
[]
[]
[]
[]
[]
[null,"BELEGG PÅ TAKSTEIN"]
[1,null,null,null,0,null,null,null,null,null,null,null,null,{"$f":"SUM(E1091:J1091)*$N$5","v":0},{"$f":"SUM(E1091:N1091)","v":0}]
[2,"Antikk",null,null,0,null,null,null,null,null,null,null,null,{"$f":"SUM(E1092:J1092)*$N$5","v":0},{"$f":"SUM(E1092:N1092)","v":0}]
[3,"Teglrød",null,null,0,null,null,null,null,null,null,null,null,0,0]
[4,"Rød",null,null,0,null,null,null,null,null,null,null,null,0,0]
[5,"Koksgrå",null,null,0,null,null,null,null,null,null,null,null,0,0]
[6,"Teglrød (EDEL belegg)",null,null,0,null,null,null,null,null,null,null,null,0,0]
[7,"Rød (EDEL belegg)",null,null,0,null,null,null,null,null,null,null,null,0,0]
[8,"Sort (EDEL belegg)",null,null,0,null,null,null,null,null,null,null,null,0,0]
[9,"Antikk (RU)",null,null,0,null,null,null,null,null,null,null,null,{"$f":"SUM(E1099:J1099)*$N$5","v":0},{"$f":"SUM(E1099:N1099)","v":0}]
[10,"Sort (RU)",null,null,0,null,null,null,null,null,null,null,null,0,0]
[11,"Rød (RU)",null,null,0,null,null,null,null,null,null,null,null,0,0]
[12,"Lys grå (RU)",null,null,0,null,null,null,null,null,null,null,null,0,0]
[13,"Skifergrå (RU)",null,null,0,null,null,null,null,null,null,null,null,0,0]
[14,"Annen type",null,null,0,null,null,null,null,null,null,null,null,0,0]
[null,"BADEROMSINNREDNINGER"]
[null,null,null,null,"Brutto pris","Antall elem. a",null,"Montasjepris",null,"Rabatt",null,null,null,"Prisstigning","Moms","Sum"]
[null,null,null,null,"ekskl. moms",125,null,null,null,0.25,null,null,null,{"$f":"$M$5","v":-1},{"$f":"$N$5","v":0.25}]
[1,"60 cm Hvit Uni fra Strai Kjøkken AS"]
[2,"90 cm Hvit Uni fra Strai Kjøkken AS"]
[3,"120 cm Hvit Uni fra Strai Kjøkken AS",null,null,3016.26,4,null,{"$f":"$F$1107*F1110","v":500},null,{"$f":"-E1110*$J$1107","v":-754.06500000000005},null,null,null,{"$f":"(E1110+H1110+J1110+M1110)*$M$5","v":-2762.1950000000002},{"$f":"(E1110+H1110+J1110+M1110+N1110)*$N$5","v":0},{"$f":"E1110+H1110+J1110+M1110+N1110+O1110","v":0}]
[4,"150 cm Hvit Uni fra Strai Kjøkken AS",null,null,3130.08,4,null,{"$f":"$F$1107*F1111","v":500},null,{"$f":"-E1111*$J$1107","v":-782.52},null,null,null,{"$f":"(E1111+H1111+J1111+M1111)*$M$5","v":-2847.56},{"$f":"(E1111+H1111+J1111+M1111+N1111)*$N$5","v":0},{"$f":"E1111+H1111+J1111+M1111+N1111+O1111","v":0}]
[5,"180 cm Hvit Uni fra Strai Kjøkken AS",null,null,4959.3500000000004,6,null,{"$f":"$F$1107*F1112","v":750},null,{"$f":"-E1112*$J$1107","v":-1239.8375000000001},null,null,null,{"$f":"(E1112+H1112+J1112+M1112)*$M$5","v":-4469.5125000000007},{"$f":"(E1112+H1112+J1112+M1112+N1112)*$N$5","v":0},{"$f":"E1112+H1112+J1112+M1112+N1112+O1112","v":0}]
[6,"Leveres ikke"]
[null,"TRAPPER"]
[null,null,null,null,"Trapp1","Trapp2",null,"Standard","Dreid A","Dreid B","Dreid C","Empire","Empire Ekskl.","Fas","Stål","Tett 1","Tett 2","Montasje"]
[null,"Rett trapp",null,null,{"$f":"LOOKUP($A$1123,$A$1125:$A$1133,G1116:O1116)+R1116+R1116*$H$5+P1116+P1116","v":{"$error":"#REF!"}},{"$f":"LOOKUP($A$1124,$A$1125:$A$1133,G1116:O1116)+R1116+R1116*$H$5+Q1116+Q1116","v":{"$error":"#REF!"}},0,6570,7390,7390,6450,7070,7900,7900,8070,{"$f":"IF($T$1116=FALSE,0,$E$1140)","v":{"$error":"#REF!"}},{"$f":"IF($T$1117=FALSE,0,$E$1140)","v":0},2500,null,true]
[null,"90° repotrapp",null,null,{"$f":"LOOKUP($A$1123,$A$1125:$A$1133,G1117:O1117)+R1117+R1117*$H$5+P1117+P1117","v":{"$error":"#REF!"}},{"$f":"LOOKUP($A$1124,$A$1125:$A$1133,G1117:O1117)+R1117+R1117*$H$5+Q1117+Q1117","v":{"$error":"#REF!"}},0,7200,7780,7780,7090,7810,8640,8640,8650,{"$f":"IF($T$1116=FALSE,0,$E$1139)","v":{"$error":"#REF!"}},{"$f":"IF($T$1117=FALSE,0,$E$1139)","v":0},4000,null,false]
[null,"180° repotrapp",null,null,{"$f":"LOOKUP($A$1123,$A$1125:$A$1133,G1118:O1118)+R1118+R1118*$H$5+P1118+P1118","v":{"$error":"#REF!"}},{"$f":"LOOKUP($A$1124,$A$1125:$A$1133,G1118:O1118)+R1118+R1118*$H$5+Q1118+Q1118","v":{"$error":"#REF!"}},0,8470,9160,9160,8330,9160,10000,10000,9950,{"$f":"IF($T$1116=FALSE,0,$E$1139)","v":{"$error":"#REF!"}},{"$f":"IF($T$1117=FALSE,0,$E$1139)","v":0},4000]
[null,"90° svingtrapp",null,null,{"$f":"LOOKUP($A$1123,$A$1125:$A$1133,G1119:O1119)+R1119+R1119*$H$5+P1119+P1119","v":{"$error":"#REF!"}},{"$f":"LOOKUP($A$1124,$A$1125:$A$1133,G1119:O1119)+R1119+R1119*$H$5+Q1119+Q1119","v":{"$error":"#REF!"}},0,7620,8250,8250,7500,8250,9110,9110,9630,{"$f":"IF($T$1116=FALSE,0,$E$1140)","v":{"$error":"#REF!"}},{"$f":"IF($T$1117=FALSE,0,$E$1140)","v":0},2500]
[null,"180° svingtrapp",null,null,{"$f":"LOOKUP($A$1123,$A$1125:$A$1133,G1120:O1120)+R1120+R1120*$H$5+P1120+P1120","v":{"$error":"#REF!"}},{"$f":"LOOKUP($A$1124,$A$1125:$A$1133,G1120:O1120)+R1120+R1120*$H$5+Q1120+Q1120","v":{"$error":"#REF!"}},0,8820,9580,9580,8720,9580,10420,10420,10370,{"$f":"IF($T$1116=FALSE,0,$E$1140)","v":{"$error":"#REF!"}},{"$f":"IF($T$1117=FALSE,0,$E$1140)","v":0},2500]
[]
[]
[{"$f":"INDEX(A1125:A1133,MATCH(#REF!,Utstyr_trapp,0))","v":{"$error":"#REF!"}},"Trapp 1"]
[{"$f":"INDEX(A1125:A1133,MATCH(#REF!,Utstyr_trapp,0))","v":{"$error":"#REF!"}},"Trapp 2"]
[1,"Leveres ikke"]
[2,"Standard"]
[3,"Dreid A"]
[4,"Dreid B"]
[5,"Dreid C (standard)"]
[6,"Empire"]
[7,"Empire Eksklusive"]
[8,"Fas"]
[9,"Stål"]
[null,null,null,null,"Trapp1","Trapp2",null,"Standard","Dreid A","Dreid B","Dreid C","Empire","Empire Ekskl.","Fas","Stål","Montasje"]
[null,"Ekstra stolpe",null,null,{"$f":"LOOKUP($A$1123,$A$1125:$A$1133,G1135:O1135)+P1135","v":{"$error":"#REF!"}},{"$f":"LOOKUP($A$1124,$A$1125:$A$1133,G1135:O1135)+P1135","v":{"$error":"#REF!"}},0,231,330,330,368,330,810,810,231,70]
[null,"85x85 mm søyle for veksling",null,null,{"$f":"LOOKUP($A$1123,$A$1125:$A$1133,G1136:O1136)+P1136","v":{"$error":"#REF!"}},{"$f":"LOOKUP($A$1124,$A$1125:$A$1133,G1136:O1136)+P1136","v":{"$error":"#REF!"}},0,440,715,715,440,715,1320,1320,440,100]
[null,"Verneskranke/rekke for yttervange",null,null,{"$f":"LOOKUP($A$1123,$A$1125:$A$1133,G1137:O1137)+P1137","v":{"$error":"#REF!"}},{"$f":"LOOKUP($A$1124,$A$1125:$A$1133,G1137:O1137)+P1137","v":{"$error":"#REF!"}},0,385,506,506,385,506,550,550,825,100]
[null,null,null,null,"Trapp1","Trapp2"]
[null,"Stusstrinn i svingtrapp (tett trapp)",null,null,{"$f":"LOOKUP($A$1123,$A$1125:$A$1133,G1139:O1139)+LOOKUP($A$1123,$A$1125:$A$1133,G1139:O1139)*$H$5+P1139+P1139*$H$5","v":{"$error":"#REF!"}},{"$f":"LOOKUP($A$1124,$A$1125:$A$1133,G1139:O1139)+LOOKUP($A$1124,$A$1125:$A$1133,G1139:O1139)*$H$5+P1139+P1139*$H$5","v":{"$error":"#REF!"}},0,924,924,924,924,924,924,924,924,{"$f":"30*14","v":420}]
[null,"Stusstrinn i repo/rett trapp (tett trapp)",null,null,{"$f":"LOOKUP($A$1123,$A$1125:$A$1133,G1140:O1140)+LOOKUP($A$1123,$A$1125:$A$1133,G1140:O1140)*$H$5+P1140+P1140*$H$5","v":{"$error":"#REF!"}},{"$f":"LOOKUP($A$1124,$A$1125:$A$1133,G1140:O1140)+LOOKUP($A$1124,$A$1125:$A$1133,G1140:O1140)*$H$5+P1140+P1140*$H$5","v":{"$error":"#REF!"}},0,649,649,649,649,649,649,649,649,{"$f":"30*14","v":420}]
[]
[null,"Overflatebehandling",null,null,"Trapp1","Trapp2",null,"Trapp","Fingerskjøtt","Stusstrinn","Underside trinn","Rekker","Montasjetillegg"]
[]
[null,"Fargelakkering av hele trappen 0502Y",null,null,{"$f":"IF($T$1116=FALSE,(H1144+I1144+K1144+M1144),(H1144+I1144+J1144+M1144))","v":7480},{"$f":"IF($T$1117=FALSE,(H1144+I1144+K1144+M1144),(H1144+I1144+J1144+M1144))","v":7480},null,5480,1000,600,600,360,400]
[null,"Lakking av hele trappen",null,null,{"$f":"IF($T$1116=FALSE,(H1145+I1145+K1145+M1145),(H1145+I1145+J1145+M1145))","v":2190},{"$f":"IF($T$1117=FALSE,(H1145+I1145+K1145+M1145),(H1145+I1145+J1145+M1145))","v":1890},null,1890,0,300,0,132,0]
[null,"Grunning av hele trappen",null,null,2990,2390,null,1890,500,600,0,132,0]
[null,"Ubehandlet",null,null,{"$f":"IF($T$1116=FALSE,(H1147+I1147+K1147+M1147),(H1147+I1147+J1147+M1147))","v":0},{"$f":"IF($T$1117=FALSE,(H1147+I1147+K1147+M1147),(H1147+I1147+J1147+M1147))","v":0},null,0,0,0,0,0,0]
[null,"Beising/antikklakking av hele trappen",null,null,5650,5200,null,4200,1000,450,0,280,0]
[null,"Beising/antikklakking av trinn, resten grunnet",null,null,4550,4100,null,3100,1000,450,0,100,0]
[null,"Beising/antikklakking av trinn og håndrekker, resten grunnet",null,null,4950,4500,null,3500,1000,450,0,190,0]
[null,"Beising/antikklakking av trinn, resten fargelakkert 0502Y",null,null,7350,6900,null,5500,1000,450,0,360,400]
[null,"Beising/antikklakking av trinn og håndrekker, resten fargelakkert 0502Y",null,null,7850,7400,null,6000,1000,450,0,350,400]
[null,"Lakking av trinn og håndrekker, resten grunnet",null,null,2880,2580,null,2080,500,300,0,132,0]
[null,"Lakking av trinn, resten beiset",null,null,4300,4000,null,3500,500,300,0,280,0]
[null,"Lakking av trinn og håndrekker, resten beiset",null,null,4100,3800,null,3300,500,300,0,240,0]
[null,"Lakking av trinn, resten fargelakkert 0502Y",null,null,5360,5060,null,4160,500,300,0,360,400]
[null,"Lakking av trinn og håndrekker, resten fargelakkert 0502Y",null,null,5550,5250,null,4350,500,300,0,312,400]
[null,"Lakking med brannhemmende lakk",null,null,5500,5500,null,5500,0,0,0,0,0]
[null,"Tillegg fargelakkering annen farge enn 0502Y",null,null,{"$f":"SUM(H1159:I1159)+SUM(H1159:I1159)*$H$5","v":500},{"$f":"SUM(H1159:I1159)+SUM(H1159:I1159)*$H$5","v":500},null,500]
[null,null,null,null,false,false]
[null,"Pakking",null,null,null,null,null,0]
[null,"INNERDØRER"]
[null,"Tette dører",null,null,"Dørblad","Tillegg bredde","Karm/pocket","Tillegg hvit","Dempelist",null,null,"Sum brutto"]
[null,"FORMPRESSEDE DØRER:"]
[null,"Swedoor STYLE 03 (hvit)",null,null,741,0,451,0,185,null,null,{"$f":"E1165+G1165+IF(#REF!=FALSE,Materialvalg!H1165)+IF(#REF!=TRUE,Materialvalg!I1165)","v":{"$error":"#REF!"}}]
[null,"Swedoor STYLE 04N (hvit)",null,null,1141,0,451,0,185,null,null,{"$f":"E1166+G1166+IF(#REF!=FALSE,Materialvalg!H1166)+IF(#REF!=TRUE,Materialvalg!I1166)","v":{"$error":"#REF!"}}]
[null,"Swedoor STYLE 02B (hvit)",null,null,762,0,451,0,185,null,null,{"$f":"E1167+G1167+IF(#REF!=FALSE,Materialvalg!H1167)+IF(#REF!=TRUE,Materialvalg!I1167)","v":{"$error":"#REF!"}}]
[null,"Swedoor COMPACT MASSIV 03 (hvit)",null,null,1141,0,451,0,185,null,null,{"$f":"E1168+G1168+IF(#REF!=FALSE,Materialvalg!H1168)+IF(#REF!=TRUE,Materialvalg!I1168)","v":{"$error":"#REF!"}}]
[null,"Swedoor COMPACT MASSIV 04N (hvit)"]
[null,"Swedoor COMPACT MASSIV 02B (hvit)"]
[]
[null,"FOLIERTE FYLLINGSDØRER, GLATTE:",null,null,1141,0,451,0,185,null,null,{"$f":"E1172+G1172+IF(#REF!=FALSE,Materialvalg!H1172)+IF(#REF!=TRUE,Materialvalg!I1172)","v":{"$error":"#REF!"}}]
[null,"Swedoor PURITY 01L (hvit)",null,null,1329,0,451,0,185,null,null,{"$f":"E1173+G1173+IF(#REF!=FALSE,Materialvalg!H1173)+IF(#REF!=TRUE,Materialvalg!I1173)","v":{"$error":"#REF!"}}]
[null,"Swedoor PURITY 02L (hvit)",null,null,1329,0,451,0,185,null,null,{"$f":"E1174+G1174+IF(#REF!=FALSE,Materialvalg!H1174)+IF(#REF!=TRUE,Materialvalg!I1174)","v":{"$error":"#REF!"}}]
[null,"Swedoor PURITY 03L (hvit)",null,null,1329,0,451,0,185,null,null,{"$f":"E1175+G1175+IF(#REF!=FALSE,Materialvalg!H1175)+IF(#REF!=TRUE,Materialvalg!I1175)","v":{"$error":"#REF!"}}]
[null,"Swedoor PURITY 04L (hvit)",null,null,1538,0,451,0,185,null,null,{"$f":"E1176+G1176+IF(#REF!=FALSE,Materialvalg!H1176)+IF(#REF!=TRUE,Materialvalg!I1176)","v":{"$error":"#REF!"}}]
[null,"Swedoor PURITY 02V (hvit)",null,null,1538,0,451,0,185,null,null,{"$f":"E1177+G1177+IF(#REF!=FALSE,Materialvalg!H1177)+IF(#REF!=TRUE,Materialvalg!I1177)","v":{"$error":"#REF!"}}]
[]
[null,"GLATTE DØRER:"]
[null,"Swedoor EASY (hvit)"]
[null,"Swedoor STABLE MASSIV"]
[]
[1,"Scanflex Sindre (ubehandlet)",null,null,801,167,0,0,132,null,null,{"$f":"E1183+G1183+IF(#REF!=FALSE,Materialvalg!H1183)+IF(#REF!=TRUE,Materialvalg!I1183)","v":{"$error":"#REF!"}}]
[2,"Scanflex Sindre (lakkert/syrebeis)",null,null,1019,167,0,78,132,null,null,{"$f":"E1184+G1184+IF(#REF!=FALSE,Materialvalg!H1184)+IF(#REF!=TRUE,Materialvalg!I1184)","v":{"$error":"#REF!"}}]
[3,"Scanflex Sindre (hvit)",null,null,1019,167,0,106,132,null,null,{"$f":"E1185+G1185+IF(#REF!=FALSE,Materialvalg!H1185)+IF(#REF!=TRUE,Materialvalg!I1185)","v":{"$error":"#REF!"}}]
[4,"Scanflex Skjold (ubehandlet)",null,null,1063,167,0,0,132,null,null,{"$f":"E1186+G1186+IF(#REF!=FALSE,Materialvalg!H1186)+IF(#REF!=TRUE,Materialvalg!I1186)","v":{"$error":"#REF!"}}]
[5,"Scanflex Skjold (lakkert/syrebeis)",null,null,1180,167,0,78,132,null,null,{"$f":"E1187+G1187+IF(#REF!=FALSE,Materialvalg!H1187)+IF(#REF!=TRUE,Materialvalg!I1187)","v":{"$error":"#REF!"}}]
[6,"Scanflex Skjold (hvit)",null,null,1403,167,0,106,132,null,null,{"$f":"E1188+G1188+IF(#REF!=FALSE,Materialvalg!H1188)+IF(#REF!=TRUE,Materialvalg!I1188)","v":{"$error":"#REF!"}}]
[7,"Scanflex Siv (ubehandlet)",null,null,980,167,0,0,132,null,null,{"$f":"E1189+G1189+IF(#REF!=FALSE,Materialvalg!H1189)+IF(#REF!=TRUE,Materialvalg!I1189)","v":{"$error":"#REF!"}}]
[8,"Scanflex Siv (lakkert/syrebeis)",null,null,1096,167,0,78,132,null,null,{"$f":"E1190+G1190+IF(#REF!=FALSE,Materialvalg!H1190)+IF(#REF!=TRUE,Materialvalg!I1190)","v":{"$error":"#REF!"}}]
[9,"Scanflex Siv (hvit)",null,null,1352,167,0,106,132,null,null,{"$f":"E1191+G1191+IF(#REF!=FALSE,Materialvalg!H1191)+IF(#REF!=TRUE,Materialvalg!I1191)","v":{"$error":"#REF!"}}]
[10]
[11]
[12]
[1,"Scanflex Trend 1 (hvit)",null,null,1793,282,0,294,264,null,null,{"$f":"E1195+G1195+IF(#REF!=FALSE,Materialvalg!H1195)+IF(#REF!=TRUE,Materialvalg!I1195)","v":{"$error":"#REF!"}}]
[2,"Scanflex Trend 2 (hvit)",null,null,1965,282,0,294,264,null,null,{"$f":"E1196+G1196+IF(#REF!=FALSE,Materialvalg!H1196)+IF(#REF!=TRUE,Materialvalg!I1196)","v":{"$error":"#REF!"}}]
[3,"Scanflex Trend 3 (hvit)",null,null,2127,282,0,294,264,null,null,{"$f":"E1197+G1197+IF(#REF!=FALSE,Materialvalg!H1197)+IF(#REF!=TRUE,Materialvalg!I1197)","v":{"$error":"#REF!"}}]
[4,"Scanflex Trend 4 (hvit)",null,null,2299,282,0,294,264,null,null,{"$f":"E1198+G1198+IF(#REF!=FALSE,Materialvalg!H1198)+IF(#REF!=TRUE,Materialvalg!I1198)","v":{"$error":"#REF!"}}]
[5,"Scanflex Pia (hvit)",null,null,3497,0,0,583,0,null,null,{"$f":"E1199+G1199+IF(#REF!=FALSE,Materialvalg!H1199)+IF(#REF!=TRUE,Materialvalg!I1199)","v":{"$error":"#REF!"}}]
[6,"Scanflex Pernille (hvit)",null,null,3623,0,0,583,0,null,null,{"$f":"E1200+G1200+IF(#REF!=FALSE,Materialvalg!H1200)+IF(#REF!=TRUE,Materialvalg!I1200)","v":{"$error":"#REF!"}}]
[7,"Scanflex Christine (hvit)",null,null,4305,0,0,583,0,null,null,{"$f":"E1201+G1201+IF(#REF!=FALSE,Materialvalg!H1201)+IF(#REF!=TRUE,Materialvalg!I1201)","v":{"$error":"#REF!"}}]
[8,"Scanflex Charlotte (hvit)",null,null,4305,0,0,583,0,null,null,{"$f":"E1202+G1202+IF(#REF!=FALSE,Materialvalg!H1202)+IF(#REF!=TRUE,Materialvalg!I1202)","v":{"$error":"#REF!"}}]
[9,"Scanflex Camilla (hvit)",null,null,4305,0,0,583,0,null,null,{"$f":"E1203+G1203+IF(#REF!=FALSE,Materialvalg!H1203)+IF(#REF!=TRUE,Materialvalg!I1203)","v":{"$error":"#REF!"}}]
[10,"Scanflex Eirin (hvit)",null,null,4631,0,0,583,0,null,null,{"$f":"E1204+G1204+IF(#REF!=FALSE,Materialvalg!H1204)+IF(#REF!=TRUE,Materialvalg!I1204)","v":{"$error":"#REF!"}}]
[11,"Scanflex Elise (hvit)",null,null,4631,0,0,583,0,null,null,{"$f":"E1205+G1205+IF(#REF!=FALSE,Materialvalg!H1205)+IF(#REF!=TRUE,Materialvalg!I1205)","v":{"$error":"#REF!"}}]
[12,"Scanflex Elinor (hvit)",null,null,4631,0,0,583,0,null,null,{"$f":"E1206+G1206+IF(#REF!=FALSE,Materialvalg!H1206)+IF(#REF!=TRUE,Materialvalg!I1206)","v":{"$error":"#REF!"}}]
[]
[null,"Glassdører 1-fløy"]
[1,"Swedoor STYLE SP6 (hvit)",null,null,2907,551,451,0,185,null,null,{"$f":"E1209+G1209+IF(#REF!=FALSE,Materialvalg!H1209)+IF(#REF!=TRUE,Materialvalg!I1209)","v":{"$error":"#REF!"}}]
[2,"Swedoor STYLE 04SP6 (hvit)",null,null,3119,551,451,0,185,null,null,{"$f":"E1210+G1210+IF(#REF!=FALSE,Materialvalg!H1210)+IF(#REF!=TRUE,Materialvalg!I1210)","v":{"$error":"#REF!"}}]
[3,"Swedoor STYLE SP10 (hvit)",null,null,2907,551,451,0,185,null,null,{"$f":"E1211+G1211+IF(#REF!=FALSE,Materialvalg!H1211)+IF(#REF!=TRUE,Materialvalg!I1211)","v":{"$error":"#REF!"}}]
[4,"Swedoor STYLE SP12 (hvit)",null,null,3608,551,451,0,185,null,null,{"$f":"E1212+G1212+IF(#REF!=FALSE,Materialvalg!H1212)+IF(#REF!=TRUE,Materialvalg!I1212)","v":{"$error":"#REF!"}}]
[5,"Swedoor STYLE SP6B (hvit)",null,null,3119,551,451,0,185,null,null,{"$f":"E1213+G1213+IF(#REF!=FALSE,Materialvalg!H1213)+IF(#REF!=TRUE,Materialvalg!I1213)","v":{"$error":"#REF!"}}]
[6,"Swedoor STYLE SP12B (hvit)",null,null,4329,551,451,0,185,null,null,{"$f":"E1214+G1214+IF(#REF!=FALSE,Materialvalg!H1214)+IF(#REF!=TRUE,Materialvalg!I1214)","v":{"$error":"#REF!"}}]
[7,"Swedoor PURITY GW01L",null,null,2421,551,451,0,185,null,null,{"$f":"E1215+G1215+IF(#REF!=FALSE,Materialvalg!H1215)+IF(#REF!=TRUE,Materialvalg!I1215)","v":{"$error":"#REF!"}}]
[8,"Swedoor PURITY GW02L",null,null,2285,551,451,0,185,null,null,{"$f":"E1216+G1216+IF(#REF!=FALSE,Materialvalg!H1216)+IF(#REF!=TRUE,Materialvalg!I1216)","v":{"$error":"#REF!"}}]
[9,"Swedoor PURITY GW03L",null,null,2488,551,451,0,185,null,null,{"$f":"E1217+G1217+IF(#REF!=FALSE,Materialvalg!H1217)+IF(#REF!=TRUE,Materialvalg!I1217)","v":{"$error":"#REF!"}}]
[10,"Swedoor PURITY GW04L",null,null,2759,551,451,0,185,null,null,{"$f":"E1218+G1218+IF(#REF!=FALSE,Materialvalg!H1218)+IF(#REF!=TRUE,Materialvalg!I1218)","v":{"$error":"#REF!"}}]
[11,"Swedoor PURITY GW02V",null,null,2421,551,451,0,185,null,null,{"$f":"E1219+G1219+IF(#REF!=FALSE,Materialvalg!H1219)+IF(#REF!=TRUE,Materialvalg!I1219)","v":{"$error":"#REF!"}}]
[12,"Swedoor EASY GW1 (hvit)",null,null,1995,551,451,0,185,null,null,{"$f":"E1220+G1220+IF(#REF!=FALSE,Materialvalg!H1220)+IF(#REF!=TRUE,Materialvalg!I1220)","v":{"$error":"#REF!"}}]
[13,"Swedoor EASY GW3 (hvit)",null,null,2402,551,451,0,185,null,null,{"$f":"E1221+G1221+IF(#REF!=FALSE,Materialvalg!H1221)+IF(#REF!=TRUE,Materialvalg!I1221)","v":{"$error":"#REF!"}}]
[14,"Swedoor EASY GW4 (hvit)",null,null,2608,551,451,0,185,null,null,{"$f":"E1222+G1222+IF(#REF!=FALSE,Materialvalg!H1222)+IF(#REF!=TRUE,Materialvalg!I1222)","v":{"$error":"#REF!"}}]
[1,"Scanflex Sindre (ubehandlet)",null,null,1937,390,0,0,132,null,null,{"$f":"E1223+G1223+IF(#REF!=FALSE,Materialvalg!H1223)+IF(#REF!=TRUE,Materialvalg!I1223)","v":{"$error":"#REF!"}}]
[2,"Scanflex Sindre (lakkert/syrebeis)",null,null,2242,390,0,78,132,null,null,{"$f":"E1224+G1224+IF(#REF!=FALSE,Materialvalg!H1224)+IF(#REF!=TRUE,Materialvalg!I1224)","v":{"$error":"#REF!"}}]
[3,"Scanflex Sindre (hvit)",null,null,2477,390,0,106,132,null,null,{"$f":"E1225+G1225+IF(#REF!=FALSE,Materialvalg!H1225)+IF(#REF!=TRUE,Materialvalg!I1225)","v":{"$error":"#REF!"}}]
[4,"Scanflex Skjold (ubehandlet)",null,null,1937,390,0,0,132,null,null,{"$f":"E1226+G1226+IF(#REF!=FALSE,Materialvalg!H1226)+IF(#REF!=TRUE,Materialvalg!I1226)","v":{"$error":"#REF!"}}]
[5,"Scanflex Skjold (lakkert/syrebeis)",null,null,2242,390,0,78,132,null,null,{"$f":"E1227+G1227+IF(#REF!=FALSE,Materialvalg!H1227)+IF(#REF!=TRUE,Materialvalg!I1227)","v":{"$error":"#REF!"}}]
[6,"Scanflex Skjold (hvit)",null,null,2477,390,0,106,132,null,null,{"$f":"E1228+G1228+IF(#REF!=FALSE,Materialvalg!H1228)+IF(#REF!=TRUE,Materialvalg!I1228)","v":{"$error":"#REF!"}}]
[7,"Scanflex Siv lav brystning (ubehandlet)",null,null,2332,390,0,0,132,null,null,{"$f":"E1229+G1229+IF(#REF!=FALSE,Materialvalg!H1229)+IF(#REF!=TRUE,Materialvalg!I1229)","v":{"$error":"#REF!"}}]
[8,"Scanflex Siv lav brystning (lakkert/syrebeis)",null,null,2637,390,0,78,132,null,null,{"$f":"E1230+G1230+IF(#REF!=FALSE,Materialvalg!H1230)+IF(#REF!=TRUE,Materialvalg!I1230)","v":{"$error":"#REF!"}}]
[9,"Scanflex Siv lav brystning (hvit)",null,null,3038,390,0,106,132,null,null,{"$f":"E1231+G1231+IF(#REF!=FALSE,Materialvalg!H1231)+IF(#REF!=TRUE,Materialvalg!I1231)","v":{"$error":"#REF!"}}]
[10,"Scanflex Siv høy brystning (ubehandlet)",null,null,2332,390,0,0,132,null,null,{"$f":"E1232+G1232+IF(#REF!=FALSE,Materialvalg!H1232)+IF(#REF!=TRUE,Materialvalg!I1232)","v":{"$error":"#REF!"}}]
[11,"Scanflex Siv høy brystning (lakkert/syrebeis)",null,null,2637,390,0,78,132,null,null,{"$f":"E1233+G1233+IF(#REF!=FALSE,Materialvalg!H1233)+IF(#REF!=TRUE,Materialvalg!I1233)","v":{"$error":"#REF!"}}]
[12,"Scanflex Siv høy brystning (hvit)",null,null,3038,390,0,106,132,null,null,{"$f":"E1234+G1234+IF(#REF!=FALSE,Materialvalg!H1234)+IF(#REF!=TRUE,Materialvalg!I1234)","v":{"$error":"#REF!"}}]
[13]
[14]
[1,"Scanflex Trend 1 (hvit)",null,null,3838,668,0,294,264,null,null,{"$f":"E1237+G1237+IF(#REF!=FALSE,Materialvalg!H1237)+IF(#REF!=TRUE,Materialvalg!I1237)","v":{"$error":"#REF!"}}]
[2,"Scanflex Trend 2 (hvit)",null,null,4132,668,0,294,264,null,null,{"$f":"E1238+G1238+IF(#REF!=FALSE,Materialvalg!H1238)+IF(#REF!=TRUE,Materialvalg!I1238)","v":{"$error":"#REF!"}}]
[3,"Scanflex Trend 3 (hvit)",null,null,4507,668,0,294,264,null,null,{"$f":"E1239+G1239+IF(#REF!=FALSE,Materialvalg!H1239)+IF(#REF!=TRUE,Materialvalg!I1239)","v":{"$error":"#REF!"}}]
[4,"Scanflex Trend 4 (hvit)",null,null,4667,668,0,294,264,null,null,{"$f":"E1240+G1240+IF(#REF!=FALSE,Materialvalg!H1240)+IF(#REF!=TRUE,Materialvalg!I1240)","v":{"$error":"#REF!"}}]
[5,"Scanflex Trend Duo (hvit)",null,null,4406,668,0,294,264,null,null,{"$f":"E1241+G1241+IF(#REF!=FALSE,Materialvalg!H1241)+IF(#REF!=TRUE,Materialvalg!I1241)","v":{"$error":"#REF!"}}]
[6,"Scanflex Pia (sprossekassett) (hvit)",null,null,6374,1020,0,583,0,null,null,{"$f":"E1242+G1242+IF(#REF!=FALSE,Materialvalg!H1242)+IF(#REF!=TRUE,Materialvalg!I1242)","v":{"$error":"#REF!"}}]
[7,"Scanflex Pernille lav brystning (sprossekassett) (hvit)",null,null,7077,1020,0,583,0,null,null,{"$f":"E1243+G1243+IF(#REF!=FALSE,Materialvalg!H1243)+IF(#REF!=TRUE,Materialvalg!I1243)","v":{"$error":"#REF!"}}]
[8,"Scanflex Pernille høy brystning (sprossekassett) (hvit)",null,null,6993,1020,0,583,0,null,null,{"$f":"E1244+G1244+IF(#REF!=FALSE,Materialvalg!H1244)+IF(#REF!=TRUE,Materialvalg!I1244)","v":{"$error":"#REF!"}}]
[9,"Scanflex Christine (sprossekassett) (hvit)",null,null,6479,1020,0,583,0,null,null,{"$f":"E1245+G1245+IF(#REF!=FALSE,Materialvalg!H1245)+IF(#REF!=TRUE,Materialvalg!I1245)","v":{"$error":"#REF!"}}]
[10,"Scanflex Charlotte (sprossekassett) (hvit)",null,null,6993,1020,0,583,0,null,null,{"$f":"E1246+G1246+IF(#REF!=FALSE,Materialvalg!H1246)+IF(#REF!=TRUE,Materialvalg!I1246)","v":{"$error":"#REF!"}}]
[11,"Scanflex Camilla (sprossekassett) (hvit)",null,null,7077,1020,0,583,0,null,null,{"$f":"E1247+G1247+IF(#REF!=FALSE,Materialvalg!H1247)+IF(#REF!=TRUE,Materialvalg!I1247)","v":{"$error":"#REF!"}}]
[12,"Scanflex Eirin (sprossekassett) (hvit)",null,null,7077,1020,0,583,0,null,null,{"$f":"E1248+G1248+IF(#REF!=FALSE,Materialvalg!H1248)+IF(#REF!=TRUE,Materialvalg!I1248)","v":{"$error":"#REF!"}}]
[13,"Scanflex Elise (sprossekassett) (hvit)",null,null,7077,1020,0,583,0,null,null,{"$f":"E1249+G1249+IF(#REF!=FALSE,Materialvalg!H1249)+IF(#REF!=TRUE,Materialvalg!I1249)","v":{"$error":"#REF!"}}]
[14]
[]
[null,"Glassdører 1 ½-fløy"]
[1,"Swedoor STYLE SP6+SP3 (hvit)",null,null,6120,0,557,0,185,null,null,{"$f":"E1253+G1253+IF(#REF!=FALSE,Materialvalg!H1253)+IF(#REF!=TRUE,Materialvalg!I1253)","v":{"$error":"#REF!"}}]
[4,"Swedoor STYLE SP12+SP6 (hvit)",null,null,7522,0,557,0,185,null,null,{"$f":"E1254+G1254+IF(#REF!=FALSE,Materialvalg!H1254)+IF(#REF!=TRUE,Materialvalg!I1254)","v":{"$error":"#REF!"}}]
[3,"Swedoor PURITY GW01L+GW01L",null,null,5148,0,557,0,185,null,null,{"$f":"E1255+G1255+IF(#REF!=FALSE,Materialvalg!H1255)+IF(#REF!=TRUE,Materialvalg!I1255)","v":{"$error":"#REF!"}}]
[4,"Swedoor PURITY GW03L+GW03L",null,null,5282,0,557,0,185,null,null,{"$f":"E1256+G1256+IF(#REF!=FALSE,Materialvalg!H1256)+IF(#REF!=TRUE,Materialvalg!I1256)","v":{"$error":"#REF!"}}]
[5,"Swedoor PURITY GW04L+GW04L",null,null,5824,0,557,0,185,null,null,{"$f":"E1257+G1257+IF(#REF!=FALSE,Materialvalg!H1257)+IF(#REF!=TRUE,Materialvalg!I1257)","v":{"$error":"#REF!"}}]
[6,"Swedoor EASY GW1+GW1 (hvit)",null,null,4296,0,557,0,185,null,null,{"$f":"E1258+G1258+IF(#REF!=FALSE,Materialvalg!H1258)+IF(#REF!=TRUE,Materialvalg!I1258)","v":{"$error":"#REF!"}}]
[7,"Swedoor EASY GW3+GW3 (hvit)",null,null,5110,0,557,0,185,null,null,{"$f":"E1259+G1259+IF(#REF!=FALSE,Materialvalg!H1259)+IF(#REF!=TRUE,Materialvalg!I1259)","v":{"$error":"#REF!"}}]
[8,"Swedoor EASY GW4+GW4 (hvit)",null,null,5522,0,557,0,185,null,null,{"$f":"E1260+G1260+IF(#REF!=FALSE,Materialvalg!H1260)+IF(#REF!=TRUE,Materialvalg!I1260)","v":{"$error":"#REF!"}}]
[9]
[10]
[11]
[12]
[30]
[1,"Scanflex Sindre (ubehandlet)",null,null,{"$f":"1937+1454","v":3391},390,0,0,132,null,null,{"$f":"E1266+G1266+IF(#REF!=FALSE,Materialvalg!H1266)+IF(#REF!=TRUE,Materialvalg!I1266)","v":{"$error":"#REF!"}}]
[2,"Scanflex Sindre (lakkert/syrebeis)",null,null,{"$f":"2242+1698","v":3940},390,0,78,132,null,null,{"$f":"E1267+G1267+IF(#REF!=FALSE,Materialvalg!H1267)+IF(#REF!=TRUE,Materialvalg!I1267)","v":{"$error":"#REF!"}}]
[3,"Scanflex Sindre (hvit)",null,null,{"$f":"2477+2032","v":4509},390,0,106,132,null,null,{"$f":"E1268+G1268+IF(#REF!=FALSE,Materialvalg!H1268)+IF(#REF!=TRUE,Materialvalg!I1268)","v":{"$error":"#REF!"}}]
[4,"Scanflex Skjold (ubehandlet)",null,null,{"$f":"1937+1454","v":3391},390,0,0,132,null,null,{"$f":"E1269+G1269+IF(#REF!=FALSE,Materialvalg!H1269)+IF(#REF!=TRUE,Materialvalg!I1269)","v":{"$error":"#REF!"}}]
[5,"Scanflex Skjold (lakkert/syrebeis)",null,null,{"$f":"2242+1698","v":3940},390,0,78,132,null,null,{"$f":"E1270+G1270+IF(#REF!=FALSE,Materialvalg!H1270)+IF(#REF!=TRUE,Materialvalg!I1270)","v":{"$error":"#REF!"}}]
[6,"Scanflex Skjold (hvit)",null,null,{"$f":"2477+2032","v":4509},390,0,106,132,null,null,{"$f":"E1271+G1271+IF(#REF!=FALSE,Materialvalg!H1271)+IF(#REF!=TRUE,Materialvalg!I1271)","v":{"$error":"#REF!"}}]
[7,"Scanflex Siv lav brystning (ubehandlet)",null,null,{"$f":"2332+1454","v":3786},390,0,0,132,null,null,{"$f":"E1272+G1272+IF(#REF!=FALSE,Materialvalg!H1272)+IF(#REF!=TRUE,Materialvalg!I1272)","v":{"$error":"#REF!"}}]
[8,"Scanflex Siv lav brystning (lakkert/syrebeis)",null,null,{"$f":"2637+1698","v":4335},390,0,78,132,null,null,{"$f":"E1273+G1273+IF(#REF!=FALSE,Materialvalg!H1273)+IF(#REF!=TRUE,Materialvalg!I1273)","v":{"$error":"#REF!"}}]
[9,"Scanflex Siv lav brystning (hvit)",null,null,{"$f":"3038+2032","v":5070},390,0,106,132,null,null,{"$f":"E1274+G1274+IF(#REF!=FALSE,Materialvalg!H1274)+IF(#REF!=TRUE,Materialvalg!I1274)","v":{"$error":"#REF!"}}]
[10,"Scanflex Siv høy brystning (ubehandlet)",null,null,{"$f":"2332+1454","v":3786},390,0,0,132,null,null,{"$f":"E1275+G1275+IF(#REF!=FALSE,Materialvalg!H1275)+IF(#REF!=TRUE,Materialvalg!I1275)","v":{"$error":"#REF!"}}]
[11,"Scanflex Siv høy brystning (lakkert/syrebeis)",null,null,{"$f":"2637+1698","v":4335},390,0,78,132,null,null,{"$f":"E1276+G1276+IF(#REF!=FALSE,Materialvalg!H1276)+IF(#REF!=TRUE,Materialvalg!I1276)","v":{"$error":"#REF!"}}]
[12,"Scanflex Siv høy brystning (hvit)",null,null,{"$f":"3038+2032","v":5070},390,0,106,132,null,null,{"$f":"E1277+G1277+IF(#REF!=FALSE,Materialvalg!H1277)+IF(#REF!=TRUE,Materialvalg!I1277)","v":{"$error":"#REF!"}}]
[13]
[1,"Scanflex Trend 1 (hvit)",null,null,7100,668,0,294,264,null,null,{"$f":"E1279+G1279+IF(#REF!=FALSE,Materialvalg!H1279)+IF(#REF!=TRUE,Materialvalg!I1279)","v":{"$error":"#REF!"}}]
[2,"Scanflex Trend 2 (hvit)",null,null,7593,668,0,294,264,null,null,{"$f":"E1280+G1280+IF(#REF!=FALSE,Materialvalg!H1280)+IF(#REF!=TRUE,Materialvalg!I1280)","v":{"$error":"#REF!"}}]
[3,"Scanflex Trend 3 (hvit)",null,null,8192,668,0,294,264,null,null,{"$f":"E1281+G1281+IF(#REF!=FALSE,Materialvalg!H1281)+IF(#REF!=TRUE,Materialvalg!I1281)","v":{"$error":"#REF!"}}]
[4,"Scanflex Trend 4 (hvit)",null,null,8463,668,0,294,264,null,null,{"$f":"E1282+G1282+IF(#REF!=FALSE,Materialvalg!H1282)+IF(#REF!=TRUE,Materialvalg!I1282)","v":{"$error":"#REF!"}}]
[5,"Scanflex Trend Duo (hvit)",null,null,7888,668,0,294,264,null,null,{"$f":"E1283+G1283+IF(#REF!=FALSE,Materialvalg!H1283)+IF(#REF!=TRUE,Materialvalg!I1283)","v":{"$error":"#REF!"}}]
[6,"Scanflex Pia (sprossekassett) (hvit)",null,null,11561,1020,0,583,0,null,null,{"$f":"E1284+G1284+IF(#REF!=FALSE,Materialvalg!H1284)+IF(#REF!=TRUE,Materialvalg!I1284)","v":{"$error":"#REF!"}}]
[7,"Scanflex Pernille lav brystning (sprossekassett) (hvit)",null,null,12296,1020,0,583,0,null,null,{"$f":"E1285+G1285+IF(#REF!=FALSE,Materialvalg!H1285)+IF(#REF!=TRUE,Materialvalg!I1285)","v":{"$error":"#REF!"}}]
[8,"Scanflex Pernille høy brystning (sprossekassett) (hvit)",null,null,12170,1020,0,583,0,null,null,{"$f":"E1286+G1286+IF(#REF!=FALSE,Materialvalg!H1286)+IF(#REF!=TRUE,Materialvalg!I1286)","v":{"$error":"#REF!"}}]
[9,"Scanflex Christine (sprossekassett) (hvit)",null,null,11687,1020,0,583,0,null,null,{"$f":"E1287+G1287+IF(#REF!=FALSE,Materialvalg!H1287)+IF(#REF!=TRUE,Materialvalg!I1287)","v":{"$error":"#REF!"}}]
[10,"Scanflex Charlotte (sprossekassett) (hvit)",null,null,12170,1020,0,583,0,null,null,{"$f":"E1288+G1288+IF(#REF!=FALSE,Materialvalg!H1288)+IF(#REF!=TRUE,Materialvalg!I1288)","v":{"$error":"#REF!"}}]
[11,"Scanflex Camilla (sprossekassett) (hvit)",null,null,12296,1020,0,583,0,null,null,{"$f":"E1289+G1289+IF(#REF!=FALSE,Materialvalg!H1289)+IF(#REF!=TRUE,Materialvalg!I1289)","v":{"$error":"#REF!"}}]
[12,"Scanflex Eirin (sprossekassett) (hvit)",null,null,12296,1020,0,583,0,null,null,{"$f":"E1290+G1290+IF(#REF!=FALSE,Materialvalg!H1290)+IF(#REF!=TRUE,Materialvalg!I1290)","v":{"$error":"#REF!"}}]
[13,"Scanflex Elise (sprossekassett) (hvit)",null,null,12296,1020,0,583,0,null,null,{"$f":"E1291+G1291+IF(#REF!=FALSE,Materialvalg!H1291)+IF(#REF!=TRUE,Materialvalg!I1291)","v":{"$error":"#REF!"}}]
[]
[null,"Glassdører 2-fløy"]
[1,"Swedoor STYLE SP6+SP6 (hvit)",null,null,6120,0,557,0,185,null,null,{"$f":"E1294+G1294+IF(#REF!=FALSE,Materialvalg!H1294)+IF(#REF!=TRUE,Materialvalg!I1294)","v":{"$error":"#REF!"}}]
[2,"Swedoor STYLE 04SP6+SP6 (hvit)",null,null,6544,0,557,0,185,null,null,{"$f":"E1295+G1295+IF(#REF!=FALSE,Materialvalg!H1295)+IF(#REF!=TRUE,Materialvalg!I1295)","v":{"$error":"#REF!"}}]
[3,"Swedoor STYLE SP10+SP10 (hvit)",null,null,6120,0,557,0,185,null,null,{"$f":"E1296+G1296+IF(#REF!=FALSE,Materialvalg!H1296)+IF(#REF!=TRUE,Materialvalg!I1296)","v":{"$error":"#REF!"}}]
[4,"Swedoor STYLE SP12+SP12 (hvit)",null,null,7522,0,557,0,185,null,null,{"$f":"E1297+G1297+IF(#REF!=FALSE,Materialvalg!H1297)+IF(#REF!=TRUE,Materialvalg!I1297)","v":{"$error":"#REF!"}}]
[5,"Swedoor STYLE SP6B+SP6B (hvit)",null,null,6544,0,557,0,185,null,null,{"$f":"E1298+G1298+IF(#REF!=FALSE,Materialvalg!H1298)+IF(#REF!=TRUE,Materialvalg!I1298)","v":{"$error":"#REF!"}}]
[6,"Swedoor STYLE SP12B+SP12B (hvit)",null,null,8964,0,557,0,185,null,null,{"$f":"E1299+G1299+IF(#REF!=FALSE,Materialvalg!H1299)+IF(#REF!=TRUE,Materialvalg!I1299)","v":{"$error":"#REF!"}}]
[7,"Swedoor PURITY GW01L+GW01L",null,null,5148,0,557,0,185,null,null,{"$f":"E1300+G1300+IF(#REF!=FALSE,Materialvalg!H1300)+IF(#REF!=TRUE,Materialvalg!I1300)","v":{"$error":"#REF!"}}]
[8,"Swedoor PURITY GW02L+GW02L",null,null,4876,0,557,0,185,null,null,{"$f":"E1301+G1301+IF(#REF!=FALSE,Materialvalg!H1301)+IF(#REF!=TRUE,Materialvalg!I1301)","v":{"$error":"#REF!"}}]
[9,"Swedoor PURITY GW03L+GW03L",null,null,5282,0,557,0,185,null,null,{"$f":"E1302+G1302+IF(#REF!=FALSE,Materialvalg!H1302)+IF(#REF!=TRUE,Materialvalg!I1302)","v":{"$error":"#REF!"}}]
[10,"Swedoor PURITY GW04L+GW04L",null,null,5824,0,557,0,185,null,null,{"$f":"E1303+G1303+IF(#REF!=FALSE,Materialvalg!H1303)+IF(#REF!=TRUE,Materialvalg!I1303)","v":{"$error":"#REF!"}}]
[11,"Swedoor PURITY GW02V+GW02V",null,null,5148,0,557,0,185,null,null,{"$f":"E1304+G1304+IF(#REF!=FALSE,Materialvalg!H1304)+IF(#REF!=TRUE,Materialvalg!I1304)","v":{"$error":"#REF!"}}]
[12,"Swedoor EASY GW1+GW1 (hvit)",null,null,4296,0,557,0,185,null,null,{"$f":"E1305+G1305+IF(#REF!=FALSE,Materialvalg!H1305)+IF(#REF!=TRUE,Materialvalg!I1305)","v":{"$error":"#REF!"}}]
[13,"Swedoor EASY GW3+GW3 (hvit)",null,null,5110,0,557,0,185,null,null,{"$f":"E1306+G1306+IF(#REF!=FALSE,Materialvalg!H1306)+IF(#REF!=TRUE,Materialvalg!I1306)","v":{"$error":"#REF!"}}]
[14,"Swedoor EASY GW4+GW4 (hvit)",null,null,5522,0,557,0,185,null,null,{"$f":"E1307+G1307+IF(#REF!=FALSE,Materialvalg!H1307)+IF(#REF!=TRUE,Materialvalg!I1307)","v":{"$error":"#REF!"}}]
[1,"Scanflex Sindre (ubehandlet)",null,null,{"$f":"1937*2+223","v":4097},{"$f":"390*2","v":780},0,0,132,null,null,{"$f":"E1308+G1308+IF(#REF!=FALSE,Materialvalg!H1308)+IF(#REF!=TRUE,Materialvalg!I1308)","v":{"$error":"#REF!"}}]
[2,"Scanflex Sindre (lakkert/syrebeis)",null,null,{"$f":"2242*2+223","v":4707},{"$f":"390*2","v":780},0,78,132,null,null,{"$f":"E1309+G1309+IF(#REF!=FALSE,Materialvalg!H1309)+IF(#REF!=TRUE,Materialvalg!I1309)","v":{"$error":"#REF!"}}]
[3,"Scanflex Sindre (hvit)",null,null,{"$f":"2477*2+223","v":5177},780,0,106,132,null,null,{"$f":"E1310+G1310+IF(#REF!=FALSE,Materialvalg!H1310)+IF(#REF!=TRUE,Materialvalg!I1310)","v":{"$error":"#REF!"}}]
[4,"Scanflex Skjold (ubehandlet)",null,null,{"$f":"1937*2+223","v":4097},780,0,0,132,null,null,{"$f":"E1311+G1311+IF(#REF!=FALSE,Materialvalg!H1311)+IF(#REF!=TRUE,Materialvalg!I1311)","v":{"$error":"#REF!"}}]
[5,"Scanflex Skjold (lakkert/syrebeis)",null,null,{"$f":"2242*2+223","v":4707},780,0,78,132,null,null,{"$f":"E1312+G1312+IF(#REF!=FALSE,Materialvalg!H1312)+IF(#REF!=TRUE,Materialvalg!I1312)","v":{"$error":"#REF!"}}]
[6,"Scanflex Skjold (hvit)",null,null,{"$f":"2477*2+223","v":5177},780,0,106,132,null,null,{"$f":"E1313+G1313+IF(#REF!=FALSE,Materialvalg!H1313)+IF(#REF!=TRUE,Materialvalg!I1313)","v":{"$error":"#REF!"}}]
[7,"Scanflex Siv lav brystning (ubehandlet)",null,null,{"$f":"2332*2+223","v":4887},780,0,0,132,null,null,{"$f":"E1314+G1314+IF(#REF!=FALSE,Materialvalg!H1314)+IF(#REF!=TRUE,Materialvalg!I1314)","v":{"$error":"#REF!"}}]
[8,"Scanflex Siv lav brystning (lakkert/syrebeis)",null,null,{"$f":"2637*2+223","v":5497},780,0,78,132,null,null,{"$f":"E1315+G1315+IF(#REF!=FALSE,Materialvalg!H1315)+IF(#REF!=TRUE,Materialvalg!I1315)","v":{"$error":"#REF!"}}]
[9,"Scanflex Siv lav brystning (hvit)",null,null,{"$f":"3038*2+223","v":6299},780,0,106,132,null,null,{"$f":"E1316+G1316+IF(#REF!=FALSE,Materialvalg!H1316)+IF(#REF!=TRUE,Materialvalg!I1316)","v":{"$error":"#REF!"}}]
[10,"Scanflex Siv høy brystning (ubehandlet)",null,null,{"$f":"2332*2+223","v":4887},780,0,0,132,null,null,{"$f":"E1317+G1317+IF(#REF!=FALSE,Materialvalg!H1317)+IF(#REF!=TRUE,Materialvalg!I1317)","v":{"$error":"#REF!"}}]
[11,"Scanflex Siv høy brystning (lakkert/syrebeis)",null,null,{"$f":"2637*2+223","v":5497},780,0,78,132,null,null,{"$f":"E1318+G1318+IF(#REF!=FALSE,Materialvalg!H1318)+IF(#REF!=TRUE,Materialvalg!I1318)","v":{"$error":"#REF!"}}]
[12,"Scanflex Siv høy brystning (hvit)",null,null,{"$f":"3038*2+223","v":6299},780,0,106,132,null,null,{"$f":"E1319+G1319+IF(#REF!=FALSE,Materialvalg!H1319)+IF(#REF!=TRUE,Materialvalg!I1319)","v":{"$error":"#REF!"}}]
[13]
[14]
[1,"Scanflex Trend 1 (hvit)",null,null,7830,1336,0,294,264,null,null,{"$f":"E1322+G1322+IF(#REF!=FALSE,Materialvalg!H1322)+IF(#REF!=TRUE,Materialvalg!I1322)","v":{"$error":"#REF!"}}]
[2,"Scanflex Trend 2 (hvit)",null,null,8415,1336,0,294,264,null,null,{"$f":"E1323+G1323+IF(#REF!=FALSE,Materialvalg!H1323)+IF(#REF!=TRUE,Materialvalg!I1323)","v":{"$error":"#REF!"}}]
[3,"Scanflex Trend 3 (hvit)",null,null,9165,1336,0,294,264,null,null,{"$f":"E1324+G1324+IF(#REF!=FALSE,Materialvalg!H1324)+IF(#REF!=TRUE,Materialvalg!I1324)","v":{"$error":"#REF!"}}]
[4,"Scanflex Trend 4 (hvit)",null,null,9486,1336,0,294,264,null,null,{"$f":"E1325+G1325+IF(#REF!=FALSE,Materialvalg!H1325)+IF(#REF!=TRUE,Materialvalg!I1325)","v":{"$error":"#REF!"}}]
[5,"Scanflex Trend Duo (hvit)",null,null,8966,1336,0,294,264,null,null,{"$f":"E1326+G1326+IF(#REF!=FALSE,Materialvalg!H1326)+IF(#REF!=TRUE,Materialvalg!I1326)","v":{"$error":"#REF!"}}]
[6,"Scanflex Pia (sprossekassett) (hvit)",null,null,12747,2040,0,583,0,null,null,{"$f":"E1327+G1327+IF(#REF!=FALSE,Materialvalg!H1327)+IF(#REF!=TRUE,Materialvalg!I1327)","v":{"$error":"#REF!"}}]
[7,"Scanflex Pernille lav brystning (sprossekassett) (hvit)",null,null,14154,2040,0,583,0,null,null,{"$f":"E1328+G1328+IF(#REF!=FALSE,Materialvalg!H1328)+IF(#REF!=TRUE,Materialvalg!I1328)","v":{"$error":"#REF!"}}]
[8,"Scanflex Pernille høy brystning (sprossekassett) (hvit)",null,null,13986,2040,0,583,0,null,null,{"$f":"E1329+G1329+IF(#REF!=FALSE,Materialvalg!H1329)+IF(#REF!=TRUE,Materialvalg!I1329)","v":{"$error":"#REF!"}}]
[9,"Scanflex Christine (sprossekassett) (hvit)",null,null,12957,2040,0,583,0,null,null,{"$f":"E1330+G1330+IF(#REF!=FALSE,Materialvalg!H1330)+IF(#REF!=TRUE,Materialvalg!I1330)","v":{"$error":"#REF!"}}]
[10,"Scanflex Charlotte (sprossekassett) (hvit)",null,null,13986,2040,0,583,0,null,null,{"$f":"E1331+G1331+IF(#REF!=FALSE,Materialvalg!H1331)+IF(#REF!=TRUE,Materialvalg!I1331)","v":{"$error":"#REF!"}}]
[11,"Scanflex Camilla (sprossekassett) (hvit)",null,null,14154,2040,0,583,0,null,null,{"$f":"E1332+G1332+IF(#REF!=FALSE,Materialvalg!H1332)+IF(#REF!=TRUE,Materialvalg!I1332)","v":{"$error":"#REF!"}}]
[12,"Scanflex Eirin (sprossekassett) (hvit)",null,null,14154,2040,0,583,0,null,null,{"$f":"E1333+G1333+IF(#REF!=FALSE,Materialvalg!H1333)+IF(#REF!=TRUE,Materialvalg!I1333)","v":{"$error":"#REF!"}}]
[13,"Scanflex Elise (sprossekassett) (hvit)",null,null,14154,2040,0,583,0,null,null,{"$f":"E1334+G1334+IF(#REF!=FALSE,Materialvalg!H1334)+IF(#REF!=TRUE,Materialvalg!I1334)","v":{"$error":"#REF!"}}]
[14]
[]
[null,"Skyvedør (tette)"]
[1,"Swedoor STYLE 03 (hvit)",null,null,{"$f":"741+148","v":889},0,0.102396,4.1811700000000007,0,null,null,{"$f":"E1338+G1338+IF(#REF!=FALSE,Materialvalg!H1338)+IF(#REF!=TRUE,Materialvalg!I1338)","v":{"$error":"#REF!"}}]
[2,"Swedoor STYLE04 (hvit)",null,null,{"$f":"1141+148","v":1289},0,0.102396,4.1811700000000007,0,null,null,{"$f":"E1339+G1339+IF(#REF!=FALSE,Materialvalg!H1339)+IF(#REF!=TRUE,Materialvalg!I1339)","v":{"$error":"#REF!"}}]
[3,"Swedoor STYLE 04N (hvit)",null,null,{"$f":"762+148","v":910},0,0.102396,4.1811700000000007,0,null,null,{"$f":"E1340+G1340+IF(#REF!=FALSE,Materialvalg!H1340)+IF(#REF!=TRUE,Materialvalg!I1340)","v":{"$error":"#REF!"}}]
[4,"Swedoor STYLE 06 (hvit)",null,null,{"$f":"1141+148","v":1289},0,0.102396,4.1811700000000007,0,null,null,{"$f":"E1341+G1341+IF(#REF!=FALSE,Materialvalg!H1341)+IF(#REF!=TRUE,Materialvalg!I1341)","v":{"$error":"#REF!"}}]
[5,"Swedoor STYLE 02B (hvit)",null,null,{"$f":"1141+148","v":1289},0,0.102396,4.1811700000000007,0,null,null,{"$f":"E1342+G1342+IF(#REF!=FALSE,Materialvalg!H1342)+IF(#REF!=TRUE,Materialvalg!I1342)","v":{"$error":"#REF!"}}]
[6,"Swedoor PURITY 01L (hvit)",null,null,{"$f":"1329+148","v":1477},0,0.102396,4.1811700000000007,0,null,null,{"$f":"E1343+G1343+IF(#REF!=FALSE,Materialvalg!H1343)+IF(#REF!=TRUE,Materialvalg!I1343)","v":{"$error":"#REF!"}}]
[7,"Swedoor PURITY 02L (hvit)",null,null,{"$f":"1329+148","v":1477},0,0.102396,4.1811700000000007,0,null,null,{"$f":"E1344+G1344+IF(#REF!=FALSE,Materialvalg!H1344)+IF(#REF!=TRUE,Materialvalg!I1344)","v":{"$error":"#REF!"}}]
[8,"Swedoor PURITY 03L (hvit)",null,null,{"$f":"1538+148","v":1686},0,0.102396,4.1811700000000007,0,null,null,{"$f":"E1345+G1345+IF(#REF!=FALSE,Materialvalg!H1345)+IF(#REF!=TRUE,Materialvalg!I1345)","v":{"$error":"#REF!"}}]
[9,"Swedoor PURITY 04L (hvit)",null,null,{"$f":"1538+148","v":1686},0,0.102396,4.1811700000000007,0,null,null,{"$f":"E1346+G1346+IF(#REF!=FALSE,Materialvalg!H1346)+IF(#REF!=TRUE,Materialvalg!I1346)","v":{"$error":"#REF!"}}]
[10,"Swedoor PURITY 02V (hvit)",null,null,{"$f":"1329+148","v":1477},0,0.102396,4.1811700000000007,0,null,null,{"$f":"E1347+G1347+IF(#REF!=FALSE,Materialvalg!H1347)+IF(#REF!=TRUE,Materialvalg!I1347)","v":{"$error":"#REF!"}}]
[11,"Swedoor EASY (hvit)",null,null,{"$f":"477+148","v":625},0,0.102396,4.1811700000000007,0,null,null,{"$f":"E1348+G1348+IF(#REF!=FALSE,Materialvalg!H1348)+IF(#REF!=TRUE,Materialvalg!I1348)","v":{"$error":"#REF!"}}]
[12]
[1,"Scanflex Sindre (ubehandlet)",null,null,{"$f":"801-95","v":706},167,0.06,0,0,null,null,{"$f":"E1350+G1350+IF(#REF!=FALSE,Materialvalg!H1350)+IF(#REF!=TRUE,Materialvalg!I1350)","v":{"$error":"#REF!"}}]
[2,"Scanflex Sindre (lakkert/syrebeis)",null,null,{"$f":"1019-95","v":924},167,0.06,10.3,0,null,null,{"$f":"E1351+G1351+IF(#REF!=FALSE,Materialvalg!H1351)+IF(#REF!=TRUE,Materialvalg!I1351)","v":{"$error":"#REF!"}}]
[3,"Scanflex Sindre (hvit)",null,null,{"$f":"1019-95","v":924},167,0.06,2.4500000000000002,0,null,null,{"$f":"E1352+G1352+IF(#REF!=FALSE,Materialvalg!H1352)+IF(#REF!=TRUE,Materialvalg!I1352)","v":{"$error":"#REF!"}}]
[4,"Scanflex Skjold (ubehandlet)",null,null,{"$f":"1063-95","v":968},167,0.06,0,0,null,null,{"$f":"E1353+G1353+IF(#REF!=FALSE,Materialvalg!H1353)+IF(#REF!=TRUE,Materialvalg!I1353)","v":{"$error":"#REF!"}}]
[5,"Scanflex Skjold (lakkert/syrebeis)",null,null,{"$f":"1180-95","v":1085},167,0.06,10.3,0,null,null,{"$f":"E1354+G1354+IF(#REF!=FALSE,Materialvalg!H1354)+IF(#REF!=TRUE,Materialvalg!I1354)","v":{"$error":"#REF!"}}]
[6,"Scanflex Skjold (hvit)",null,null,{"$f":"1403-95","v":1308},167,0.06,2.4500000000000002,0,null,null,{"$f":"E1355+G1355+IF(#REF!=FALSE,Materialvalg!H1355)+IF(#REF!=TRUE,Materialvalg!I1355)","v":{"$error":"#REF!"}}]
[7,"Scanflex Siv (ubehandlet)",null,null,{"$f":"980-95","v":885},167,0.06,0,0,null,null,{"$f":"E1356+G1356+IF(#REF!=FALSE,Materialvalg!H1356)+IF(#REF!=TRUE,Materialvalg!I1356)","v":{"$error":"#REF!"}}]
[8,"Scanflex Siv (lakkert/syrebeis)",null,null,{"$f":"1096-95","v":1001},167,0.06,10.3,0,null,null,{"$f":"E1357+G1357+IF(#REF!=FALSE,Materialvalg!H1357)+IF(#REF!=TRUE,Materialvalg!I1357)","v":{"$error":"#REF!"}}]
[9,"Scanflex Siv (hvit)",null,null,{"$f":"1352-95","v":1257},167,0.06,2.4500000000000002,0,null,null,{"$f":"E1358+G1358+IF(#REF!=FALSE,Materialvalg!H1358)+IF(#REF!=TRUE,Materialvalg!I1358)","v":{"$error":"#REF!"}}]
[10]
[11]
[12]
[1,"Scanflex Trend 1 (hvit)",null,null,{"$f":"1793-162","v":1631},282,0.1002,4.0914999999999999,0,null,null,{"$f":"E1362+G1362+IF(#REF!=FALSE,Materialvalg!H1362)+IF(#REF!=TRUE,Materialvalg!I1362)","v":{"$error":"#REF!"}}]
[2,"Scanflex Trend 2 (hvit)",null,null,{"$f":"1965-162","v":1803},282,0.1002,4.0914999999999999,0,null,null,{"$f":"E1363+G1363+IF(#REF!=FALSE,Materialvalg!H1363)+IF(#REF!=TRUE,Materialvalg!I1363)","v":{"$error":"#REF!"}}]
[3,"Scanflex Trend 3 (hvit)",null,null,{"$f":"2127-162","v":1965},282,0.1002,4.0914999999999999,0,null,null,{"$f":"E1364+G1364+IF(#REF!=FALSE,Materialvalg!H1364)+IF(#REF!=TRUE,Materialvalg!I1364)","v":{"$error":"#REF!"}}]
[4,"Scanflex Trend 4 (hvit)",null,null,{"$f":"2299-162","v":2137},282,0.1002,4.0914999999999999,0,null,null,{"$f":"E1365+G1365+IF(#REF!=FALSE,Materialvalg!H1365)+IF(#REF!=TRUE,Materialvalg!I1365)","v":{"$error":"#REF!"}}]
[5,"Scanflex Pia (hvit)",null,null,{"$f":"3497-179","v":3318},0,0.1002,4.0914999999999999,0,null,null,{"$f":"E1366+G1366+IF(#REF!=FALSE,Materialvalg!H1366)+IF(#REF!=TRUE,Materialvalg!I1366)","v":{"$error":"#REF!"}}]
[6,"Scanflex Pernille (hvit)",null,null,{"$f":"3623-179","v":3444},0,0.1002,4.0914999999999999,0,null,null,{"$f":"E1367+G1367+IF(#REF!=FALSE,Materialvalg!H1367)+IF(#REF!=TRUE,Materialvalg!I1367)","v":{"$error":"#REF!"}}]
[7,"Scanflex Christine (hvit)",null,null,{"$f":"4305-179","v":4126},0,0.1002,4.0914999999999999,0,null,null,{"$f":"E1368+G1368+IF(#REF!=FALSE,Materialvalg!H1368)+IF(#REF!=TRUE,Materialvalg!I1368)","v":{"$error":"#REF!"}}]
[8,"Scanflex Charlotte (hvit)",null,null,{"$f":"4305-179","v":4126},0,0.1002,4.0914999999999999,0,null,null,{"$f":"E1369+G1369+IF(#REF!=FALSE,Materialvalg!H1369)+IF(#REF!=TRUE,Materialvalg!I1369)","v":{"$error":"#REF!"}}]
[9,"Scanflex Camilla (hvit)",null,null,{"$f":"4305-179","v":4126},0,0.1002,4.0914999999999999,0,null,null,{"$f":"E1370+G1370+IF(#REF!=FALSE,Materialvalg!H1370)+IF(#REF!=TRUE,Materialvalg!I1370)","v":{"$error":"#REF!"}}]
[10,"Scanflex Eirin (hvit)",null,null,{"$f":"4631-179","v":4452},0,0.1002,4.0914999999999999,0,null,null,{"$f":"E1371+G1371+IF(#REF!=FALSE,Materialvalg!H1371)+IF(#REF!=TRUE,Materialvalg!I1371)","v":{"$error":"#REF!"}}]
[11,"Scanflex Elise (hvit)",null,null,{"$f":"4631-179","v":4452},0,0.1002,4.0914999999999999,0,null,null,{"$f":"E1372+G1372+IF(#REF!=FALSE,Materialvalg!H1372)+IF(#REF!=TRUE,Materialvalg!I1372)","v":{"$error":"#REF!"}}]
[12,"Scanflex Elinor (hvit)",null,null,{"$f":"4631-179","v":4452},0,0.1002,4.0914999999999999,0,null,null,{"$f":"E1373+G1373+IF(#REF!=FALSE,Materialvalg!H1373)+IF(#REF!=TRUE,Materialvalg!I1373)","v":{"$error":"#REF!"}}]
[]
[null,"Skyvedør (glassdører)"]
[1,"Swedoor STYLE SP6 (hvit)",null,null,{"$f":"2907+148","v":3055},551,0.102396,4.1811700000000007,0,null,null,{"$f":"E1376+G1376+IF(#REF!=FALSE,Materialvalg!H1376)+IF(#REF!=TRUE,Materialvalg!I1376)","v":{"$error":"#REF!"}}]
[2,"Swedoor STYLE 04SP6 (hvit)",null,null,{"$f":"3119+148","v":3267},551,0.102396,4.1811700000000007,0,null,null,{"$f":"E1377+G1377+IF(#REF!=FALSE,Materialvalg!H1377)+IF(#REF!=TRUE,Materialvalg!I1377)","v":{"$error":"#REF!"}}]
[3,"Swedoor STYLE SP10 (hvit)",null,null,{"$f":"2907+148","v":3055},551,0.102396,4.1811700000000007,0,null,null,{"$f":"E1378+G1378+IF(#REF!=FALSE,Materialvalg!H1378)+IF(#REF!=TRUE,Materialvalg!I1378)","v":{"$error":"#REF!"}}]
[4,"Swedoor STYLE SP12 (hvit)",null,null,{"$f":"3608+148","v":3756},551,0.102396,4.1811700000000007,0,null,null,{"$f":"E1379+G1379+IF(#REF!=FALSE,Materialvalg!H1379)+IF(#REF!=TRUE,Materialvalg!I1379)","v":{"$error":"#REF!"}}]
[5,"Swedoor STYLE SP6B (hvit)",null,null,{"$f":"3119+148","v":3267},551,0.102396,4.1811700000000007,0,null,null,{"$f":"E1380+G1380+IF(#REF!=FALSE,Materialvalg!H1380)+IF(#REF!=TRUE,Materialvalg!I1380)","v":{"$error":"#REF!"}}]
[6,"Swedoor STYLE SP12B (hvit)",null,null,{"$f":"4329+148","v":4477},551,0.102396,4.1811700000000007,0,null,null,{"$f":"E1381+G1381+IF(#REF!=FALSE,Materialvalg!H1381)+IF(#REF!=TRUE,Materialvalg!I1381)","v":{"$error":"#REF!"}}]
[7,"Swedoor PURITY GW01L",null,null,{"$f":"2421+148","v":2569},551,0.102396,4.1811700000000007,0,null,null,{"$f":"E1382+G1382+IF(#REF!=FALSE,Materialvalg!H1382)+IF(#REF!=TRUE,Materialvalg!I1382)","v":{"$error":"#REF!"}}]
[8,"Swedoor PURITY GW02L",null,null,{"$f":"2285+148","v":2433},551,0.102396,4.1811700000000007,0,null,null,{"$f":"E1383+G1383+IF(#REF!=FALSE,Materialvalg!H1383)+IF(#REF!=TRUE,Materialvalg!I1383)","v":{"$error":"#REF!"}}]
[9,"Swedoor PURITY GW03L",null,null,{"$f":"2488+148","v":2636},551,0.102396,4.1811700000000007,0,null,null,{"$f":"E1384+G1384+IF(#REF!=FALSE,Materialvalg!H1384)+IF(#REF!=TRUE,Materialvalg!I1384)","v":{"$error":"#REF!"}}]
[10,"Swedoor PURITY GW04L",null,null,{"$f":"2759+148","v":2907},551,0.102396,4.1811700000000007,0,null,null,{"$f":"E1385+G1385+IF(#REF!=FALSE,Materialvalg!H1385)+IF(#REF!=TRUE,Materialvalg!I1385)","v":{"$error":"#REF!"}}]
[11,"Swedoor PURITY GW02V",null,null,{"$f":"2421+148","v":2569},551,0.102396,4.1811700000000007,0,null,null,{"$f":"E1386+G1386+IF(#REF!=FALSE,Materialvalg!H1386)+IF(#REF!=TRUE,Materialvalg!I1386)","v":{"$error":"#REF!"}}]
[12,"Swedoor EASY GW1 (hvit)",null,null,{"$f":"1995+148","v":2143},551,0.102396,4.1811700000000007,0,null,null,{"$f":"E1387+G1387+IF(#REF!=FALSE,Materialvalg!H1387)+IF(#REF!=TRUE,Materialvalg!I1387)","v":{"$error":"#REF!"}}]
[13,"Swedoor EASY GW3 (hvit)",null,null,{"$f":"2402+148","v":2550},551,0.102396,4.1811700000000007,0,null,null,{"$f":"E1388+G1388+IF(#REF!=FALSE,Materialvalg!H1388)+IF(#REF!=TRUE,Materialvalg!I1388)","v":{"$error":"#REF!"}}]
[14,"Swedoor EASY GW4 (hvit)",null,null,{"$f":"2608+148","v":2756},551,0.102396,4.1811700000000007,0,null,null,{"$f":"E1389+G1389+IF(#REF!=FALSE,Materialvalg!H1389)+IF(#REF!=TRUE,Materialvalg!I1389)","v":{"$error":"#REF!"}}]
[1,"Scanflex Sindre (ubehandlet)",null,null,{"$f":"1937-95","v":1842},390,0.06,0,0,null,null,{"$f":"E1390+G1390+IF(#REF!=FALSE,Materialvalg!H1390)+IF(#REF!=TRUE,Materialvalg!I1390)","v":{"$error":"#REF!"}}]
[2,"Scanflex Sindre (lakkert/syrebeis)",null,null,{"$f":"2242-95","v":2147},390,0.06,10.3,0,null,null,{"$f":"E1391+G1391+IF(#REF!=FALSE,Materialvalg!H1391)+IF(#REF!=TRUE,Materialvalg!I1391)","v":{"$error":"#REF!"}}]
[3,"Scanflex Sindre (hvit)",null,null,{"$f":"2477-95","v":2382},390,0.06,2.4500000000000002,0,null,null,{"$f":"E1392+G1392+IF(#REF!=FALSE,Materialvalg!H1392)+IF(#REF!=TRUE,Materialvalg!I1392)","v":{"$error":"#REF!"}}]
[4,"Scanflex Skjold (ubehandlet)",null,null,{"$f":"1937-95","v":1842},390,0.06,0,0,null,null,{"$f":"E1393+G1393+IF(#REF!=FALSE,Materialvalg!H1393)+IF(#REF!=TRUE,Materialvalg!I1393)","v":{"$error":"#REF!"}}]
[5,"Scanflex Skjold (lakkert/syrebeis)",null,null,{"$f":"2242-95","v":2147},390,0.06,10.3,0,null,null,{"$f":"E1394+G1394+IF(#REF!=FALSE,Materialvalg!H1394)+IF(#REF!=TRUE,Materialvalg!I1394)","v":{"$error":"#REF!"}}]
[6,"Scanflex Skjold (hvit)",null,null,{"$f":"2477-95","v":2382},390,0.06,2.4500000000000002,0,null,null,{"$f":"E1395+G1395+IF(#REF!=FALSE,Materialvalg!H1395)+IF(#REF!=TRUE,Materialvalg!I1395)","v":{"$error":"#REF!"}}]
[7,"Scanflex Siv lav brystning (ubehandlet)",null,null,{"$f":"2332-95","v":2237},390,0.06,0,0,null,null,{"$f":"E1396+G1396+IF(#REF!=FALSE,Materialvalg!H1396)+IF(#REF!=TRUE,Materialvalg!I1396)","v":{"$error":"#REF!"}}]
[8,"Scanflex Siv lav brystning (lakkert/syrebeis)",null,null,{"$f":"2637-95","v":2542},390,0.06,10.3,0,null,null,{"$f":"E1397+G1397+IF(#REF!=FALSE,Materialvalg!H1397)+IF(#REF!=TRUE,Materialvalg!I1397)","v":{"$error":"#REF!"}}]
[9,"Scanflex Siv lav brystning (hvit)",null,null,{"$f":"3038-95","v":2943},390,0.06,2.4500000000000002,0,null,null,{"$f":"E1398+G1398+IF(#REF!=FALSE,Materialvalg!H1398)+IF(#REF!=TRUE,Materialvalg!I1398)","v":{"$error":"#REF!"}}]
[10,"Scanflex Siv høy brystning (ubehandlet)",null,null,{"$f":"2332-95","v":2237},390,0.06,0,0,null,null,{"$f":"E1399+G1399+IF(#REF!=FALSE,Materialvalg!H1399)+IF(#REF!=TRUE,Materialvalg!I1399)","v":{"$error":"#REF!"}}]
[11,"Scanflex Siv høy brystning (lakkert/syrebeis)",null,null,{"$f":"2637-95","v":2542},390,0.06,10.3,0,null,null,{"$f":"E1400+G1400+IF(#REF!=FALSE,Materialvalg!H1400)+IF(#REF!=TRUE,Materialvalg!I1400)","v":{"$error":"#REF!"}}]
[12,"Scanflex Siv høy brystning (hvit)",null,null,{"$f":"3038-95","v":2943},390,0.06,2.4500000000000002,0,null,null,{"$f":"E1401+G1401+IF(#REF!=FALSE,Materialvalg!H1401)+IF(#REF!=TRUE,Materialvalg!I1401)","v":{"$error":"#REF!"}}]
[13]
[14]
[1,"Scanflex Trend 1 (hvit)",null,null,{"$f":"3838-162","v":3676},668,0.1002,4.0914999999999999,0,null,null,{"$f":"E1404+G1404+IF(#REF!=FALSE,Materialvalg!H1404)+IF(#REF!=TRUE,Materialvalg!I1404)","v":{"$error":"#REF!"}}]
[2,"Scanflex Trend 2 (hvit)",null,null,{"$f":"4132-162","v":3970},668,0.1002,4.0914999999999999,0,null,null,{"$f":"E1405+G1405+IF(#REF!=FALSE,Materialvalg!H1405)+IF(#REF!=TRUE,Materialvalg!I1405)","v":{"$error":"#REF!"}}]
[3,"Scanflex Trend 3 (hvit)",null,null,{"$f":"4507-162","v":4345},668,0.1002,4.0914999999999999,0,null,null,{"$f":"E1406+G1406+IF(#REF!=FALSE,Materialvalg!H1406)+IF(#REF!=TRUE,Materialvalg!I1406)","v":{"$error":"#REF!"}}]
[4,"Scanflex Trend 4 (hvit)",null,null,{"$f":"4667-162","v":4505},668,0.1002,4.0914999999999999,0,null,null,{"$f":"E1407+G1407+IF(#REF!=FALSE,Materialvalg!H1407)+IF(#REF!=TRUE,Materialvalg!I1407)","v":{"$error":"#REF!"}}]
[5,"Scanflex Trend Duo (hvit)",null,null,{"$f":"4406-162","v":4244},668,0.1002,4.0914999999999999,0,null,null,{"$f":"E1408+G1408+IF(#REF!=FALSE,Materialvalg!H1408)+IF(#REF!=TRUE,Materialvalg!I1408)","v":{"$error":"#REF!"}}]
[6,"Scanflex Pia (sprossekassett) (hvit)",null,null,{"$f":"6374-179","v":6195},1020,0.1002,4.0914999999999999,0,null,null,{"$f":"E1409+G1409+IF(#REF!=FALSE,Materialvalg!H1409)+IF(#REF!=TRUE,Materialvalg!I1409)","v":{"$error":"#REF!"}}]
[7,"Scanflex Pernille lav brystning (sprossekassett) (hvit)",null,null,{"$f":"7077-179","v":6898},1020,0.1002,4.0914999999999999,0,null,null,{"$f":"E1410+G1410+IF(#REF!=FALSE,Materialvalg!H1410)+IF(#REF!=TRUE,Materialvalg!I1410)","v":{"$error":"#REF!"}}]
[8,"Scanflex Pernille høy brystning (sprossekassett) (hvit)",null,null,{"$f":"6993-179","v":6814},1020,0.1002,4.0914999999999999,0,null,null,{"$f":"E1411+G1411+IF(#REF!=FALSE,Materialvalg!H1411)+IF(#REF!=TRUE,Materialvalg!I1411)","v":{"$error":"#REF!"}}]
[9,"Scanflex Christine (sprossekassett) (hvit)",null,null,{"$f":"6479-179","v":6300},1020,0.1002,4.0914999999999999,0,null,null,{"$f":"E1412+G1412+IF(#REF!=FALSE,Materialvalg!H1412)+IF(#REF!=TRUE,Materialvalg!I1412)","v":{"$error":"#REF!"}}]
[10,"Scanflex Charlotte (sprossekassett) (hvit)",null,null,{"$f":"6993-179","v":6814},1020,0.1002,4.0914999999999999,0,null,null,{"$f":"E1413+G1413+IF(#REF!=FALSE,Materialvalg!H1413)+IF(#REF!=TRUE,Materialvalg!I1413)","v":{"$error":"#REF!"}}]
[11,"Scanflex Camilla (sprossekassett) (hvit)",null,null,{"$f":"7077-179","v":6898},1020,0.1002,4.0914999999999999,0,null,null,{"$f":"E1414+G1414+IF(#REF!=FALSE,Materialvalg!H1414)+IF(#REF!=TRUE,Materialvalg!I1414)","v":{"$error":"#REF!"}}]
[12,"Scanflex Eirin (sprossekassett) (hvit)",null,null,{"$f":"7077-179","v":6898},1020,0.1002,4.0914999999999999,0,null,null,{"$f":"E1415+G1415+IF(#REF!=FALSE,Materialvalg!H1415)+IF(#REF!=TRUE,Materialvalg!I1415)","v":{"$error":"#REF!"}}]
[13,"Scanflex Elise (sprossekassett) (hvit)",null,null,{"$f":"7077-179","v":6898},1020,0.1002,4.0914999999999999,0,null,null,{"$f":"E1416+G1416+IF(#REF!=FALSE,Materialvalg!H1416)+IF(#REF!=TRUE,Materialvalg!I1416)","v":{"$error":"#REF!"}}]
[14]
[]
[null,"Spesialdører",null,null,"Dørblad","Tillegg bredde","Karm/pocket","Tillegg hvit","Dempelist",null,null,"Sum brutto"]
[1,"Swedoor MASTER B30 (hvit)",null,null,1671,0,1039,342,0,null,null,{"$f":"E1420+G1420+IF(#REF!=FALSE,Materialvalg!H1420)+IF(#REF!=TRUE,Materialvalg!I1420)","v":{"$error":"#REF!"}}]
[2,"Swedoor MASTER B30/35dB (hvit)",null,null,2709,0,907,342,0,null,null,{"$f":"E1421+G1421+IF(#REF!=FALSE,Materialvalg!H1421)+IF(#REF!=TRUE,Materialvalg!I1421)","v":{"$error":"#REF!"}}]
[3,"Swedoor MASTER B30/40dB (hvit)",null,null,3824,0,907,342,0,null,null,{"$f":"E1422+G1422+IF(#REF!=FALSE,Materialvalg!H1422)+IF(#REF!=TRUE,Materialvalg!I1422)","v":{"$error":"#REF!"}}]
[4,"Swedoor CRAFT 03 B30 (hvit)",null,null,5727,0,939,309,0,null,null,{"$f":"E1423+G1423+IF(#REF!=FALSE,Materialvalg!H1423)+IF(#REF!=TRUE,Materialvalg!I1423)","v":{"$error":"#REF!"}}]
[5,"Swedoor CRAFT 03 B30/30dB (hvit)",null,null,6477,0,822,314,0,null,null,{"$f":"E1424+G1424+IF(#REF!=FALSE,Materialvalg!H1424)+IF(#REF!=TRUE,Materialvalg!I1424)","v":{"$error":"#REF!"}}]
[6,"Swedoor CRAFT 03 B30/35dB (hvit)",null,null,6736,0,867,315,0,null,null,{"$f":"E1425+G1425+IF(#REF!=FALSE,Materialvalg!H1425)+IF(#REF!=TRUE,Materialvalg!I1425)","v":{"$error":"#REF!"}}]
[7,"Swedoor CRAFT 04 B30 (hvit)",null,null,6148,0,939,309,0,null,null,{"$f":"E1426+G1426+IF(#REF!=FALSE,Materialvalg!H1426)+IF(#REF!=TRUE,Materialvalg!I1426)","v":{"$error":"#REF!"}}]
[8,"Swedoor CRAFT 04 B30/30dB (hvit)",null,null,6742,0,822,314,0,null,null,{"$f":"E1427+G1427+IF(#REF!=FALSE,Materialvalg!H1427)+IF(#REF!=TRUE,Materialvalg!I1427)","v":{"$error":"#REF!"}}]
[9,"Swedoor CRAFT 04N B30/30dB (hvit)",null,null,6742,0,822,314,0,null,null,{"$f":"E1428+G1428+IF(#REF!=FALSE,Materialvalg!H1428)+IF(#REF!=TRUE,Materialvalg!I1428)","v":{"$error":"#REF!"}}]
[10,"Swedoor CRAFT 04N B30/35dB (hvit)",null,null,7012,0,867,315,0,null,null,{"$f":"E1429+G1429+IF(#REF!=FALSE,Materialvalg!H1429)+IF(#REF!=TRUE,Materialvalg!I1429)","v":{"$error":"#REF!"}}]
[11,"Swedoor P-1200, hvit (klimadør/garasjedør)",null,null,4194,0,0,0,0,null,null,{"$f":"E1430+G1430+IF(#REF!=FALSE,Materialvalg!H1430)+IF(#REF!=TRUE,Materialvalg!I1430)","v":{"$error":"#REF!"}}]
[12,"Swedoor badstuedør (glass)",null,null,1604,0,0,0,0,null,null,{"$f":"E1431+G1431+IF(#REF!=FALSE,Materialvalg!H1431)+IF(#REF!=TRUE,Materialvalg!I1431)","v":{"$error":"#REF!"}}]
[null,null,null,null,0,0,0,0,0]

{"sheet":"Referanser","index":18,"n_rows":548,"n_cols":14,"rows_kept":548,"cut":false,"hidden":true,"merged":[[256,6,256,7],[257,4,257,5],[258,4,258,5],[251,4,251,5],[251,6,251,7],[252,6,252,7],[253,6,253,7],[254,6,254,7],[255,6,255,7],[252,4,252,5],[253,4,253,5],[254,4,254,5],[255,4,255,5],[256,4,256,5]]}
[null,"Diverse",null,"      -      PRODUKSJONSBESKRIVELSE"]
[null,"Ja",null,null,null,"Leveres av: Forbruker (kjøper)",null,"Krav til trinnfri adkomst"]
[null,"Nei",null,"Leveres",null,{"$f":"\"Leveres av: \"&Produksjonsbeskrivelse!$B$4","v":"Leveres av: Konsmo Fabrikker AS"},null,"Ikke krav til trinnfri adkomst"]
[null,"Vet ikke",null,"Leveres ikke"]
[null,"Konsmohus standard",null,null,null,"Leveres av: Forbruker (kjøper)",null,"Trinnfritt uten trapp og rampe"]
[null,"Alternativ standard",null,"Nei",null,{"$f":"\"Leveres av: \"&Produksjonsbeskrivelse!$B$4","v":"Leveres av: Konsmo Fabrikker AS"},null,"Platting/trapp i betong, - uten rampe"]
[null,"Annen standard",null,"Ja",null,"Skal ikke installeres",null,"Platting/trapp og rampe i betong"]
[null,"Lavere enn 4,40 meter",null,null,null,null,null,"Platting/trapp i tre, - uten rampe"]
[null,"Mellom 4,40-4,80 meter",null,"TEK 17",null,null,null,"Platting/trapp og rampe i tre"]
[null,"Over 4,80 meter",null,"SKJERPET TEK 10"]
[null,null,null,"ORDINÆR TEK 10"]
[null,null,null,null,null,null,null,"Standard nedstikk ved treplatting"]
[null,null,null,null,null,null,null,"Opptrukket ved betong og terreng"]
[null,"Vet ikke"]
[null,"Mur",null,"Støpt plate",null,"Grunnmur",null,"Pipe"]
[]
[null,null,null,"Støpt plate (Detalj A-200)",null,"Støpt mur m/ utvendig isolering + event innvendig påforing (detalj B-201)",null,"Elementpipe / Venti pipe inkl. røkhatt"]
[null,null,null,"Støpt plate m/ringmursystem (Detalj A-202)",null,"Leca 250 mm isoblokk (detalj B-200)",null,"Stålpipe komplett med beslag og røkhatt"]
[null,null,null,"Støpt plate m/oppkant (garasje detalj A-209)",null,"Sprøytebetong mur (detalj B-202)",null,"Leveres ikke"]
[null,null,null,"Spesial (angi nødvendig informasjon her eller under merknad)",null,"Uisolert mur for stubbegolv (detalj B-207)"]
[null,null,null,null,null,"Spesial (angi nødvendig informasjon her eller under merknad)"]
[]
[null,"Rørlegger",null,"Vannbåren varmeanlegg",null,null,null,"Type toalett"]
[null,"Leveres av: Forbruker (kjøper)",null,null,null,"Iflg. tilbud fra rørlegger datert"]
[null,{"$f":"\"Leveres av: \"&Produksjonsbeskrivelse!$B$4","v":"Leveres av: Konsmo Fabrikker AS"},null,"Leveres ikke",null,null,null,"Standard gulvmontert"]
[null,"Iflg. tilbud fra rørlegger datert",null,"Leveres som gulv-varme i støpt plate",null,null,null,"Veggmontert med kasse"]
[null,null,null,"Leveres som gulv-varme i støpt plate og deler av trebjelkelag ",null,null,null,"Veggmontert med sisterne i vegg"]
[null,null,null,"Leveres som gulv-varme i støpt plate, deler av trebjelkelag, samt radiatorvarme loft",null,null,null,"Veggmointert med kasse og med sisterne i vegg"]
[null,"Ventilasjon/sentralstøvsuger/tilleggsinstallasjoner:",null,null,null,"Tekniske tillegginstallasjoner ",null,"Farge Ventildeksel","Ant.","Plassering"]
[]
[null,null,null,null,null,"Sentralstøvsuger",null,"Sort",0,"I sokkel kjøkken"]
[null,"Villavent med 1 stk. Slangesett 11,0 m Premium, komplett",null,"Ved gulvlist",null,"Sentralstøvsuger og varmepumpe luft-luft",null,"Hvitt",1,"Ved benkeplate kjøkken"]
[null,"Villavent med 2 stk. Slangesett 11,0 m Premium, komplett",null,"Bryterhøyde ",null,"Varmepumpe luft-luft",null,null,2,"Vindfang"]
[null,null,null,null,null,"Sentralstøvsuger og vannbåren varmeanlegg",null,null,3]
[null,null,null,null,null,"Vannbåren varmeanlegg",null,null,4]
[null,"Blikkenslager",null,"Renner/Nedløp/Takfotbeslag",null,"Fage Grøvikrenna T125",null,"Stålrenner",null,"Kilrenner",null,"Pipebeslag"]
[null,null,null,{"$f":"IF(Produksjonsbeskrivelse!I$130=0,\"\",IF(Produksjonsbeskrivelse!I$130=Referanser!D$47,F37,IF(Produksjonsbeskrivelse!I$130=Referanser!D$48,Referanser!H37)))","v":""},null," ",null," "]
[null,"Blikkenslager lokalt",null,{"$f":"IF(Produksjonsbeskrivelse!I$130=0,\"\",IF(Produksjonsbeskrivelse!I$130=Referanser!D$47,F38,IF(Produksjonsbeskrivelse!I$130=Referanser!D$48,Referanser!H38)))","v":""},null,"Sort, NCS 8601-R84B",null,"Sort",null,"Sorte",null,"Sort"]
[null,"Med fra fabrikk / Levert direkte",null,{"$f":"IF(Produksjonsbeskrivelse!I$130=0,\"\",IF(Produksjonsbeskrivelse!I$130=Referanser!D$47,F39,IF(Produksjonsbeskrivelse!I$130=Referanser!D$48,Referanser!H39)))","v":""},null,"Hvit, NCS 0903-G35Y",null,"Hvit",null,"Røde",null,"Rødt"]
[null,null,null,{"$f":"IF(Produksjonsbeskrivelse!I$130=0,\"\",IF(Produksjonsbeskrivelse!I$130=Referanser!D$47,F40,IF(Produksjonsbeskrivelse!I$130=Referanser!D$48,Referanser!H40)))","v":""},null,"Mørk Grå, NCS 8005-B20G",null," ",null,null,null,"Lys grått"]
[null,null,null,{"$f":"IF(Produksjonsbeskrivelse!I$130=0,\"\",IF(Produksjonsbeskrivelse!I$130=Referanser!D$47,F41,IF(Produksjonsbeskrivelse!I$130=Referanser!D$48,Referanser!H41)))","v":""},null,"Sølv Metallic, Sølv RAL 9006",null," "]
[null,null,null,{"$f":"IF(Produksjonsbeskrivelse!I$130=0,\"\",IF(Produksjonsbeskrivelse!I$130=Referanser!D$47,F42,IF(Produksjonsbeskrivelse!I$130=Referanser!D$48,Referanser!H42)))","v":""},null,"Ubehandlet Aluminium",null," "]
[null,null,null,null,null,null,null," "]
[null,null,null,null,null,null,null," "]
[]
[null,null,null,null,null,"Med fra fabrikk"]
[null,null,null,"Aluminium, Grøvik T125",null,"Leveres av Blikkenslager",null,"Leveres uten røkhatt"]
[null,null,null,"Stål",null,"Leveres ikke",null,"Leveres ikke"]
[null,"Oppvarmingskilder"]
[]
[null,"Varmepumpe luft-luft leveres av: Forbruker (kjøper)"]
[null,"Vamepumpe luft-luft leveres av: Konsmo Fabrikker AS"]
[null,"Varmepumpe luft-vann for vannbåren varme leveres av: Forbruker (kjøper)"]
[null,"Vamepumpe luft-vann for vannbåren varme leveres av: Konsmo Fabrikker AS"]
[null,"Skal ikke installeres"]
[]
[null,"Tømrerleveranse"]
[]
[null,"Komplett leveranse"]
[null,"Uten innredet loftsplan"]
[null,"Utvendig leveranse (skall)"]
[null,"Ingen leveranse"]
[null,"Veggtykkelse"]
[null,"250 mm (48x198+48x48 mm)"]
[null,"200 mm (48x148+48x48 mm)"]
[null,"150 mm (48x148 mm)"]
[null,"100 mm (48x98 mm)"]
[null,"Taktekke",null,"FARGE DOBBELTKRUM",null,"Farge snøfangerbeslag og stigetrinn"]
[]
[null,"Leveres ikke",null,"Koksgrå",null,"Sort"]
[null,"Skarpnes Dobbeltkrum betongtakstein",null,"Edel Sort",null,"Teglrød"]
[null,"Skarpnes Enkeltkrum betongtakstein",null,"Edle Antrasitt",null,"Mørk rød"]
[null,"Skarpnes Dobbeltkrum betongtakstein - RU",null,"Antikk",null,"Galvanisert"]
[null,"Skarpnes Melodie tegl",null,"Antikk Wet Look"]
[null,"Skarpnes Futura tegl",null,"Rød",null,"Domino sort"]
[null,"Skarpnes Domino tegl (Obs - Krever annet undertak!)",null,"Edel Rød",null,"Domino galvanisert"]
[null,null,null,"Teglrød"]
[null,"Derbi Colour membrantekking",null,"Edel Teglrød"]
[null,"Protan membrantekking u/lister"]
[null,"Membrantekking m/lister",null,"FARGE ENKELTKRUM"]
[null,"Torvtak",null,"Koksgrå"]
[null,null,null,"Edel Sort"]
[null,null,null,"Antikk"]
[null,null,null,"Rød"]
[null,null,null,"Edel Rød"]
[null,"Gavlstein",null,"Teglrød"]
[null,null,null,"Edel Teglrød"]
[null,"Leveres ikke (std. vindski og vannbord)"]
[null,"Leveres ",null,"FARGE DOBBELTKRUM RU"]
[null,null,null,"RU Antikk"]
[null,null,null,"RU Lys grå"]
[null,null,null,"RU Skifergrå"]
[null,null,null,"Ru Sort"]
[null,null,null,"RU Rød"]
[]
[null,null,null,"FARGE MELODIE TEGL"]
[null,null,null,"Naturrød"]
[null,null,null,"Kobberrød Nuance Engobert"]
[null,null,null,"Sort Finesse+, glasset "]
[null,null,null,"Antrasitt Nuance Engobert"]
[]
[null,null,null,"FARGE FUTURA TEGL"]
[null,null,null,"Sort Noblesse, glassert"]
[null,null,null,"Rød Finesse, glassert"]
[null,null,null,"Rødbrun Finesse, glassert"]
[null,null,null,"Antrasitt Nuance Engobert"]
[null,null,null,"Kobberrød Nuance Engobert"]
[null,null,null,"Naturrød"]
[]
[null,null,null,"FARGE DOMINO TEGL"]
[null,null,null,"Antrasitt Nuance Engobert"]
[null,null,null,"Sort matt Nuance Engobert"]
[null,null,null,"Kobberrød Nuance Engobert"]
[null,null,null,"Skifer Finesse, glassert"]
[null,null,null,"Sort Finesse, glassert"]
[null,null,null,"Naturrød"]
[]
[]
[null,"Undertak"]
[]
[null,"18 mm Hunton Undertak + Omega 100 duk for takstein  (standard)"]
[null,"3 mm sutaksplater for takstein"]
[null,"15 mm rupanel og papp for takstein"]
[null,"12 mm OSB finer og papp for takstein"]
[null,"15 /18 mm OSB finer for membrantekking"]
[null,"Luftet undertak for membrantekking"]
[null,"Spesial for torvtekking (torvtaksmembran)"]
[null,"Utvendig kledning",{"$f":"IF(Produksjonsbeskrivelse!C169=Referanser!D130,C130,IF(Produksjonsbeskrivelse!C169=Referanser!D131,C131,(IF(Produksjonsbeskrivelse!C169=Referanser!D132,Referanser!C132,0))))","v":0},"Behandling",null,"Farge kledning",null,"Farge detaljer utvendig"]
[]
[null,"LIGGENDE:","BH1","Trykkimpregnert (CU)",null,"STANDARD FARGER:",null,"Som kledning"]
[null,"19x148 mm Dobbelfals med staff, liggende","BH2","Royalimpregnert",null,"Jotun: 1453 Bomull (hvit) - NCS S 0502-Y",null," "]
[null,"19x148 mm Dobbelfals gammel type 28°, liggende","BH3","Gran, ubehandlet",null,"Jotun: 1016 Blek Sand - NCS S 2005-Y20R",null,"STANDARD FARGER:"]
[null,"19x148 mm Dobbelfals ny type 60°, liggende",null,null,null,"Jotun: 1434 Labrador - NCS S 7502-Y",null,"Jotun: 1453 Bomull (hvit) - NCS S 0502-Y"]
[null,"19x148 mm Dobbelfals med spor, 60°, liggende","BH4","Ubehandlet",null,"Jotun: 9930 Tåkedis - NCS S 3000-N",null,"Jotun: 1016 Blek Sand - NCS S 2005-Y20R"]
[null,null,"BH5","Grunnet Visir, 1 strøk",null,"",null,"Jotun: 1434 Labrador - NCS S 7502-Y"]
[null,"STÅENDE:","BH6","Grunnet Visir + Drygolin Ultimat (Mellomstrøk)",null,"",null,"Jotun: 9930 Tåkedis - NCS S 3000-N"]
[null,"19x98/123/148 mm Låvekledning miks, stående tett","BH7","Grunnet 1 strøk Jotun Industri Opaque Primer (Dekkende grunning) ",null,"ROYALIMPREGNERTE FARGER:",null,""]
[null,"19x123 mm Rektangulær, stående","BH8","Jotun Industri Opaque Primer (Dekkende grunning) + Drygolin Ultimat (Mellomstrøk)",null,"RS.30 Nordisk sort",null,"ROYALIMPREGNERTE FARGER:"]
[null,"19x123 mm Empire, stående",null,null,null,"RG.20 Leirgrå",null,"RS.30 Nordisk sort"]
[null,"19x148 mm Dobbelfals rett kant, stående",null,"",null,"RB.10 Tjærebrun",null,"RG.20 Leirgrå"]
[null,"19x148 mm Dobbelfals rett kant med spor, stående",{"$f":"IF(Produksjonsbeskrivelse!C169=Referanser!D131,Referanser!C131,IF(Produksjonsbeskrivelse!C170=Referanser!D134,Referanser!C134,IF(Produksjonsbeskrivelse!C170=Referanser!D135,Referanser!C135,IF(Produksjonsbeskrivelse!C170=Referanser!D136,Referanser!C136,IF(Produksjonsbeskrivelse!C170=Referanser!D137,Referanser!C137,IF(Produksjonsbeskrivelse!C170=Referanser!D138,Referanser!C138,0))))))","v":0},"Fargekonsekvens kledning",null,"RY.20 Okergul",null,"RB.10 Tjærebrun"]
[null,null,null,null,null,"RR.20 Låverød",null,"RY.20 Okergul"]
[null,"ANDRE TYPER:",null,{"$f":"IF(OR(OR(C$141=C$136),(C$141=C$137),(C$141=C$138)),F131,IF(C$141=C$131,F138,IF(C$141=C$135,\"Standard Visir grunning\",IF(C$141=C$134,\" \",\" \"))))","v":" "},null,"RO.0  Værgrå",null,"RR.20 Låverød"]
[null,"19x148 mm Buer, stående ",null,{"$f":"IF(OR(OR(C$141=C$136),(C$141=C$137),(C$141=C$138)),F132,IF(C$141=C$131,F139,IF(C$141=C$135,\" \",IF(C$141=C$134,\" \"))))","v":false},null," ",null,"RO.0  Værgrå"]
[null,"21x145 mm Sweitzer, stående ",null,{"$f":"IF(OR(OR(C$141=C$136),(C$141=C$137),(C$141=C$138)),F133,IF(C$141=C$131,F140,IF(C$141=C$135,\" \",IF(C$141=C$134,\" \"))))","v":false},null,"Fargekonsekvens detaljer"]
[null,"19x120 mm Dobbelfals rettkant, stående",null,{"$f":"IF(OR(OR(C$141=C$136),(C$141=C$137),(C$141=C$138)),F134,IF(C$141=C$131,F141,IF(C$141=C$135,\" \",IF(C$141=C$134,\" \"))))","v":false}]
[null,"19x73 (148) mm Dobbelfals rettkant, stående",null,{"$f":"IF(OR(OR(C$141=C$136),(C$141=C$137),(C$141=C$138)),F135,IF(C$141=C$131,F142,IF(C$141=C$135,\" \",IF(C$141=C$134,\" \"))))","v":false},null,{"$f":"IF(OR(OR(C$141=C$137),(C$141=C$138),(C$141=C$139)),H130,IF(C$141=C$131,H$130,IF(C$141=C$132,H$130,IF(C$141=C$134,H$130,IF(C$141=C$135,H130,IF(C$141=C$136,H130))))))","v":"Som kledning"}]
[null,"Villmarkspanel, liggende",null,false,null,{"$f":"IF(OR(OR(C$141=C$137),(C$141=C$138),(C$141=C$139)),H131,IF(C$141=C$131,\" \",IF(C$141=C$132,\" \",IF(C$141=C$134,\" \",IF(C$141=C$135,\" \",IF(C$141=C$136,H131))))))","v":" "}]
[null,"Vilmarkspanel, stående",{"$f":"IF(Produksjonsbeskrivelse!C169=Referanser!D131,Referanser!C131,IF(Produksjonsbeskrivelse!C170=Referanser!D134,Referanser!C134,IF(Produksjonsbeskrivelse!C170=Referanser!D135,Referanser!C135,IF(Produksjonsbeskrivelse!C170=Referanser!D136,Referanser!C136,IF(Produksjonsbeskrivelse!C170=Referanser!D137,Referanser!C137,IF(Produksjonsbeskrivelse!C170=Referanser!D138,Referanser!C138,IF(Produksjonsbeskrivelse!C170=Referanser!D139,Referanser!C139,0)))))))","v":0},"Konsekvens_behandling",null,"STANDARD FARGER:"]
[null,null,null,null,null,"Jotun: 1453 Bomull (hvit) - NCS S 0502-Y"]
[null,null,null,{"$f":"IF(C$128=C$130,D134,IF(C$128=C$131,\"Royal-farget\",IF(C$128=C$132,D134)))","v":false},null,"Jotun: 1016 Blek Sand - NCS S 2005-Y20R"]
[null,null,null,{"$f":"IF(C$128=C$130,D137,IF(C$128=C$131,\" \",IF(C$128=C$132,D135)))","v":false},null,"Jotun: 1434 Labrador - NCS S 7502-Y"]
[null,null,null,{"$f":"IF(C$128=C$130,D138,IF(C$128=C$131,\" \",IF(C$128=C$132,D136)))","v":false},null,"Jotun: 9930 Tåkedis - NCS S 3000-N"]
[null,null,null,{"$f":"IF(C$128=C$130,\" \",IF(C$128=C$131,\" \",\" \"))","v":" "},null,""]
[]
[null,"Staffasje",null,"Mønekryss",null,"Vindusomramming",null,"Farge aluminiumsvannbrett",null,"Bunnstokk"]
[]
[null,null,null,"Leveres ikke",null,"Nr. 1 Klassisk",null,"Natureloksert",null,"Leveres ikke"]
[null,null,null,"Leveres",null,"Nr. 2 Klassisk",null,"Hvit",null,"Levers i h.h.t. detaljer for valgte kledning"]
[null,null,null,null,null,"Nr. 3 Klassisk",null,"Mørk brun"]
[null,null,null,"Etasjeskille",null,"Nr. 4 Klassisk",null,"Sort",null,"Kinavipp"]
[null,null,null,null,null,"Nr. 5 Klassisk"]
[null,null,null,"Treprofil (farge som kledning)",null,"Nr. 1 Moderne",null,null,null,"Leveres ikke"]
[null,null,null,"Aluminiumsprofil (farge tilpasses farge på kledning)",null,"Nr. 2 Moderne m/aluminiumvannbrett",null,null,null,"4 \" kinavipp leveres"]
[null,null,null,null,null,"Nr. 3 Moderne m/trevannbrett",null,null,null,"7\" kinavipp leveres"]
[null,null,null,null,null,"Nr. 4 Moderne m/aluminiumvannbrett under"]
[]
[null,"Hoveddører",null,null,null,"Farger",null,"Karm",null,"Glass Ytterdører"]
[]
[null,null,null,null,null,"Hvit NCS S 0502-Y (standard)",null,"Hvit NCS S 0502-Y (standard)",null,"Klart glass"]
[null,null,null,null,null,"Arkitekthvit NCS S 0500-N",null,"Arkitekthvit NCS S 0500-N",null,"Cotswold glass"]
[null,null,null,null,null,"Grå NCS S 3502-Y",null,"Grå NCS S 3502-Y",null,"Frostet glass"]
[null,null,null,null,null,"Mørk grå NCS S 7000-N",null,"Mørk grå NCS S 7000-N",null,"Sandblåst / Klart glass"]
[null,null,null,null,null,"Blå NCS S 5020-R90B",null,"Blå NCS S 5020-R90B"]
[null,null,null,null,null,"Grønn NCS S 6020-G10Y",null,"Grønn NCS S 6020-G10Y"]
[null,null,null,null,null,"Rød NCS S 2570-Y90R",null,"Rød NCS S 2570-Y90R"]
[null,null,null,null,null,"Bonderød NCS S 4050-Y80R",null,"Bonderød NCS S 4050-Y80R"]
[null,null,null,null,null,"Svart NCS S 9000-N",null,"Svart NCS S 9000-N"]
[null,null,null,null,null,"Oljet eik",null,"Oljet eik"]
[]
[null,"Boddør",null,"Kjellerdør"]
[]
[null,"Leveres ikke",null,"Leveres ikke"]
[null,"Bi-inngangsdør tett, hvit (standard)",null,"Bi-inngangsdør tett, hvit (standard)"]
[null,"Bi-inngangsdør med ½ glass, hvit",null,"Bi-inngangsdør med ½ glass, hvit"]
[null,"Swedoor Barentz (hvit)",null,"Swedoor Barentz (hvit)"]
[null,null,null,"Swedoor Bizet (hvit)"]
[null,"Balkong og Heve-/skyve-dører"]
[null,"Etasje",null,"Rom",null,"Nr.",null,"Brystning",null,"Låsetype"]
[]
[null,"Hovedplan",null,"Stue",null,null,null,"Følg vindu",null,"Innvendig sylinder"]
[null,"Loftsplan",null,"Kjøkken",null,null,null,"Minimum",null,"Utvendig sylinder"]
[null,"Kjellerplan",null,"Bod",null,null,null,"½ glass",null,"Dobbel sylinder"]
[null,"1. etasje",null,"Soverom",null,null,null,"¾ glass",null,"Innvendig låseknapp / Utvendig blindskilt"]
[null,"2. etasje",null,"Vask"]
[null,"U. etasje",null,"Vask/bod"]
[null,null,null,"Spisestue"]
[null,null,null,"Loftstue"]
[null,null,null,"Kjellerstue"]
[null,null,null,"TV-stue",null,null,null,"Slagretning/primærdørblad"]
[null,null,null,"Gang"]
[null,null,null,null,null,null,null,"Høyre"]
[null,null,null,null,null,null,null,"Venstre"]
[]
[null,"Vinduer",null,"Behandling",null,"Farge utvendig",null,"Farge innvendig",null,"Sprosser"]
[]
[null,"Toppsving UT (standard)",null,"Ferdigmalt ut/innvendig",null,"NCS S 0502-Y Standard hvit",null,"NCS S 0502-Y Standard hvit",null,"28 mm Knipsepross, utenpåliggende"]
[null,"Sikkerhetsvindu, INN, 3-vrider ",null,"Aluminumsbekledning utvendig",null,"Aluminiumsbeslag: RAL ",null,null,null,"56 mm Knipsepross, utenpåliggende"]
[null,"Envridervindu INN",null,null,null,null,null,null,null,"28 mm Knipsespross m/56 mm midtpost"]
[null,"Kombinasjon: fast m/lukkeramme toppsving UT",null,null,null,null,null,"Farge vridere",null,"Pynteramme i tre iflg. tegning (22,54 og 92 mm)"]
[null,"Kombinasjon: fast m/lukkeramme 3-vrider INN",null,null,null,null,null,null,null,"Kitt sprosse, 28 mm"]
[null,"Fagvindu INN, 3-vrider",null,null,null,null,null,"Hvit",null,"Duplex sprosse, 28 mm alu utv og 28 mm tre innv."]
[null,"Sidesving UT, 1-vrider",null,null,null,null,null,"Børstet",null,"Thermospross, 26 mm, hvit"]
[null,"Sidehengslet UT, 1-vrider",null,null,null,null,null,null,null,"62 mm Gjennomgående losholt"]
[null,"Sidehengslet UT, hasper",null,null,null,null,null,null,null,"92 mm Gjennomgående losholt"]
[null,null,null,null,null,null,null,null,null,"Leveres ikke"]
[]
[]
[]
[]
[null,"Velux-vinduer"]
[]
[null,"Leveres ikke"]
[null,"55x78 cm MH GGU 0073"]
[null,"55x98 cm MH GGU 0073"]
[null,"55x118 cm MH GGU 0073"]
[null,"66x118 cm MH GGU 0073"]
[null,"66x140 cm MH GGU 0073"]
[null,"78x98 cm MH GGU 0073"]
[null,"78x118 cm MH GGU 0073"]
[null,"78x140 cm MH GGU 0073"]
[null,"78x160 cm MH GGU 0073"]
[null,"94x118 cm MH GGU 0073"]
[null,"94x140 cm MH GGU 0073",null,"S1 - Stålport – fyllinger med trestruktur (standard farge hvit, RAL 9010)"]
[null,"94x160 cm MH GGU 0073",null,"S2 - Stålport – liggende panel med trestruktur (standard farge hvit, RAL 9010)"]
[null,"114x118 cm MH GGU 0073",null,"S3 - Stålport – slett med trestruktur (standard farge hvit, RAL 9010)"]
[null,"114x140 cm MH GGU 0073",null,"S4 - Stålport – slett, ingen struktur (standard farge hvit, RAL 9016)"]
[null,"114x160 cm MT GGU 0073",null,"S5 - Stålport – Midt rib med struktur (standard farge hvit, RAL 9010)"]
[null,"55x98 cm TH GPU 0073",null,"S8 - Stålport – Antrasitt grå (slett uten struktur). G7016"]
[null,"66x118 cm TH GPU 0073",null,"S7 - Stålport – Mørk eik (midt-rib med struktur). Har ingen RAL eller NCS farge"]
[null,"78x98 cm TH GPU 0073"]
[null,"78x118 cm TH GPU 0073"]
[null,"78x140 cm TH GPU 0073"]
[null,"78x180 cm TH GPU 0073"]
[null,"94x118 cm TH GPU 0073"]
[null,"94x140 cm TH GPU 0073"]
[null,"94x160 cm TH GPU 0073"]
[null,"114x118 cm TH GPU 0073"]
[null,"114x118 cm TH GPU 0073"]
[null,"114x140 cm TH GPU 0073"]
[null,"Garasjeport",null,"Overflater","Garasjedør",null,"Automatisk portåpner",null,"Behandling"]
[]
[null,"Hörmann LPU, isolert stålport; Plan profil L",null,"Woodgrain","Hörmann garasjedør i utføresle som garasjeport",null,"ProMatic m/ 1 håndsensor HSE 2 BS",null,"NCS S0502-Y Hvit (standard)"]
[null,"Hörmann LPU, isolert stålport; Speil profil",null,"Sandgrain","Annen:",null,"SupraMatic m/ 1 håndsensor HS 5 BS",null,"RAL9016 utvendig, RAL9002 innvendig"]
[null,"Hörmann LPU, isolert stålport; Horisontal profil S",null,"Micrograin ","Leveres ikke",null,"ProMatic m/ 2 håndsensor HSE 2 BS"]
[null,"Hörmann LPU, isolert stålport; Horisontal profil D",null,"Silkgrain ",null,null,"SupraMatic m/ 2 håndsensor HS 5 BS"]
[null,"Hörmann LPU, isolert stålport; Horisontal profil M",null,"Decograin",null,null,"Leveres ikke"]
[null,"Hörmann LPU, isolert stålport; Horisontal profil T"]
[null,"Leveres ikke"]
[]
[null,"Hörmann LTE, uisolert stålport; Speil profil"]
[null,"Hörmann LTE, uisolert stålport; Horisontal profil S"]
[null,"HörmannLTE, uisolert stålport; Horisontal profil M"]
[]
[null,"Hörmann LTH, massivtre; Speil profil"]
[null,"Hörmann LTH, massivtre; Horisontal profil S"]
[null,"HörmannLTE, uisolert stålport; Horisontal profil M"]
[]
[]
[]
[]
[]
[]
[]
[null,"Terrasse",null,"Terrasserekke",null,"Terrassesøyler",null,"Terrassedekke i tre"]
[]
[null,"Standard åpen",null,"Nr. 1 Klassisk",null,"Impregnert limtre",null,"28x120 mm ",null,"Ubehandlet",null,"Ubehandlet",null,"Ubehandlet"]
[null,"Drypptett (3-tett)",null,"Nr. 2 Klassisk (m/profiler - Empire)",null,"Standard (detalj F130)",null,"28x95 mm 3-tett",null,"Som kledning",null,"Brun - RB.10",null,"Som kledning"]
[null,"Tett m/metallskuffer mellom bjelker",null,"Nr. 3 Klassisk",null,"19 cm Kloppen søyle",null,null,null,"Som vindusomramming",null,"Grå - RG.20",null,"Som vindusomramming"]
[null,"Tett m/membrantekking",null,"Nr. 4 Klassisk",null,"24 cm Kloppen søyle",null,null,null,null,null,"Gul - RY.20",null,"Brun - RB.10"]
[null,"Leveres ikke",null,"Nr. 1 Moderne",null,"Dreid type:",null,"Trykkimpregnert (CU)",null,null,null,"Rød - RR.20",null,"Grå - RG.20"]
[null,null,null,"Nr. 2 Moderne",null,"Leveres ikke",null,"Royalimpregnert m/riller",null,"Trykkimpregnert (CU)",null,"Upigmentert - RO.0",null,"Gul - RY.20"]
[null,null,null,"Nr. 3 Moderne (Stål&glass)",null,null,null,"Royalimpregnert u/riller",null,"Royalimpregnert",null,null,null,"Rød - RR.20"]
[null,null,null,null,null,null,null,null,null,null,null,null,null,"Upigmentert - RO.0"]
[null,"Innvendige dører",null,"Glassdører",null,"Overflate dørblad",null,"Overflate karm",null,"Dørvrider",null,"Dempelist"]
[]
[null,"FORMPRESSEDE DØRER:",null,"STYLE SP6",null,"Hvit NCS S 0502-Y",null,"Hvit NCS S 0502-Y",null,"Hoppe 1140-42, aluminium (standard)",null,"Leveres ikke (standard)"]
[null,"Swedoor STYLE 03 (hvit)",null,"STYLE SP10",null,null,null,"Furu ubehandlet",null,"Leveres ikke",null,"Leveres"]
[null,"Swedoor STYLE 04N (hvit)",null,"STYLE SP12",null,null,null,"Furu lakkert"]
[null,"Swedoor STYLE 02B (hvit)",null,"STYLE SP12B"]
[null,"Swedoor COMPACT MASSIV 03 (hvit)",null,"STYLE SP6+SP3"]
[null,"Swedoor COMPACT MASSIV 04N (hvit)",null,"STYLE SP12+SP6"]
[null,"Swedoor COMPACT MASSIV 02B (hvit)",null,"STYLE SP6+SP6"]
[null,null,null,"STYLE SP10+SP10"]
[null,"GLATTE DØRER:",null,"STYLE SP12+SP12"]
[null,"Swedoor EASY (hvit)",null,"STYLE SP12B+SP12B"]
[null,"Swedoor STABLE MASSIV",null,"COMPACT SP6"]
[null,null,null,"COMPACT SP10"]
[null,"FOLIERTE FYLLINGSDØRER, GLATTE:",null,"COMPACT SP12",null,"Glass Innerdører"]
[null,"Swedoor PURITY 01L (hvit)",null,"COMPACT SP6B"]
[null,"Swedoor PURITY 02L (hvit)",null,"COMPACT SP12B",null,"Klart herdet glass (standard)"]
[null,"Swedoor PURITY 03L (hvit)",null,"COMPACT SP6+SP3"]
[null,"Swedoor PURITY 04L (hvit)",null,"COMPACT SP12+SP6",null,"Gotisk herdet glass"]
[null,"Swedoor PURITY 02V (hvit)",null,"COMPACT SP6+SP6",null,"Frostet herdet glass"]
[null,null,null,"COMPACT SP10+SP10",null,"Fasettslipt herdet glass"]
[null,"MALTE FYLLINGSDØRER:",null,"COMPACT SP12+SP12"]
[null,"Swedoor CRAFT 03 (hvit)",null,"COMPACT SP6B+SP6B",null,"KUN Style, Tradition, Compact Craft"]
[null,"Swedoor CRAFT 04 (hvit)",null,"COMPACT SP12B+SP12B",null,"Røkfarget herdet glass"]
[null,"Swedoor CRAFT 04N (hvit)",null,"EASY GW1"]
[null,"Swedoor CRAFT 04L (hvit)",null,"EASY GW3"]
[null,"Swedoor CRAFT 02B (hvit)",null,"EASY GW4"]
[null,"Swedoor CRAFT 05 (hvit)",null,"EASY GW1+GW1"]
[null,"Scanflex TREND 1 hvit",null,"EASY GW3+GW3"]
[null,"Scanflex TREND 2 hvit",null,"EASY GW4+GW4"]
[null,"Scanflex TREND 3 hvit",null,"PURITY GW01L"]
[null,"Scanflex TREND 4 hvit",null,"PURITY GW02L"]
[null,null,null,"PURITY GW03L"]
[null,"FURU FYLLINGSDØRER:",null,"PURITY GW04L"]
[null,"Scanflex SINDRE (furu ubehandlet)",null,"PURITY GW01L+GW01L"]
[null,"Scanflex SINDRE (furu lakkert)",null,"PURITY GW02L+GW02L"]
[null,"Scanflex SINDRE (furu hvitmalt)",null,"PURITY GW03L+GW03L"]
[null,"Scanflex SKJOLD  (furu ubehandlet)",null,"PURITY GW04L+GW04L"]
[null,"Scanflex SKJOLD  (furu lakkert)",null,"CRAFT SP6"]
[null,"Scanflex SKJOLD  (furu hvitmalt)",null,"CRAFT SP10"]
[null,null,null,"CRAFT SP10B"]
[null,"Leveres ikke",null,"CRAFT SP6+SP3"]
[null,null,null,"CRAFT SP10+SP5"]
[null,null,null,"CRAFT SP6+SP6"]
[null,null,null,"CRAFT SP10+SP10"]
[null,null,null,"CRAFT SP10B+SP5B"]
[null,null,null,"CRAFT SP10B+SP10B"]
[null,null,null,"TREND 1"]
[null,null,null,"TREND 2"]
[null,null,null,"TREND 3"]
[null,null,null,"TREND 4"]
[null,null,null,"TREND Duo"]
[]
[null,"Badstue-dør",null,"Kjøleromsdør",null,"Klimadør"]
[]
[null,"Swedoor (røkfarget glass)",null,"Norcool type D-1900 (standard)",null,"Swedoor P-1200 (hvit)"]
[null,"Leveres ikke",null,"Leveres ikke",null,"Leveres ikke"]
[]
[null,"Inspeksjonsluker i knevegger",null,"Inspeksjonsluker i himling",null,"Takluker med stige"]
[]
[null,"Hvit (grunnet), størrelse iht. tegning",null,"Hvit (grunnet) med stang (55 cm x 55 cm)",null,"Hvit (grunnet) med nedfellbar stige (55 cm x 100 cm)"]
[null,"Furu størrelse iht. tegning",null,"Furu med stang (55 cm x 55 cm)",null,"Furu med nedfellbar stige (55 cm x 100 cm)"]
[null,"Foringer",null,"Yttervegg",null,"Innervegg"]
[]
[null,null,null,"Furu hvitmalt (standard)",null,"Furu hvitmalt (standard)"]
[null,null,null,"Gipsplater m/gipshjørner",null,"Furu ubehandlet"]
[null,null,null,"Furu ubehandlet",null,"Furu lakkert"]
[null,null,null,"Furu lakkert"]
[null,"Listverk",null,"Taklist",null,"Nobbnr.",null,null,null,"Behandling"]
[]
[null,null,null,"15x70 mm profilert CW349,  furu hvitmalt",null,23134521,null,null,null,"Hvitmalt NCS S 0502Y (grunnet uten etterbehandling - standard)"]
[null,null,null,"21x45 mm E-skygge, furu hvitmalt",null,26522987,null,null,null,"Hvitmalt NCS S 0502Y inkl. sparkling og toppstrøk"]
[null,null,null,"12x58 mm glattkant (rette hjørner), furu hvitmalt",null,30266324,null,null,null,"Ubehandlet"]
[null,null,null,"Listfri løsning (forutsetter gips - OBS! mht sprekking!)",null,null,null,null,null,"Lakkert"]
[null,null,null,"Leveres ikke"]
[null,null,null,"IKKE LAGEFØRT:"]
[null,null,null,"21x58 mm hulkil slett, furu hvitmalt",null,30265540]
[null,null,null,"21x70 mm hulkil slett, furu hvitmalt",null,30265565]
[null,null,null,"21x45 mm D-skygge, furu hvitmalt",null,26522979]
[null,null,null,"12x70 mm glattkant (rette hjørner), furu hvitmalt",null,30266340]
[null,null,null,"15x70 mm glattkant (rette hjørner), furu hvitmalt",null,30266514]
[null,null,null,"21x45 mm glattkant (rette hjørner), furu hvitmalt"]
[]
[null,null,null,"Fotlist"]
[]
[null,null,null,"15x70 mm profilert kombilist CW471, furu hvitmalt ",null,26523001]
[null,null,null,"12x58 mm fotlist rund (slett), furu hvitmalt ",null,23134448]
[null,null,null,"12x58 mm glattkant (rette hjørner), furu hvitmalt",null,30266324]
[null,null,null,"15x70 mm profilert kombilist CW471, Eik lakkert",null,24476392]
[null,null,null,"12x58 mm fotlist rund, Eik lakkert",null,24474587]
[null,null,null,"15x45 mm Ideal fotlist, Eik lakkert",null,21605464]
[null,null,null,"IKKE LAGEFØRT:"]
[null,null,null,"15x70 mm glattkant (rette hjørner), furu hvitmalt",null,30266514]
[null,null,null,"15x45 mm Ideal fotlist, Eikhvitpigmentert",null,45550695]
[null,null,null,"Leveres ikke"]
[]
[null,null,null,"Karmlist"]
[]
[null,null,null,"15x70 mm profilert kombilist CW471, furu hvitmalt ",null,26523001]
[null,null,null,"12x58 mm karmlist rund (slett), furu hvitmalt ",null,23134422]
[null,null,null,"12x58 mm glattkant (rette hjørner), furu hvitmalt",null,30266324]
[null,null,null,"IKKE LAGEFØRT:"]
[null,null,null,"12x70 mm glattkant (rette hjørner), furu hvitmalt",null,30266340]
[null,null,null,"15x70 mm glattkant (rette hjørner), furu hvitmalt",null,30266514]
[null,null,null,"Leveres ikke"]
[]
[]
[]
[null,null,null,null,null,"Leveres ikke"]
[null,"Innvendige trapper"]
[null,"Modell",null,"Stolper",null,"Spiler",null,"Håndrekke",null,"Type trinn / håndrekke:",null,"Behandling"]
[]
[null,"Norke (Standard m/runde spiler)",null,"Standard (E-1)",null,"Rett (B-2)",null,"Standard (H-1)",null,"Furu friskkvist",null,"Hvitmalt NCS S 0502Y"]
[null,"Heimdal (Standard m/rette spiler)",null,"Dreid A (E-3)",null,"Rund (B-1)",null,"Rett (H-4)",null,"Furu fingerskjøtt",null,"Beislakkert"]
[null,"Nissedal (Standard m/stålspiler og rett håndløper)",null,"Dreid B (E-3)",null,"Dreid A1 (B-4)",null,"Profilert (H-2)",null,"Eik fingerskjøtt",null,"Hvitlasert"]
[null,"Napen (Empire m/innboring)",null,"Dreid C (E-2)",null,"Dreid A2 (B-4)",null,"Profilert 2 (H-5)",null,"Eik helstav",null,"Klarlakkert"]
[null,"Treungen (Exstenso m/stål)",null,"Dreid C m/Fas 85 (E-6)",null,"Dreid B1 (B-4)",null,"Rund (H-6)",null,"Bøk",null,"Mattlakkert"]
[null,"Felle (Dreid C m/innboring)",null,"Dreid C m/Fas 115 (E-6)",null,"Dreid B2 (B-4)",null,"Rund stål (H-7)",null,"Annen hardved (forespurt)",null,"Antikklakkert"]
[null,"Fjone (Fas)",null,"Dreid C Empire Ekskl. (E-7)",null,"Dreid C (B-3)",null,null,null,null,null,"Lakkert brannhemmende lakk"]
[null,"Støyl (Dreid A)",null,"Fas (E-4)",null,"Empire (B-5)",null,"Dimensjoner"]
[null,"Liland (Dreid A m/innboring)",null,"Fas 85 (E-4)",null,"Empire Ekskl. (B-7)",null,null,null,null,null,"Vanger"]
[null,"Rinden (Empire X)",null,"Empire (E-5)",null,"Fas (B-6)",null,null,null,"Stusstrinn"]
[null,"Nipa (Exstenso m/glass)",null,"Empire Ekskl.  (E-5)",null,"Stål (B-9)",null,null,null,null,null,"Spor i innervange for veggplate"]
[null,"Levers ikke",null,null,null,null,null,null,null,"Åpen utførelse med barnesikring",null,"Svingstykke i innervange"]
[null,null,null,null,null,null,null,null,null,"Tett utførelse med stusstrinn",null,"Synlig yttervange"]
[null,"TYPE TRAPP",null,null,null,null,null,null,null,null,null,"Svingstykke i innervange og synlig yttervange"]
[null,null,null,null,null,null,null,null,null,"Blokktinn",null,"Vegg begge sider"]
[null,"90º sving"]
[null,"180º sving",null,null,null,null,null,null,null,"Leveres ikke",null,"Beisfarger"]
[null,"Rett",null,null,null,null,null,null,null,"Bue 1 side"]
[null,"90º repos",null,null,null,null,null,null,null,"Bue 2 sider",null,"Sort"]
[null,"180º repos",null,null,null,null,null,null,null,null,null,"Koksgrå"]
[null,"180º sving med et repos og bod under",null,null,null,null,null,null,null,"Trinn",null,"Eik"]
[null,"180º sving med spesial repos",null,null,null,null,null,null,null,null,null,"Lys Eik"]
[null,"Spesial sving",null,null,null,null,null,null,null,"Standard",null,"Kirsebær"]
[null,null,null,null,null,null,null,null,null,"Profilert framkant (trappenese)",null,"Mahogny"]
[null,null,null,null,null,null,null,null,null,"Eikelist for teppe",null,"Merbau"]
[null,null,null,null,null,null,null,null,null,null,null,"Nøttebrun"]
[]
[]
[]
[]
[]
[null,"Kjøkkeninnredning",null,"Produsent/leverandør"]
[]
[null,{"$f":"\"Leveres av \"&Produksjonsbeskrivelse!B4","v":"Leveres av Konsmo Fabrikker AS"},null,"Strai Kjøkken AS"]
[null,"Leveres av forbruker (kjøper)"]
[null,"Leveres ikke"]
[null,"Eventuelle endringer"]
[]
[null,"Ihht. differanseskjema utarbeidet av kjøkken-leverandør"]
[null,"Ihht. avtalt tillegg/fradrags sum"]
[null,"Ingen endringer vil bli foretatt"]
[null,"Garderobeinnredning",null,"Type"]
[]
[null,{"$f":"\"Leveres av \"&Produksjonsbeskrivelse!B4","v":"Leveres av Konsmo Fabrikker AS"},null,"Hvit slett økonomi slagdørsgarderobe"]
[null,"Leveres av forbruker (kjøper)",null,"Hvit slett skyvedørsgarderobe"]
[null,"Leveres ikke"]
[]
[]
[null,"Baderomsinnredning"]
[]
[null,"Bad loft"]
[null,"Bad hovedplan"]
[null,"Bad kjeller"]
[null,"Bad hybelleilighet"]
[null,"Dusj/wc loft"]
[null,"Dusj/wc hovedplan"]
[null,"Dusj/wc kjeller"]
[null,"Dusj/wc hybelleilighet"]
[null,"Romskjema",null,"Etasje",null,"Rom",null,"Rom typisk varmekabler",null,"Type gulvbelegg"]
[]
[null,"1:1",null,"Hovedplan",null,"Stue",null,"Vindfang",null,"Fliser"]
[null,"1:2",null,"Loftsplan",null,"Kjøkken",null,"Entre",null,"Vinylbelegg"]
[null,"1:3",null,"Kjellerplan",null,"Vindfang",null,"Hall",null,"Parkett / Laminat (60 W/m²)"]
[null,"1:4",null,"1. etasje",null,"Entre",null,"Bad",null,"Teppe"]
[null,"1:5",null,"2. etasje",null,"Hall",null,"Dusj/wc"]
[null,"1:6",null,"U. etasje",null,"Gang",null,"WC"]
[null,"1:7",null,null,null,"Soverom",null,"Vask"]
[null,"1:8",null,null,null,"Bad",null,"Vask/bod"]
[null,"1:9",null,null,null,"Dusj/wc",null,"Gang"]
[null,"1:10",null,null,null,"WC",null,"Sov"]
[null,null,null,null,null,"Bod",null,"Stue"]
[null,"2:1",null,null,null,"Vask",null,"Kjøkken"]
[null,"2:2",null,null,null,"Vask/bod",null,"TV-stue"]
[null,"2:3",null,null,null,"Spisestue"]
[null,"2:4",null,null,null,"Loftstue"]
[null,"2:5",null,null,null,"TV-stue"]
[null,"2:6",null,null,null,"Kjellerstue"]
[null,"2:7",null,null,null,"Badstue"]
[null,"2:8",null,null,null,"Kjølerom"]
[null,"2:9"]
[null,"2:10"]
[null,null,null,null,null,"Rom for hovedinngang"]
[null,"3:1"]
[null,"3:2",null,null,null,"Entré"]
[null,"3:3",null,null,null,"Vindfang"]
[null,"3:4",null,null,null,"Hall "]
[null,"3:5",null,null,null,"Gang"]
[null,"3:6",null,null,null,"Vaskerom"]
[null,"3:7",null,null,null,"Vaskerom/Bod"]
[null,"3:8"]
[null,"3:9"]
[null,"3:10"]
[]
[null,"0:1"]
[null,"0:2"]
[null,"0:3"]
[null,"0:4"]
[null,"0:5"]
[null,"0:6"]
[null,"0:7"]
[null,"0:8"]
[null,"0:9"]
[null,"0:10"]
[]
[]
[]
[]
[]
[]
[]
[]
[]
[]
[]
[null,"Rom"]
[]
[null,"Stue"]
[null,"Kjøkken"]
[null,"Vindfang"]
[null,"Entre"]
[null,"Hall"]
[null,"Bod   m²"]
[null,"Sov   m²"]
[null,"WC"]
[null,"Vaskerom"]
[null,"Bad"]
[null,"Loftstue"]
[null,"Kjellerstue"]
[null,"TV-stue"]
[null,"Gang"]
[null,"Badstue"]
[null,"Kjølerom"]
[null,"Gulv",null,"Golv varme",null,"Gulv overdekning"]
[]
[null,"Støpt plate på mark",null,"Leveres ikke",null,"PARKETT / LAMINAT"]
[null,"22 mm gulvsponplate Ekstra på trebjelkelag",null,"Varmekabler",null,"14 mm Parkett Boen Eik Andante clic, Live Stin lakk, "]
[null,null,null,"Vannbåren",null,"14 mm Parkett Boen Eik Andante clic, Hvitpigmentert 3-stav Mattlakk, 14x209x2200"]
[null,"Gulv for varme i trebjelkelag",null,null,null,"14 mm Parkett: Södra Eik 3-stav Mattlakk, 14x207x2200"]
[null,null,null,null,null,"14 mm Parkett: Södra Eik 3-stav Mattlakk Hvit, 14x207x2200"]
[null,"Nedsenket for varme. Påstøp besørges av forbruker.",null,null,null,"14 mm Parkett: Södra Eik 1-stav Mattlakk, 14x180x1800"]
[null,"For lavtbyggende varme. Påstøp besørges av forbruker.",null,null,null,"14 mm Parkett levert av KF AS. Type:"]
[null,"Nedsenket for varme.  Påstøp besørges av KF AS.",null,null,null,"14 mm Parkett levert av forbruker."]
[null,"For lavtbyggende varme. Påstøp besørges av KF AS.",null,null,null,"Laminatgulv levert av KF AS. Type:"]
[null,"Silencio Thermo + 10 mm Fermacell Fibergips (+parkett/laminat)",null,null,null,"Laminatgulv levert av forbruker."]
[null,"Silencio Thermo + 22 mm spon"]
[null,"Silencio + 22 mm spon (i rom uten vannvarme for utjevning høyde) ",null,null,null,"ANNET"]
[null,null,null,null,null,"Fliser levert av forbruker."]
[null,null,null,null,null,"Vinylbelegg levert av forbruker."]
[null,null,null,null,null,"Teppe levert av forbruker."]
[null,null,null,null,null,"Fliser levert av KF AS. Type:"]
[null,null,null,null,null,"Vinylbelegg levert av KF AS. Type:"]
[null,null,null,null,null,"Teppe levert av KF AS. Type:"]

{"sheet":"Salgskontor","index":19,"n_rows":14,"n_cols":4,"rows_kept":14,"cut":false,"hidden":true,"merged":[]}
[null,"Salgskontor/forhandler:"]
[1,{"$f":"LOOKUP(A2,A8:A14,B8:B14)","v":"Hovedkontor"}]
[1,"Hovedkontor","Hovedkontor\nBreilimoen 15                                           \n4525  KONSMO                                             \nTelefon: 38 28 13 00                                   \nE-post: firmapost@konsmohus.no","Konsmo Fabrikker AS"]
[2,"Mandal","Avd. Mandal \nTorjusheigata 9\n4514  MANDAL                             \nTelefon: 38 27 15 60                                     \nE-post: mandal@konsmohus.no","Konsmo Fabrikker AS"]
[3,"Kristiansand","Avd. Kristiansand        \nGyldenløvesgate 31                                      \n4614  KRISTIANSAND                                \nTelefon: 38 00 65 20             \nE-post: kristiansand@konsmohus.no","Konsmo Fabrikker AS"]
[4,"Arendal","Avd. Arendal        \nÅsbieveien 9C                                               \n4848  ARENDAL                                             \nTelefon: 38 28 13 00                                  \nE-post: arendal@konsmohus.no       ","Konsmo Fabrikker AS"]
[5,"Øst","Avd. Øst\nBuskerudveien 129                                            \n3027  DRAMMEN                                    \nTelefon: 934 44 411                             \nE-post: lars.berglund@konsmohus.no       ","Konsmo Fabrikker AS"]
[null,"Forhandlere:"]
[1,"Hovedkontor","Hovedkontor\nBreilimoen 15                                           \n4525  KONSMO                                             \nTelefon: 38 28 13 00                                   \nE-post: firmapost@konsmohus.no","Konsmo Fabrikker AS"]
[2,"Asker & Bærum Hus AS","Bjerkealleen 4 B       \n1636  HØVIK                                            \nTelefon: 67 83 90 25                                   \nE-post: post@abhus.no","Asker & Bærum Hus AS"]
[3,"Wax Hus AS","Buskerudveien 105                                       \n3027  DRAMMEN                                       \nTelefon: 32 82 66 40                                   \nE-post: post@waxhus.no","Wax Hus AS"]
[4,"Mesterbygg Vestfold AS","Postboks 66 7 Haslebakken 4                      \n3209 / 3229 SANDEFJORD                    \nTelefon: 467 67 800                                   \nE-post: post@mesterbyggvestfold.no","Mesterbygg Vestfold AS"]
[5,"Byggmester Olaf Haugland","Kalstadveien\n3770  KRAGERØ\nTelefon: 922 85 330\nE-post: olafhau2@online.no","Byggmester Olaf  Haugland"]
[6,"Seglem & Åse AS","Storevollsveien 11\n4372  EGERSUND\nTelefon: 976 86 110\nE-post: helge.ase@dabb.no ","Seglem & Åse AS"]

{"sheet":"Kalkyle endriger","index":20,"n_rows":79,"n_cols":9,"rows_kept":79,"cut":false,"hidden":true,"merged":[[0,2,0,4],[1,2,1,4],[2,0,2,1],[2,2,2,4],[3,0,3,1],[3,2,3,4],[63,1,63,3],[4,0,4,1],[4,2,4,4],[5,0,5,1],[5,2,5,4],[6,0,6,1],[6,2,6,4],[8,0,8,1],[8,2,8,4],[53,1,53,3],[61,1,61,3],[62,1,62,3],[76,1,76,3],[78,1,78,3],[64,1,64,3],[65,1,65,3],[70,1,70,3],[73,1,73,3],[74,1,74,3],[75,1,75,3]]}
[null,null,"KONSMO FABRIKKER AS"]
[null,null,"ENDRINGSKALKYLE"]
[]
["Byggherre: ",null,{"$f":"IF(Produksjonsbeskrivelse!B14=\" \",\" \",Produksjonsbeskrivelse!B14)","v":0}]
["Tegningsdato: ",null,{"$f":"IF(Produksjonsbeskrivelse!D49=\" \",\" \",Produksjonsbeskrivelse!D49)","v":"00:00:00"}]
["Kalkulert dato: ",null,{"$f":"IF(Produksjonsbeskrivelse!K5=\" \",\" \",Produksjonsbeskrivelse!K5)","v":"00:00:00"}]
["Kalkulert av: ",null,{"$f":"IF(Produksjonsbeskrivelse!B30=\" \",\" \",Produksjonsbeskrivelse!B30)","v":0}]
[]
["Endringer: "]
[]
["EP","2E","ENH","MATERIAL","SUM","MATR.","ARB.","SUM MATR.","SUM ARB."]
[null,null,null,"VEGGPLATER"]
[null,null,"mod","Huntonit Skygge 5 bord, Kostemalt Caffelatte NCS S 1005-Y30R Vannbasert acryl Glans 20, h=2390",{"$f":"A13+B13","v":0},null,null,{"$f":"E13*F13","v":0},{"$f":"E13*G13","v":0}]
[null,null,"mod",null,{"$f":"A14+B14","v":0},null,null,0,0]
[null,null,"mod",null,0,null,null,0,0]
[null,null,"mod",null,0,null,null,0,0]
[null,null,"mod",null,0,null,null,0,0]
[null,null,"mod",null,0,null,null,0,0]
[null,null,"mod",null,0,null,null,0,0]
[null,null,"mod",null,0,null,null,0,0]
[null,null,"mod",null,0,null,null,0,0]
[null,null,"mod",null,0,null,null,{"$f":"E22*F22","v":0},{"$f":"E22*G22","v":0}]
[null,null,"mod",null,0,null,null,0,0]
[null,null,"mod",null,0,null,null,0,0]
[null,null,"mod",null,0,null,null,0,0]
[null,null,"mod",null,0,null,null,0,0]
[null,null,null,null,0,null,null,0,0]
[null,null,null,"HIMLINGER / SKRÅTAK",0,null,null,0,0]
[null,null,"m²",null,0,null,null,0,0]
[null,null,"m²",null,0,null,null,{"$f":"E30*F30","v":0},{"$f":"E30*G30","v":0}]
[null,null,"m²",null,0,null,null,{"$f":"E31*F31","v":0},{"$f":"E31*G31","v":0}]
[null,null,"m²",null,0,null,null,{"$f":"E32*F32","v":0},{"$f":"E32*G32","v":0}]
[null,null,"m²",null,0,null,null,{"$f":"E33*F33","v":0},{"$f":"E33*G33","v":0}]
[null,null,"m²",null,0,null,null,{"$f":"E34*F34","v":0},{"$f":"E34*G34","v":0}]
[null,null,"m²",null,0,null,null,0,0]
[null,null,"m²",null,0,null,null,0,0]
[null,null,"m²",null,0,null,null,0,0]
[null,null,"m²",null,0,null,null,0,0]
[null,null,"m²",null,0,null,null,0,0]
[null,null,"m²",null,0,null,null,0,0]
[null,null,"m²",null,0,null,null,0,0]
[null,null,"m²",null,0,null,null,0,0]
[null,null,"m²",null,0,null,null,0,0]
[null,null,null,null,0,null,null,0,0]
[null,null,null,null,0,null,null,0,0]
[null,null,null,null,0,null,null,0,0]
[null,null,null,null,0,null,null,0,0]
[null,null,null,null,0,null,null,0,0]
[null,null,null,null,0,null,null,0,0]
[null,null,null,null,0,null,null,{"$f":"E50*F50","v":0},{"$f":"E50*G50","v":0}]
[null,null,null,"Endringer, netto",null,null,null,{"$f":"SUM(H12:H50)","v":0},{"$f":"SUM(I12:I50)","v":0}]
[]
[]
[null,"Sammenstilling byggesett"]
[null,"Endringer byggesett, netto",null,null,null,null,null,{"$f":"H51","v":0}]
[0,"Dekningsbidrag ",null,null,null,null,null,{"$f":"H55*A56","v":0}]
[null,"Sum endringer byggesett ",null,null,null,null,null,{"$f":"SUM(H55:H56)","v":0}]
[0,"Prisstigning",null,null,null,null,null,{"$f":"H57*A58","v":0}]
[null,"Endringer byggesett, ekskl. mva.",null,null,null,null,null,{"$f":"SUM(H57:H58)","v":0}]
[0.25,"Mva.",null,null,null,null,null,{"$f":"H59*A60","v":0}]
[null,"Endringer byggesett, inkl. mva.",null,null,null,null,null,{"$f":"H59+H60","v":0}]
[]
[]
[null,"Sammenstilling tømmermannsarbeider"]
[null,"Akkordsum endringer tømmermannsarb., netto",null,null,{"$f":"H65/G65","v":0},"timer a kr",280,{"$f":"I51","v":0}]
[0.05,"Tillegg (tilpasning til nye energikrav)",null,null,{"$f":"E65*A66","v":0},null,null,{"$f":"E66*G65","v":0}]
[0.12,"Dagtid",null,null,null,null,null,{"$f":"H65*A67","v":0}]
[0.4,"Sosiale utgifter",null,null,null,null,null,{"$f":"SUM(H65:H67)*A68","v":0}]
[0.1,"Kjøreutgifter",null,null,null,null,null,{"$f":"SUM(H65:H68)*A69","v":0}]
[null,"Verktøygodtgjørelse",null,null,{"$f":"E65","v":0},{"$f":"F65","v":"timer a kr"},8,{"$f":"E70*G70","v":0}]
[null,"Sum endringer tømmermannsarb. ",null,null,null,null,null,{"$f":"SUM(H65:H70)","v":0}]
[{"$f":"A56","v":0},"Dekningsbidrag ",null,null,null,null,null,{"$f":"H71*A72","v":0}]
[null,"Sum endringer byggesett ",null,null,null,null,null,{"$f":"SUM(H71:H72)","v":0}]
[{"$f":"A58","v":0},"Prisstigning",null,null,null,null,null,{"$f":"H73*A74","v":0}]
[null,"Endringer tømmermannsarb., ekskl. mva.",null,null,null,null,null,{"$f":"H73+H74","v":0}]
[{"$f":"A60","v":0.25},"Mva.",null,null,null,null,null,{"$f":"H75*A76","v":0}]
[null,"Endringer tømmermannsarb., inkl. mva.",null,null,null,null,null,{"$f":"H75+H76","v":0}]
[]
[null,"MATERIALER OG MONTASJE",null,null,null,"inkl. MVA",null,{"$f":"H61+H77","v":0}]

{"sheet":"Rombeskrivelse","index":21,"n_rows":16,"n_cols":24,"rows_kept":16,"cut":false,"hidden":true,"merged":[]}
[]
[]
["Etasje","Rom_nr_0","Rom_nr_1","Rom_nr_2","Rom_nr_3",null,"Rom_1","Rom_2","Rom_3","Rom_4","Rom_5","Rom_6","Rom_7","Rom_8","Rom_9","Rom_10","Rom_11","Rom_12","Rom_13","Rom_14","Rom_15","Rom_16","Rom_17","Rom_18"]
[]
[null,null,null,null,null,null,{"$f":"Produksjonsbeskrivelse!$B407","v":0},{"$f":"Produksjonsbeskrivelse!$B420","v":0},{"$f":"Produksjonsbeskrivelse!$B433","v":0},{"$f":"Produksjonsbeskrivelse!$B446","v":0},{"$f":"Produksjonsbeskrivelse!$B459","v":0},{"$f":"Produksjonsbeskrivelse!$B472","v":0},{"$f":"Produksjonsbeskrivelse!$B492","v":0},{"$f":"Produksjonsbeskrivelse!$B505","v":0},{"$f":"Produksjonsbeskrivelse!$B518","v":0},{"$f":"Produksjonsbeskrivelse!$B531","v":0},{"$f":"Produksjonsbeskrivelse!$B544","v":0},{"$f":"Produksjonsbeskrivelse!$B557","v":0},{"$f":"Produksjonsbeskrivelse!$B577","v":0},{"$f":"Produksjonsbeskrivelse!$B590","v":0},{"$f":"Produksjonsbeskrivelse!$B603","v":0},{"$f":"Produksjonsbeskrivelse!$B616","v":0},{"$f":"Produksjonsbeskrivelse!$B629","v":0},{"$f":"Produksjonsbeskrivelse!$B642","v":0}]
[]
["1. etg.","0:1","1:1","2:1","3:1",null,{"$f":"IF(G$5=\"Hovedplan\",Rom_nr_1,IF(G$5=\"1. etg.\",Rom_nr_1,IF(G$5=\"Loftsplan\",Rom_nr_2,IF(G$5=\"2. etg.\",Rom_nr_2,IF(G$5=\"Underetg.\",Rom_nr_0,IF(G$5=\"Kjeller\",Rom_nr_0,IF(G$5=\"Sokkeletg.\",Rom_nr_0,IF(G$5=\"3. etg.\",Rom_nr_3,IF(G$5=\"Loft\",Rom_nr_3)))))))))","v":false},false,false,false,false,false,false,false,false,false,{"$f":"IF(Q$5=\"Hovedplan\",Rom_nr_1,IF(Q$5=\"1. etg.\",Rom_nr_1,IF(Q$5=\"Loftsplan\",Rom_nr_2,IF(Q$5=\"2. etg.\",Rom_nr_2,IF(Q$5=\"Underetg.\",Rom_nr_0,IF(Q$5=\"Kjeller\",Rom_nr_0,IF(Q$5=\"Sokkeletg.\",Rom_nr_0,IF(Q$5=\"3. etg.\",Rom_nr_3,IF(Q$5=\"Loft\",Rom_nr_3)))))))))","v":false},false,false,false,false,false,false,false]
["Hovedplan","0:2","1:2","2:2","3:2",null,false,false,false,false,false,false,false,false,false,false,false,false,false,false,false,false,false,false]
["2. etg.","0:3","1:3","2:3","3:3",null,false,false,false,false,false,false,false,false,false,false,false,false,false,false,false,false,false,false]
["Loftsplan","0:4","1:4","2:4","3:4",null,false,false,false,false,false,false,false,false,false,false,false,false,false,false,false,false,false,false]
["3. etg.","0:5","1:5","2:5","3:5",null,false,false,false,false,false,false,false,false,false,false,false,false,false,false,false,false,false,false]
["Loft","0:6","1:6","2:6","3:6",null,false,false,false,false,false,false,false,false,false,false,false,false,false,false,false,false,false,false]
["Underetg.","0:7","1:7","2:7","3:7",null,false,false,false,false,false,false,false,false,false,false,false,false,false,false,false,false,false,false]
["Kjeller","0:8","1:8","2:8","3:8",null,false,false,false,false,false,false,false,false,false,false,false,false,false,false,false,false,false,false]
["Sokkeletg.","0:9","1:9","2:9","3:9",null,false,false,false,false,false,false,false,false,false,false,false,false,false,false,false,false,false,false]
[null,"0:10","1:10","2:10","3:10",null,false,false,false,false,false,false,false,false,false,false,false,false,false,false,false,false,false,false]

{"sheet":"Hörmann-porter","index":22,"n_rows":84,"n_cols":39,"rows_kept":84,"cut":false,"hidden":true,"merged":[]}
["Type:","Genrell oversikt",null,null,null,null,null,null,null,null,"LPU-overflater:","LTE-overflater:","LTH-tresorter:","15 utvalgte farger:","Sandgrain-farger:","Decograin-overflater:","Trelasur-farger:","Vindusrekker:","Bredde:",2250,2375,2500,2625,2750,3000,3250,3500,3750,4000,4250,4500,4750,5000,5500,6000,null,"Valgte mål:",{"$f":"[1]Produksjonsbeskrivelse!H250","v":6000},{"$f":"[1]Produksjonsbeskrivelse!K250","v":2000}]
[null,"Hörmann LPU - isolert leddport i stål","Horisontal profil S","Horisontal profil M","Plan profil L","Horisontal profil D","Horisontal profil T","Speil profil","Desognprofil",null,"","","",null,null,null,null,null,2250,"H_1","H_2","H_3","H_4","H_5","H_6","H_7"]
["Hörmann LPU - isolert leddport i stål",{"$f":"IF(A$10<>B$2,\" \",INDEX(C3:I3,MATCH(A$23,C$2:I$2,0)))","v":" "},"Woodgrain","Woodgrain","Woodgrain","Silkgrain","Silkgrain","Woodgrain",null,null,"Woodgrain","Woodgrain","Nordisk gran, impregnert","Off-white - RAL 9016","Off-white - RAL 9016","Golden Oak: mellombrun, gyllen eikedekor","Kalkhvit","Levers ikke",2375,1875,1875,1875,2125,2000,2000,2000,2000,2000,2000,2000,2000,2000,2000,2000,2000,null,"Høydevalg:",{"$f":"IF(AL$1=T$1,H_1,IF(AL$1=U$1,H_2,IF(AL$1=V$1,H_3,IF(AL$1=W$1,H_4,IF(AL$1=X$1,H_5,IF(AL$1=Y$1,H_6,IF(AL$1=Z$1,H_7,IF(AL$1=AA$1,H_7,IF(AL$1=AB$1,H_7,IF(AL$1=AC$1,H_7,IF(AL$1=AD$1,H_7,IF(AL$1=AE$1,H_7,IF(AL$1=AF$1,H_7,IF(AL$1=AG$1,H_7,IF(AL$1=AH$1,H_7,IF(AL$1=AI$1,H_7,\"\"))))))))))))))))","v":2000}]
["Hörmann LTE - uisolert leddport i stål",{"$f":"IF(A$10<>B$2,\" \",INDEX(C4:I4,MATCH(A$23,C$2:I$2,0)))","v":" "},"","Sandgrain","Sandgrain","","","Decograin",null,null,"Sandgrain"," ","Hemlock, impregnert","","","Dark Oak: nøttefarget eikedekor","Furu","Vinduer type D",2500,2000,2000,2000,"",2125,2125,2125,2125,2125,2125,2125,2125,2125,2125,2125,2125,null,null,2125]
["Hörmann LTH - leddport i massivtre"," ","","Silkgrain","Micrograin","","","",null,null,"Micrograin","","","Aluminiumsgrå - RAL 9007","Aluminiumshvit - RAL 9006","Night Oak: mørk, intens eikedekor","Teak","Vindusrekke med alu-ramme",2625,2125,2080,2080,"",2250,2250,2250,2250,2250,2250,2250,2250,2250,2250,2250,2250,null,null,2250]
[null," ","","Decograin","Silkgrain","","","",null,null,"Silkgrain","","","Aluminiumshvit - RAL 9006","Jordbrun - RAL 8028","Rosewood: mahognifarget tredekor","Palisander","Classic-vinduer S0",2750,"",2125,2125,"",2375,2375,"","","","","","","","","","",null,null,""]
[null," ","","","Decograin","","","",null,null,"Decograin","","","Jordbrun - RAL 8028","Antrasittgrå - RAL 7016","Winchester Oak: Naturfarget eikedekor","Ibenholt","Classic-vinduer M0",3000,"",2250,2250,"",2500,2500,"","","","","","","","","","",null,null,{"$f":"IF(AL$1=T$1,H_1,IF(AL$1=U$1,H_2,IF(AL$1=V$1,H_3,IF(AL$1=W$1,H_4,IF(AL$1=X$1,H_5,IF(AL$1=Y$1,H_6,IF(AL$1=Z$1,H_7,IF(AL$1=AA$1,H_7,IF(AL$1=AB$1,H_7,IF(AL$1=AC$1,H_7,IF(AL$1=AD$1,H_7,IF(AL$1=AE$1,H_7,IF(AL$1=AF$1,H_7,IF(AL$1=AG$1,H_7,IF(AL$1=AH$1,H_7,IF(AL$1=AI$1,H_7,\"\"))))))))))))))))","v":""}]
["Valgt type:",null,"","","","","","",null,null,null,null,null,"Leirbrun - RAL 8003","",{"$f":"IF(A23=K18,\" \",\"Titan Metallic CH 703: Antrasitt metalliceff.\")","v":"Titan Metallic CH 703: Antrasitt metalliceff."},"Agatgrå","Classic-vinduer L0",3250,"","",2375,"",2750,3000,"","","","","","","","","","",null,null,{"$f":"IF(AL$1=T$1,H_1,IF(AL$1=U$1,H_2,IF(AL$1=V$1,H_3,IF(AL$1=W$1,H_4,IF(AL$1=X$1,H_5,IF(AL$1=Y$1,H_6,IF(AL$1=Z$1,H_7,IF(AL$1=AA$1,H_7,IF(AL$1=AB$1,H_7,IF(AL$1=AC$1,H_7,IF(AL$1=AD$1,H_7,IF(AL$1=AE$1,H_7,IF(AL$1=AF$1,H_7,IF(AL$1=AG$1,H_7,IF(AL$1=AH$1,H_7,IF(AL$1=AI$1,H_7,\"\"))))))))))))))))","v":""}]
[null,"Hörmann LTE - uisolert leddport i stål","Horisontal profil S","Horisontal profil M","Speil profil",null,null,null,null,null,null,null,null,"Okerbrun - RAL 8001","","","Barnålgrønn","Classic-vinduer S1",3500,"","",2500,"","","","","","","","","","","","","",null,null,{"$f":"IF(AL$1=T$1,H_1,IF(AL$1=U$1,H_2,IF(AL$1=V$1,H_3,IF(AL$1=W$1,H_4,IF(AL$1=X$1,H_5,IF(AL$1=Y$1,H_6,IF(AL$1=Z$1,H_7,IF(AL$1=AA$1,H_7,IF(AL$1=AB$1,H_7,IF(AL$1=AC$1,H_7,IF(AL$1=AD$1,H_7,IF(AL$1=AE$1,H_7,IF(AL$1=AF$1,H_7,IF(AL$1=AG$1,H_7,IF(AL$1=AH$1,H_7,IF(AL$1=AI$1,H_7,\"\"))))))))))))))))","v":""}]
[{"$f":"IF(Produksjonsbeskrivelse!C250=0,\" \",Produksjonsbeskrivelse!C250)","v":" "},{"$f":"IF(A$10<>B$9,\" \",INDEX(C10:E10,MATCH(A$23,C$9:I$9,0)))","v":" "},"Woodgrain","Woodgrain","Woodgrain","",null,null,null,null,null,null,null,"Vindusgrå - RAL 7040","","","Nordisk rød","Classic-vinduer S2",3750,"","",2750,"","","","","","","","","","","","","",null,null,{"$f":"IF(AL$1=T$1,H_1,IF(AL$1=U$1,H_2,IF(AL$1=V$1,H_3,IF(AL$1=W$1,H_4,IF(AL$1=X$1,H_5,IF(AL$1=Y$1,H_6,IF(AL$1=Z$1,H_7,IF(AL$1=AA$1,H_7,IF(AL$1=AB$1,H_7,IF(AL$1=AC$1,H_7,IF(AL$1=AD$1,H_7,IF(AL$1=AE$1,H_7,IF(AL$1=AF$1,H_7,IF(AL$1=AG$1,H_7,IF(AL$1=AH$1,H_7,IF(AL$1=AI$1,H_7,\"\"))))))))))))))))","v":""}]
[null,{"$f":"IF(A$10<>B$9,\" \",INDEX(C11:E11,MATCH(A$23,C$9:I$9,0)))","v":" "},"","","",null,null,null,null,null,"Profiler:","Profiler:","Profiler:","Lysegrå - RAL 7035","","","","Sunrise-vinduer S10",4000]
["Type med Konsekvens Profil:"," ","","","",null,null,null,null,null,null,null,null,"Steingrå - RAL 7030","","","","Sunrise-vinduer S60",4250]
[{"$f":"IF(A$10=A$3,K2,IF(A$10=A$4,L2,IF(A$10=A$5,M2,\"\")))","v":""}," ","","","",null,null,null,null,null,"Horisontal profil S","Horisontal profil S","Horisontal profil S","Antrasittgrå - RAL 7016","","","","Speil V med vinduer V0",4500]
[{"$f":"IF(A$10=A$3,C2,IF(A$10=A$4,L13,IF(A$10=A$5,M13,\"\")))","v":""}," ","","","",null,null,null,null,null,"Horisontal profil M","Horisontal profil M","Horisontal profil M","Barnålgrønn - RAL 6009","","","",null,4750]
[{"$f":"IF(A$10=A$3,K14,IF(A$10=A$4,L14,IF(A$10=A$5,M14,\"\")))","v":""},null,null,null,null,null,null,null,null,null,"Plan profil L","Speil profil","Plan profil L","Mosegrønn - RAL 6005","","","",null,5000]
[{"$f":"IF(A$10=A$3,K15,IF(A$10=A$4,L15,IF(A$10=A$5,M15,\"\")))","v":""},"Hörmann LTH - leddport i massivtre","Horisontal profil S","Horisontal profil M","Plan profil L","Speil profil","Desognprofil",null,null,null,"Horisontal profil D","","Speil profil","Dueblå - RAL 5014","","","","Valgt profil:",5500]
[{"$f":"IF(A$10=A$3,K16,IF(A$10=A$4,L16,IF(A$10=A$5,M16,\"\")))","v":""},{"$f":"IF(A$10<>B$16,\" \",INDEX(C17:G17,MATCH(A$23,C$16:G$16,0)))","v":" "},"Nordisk gran","Nordisk gran","Nordisk gran","Nordisk gran","Nordisk gran",null,null,null,"Horisontal profil T","","Designmotiv:","Stålblå - RAL 5011","","","",{"$f":"[1]Produksjonsbeskrivelse!K251","v":"Plan profil L med motiv"},6000]
[{"$f":"IF(A$10=A$3,K17,IF(A$10=A$4,L17,IF(A$10=A$5,M17,\"\")))","v":""},{"$f":"IF(A$10<>B$16,\" \",INDEX(C18:G18,MATCH(A$23,C$16:G$16,0)))","v":" "},"Hemlock","Hemlock","Hemlock","Hemlock","Hemlock",null,null,null,"Speil profil","","","Rubinrød - RAL 3003","","",""]
[{"$f":"IF(A$10=A$3,K18,IF(A$10=A$4,L18,IF(A$10=A$5,M18,\"\")))","v":""}," ","","","","","","","",null,null,"",null,"Elfenbenhvit - RAL 1015","","","","Konsekvens for vindu:"]
[null," ","","","","","","",null,null,null,null,null," ","","",""]
["Valgt profil:"," ","","","","","",null,null,null,"Horisontal profil S","Horisontal profil S",null,null,null,null,null,null,"Beslag:"]
[null,null,"",null,null,null,null,null,null,null,"Horisontal profil M","Horisontal profil M",null,"Konsekvens farge:"]
[{"$f":"Produksjonsbeskrivelse!J250","v":0},null,null,null,null,null,null,null,null,null,"Plan profil L","Speil profil",null,null,null,null,null,null,"Z-beslag"]
[null,null,null,null,null,null,null,null,null,null,"Speil profil",null,null,{"$f":"IF(AND(A$10=A$3,A$36=K$3),N3,IF(AND(A$10=A$3,A$36=K$4),O3,IF(AND(A$10=A$3,A$36=K$5),N3,IF(AND(A$10=A$3,A$36=K$6),N3,IF(AND(A$10=A$3,A$36=K$7),P3,IF(AND(A$10=A$4,A$36=L$3),N$3,IF(AND(A$10=A$5,A$36=M$3),Q3,IF(AND(A$10=A$5,A$36=M$4),Q3,\"\"))))))))","v":""},null,null,null,null,"N-beslag"]
["Profil med Konsekvens overflate:",null,null,null,null,null,null,null,null,null,"Horisontal profil M",null,null,{"$f":"IF(AND(A$10=A$3,A$36=K$3),N4,IF(AND(A$10=A$3,A$36=K$4),O4,IF(AND(A$10=A$3,A$36=K$5),N4,IF(AND(A$10=A$3,A$36=K$6),N4,IF(AND(A$10=A$3,A$36=K$7),P4,IF(AND(A$10=A$4,A$36=L$3),N$3,IF(AND(A$10=A$5,A$36=M$3),Q4,IF(AND(A$10=A$5,A$36=M$4),Q4,\"\"))))))))","v":""},null,null,null,null,"L-beslag"]
[null,null,null,null,null,null,null,null,null,null,"Plan profil L",null,null,"",null,null,null,null,"H-beslag"]
[{"$f":"IF(A$10=A$3,B3,IF(A$10=A$4,B10,IF(A$10=A$5,B17,\" \")))","v":" "},null,null,null,null,null,null,null,null,null,"Horisontal profil M",null,null,"",null,null,null,null,""]
[{"$f":"IF(A$10=A$3,B4,IF(A$10=A$4,B11,IF(A$10=A$5,B18,\" \")))","v":" "},null,null,null,null,null,null,null,null,null,"Plan profil L",null,null,"",null,null,null,null,"Valg_Beslag:"]
[" ",null,null,null,null,null,null,null,null,null,"Horisontal profil M",null,null,{"$f":"IF(AND(A$10=A$3,A$36=K$3),N8,IF(AND(A$10=A$3,A$36=K$4),O8,IF(AND(A$10=A$3,A$36=K$5),N8,IF(AND(A$10=A$3,A$36=K$6),N8,IF(AND(A$10=A$3,A$36=K$7),P8,IF(AND(A$10=A$4,A$36=L$3),N$3,IF(AND(A$10=A$5,A$36=M$3),Q8,IF(AND(A$10=A$5,A$36=M$4),Q8,\"\"))))))))","v":""}]
[" ",null,null,null,null,null,null,null,null,null,"Plan profil L",null,null,"",null,null,null,null,{"$f":"IF(AND(AL$1<Z$1,AM$1<S$6),S23,IF(AL$1>Y$1,S24,\"\"))","v":"N-beslag"}]
[" ",null,null,null,null,null,null,null,null,null,"Plan profil L med motiv",null,null,"",null,null,null,null,{"$f":"IF(AND(AL$1<Z$1,AM$1<S$6),S24,IF(AL$1>Y$1,S25,\"\"))","v":"L-beslag"}]
[null,null,null,null,null,null,null,null,null,null,"Horisontal profil D",null,null,"",null,null,null,null,"H-beslag"]
[null,null,null,null,null,null,null,null,null,null,"Horisontal profil T",null,null,"",null,null,null,null,""]
["Valgt overflate:",null,null,null,null,null,null,null,null,null,"Speil profil",null,null,""]
[null,null,null,null,null,null,null,null,null,null,"Horisontal profil M",null,null,""]
[{"$f":"Produksjonsbeskrivelse!C251","v":0},null,null,null,null,null,null,null,null,null,"Plan profil L",null,null,""]
[null,null,null,null,null,null,null,null,null,null,null,null,null,""]
[null,null,null,null,null,null,null,null,null,null,null,null,null,""]
[null,null,null,null,null,null,null,null,null,null,null,null,null,""]
[null,null,null,null,null,null,null,null,null,null,null,null,null,{"$f":"IF(AND(A$10=A$3,A$36=K$3),N19,IF(AND(A$10=A$3,A$36=K$4),O19,IF(AND(A$10=A$3,A$36=K$5),N19,IF(AND(A$10=A$3,A$36=K$6),N19,IF(AND(A$10=A$3,A$36=K$7),P19,IF(AND(A$10=A$4,A$36=L$3),N$3,IF(AND(A$10=A$5,A$36=M$3),Q19,IF(AND(A$10=A$5,A$36=M$4),Q19,\"\"))))))))","v":""}]
[null,null,null,null,null,null,null,null,null,null,null,null,null,""]
[]
[]
[]
[]
[]
[]
[]
[]
[]
[]
[]
[]
[]
[]
[null,null,null,null,null,null,null,null,null,null,null,null,null,{"$f":"IF(AND(A$10=A$3,A$23=K$3),N15,IF(AND(A$10=A$3,A$23=K$4),O15,IF(AND(A$10=A$3,A$23=K$5),N15,IF(AND(A$10=A$3,A$23=K$6),N15,IF(AND(A$10=A$3,A$23=K$7),P15,IF(AND(A$10=A$4,A$23=L$3),N$3,IF(AND(A$10=A$5,A$23=M$3),Q15,IF(AND(A$10=A$5,A$23=M$4),Q15,\"\"))))))))","v":""}]
[null,null,null,null,null,null,null,null,null,null,"",null,null,""]
["Konsekvens designmotiv:",null,null,null,null,null,null,null,null,null,"",null,null,""]
[null,null,null,null,null,null,null,null,null,"Designmotiver:","450-rustfritt stål",null,null,""]
[{"$f":"IF(AND(A$10=A$3,A$23=K$6,A$36=K$31),K59,IF(AND(A$10=A$3,A$23=K$6,A$36=K$33),K71,\"\"))","v":""},null,null,null,null,null,null,null,null,null,"461-rustfritt stål m/vinduer","Designplassering:",null,""]
[{"$f":"IF(AND(A$10=A$3,A$23=K$6,A$36=K$31),K60,IF(AND(A$10=A$3,A$23=K$6,A$36=K$33),K72,\"\"))","v":""},null,null,null,null,null,null,null,null,null,"451-rustfritt stål u/vinduer",null,null,""]
[{"$f":"IF(AND(A$10=A$3,A$23=K$6,A$36=K$31),K61,IF(AND(A$10=A$3,A$23=K$6,A$36=K$33),K73,\"\"))","v":""},null,null,null,null,null,null,null,null,null,"462-rustfritt stål m/vinduer","Venstre"]
[{"$f":"IF(AND(A$10=A$3,A$23=K$6,A$36=K$31),K62,IF(AND(A$10=A$3,A$23=K$6,A$36=K$33),K74,\"\"))","v":""},null,null,null,null,null,null,null,null,null,"452-rustfritt stål u/vinduer","Midt"]
[{"$f":"IF(AND(A$10=A$3,A$23=K$6,A$36=K$31),K63,\"\")","v":""},null,null,null,null,null,null,null,null,null,"454-rustfritt stål","Høyre"]
["",null,null,null,null,null,null,null,null,null,"456-rustfritt stål","NB! Kun motiv 457:"]
["",null,null,null,null,null,null,null,null,null,"457-rustfritt stål","Venstre speilvendt"]
["",null,null,null,null,null,null,null,null,null,"458-rustfritt stål","Høyre speilvendt"]
["",null,null,null,null,null,null,null,null,null,"469-rustfritt stål m/vinduer",""]
["",null,null,null,null,null,null,null,null,null,"459-rustfritt stål u/vinduer"]
["",null,null,null,null,null,null,null,null,null," "]
["",null,null,null,null,null,null,null,null,null,"501-gjennomgående, rustfritt stål"]
["Valgt designmotiv:",null,null,null,null,null,null,null,null,null,"501-gjennomgående, tre-finish"]
[null,null,null,null,null,null,null,null,null,null,"500-delt dekor, rustfritt stål"]
[{"$f":"Produksjonsbeskrivelse!K254","v":0},null,null,null,null,null,null,null,null,null,"500-delt dekor, tre-finish"]
[]
["Konsekvens designplassering:"]
[]
[{"$f":"IF(OR(A$74=K$60,A$74=K$61,A$74=K$62,A$74=K$63,A$74=K$64,A$74=K$65,A$74=K$66,BD72=K$67,A$74=K$68,A$74=K$69),L62,\"\")","v":""}]
[""]
[""]
[""]
[""]
[""]
[{"$f":"IF(AND(A$10=A$3,A$23=K$6,A$36=K$31,A$74=K$59),\"\",IF(AND(A$10=A$3,A$23=K$6,A$36=K$31,A$74>0),L68,\"\"))","v":""}]

{"sheet":"Ark2","index":23,"n_rows":0,"n_cols":0,"rows_kept":0,"cut":false,"hidden":true,"merged":[]}